Workbook

Sheet Zał.1_WPF_bazowy
B1: Zestawienie wygenerowane na podstawie danych wprowadzonych do systemu BESTI@ | I1: Układ WPF wg Rozporządzenia Ministra Finansów z dnia 10.01.2013 (Dz.U. z 2013 r., poz. 86)
B2: Poniższej tabeli WPF nie należy modyfikować.
B3: Do szacowania i analiz służy arkusz "WPF_AnalizaWsk_Projektowanie"
B4: Nr Uchwały: | D4: =DaneZrodlowe!B4 -> 1
B5: Nazwa JST: | D5: =DaneZrodlowe!C4 -> KRZYŻANÓW
B6: WPF za lata: | D6: =CONCATENATE(DaneZrodlowe!N1," - ",DaneZrodlowe!Q1) -> 2014 - 2017
E8: Wykonanie | G8: Plan 3 kw. | H8: Wykonanie | I8: ="" -> 
A9: X | B9: Lp. | D9: Wyszczególnienie | E9: =+F9-1 -> 2011 | F9: =+G9-1 -> 2012 | G9: =+H9 -> 2013 | H9: =+I9-1 -> 2013 | I9: =+DaneZrodlowe!$N$1 -> 2014 | J9: =+I9+1 -> 2015 | K9: =+J9+1 -> 2016 | L9: =+K9+1 -> 2017
A10: x | B10: 1 | C10: Dochody ogółem | D10: Dochody ogółem | E10: =11735693.56 -> 11735693.56 | F10: =14062028.15 -> 14062028.15 | G10: =13471394.42 -> 13471394.42 | H10: =12678694 -> 12678694 | I10: =13601645 -> 13601645 | J10: =10825000 -> 10825000 | K10: =12050000 -> 12050000 | L10: =12170000 -> 12170000
A11: x | B11: 1.1 | C11: Dochody bieżące | D11: Dochody bieżące, w tym: | E11: =10187163.27 -> 10187163.27 | F11: =12660364.54 -> 12660364.54 | G11: =12464064.42 -> 12464064.42 | H11: =11995164 -> 11995164 | I11: =11221741 -> 11221741 | J11: =10825000 -> 10825000 | K11: =12050000 -> 12050000 | L11: =12170000 -> 12170000
B12: 1.1.1 | C12: dochody z tytułu udziału we wpływach z podatku dochodowego od osób fizycznych | D12: dochody z tytułu udziału we wpływach z podatku dochodowego od osób fizycznych | E12: =976091 -> 976091 | F12: =1398132 -> 1398132 | G12: =1443005 -> 1443005 | H12: =1443005 -> 1443005 | I12: =1335088 -> 1335088 | J12: =1335088 -> 1335088 | K12: =1335088 -> 1335088 | L12: =1335088 -> 1335088
B13: 1.1.2 | C13: dochody z tytułu udziału we wpływach z podatku dochodowego od osób prawnych | D13: dochody z tytułu udziału we wpływach z podatku dochodowego od osób prawnych | E13: =7359.96 -> 7359.96 | F13: =873.76 -> 873.76 | G13: =1000 -> 1000 | H13: =1000 -> 1000 | I13: =1000 -> 1000 | J13: =1000 -> 1000 | K13: =1000 -> 1000 | L13: =1000 -> 1000
B14: 1.1.3 | C14: podatki i opłaty, w tym: | D14: podatki i opłaty, w tym: | E14: =3093016.26 -> 3093016.26 | F14: =4719070.97 -> 4719070.97 | G14: =3848642.4 -> 3848642.4 | H14: =3379742 -> 3379742 | I14: =4152101 -> 4152101 | J14: =4194000 -> 4194000 | K14: =5356000 -> 5356000 | L14: =5410000 -> 5410000
B15: 1.1.3.1 | C15: z podatku od nieruchomości | D15: z podatku od nieruchomości | E15: =849319.19 -> 849319.19 | F15: =1608877.11 -> 1608877.11 | G15: =1644617.4 -> 1644617.4 | H15: =1644617.4 -> 1644617.4 | I15: =1657389 -> 1657389 | J15: =1674000 -> 1674000 | K15: =2811000 -> 2811000 | L15: =2839000 -> 2839000
B16: 1.1.4 | C16: z subwencji ogólnej | D16: z subwencji ogólnej | E16: =4037554 -> 4037554 | F16: =4481337 -> 4481337 | G16: =4504728 -> 4504728 | H16: =4504728 -> 4504728 | I16: =3294922 -> 3294922 | J16: =3294922 -> 3294922 | K16: =3294922 -> 3294922 | L16: =3294922 -> 3294922
B17: 1.1.5 | C17: z tytułu dotacji i środków przeznaczonych na cele bieżące | D17: z tytułu dotacji i środków przeznaczonych na cele bieżące | E17: =2073142.05 -> 2073142.05 | F17: =2060950.81 -> 2060950.81 | G17: =1980030.02 -> 1980030.02 | H17: =1980030.02 -> 1980030.02 | I17: =1350903 -> 1350903 | J17: =1350903 -> 1350903 | K17: =1350903 -> 1350903 | L17: =1350903 -> 1350903
A18: x | B18: 1.2 | C18: Dochody majątkowe | D18: Dochody majątkowe, w tym: | E18: =1548530.29 -> 1548530.29 | F18: =1401663.61 -> 1401663.61 | G18: =1007330 -> 1007330 | H18: =683530 -> 683530 | I18: =2379904 -> 2379904 | J18: =0 -> 0 | K18: =0 -> 0 | L18: =0 -> 0
A19: x | B19: 1.2.1 | C19: Dochody ze sprzedaży majątku | D19: ze sprzedaży majątku | E19: =140492.99 -> 140492.99 | F19: =69038.91 -> 69038.91 | G19: =330000 -> 330000 | H19: =6200 -> 6200 | I19: =200000 -> 200000 | J19: =0 -> 0 | K19: =0 -> 0 | L19: =0 -> 0
B20: 1.2.2 | C20: z tytułu dotacji oraz środków przeznaczonych na inwestycje | D20: z tytułu dotacji oraz środków przeznaczonych na inwestycje | E20: =1405937.3 -> 1405937.3 | F20: =1332324.7 -> 1332324.7 | G20: =664102 -> 664102 | H20: =664102 -> 664102 | I20: =2179904 -> 2179904 | J20: =0 -> 0 | K20: =0 -> 0 | L20: =0 -> 0
A21: x | B21: 2 | C21: Wydatki ogółem | D21: Wydatki ogółem | E21: =12835915.98 -> 12835915.98 | F21: =11481546.43 -> 11481546.43 | G21: =14584700.7 -> 14584700.7 | H21: =14401220 -> 14401220 | I21: =12827688.81 -> 12827688.81 | J21: =10825000 -> 10825000 | K21: =12050000 -> 12050000 | L21: =12170000 -> 12170000
A22: x | B22: 2.1 | C22: Wydatki bieżące | D22: Wydatki bieżące, w tym: | E22: =9211865.66 -> 9211865.66 | F22: =9055670.43 -> 9055670.43 | G22: =9959324.7 -> 9959324.7 | H22: =9775844 -> 9775844 | I22: =8917188.81 -> 8917188.81 | J22: =9140000 -> 9140000 | K22: =9368000 -> 9368000 | L22: =9600000 -> 9600000
A23: x | B23: 2.1.1 | C23: z tytułu poręczeń i gwarancji | D23: z tytułu poręczeń i gwarancji, w tym: | E23: =0 -> 0 | F23: =0 -> 0 | G23: =0 -> 0 | H23: =0 -> 0 | I23: =0 -> 0 | J23: =0 -> 0 | K23: =0 -> 0 | L23: =0 -> 0
A24: x | B24: 2.1.1.1 | C24: gwarancje i poręczenia podlegające wyłączeniu z limitów spłaty zobowiązań określonych w art. 243 ust. 3 pkt 2 ustawy z dnia 27 sierpnia 2009 r. o finansach publicznych (Dz. U. Nr 157, poz. 1240, z późn. zm.) lub art. 169 ust. 3 pkt 2 ustawy z dnia 30 czerwca 2005 r. o finansach publicznych (Dz. U. Nr 249, poz. 2104, z późn. zm) | D24: gwarancje i poręczenia podlegające wyłączeniu z limitów spłaty zobowiązań określonych w art. 243 ust. 3 pkt 2 ustawy z dnia 27 sierpnia 2009 r. o finansach publicznych (Dz. U. Nr 157, poz. 1240, z późn. zm.) lub art. 169 ust. 3 pkt 2 ustawy z dnia 30 czerwca 2005 r. o finansach publicznych (Dz. U. Nr 249, poz. 2104, z późn. zm) | E24: =0 -> 0 | F24: =0 -> 0 | G24: =0 -> 0 | H24: =0 -> 0 | I24: =0 -> 0 | J24: =0 -> 0 | K24: =0 -> 0 | L24: =0 -> 0
B25: 2.1.2 | C25: na spłatę przejętych zobowiązań samodzielnego publicznego zakładu opieki zdrowotnej przekształconego na zasadach określonych w przepisach o działalności leczniczej, w wysokości w jakiej nie podlegają sfinansowaniu dotacją z budżetu państwa) | D25: na spłatę przejętych zobowiązań samodzielnego publicznego zakładu opieki zdrowotnej przekształconego na zasadach określonych w przepisach o działalności leczniczej, w wysokości w jakiej nie podlegają sfinansowaniu dotacją z budżetu państwa) | E25: x | F25: x | G25: x | H25: x | I25: =0 -> 0 | J25: =0 -> 0 | K25: =0 -> 0 | L25: =0 -> 0
A26: x | B26: 2.1.3 | C26: Wydatki na obsługę długu | D26: wydatki na obsługę długu, w tym: | E26: =41411.77 -> 41411.77 | F26: =84758.58 -> 84758.58 | G26: =95000 -> 95000 | H26: =35000 -> 35000 | I26: =20000 -> 20000 | J26: =0 -> 0 | K26: =0 -> 0 | L26: =0 -> 0
A27: x | B27: 2.1.3.1 | C27: odsetki i dyskonto określone w art. 243 ust. 1 ustawy lub art. 169 ust. 1 ufp z 2005 r.. | D27: odsetki i dyskonto określone w art. 243 ust. 1 ustawy lub art. 169 ust. 1 ufp z 2005 r.. | E27: =38272.47 -> 38272.47 | F27: =83194.59 -> 83194.59 | G27: =95000 -> 95000 | H27: =35000 -> 35000 | I27: =20000 -> 20000 | J27: =0 -> 0 | K27: =0 -> 0 | L27: =0 -> 0
A28: x | B28: 2.2 | C28: Wydatki majątkowe | D28: Wydatki majątkowe | E28: =3624050.32 -> 3624050.32 | F28: =2425876 -> 2425876 | G28: =4625376 -> 4625376 | H28: =4625376 -> 4625376 | I28: =3910500 -> 3910500 | J28: =1685000 -> 1685000 | K28: =2682000 -> 2682000 | L28: =2570000 -> 2570000
A29: x | B29: 3 | C29: Wynik budżetu | D29: Wynik budżetu | E29: =-1100222.42 -> -1100222.42 | F29: =2580481.72 -> 2580481.72 | G29: =-1113306.28 -> -1113306.28 | H29: =-1722526 -> -1722526 | I29: =773956.19 -> 773956.19 | J29: =0 -> 0 | K29: =0 -> 0 | L29: =0 -> 0
A30: x | B30: 4 | C30: Przychody budżetu | D30: Przychody budżetu | E30: =2625223.85 -> 2625223.85 | F30: =1050519.37 -> 1050519.37 | G30: =1850827.74 -> 1850827.74 | H30: =2460047.46 -> 2460047.46 | I30: =0 -> 0 | J30: =0 -> 0 | K30: =0 -> 0 | L30: =0 -> 0
A31: x | B31: 4.1 | C31: Nadwyżka budżetowa z lat ubiegłych, w tym: | D31: Nadwyżka budżetowa z lat ubiegłych, w tym: | E31: =0 -> 0 | F31: =0 -> 0 | G31: =314668.09 -> 314668.09 | H31: =923887.81 -> 923887.81 | I31: =0 -> 0 | J31: =0 -> 0 | K31: =0 -> 0 | L31: =0 -> 0
A32: x | B32: 4.1.1 | C32: na pokrycie deficytu budżetu | D32: na pokrycie deficytu budżetu | E32: =0 -> 0 | F32: =0 -> 0 | G32: =0 -> 0 | H32: =211048.35 -> 211048.35 | I32: =0 -> 0 | J32: =0 -> 0 | K32: =0 -> 0 | L32: =0 -> 0
A33: x | B33: 4.2 | C33: Wolne środki, o których mowa w art. 217 ust.2 pkt 6 ustawy, w tym: | D33: Wolne środki, o których mowa w art. 217 ust.2 pkt 6 ustawy, w tym: | E33: =186016.39 -> 186016.39 | F33: =902519.37 -> 902519.37 | G33: =1422477.65 -> 1422477.65 | H33: =1422477.65 -> 1422477.65 | I33: =0 -> 0 | J33: =0 -> 0 | K33: =0 -> 0 | L33: =0 -> 0
A34: x | B34: 4.2.1 | C34: na pokrycie deficytu budżetu | D34: na pokrycie deficytu budżetu | E34: =0 -> 0 | F34: =0 -> 0 | G34: =1024306.28 -> 1024306.28 | H34: =1422477.65 -> 1422477.65 | I34: =0 -> 0 | J34: =0 -> 0 | K34: =0 -> 0 | L34: =0 -> 0
A35: x | B35: 4.3 | C35: Kredyty, pożyczki, emisja papierów wartościowych, w tym: | D35: Kredyty, pożyczki, emisja papierów wartościowych, w tym: | E35: =2417813.74 -> 2417813.74 | F35: =148000 -> 148000 | G35: =89000 -> 89000 | H35: =89000 -> 89000 | I35: =0 -> 0 | J35: =0 -> 0 | K35: =0 -> 0 | L35: =0 -> 0
A36: x | B36: 4.3.1 | C36: na pokrycie deficytu budżetu | D36: na pokrycie deficytu budżetu | E36: =1100222.42 -> 1100222.42 | F36: =0 -> 0 | G36: =89000 -> 89000 | H36: =89000 -> 89000 | I36: =0 -> 0 | J36: =0 -> 0 | K36: =0 -> 0 | L36: =0 -> 0
A37: x | B37: 4.4 | C37: Inne przychody niezwiązane z zaciągnięciem długu, w tym: | D37: Inne przychody niezwiązane z zaciągnięciem długu, w tym: | E37: =21393.72 -> 21393.72 | F37: =0 -> 0 | G37: =24682 -> 24682 | H37: =24682 -> 24682 | I37: =0 -> 0 | J37: =0 -> 0 | K37: =0 -> 0 | L37: =0 -> 0
A38: x | B38: 4.4.1 | C38: na pokrycie deficytu budżetu | D38: na pokrycie deficytu budżetu | E38: =0 -> 0 | F38: =0 -> 0 | G38: =0 -> 0 | H38: =0 -> 0 | I38: =0 -> 0 | J38: =0 -> 0 | K38: =0 -> 0 | L38: =0 -> 0
A39: x | B39: 5 | C39: Rozchody budżetu | D39: Rozchody budżetu | E39: =601088.34 -> 601088.34 | F39: =1303202.75 -> 1303202.75 | G39: =737521.46 -> 737521.46 | H39: =737521.46 -> 737521.46 | I39: =773956.19 -> 773956.19 | J39: =0 -> 0 | K39: =0 -> 0 | L39: =0 -> 0
A40: x | B40: 5.1 | C40: Spłaty rat kapitałowych kredytów i pożyczek oraz wykup papierów wartościowych | D40: Spłaty rat kapitałowych kredytów i pożyczek oraz wykup papierów wartościowych, w tym: | E40: =601088.34 -> 601088.34 | F40: =1278520.75 -> 1278520.75 | G40: =737521.46 -> 737521.46 | H40: =737521.46 -> 737521.46 | I40: =773956.19 -> 773956.19 | J40: =0 -> 0 | K40: =0 -> 0 | L40: =0 -> 0
A41: x | B41: 5.1.1 | C41: łączna kwota przypadających na dany rok kwot wyłączeń określonych w: art. 243 ust. 3 pkt 1 ustawy (lub art. 169 ust. 3 pkt 1 ufp z 2005 r.), art. 121a ustawy z dnia 27 sierpnia 2009 r. – Przepisy wprowadzające ustawę o finansach publicznych (Dz. U. Nr 157, poz. 1241, z późn. zm.) oraz art. 36 ustawy z dnia 7 grudnia 2012 r. o zmianie niektórych ustaw związanych z realizacją ustawy budżetowej (Dz.U. poz. 1456), w tym: | D41: łączna kwota przypadających na dany rok kwot wyłączeń określonych w: art. 243 ust. 3 pkt 1 ustawy (lub art. 169 ust. 3 pkt 1 ufp z 2005 r.), art. 121a ustawy z dnia 27 sierpnia 2009 r. – Przepisy wprowadzające ustawę o finansach publicznych (Dz. U. Nr 157, poz. 1241, z późn. zm.) oraz art. 36 ustawy z dnia 7 grudnia 2012 r. o zmianie niektórych ustaw związanych z realizacją ustawy budżetowej (Dz.U. poz. 1456), w tym: | E41: =552822 -> 552822 | F41: =595645.15 -> 595645.15 | G41: =0 -> 0 | H41: =0 -> 0 | I41: =0 -> 0 | J41: =0 -> 0 | K41: =0 -> 0 | L41: =0 -> 0
A42: x | B42: 5.1.1.1 | C42: kwota przypadających na dany rok kwot wyłączeń określonych w art. 243 ust. 3 pkt 1 ustawy lub art. 169 ust. 3 pkt 1 ufp z 2005 r. | D42: kwota przypadających na dany rok kwot wyłączeń określonych w art. 243 ust. 3 pkt 1 ustawy lub art. 169 ust. 3 pkt 1 ufp z 2005 r. | E42: =552822 -> 552822 | F42: =595645.15 -> 595645.15 | G42: =0 -> 0 | H42: =0 -> 0 | I42: =0 -> 0 | J42: =0 -> 0 | K42: =0 -> 0 | L42: =0 -> 0
B43: 5.2 | C43: Inne rozchody niezwiązane ze spłatą długu | D43: Inne rozchody niezwiązane ze spłatą długu | E43: =0 -> 0 | F43: =24682 -> 24682 | G43: =0 -> 0 | H43: =0 -> 0 | I43: =0 -> 0 | J43: =0 -> 0 | K43: =0 -> 0 | L43: =0 -> 0
A44: x | B44: 6 | C44: Kwota długu | D44: Kwota długu | E44: =2552998.4 -> 2552998.4 | F44: =1422477.65 -> 1422477.65 | G44: =773956.19 -> 773956.19 | H44: =773956.19 -> 773956.19 | I44: =0 -> 0 | J44: =0 -> 0 | K44: =0 -> 0 | L44: =0 -> 0
B45: 6.1 | C45: Łączna kwota wyłączeń z ograniczeń długu określonych w art. 170 ust. 3 ufp z 2005 r. oraz w art. 36 ustawy o zmianie niektórych ustaw związanych z realizacją ustawy budżetowej, w tym: | D45: Łączna kwota wyłączeń z ograniczeń długu określonych w art. 170 ust. 3 ufp z 2005 r. oraz w art. 36 ustawy o zmianie niektórych ustaw związanych z realizacją ustawy budżetowej, w tym: | E45: =0 -> 0 | F45: =0 -> 0 | G45: =0 -> 0 | H45: =0 -> 0 | I45: =0 -> 0 | J45: =0 -> 0 | K45: =0 -> 0 | L45: =0 -> 0
B46: 6.1.1 | C46: kwota wyłączeń z ograniczeń długu określonych w art. 170 ust. 3 ufp z 2005 r. | D46: kwota wyłączeń z ograniczeń długu określonych w art. 170 ust. 3 ufp z 2005 r. | E46: =595645.15 -> 595645.15 | F46: =0 -> 0 | G46: =0 -> 0 | H46: =0 -> 0 | I46: =0 -> 0 | J46: =0 -> 0 | K46: =0 -> 0 | L46: =0 -> 0
B47: 6.2 | C47: Wskaźnik z art. 170 ufp z 2005 r., bez uwzględniania wyłączeń | D47: Wskaźnik zadłużenia do dochodów ogółem określony w art. 170 ufp z 2005 r., bez uwzględniania wyłączeń określonych w pkt 6.1. | E47: =0.2175 -> 0.2175 | F47: =0.1012 -> 0.1012 | G47: =0.0575 -> 0.0575 | H47: =0.061 -> 0.061 | I47: =0 -> 0 | J47: =0 -> 0 | K47: =0 -> 0 | L47: =0 -> 0
B48: 6.3 | C48: Wskaźnik z art. 170 ufp z 2005 r. po uwzględnieniu wyłączeń | D48: Wskaźnik zadłużenia do dochodów ogółem, o którym mowa w art. 170 ufp z 2005 r., po uwzględnieniu wyłączeń określonych w pkt 6.1. | E48: =0.2175 -> 0.2175 | F48: =0.1012 -> 0.1012 | G48: =0.0575 -> 0.0575 | H48: =0.061 -> 0.061 | I48: =0 -> 0 | J48: =0 -> 0 | K48: =0 -> 0 | L48: =0 -> 0
B49: 7 | C49: Kwota zobowiązań wynikających z przejęcia przez jednostkę samorządu terytorialnego zobowiązań po likwidowanych i przekształcanych jednostkach zaliczanych do sektora finansów publicznych | D49: Kwota zobowiązań wynikających z przejęcia przez jednostkę samorządu terytorialnego zobowiązań po likwidowanych i przekształcanych jednostkach zaliczanych do sektora finansów publicznych | E49: =0 -> 0 | F49: =0 -> 0 | G49: =0 -> 0 | H49: =0 -> 0 | I49: =0 -> 0 | J49: =0 -> 0 | K49: =0 -> 0 | L49: =0 -> 0
B50: 8 | C50: Relacja zrównoważenia wydatków bieżących, o której mowa w art. 242 ustawy | D50: Relacja zrównoważenia wydatków bieżących, o której mowa w art. 242 ustawy | E50: x | F50: x | G50: x | H50: x | I50: x | J50: x | K50: x | L50: x
B51: 8.1 | C51: Różnica między dochodami bieżącymi a wydatkami bieżącymi | D51: Różnica między dochodami bieżącymi a wydatkami bieżącymi | E51: =975297.61 -> 975297.61 | F51: =3604694.11 -> 3604694.11 | G51: =2504739.72 -> 2504739.72 | H51: =2219320 -> 2219320 | I51: =2304552.19 -> 2304552.19 | J51: =1685000 -> 1685000 | K51: =2682000 -> 2682000 | L51: =2570000 -> 2570000
B52: 8.2 | C52: Różnica między dochodami bieżącymi, powiększonymi o nadwyżkę budżetową określoną w pkt 4.1. i wolne środki określone w pkt 4.2. a wydatkami bieżącymi, pomniejszonym o wydatki określone w pkt 2.1.2. | D52: Różnica między dochodami bieżącymi, powiększonymi o nadwyżkę budżetową określoną w pkt 4.1. i wolne środki określone w pkt 4.2. a wydatkami bieżącymi, pomniejszonym o wydatki określone w pkt 2.1.2. | E52: =1161314 -> 1161314 | F52: =4507213.48 -> 4507213.48 | G52: =4241885.46 -> 4241885.46 | H52: =4565685.46 -> 4565685.46 | I52: =2304552.19 -> 2304552.19 | J52: =1685000 -> 1685000 | K52: =2682000 -> 2682000 | L52: =2570000 -> 2570000
A53: x | B53: 9 | C53: Wskaźnik spłaty zobowiązań | D53: Wskaźnik spłaty zobowiązań | E53: x | F53: x | G53: x | H53: x | I53: x | J53: x | K53: x | L53: x
B54: 9.1 | C54: Wskaźnik z art. 169 ust. 1 ufp z 2005 r. bez uwzględnienia wyłączeń | D54: Wskaźnik planowanej łącznej kwoty spłaty zobowiązań, o której mowa w art. 169 ust. 1 ufp z 2005 r. do dochodów ogółem, bez uwzględnienia wyłączeń określonych w pkt 5.1.1. | E54: =0.0545 -> 0.0545 | F54: =0.0968 -> 0.0968 | G54: =0.0618 -> 0.0618 | H54: =0.0609 -> 0.0609 | I54: =0.0584 -> 0.0584 | J54: =0 -> 0 | K54: =0 -> 0 | L54: =0 -> 0
B55: 9.2 | C55: Wskaźnik z art. 169 ust. 1 ufp z 2005 r. po uwzględnieniu wyłączeń | D55: Wskaźnik planowanej łącznej kwoty spłaty zobowiązań, o której mowa w art. 169 ust. 1 ufp z 2005 r. do dochodów ogółem, po uwzględnieniu wyłączeń przypadających na dany rok określonych w pkt 5.1.1. | E55: =0.0074 -> 0.0074 | F55: =0.0545 -> 0.0545 | G55: =0.0618 -> 0.0618 | H55: =0.0609 -> 0.0609 | I55: =0.0584 -> 0.0584 | J55: =0 -> 0 | K55: =0 -> 0 | L55: =0 -> 0
A56: x | B56: 9.3 | C56: Relacja [R+O]/D , bez uwzględnienia zobowiązań związku JST i bez uwzględniania wyłączeń | D56: Wskaźnik planowanej łącznej kwoty spłaty zobowiązań, o której mowa w art. 243 ust. 1 ustawy do dochodów ogółem, bez uwzględnienia zobowiązań związku współtworzonego przez jednostkę samorządu terytorialnego i bez uwzględniania wyłączeń przypadających na dany rok określonych w pkt 5.1.1. | E56: =0.0545 -> 0.0545 | F56: =0.0968 -> 0.0968 | G56: =0.0618 -> 0.0618 | H56: =0.0609 -> 0.0609 | I56: =0.0584 -> 0.0584 | J56: =0 -> 0 | K56: =0 -> 0 | L56: =0 -> 0
A57: x | B57: 9.4 | C57: Wskaźnik planowanej łącznej kwoty spłaty zobowiązań, o której mowa w art. 243 ust. 1 ustawy do dochodów ogółem, bez uwzględnienia zobowiązań związku współtworzonego przez jednostkę samorządu terytorialnego, po uwzględnieniu wyłączeń przypadających na dany rok określonych w pkt 5.1.1. | D57: Wskaźnik planowanej łącznej kwoty spłaty zobowiązań, o której mowa w art. 243 ust. 1 ustawy do dochodów ogółem, bez uwzględnienia zobowiązań związku współtworzonego przez jednostkę samorządu terytorialnego, po uwzględnieniu wyłączeń przypadających na dany rok określonych w pkt 5.1.1. | E57: =0.0074 -> 0.0074 | F57: =0.0545 -> 0.0545 | G57: =0.0618 -> 0.0618 | H57: =0.0609 -> 0.0609 | I57: =0.0584 -> 0.0584 | J57: =0 -> 0 | K57: =0 -> 0 | L57: =0 -> 0
A58: x | B58: 9.5 | C58: Kwota zobowiązań związku współtworzonego przez jednostkę samorządu terytorialnego przypadających do spłaty w danym roku budżetowym, podlegająca doliczeniu zgodnie z art. 244 ustawy | D58: Kwota zobowiązań związku współtworzonego przez jednostkę samorządu terytorialnego przypadających do spłaty w danym roku budżetowym, podlegająca doliczeniu zgodnie z art. 244 ustawy | E58: =0 -> 0 | F58: =0 -> 0 | G58: =0 -> 0 | H58: =0 -> 0 | I58: =0 -> 0 | J58: =0 -> 0 | K58: =0 -> 0 | L58: =0 -> 0
A59: x | B59: 9.6 | C59: Relacja [R+O]/D , z uwzględnieniem zobowiązań związku JST i po uwzględnianiu wyłączeń | D59: Wskaźnik planowanej łącznej kwoty spłaty zobowiązań, o której mowa w art. 243 ust. 1 ustawy do dochodów ogółem, po uwzględnieniu zobowiązań związku współtworzonego przez jednostkę samorządu terytorialnego oraz po uwzględnieniu wyłączeń przypadających na dany rok określonych w pkt 5.1.1. | E59: =0.0074 -> 0.0074 | F59: =0.0545 -> 0.0545 | G59: =0.0618 -> 0.0618 | H59: =0.0609 -> 0.0609 | I59: =0.0584 -> 0.0584 | J59: =0 -> 0 | K59: =0 -> 0 | L59: =0 -> 0
A60: x | B60: 9.6.1 | C60: Wskaźnik jednoroczny (prawa strona wzoru z art. 243) | D60: Wskaźnik jednoroczny (prawa strona wzoru z art. 243) | E60: =+IF(AND(E9>=2013,E9<=2018),IF(E10<>0,(E11+E19-E22+E25)/E10,0),IF(E10<>0,(E11+E19-E22)/E10,0)) -> 0.09507666456 | F60: =+IF(AND(F9>=2013,F9<=2018),IF(F10<>0,(F11+F19-F22+F25)/F10,0),IF(F10<>0,(F11+F19-F22)/F10,0)) -> 0.261252003 | I60: 0.1841359769 | J60: 0.1556581986 | K60: 0.2225726141 | L60: 0.2111750205
A61: x | B61: 9.7 | C61: Limit spłaty zobowiązań z art. 243 ustawy, po uwzględnieniu wyłączeń obliczony w oparciu o plan 3 kw. roku N-1 | D61: Dopuszczalny wskaźnik spłaty zobowiązań określony w art. 243 ustawy, po uwzględnieniu wyłączeń określonych w art. 36 ustawy z dnia 7 grudnia 2012 r. o zmianie niektórych ustaw związanych z realizacją ustawy budżetowej, obliczony w oparciu o plan 3 kwartałów roku poprzedzającego rok budżetowy | E61: x | F61: x | G61: x | H61: x | I61: =0.1889 -> 0.1889 | J61: =0.2186 -> 0.2186 | K61: =0.1834 -> 0.1834 | L61: =0.1875 -> 0.1875
A62: x | B62: 9.7.1 | C62: Limit spłaty zobowiązań z art. 243 ustawy, po uwzględnieniu wyłączeń obliczony w oparciu o wykonanie 4 kw. roku N-1 | D62: Dopuszczalny wskaźnik spłaty zobowiązań określony w art. 243 ustawy, po uwzględnieniu wyłączeń określonych w art. 36 ustawy z dnia 7 grudnia 2012 r. o zmianie niektórych ustaw związanych z realizacją ustawy budżetowej, obliczony w oparciu o wykonanie roku poprzedzającego rok budżetowy | E62: x | F62: x | G62: x | H62: x | I62: =0.1773 -> 0.1773 | J62: =0.207 -> 0.207 | K62: =0.1718 -> 0.1718 | L62: =0.1875 -> 0.1875
A63: x | B63: 9.8 | C63: Informacja o spełnieniu wskaźnika spłaty zobowiązań określonego w art. 243 ustawy, po uwzględnieniu zobowiązań związku współtworzonego przez jednostkę samorządu terytorialnego oraz po uwzględnieniu wyłączeń określonych w pkt 5.1.1., obliczonego w oparciu o plan 3 kwartałów roku poprzedzającego rok budżetowy | D63: Informacja o spełnieniu wskaźnika spłaty zobowiązań określonego w art. 243 ustawy, po uwzględnieniu zobowiązań związku współtworzonego przez jednostkę samorządu terytorialnego oraz po uwzględnieniu wyłączeń określonych w pkt 5.1.1., obliczonego w oparciu o plan 3 kwartałów roku poprzedzającego rok budżetowy | E63: x | F63: x | G63: x | H63: x | I63: =IF(I59<=I61,"Spełniona","Nie spełniona") -> Spełniona | J63: =IF(J59<=J61,"Spełniona","Nie spełniona") -> Spełniona | K63: =IF(K59<=K61,"Spełniona","Nie spełniona") -> Spełniona | L63: =IF(L59<=L61,"Spełniona","Nie spełniona") -> Spełniona
A64: x | B64: 9.8.1 | C64: Informacja o spełnieniu wskaźnika spłaty zobowiązań określonego w art. 243 ustawy, po uwzględnieniu zobowiązań związku współtworzonego przez jednostkę samorządu terytorialnego oraz po uwzględnieniu wyłączeń określonych w pkt 5.1.1., obliczonego w oparciu o wykonanie roku poprzedzającego rok budżetowy | D64: Informacja o spełnieniu wskaźnika spłaty zobowiązań określonego w art. 243 ustawy, po uwzględnieniu zobowiązań związku współtworzonego przez jednostkę samorządu terytorialnego oraz po uwzględnieniu wyłączeń określonych w pkt 5.1.1., obliczonego w oparciu o wykonanie roku poprzedzającego rok budżetowy | E64: x | F64: x | G64: x | H64: x | I64: =IF(I59<=I62,"Spełniona","Nie spełniona") -> Spełniona | J64: =IF(J59<=J62,"Spełniona","Nie spełniona") -> Spełniona | K64: =IF(K59<=K62,"Spełniona","Nie spełniona") -> Spełniona | L64: =IF(L59<=L62,"Spełniona","Nie spełniona") -> Spełniona
B65: 10 | C65: Przeznaczenie prognozowanej nadwyżki budżetowej, w tym na: | D65: Przeznaczenie prognozowanej nadwyżki budżetowej, w tym na: | E65: =0 -> 0 | F65: =0 -> 0 | G65: =0 -> 0 | H65: =0 -> 0 | I65: =773956.19 -> 773956.19 | J65: =0 -> 0 | K65: =0 -> 0 | L65: =0 -> 0
B66: 10.1 | C66: Spłaty kredytów, pożyczek i wykup papierów wartościowych | D66: Spłaty kredytów, pożyczek i wykup papierów wartościowych | E66: =0 -> 0 | F66: =0 -> 0 | G66: =0 -> 0 | H66: =0 -> 0 | I66: =773956.19 -> 773956.19 | J66: =0 -> 0 | K66: =0 -> 0 | L66: =0 -> 0
B67: 11 | C67: Informacje uzupełniające o wybranych rodzajach wydatków budżetowych | D67: Informacje uzupełniające o wybranych rodzajach wydatków budżetowych | E67: x | F67: x | G67: x | H67: x | I67: x | J67: x | K67: x | L67: x
B68: 11.1 | C68: Wydatki na wynagrodzenia i składki od nich naliczane | D68: Wydatki bieżące na wynagrodzenia i składki od nich naliczane | E68: =4441226.62 -> 4441226.62 | F68: =4171528.09 -> 4171528.09 | G68: =4406547.84 -> 4406547.84 | H68: =4236547 -> 4236547 | I68: =4167113 -> 4167113 | J68: =4271290 -> 4271290 | K68: =4378000 -> 4378000 | L68: =4487450 -> 4487450
B69: 11.2 | C69: Wydatki związane z funkcjonowaniem organów JST | D69: Wydatki związane z funkcjonowaniem organów jednostki samorządu terytorialnego | E69: =1397090.95 -> 1397090.95 | F69: =1438877.18 -> 1438877.18 | G69: =1491519 -> 1491519 | H69: =1491519 -> 1491519 | I69: 1487583 | J69: =1509400 -> 1509400 | K69: =1547135 -> 1547135 | L69: =1585800 -> 1585800
B70: 11.3 | C70: Wydatki objęte limitem art. 226 ust. 3 ustawy, z tego: | D70: Wydatki objęte limitem art. 226 ust. 3 ustawy, z tego: | E70: =1480853.69 -> 1480853.69 | F70: =718974.51 -> 718974.51 | G70: =3546636.65 -> 3546636.65 | H70: =3546636.65 -> 3546636.65 | I70: 30300 | J70: 784700 | K70: =0 -> 0 | L70: =0 -> 0
B71: 11.3.1 | C71: Wydatki bieżące objęte limitem art. 226 ust. 3 | D71: bieżące | E71: =123162.52 -> 123162.52 | F71: =156869.11 -> 156869.11 | G71: =145119.65 -> 145119.65 | H71: =145119.65 -> 145119.65 | I71: =0 -> 0 | J71: =0 -> 0 | K71: =0 -> 0 | L71: =0 -> 0
B72: 11.3.2 | C72: Wydatki majątkowe objęte limitem art. 226 ust. 3 | D72: majątkowe | E72: =1357691.17 -> 1357691.17 | F72: =562105.4 -> 562105.4 | G72: =3401517 -> 3401517 | H72: =3401517 -> 3401517 | I72: 30300 | J72: 784700 | K72: =0 -> 0 | L72: =0 -> 0
B73: 11.4 | C73: Wydatki inwestycyjne kontynuowane | D73: Wydatki inwestycyjne kontynuowane | E73: =1173514.32 -> 1173514.32 | F73: =835040.96 -> 835040.96 | G73: =3401517 -> 3401517 | H73: =3401517 -> 3401517 | I73: =0 -> 0 | J73: 784700 | K73: =0 -> 0 | L73: =0 -> 0
B74: 11.5 | C74: Nowe wydatki inwestycyjne | D74: Nowe wydatki inwestycyjne | E74: =2450536 -> 2450536 | F74: =1590835.04 -> 1590835.04 | G74: =1184859 -> 1184859 | H74: =1184859 -> 1184859 | I74: =3910500 -> 3910500 | J74: 900300 | K74: =2682000 -> 2682000 | L74: =2570000 -> 2570000
B75: 11.6 | C75: Wydatki majątkowe w formie dotacji | D75: Wydatki majątkowe w formie dotacji | E75: =0 -> 0 | F75: =0 -> 0 | G75: =39000 -> 39000 | H75: =39000 -> 39000 | I75: =0 -> 0 | J75: =0 -> 0 | K75: =0 -> 0 | L75: =0 -> 0
B76: 12 | C76: Finansowanie programów, projektów lub zadań realizowanych z udziałem środków, o których mowa w art. 5 ust. 1 pkt 2 i 3 ustawy | D76: Finansowanie programów, projektów lub zadań realizowanych z udziałem środków, o których mowa w art. 5 ust. 1 pkt 2 i 3 ustawy | E76: x | F76: x | G76: x | H76: x | I76: x | J76: x | K76: x | L76: x
B77: 12.1 | C77: Dochody bieżące na programy, projekty lub zadania finansowane z udziałem środków, o których mowa w art. 5 ust. 1 pkt 2 i 3 ustawy, w tym: | D77: Dochody bieżące na programy, projekty lub zadania finansowane z udziałem środków, o których mowa w art. 5 ust. 1 pkt 2 i 3 ustawy, w tym: | E77: =104205.75 -> 104205.75 | F77: =179911.06 -> 179911.06 | G77: =109888.97 -> 109888.97 | H77: =109888.97 -> 109888.97 | I77: =0 -> 0 | J77: =0 -> 0 | K77: =0 -> 0 | L77: =0 -> 0
B78: 12.1.1 | C78: środki określone w art. 5 ust. 1 pkt 2 ustawy, w tym: | D78: środki określone w art. 5 ust. 1 pkt 2 ustawy, w tym: | E78: =104205.75 -> 104205.75 | F78: =160689 -> 160689 | G78: =96205.25 -> 96205.25 | H78: =96205.25 -> 96205.25 | I78: =0 -> 0 | J78: =0 -> 0 | K78: =0 -> 0 | L78: =0 -> 0
B79: 12.1.1.1 | C79: środki określone w art. 5 ust. 1 pkt 2 ustawy wynikające wyłącznie z zawartych umów na realizację programu, projektu lub zadania | D79: środki określone w art. 5 ust. 1 pkt 2 ustawy wynikające wyłącznie z zawartych umów na realizację programu, projektu lub zadania | E79: =0 -> 0 | F79: =0 -> 0 | G79: =96205.25 -> 96205.25 | H79: =96205.25 -> 96205.25 | I79: =0 -> 0 | J79: =0 -> 0 | K79: =0 -> 0 | L79: =0 -> 0
B80: 12.2 | C80: Dochody majątkowe na programy, projekty lub zadania finansowane z udziałem środków, o których mowa w art. 5 ust. 1 pkt 2 i 3 ustawy, w tym: | D80: Dochody majątkowe na programy, projekty lub zadania finansowane z udziałem środków, o których mowa w art. 5 ust. 1 pkt 2 i 3 ustawy, w tym: | E80: =1041937.3 -> 1041937.3 | F80: =1013324.7 -> 1013324.7 | G80: =421154 -> 421154 | H80: =421154 -> 421154 | I80: 2179404 | J80: =0 -> 0 | K80: =0 -> 0 | L80: =0 -> 0
B81: 12.2.1 | C81: środki określone w art. 5 ust. 1 pkt 2 ustawy, w tym: | D81: środki określone w art. 5 ust. 1 pkt 2 ustawy, w tym: | E81: =1041937.3 -> 1041937.3 | F81: =826032 -> 826032 | G81: =232602 -> 232602 | H81: =232602 -> 232602 | I81: =2114404 -> 2114404 | J81: =0 -> 0 | K81: =0 -> 0 | L81: =0 -> 0
B82: 12.2.1.1 | C82: środki określone w art. 5 ust. 1 pkt 2 ustawy wynikające wyłącznie z zawartych umów na realizację programu, projektu lub zadania | D82: środki określone w art. 5 ust. 1 pkt 2 ustawy wynikające wyłącznie z zawartych umów na realizację programu, projektu lub zadania | E82: =0 -> 0 | F82: =0 -> 0 | G82: =232602 -> 232602 | H82: =232602 -> 232602 | I82: =0 -> 0 | J82: =0 -> 0 | K82: =0 -> 0 | L82: =0 -> 0
B83: 12.3 | C83: Wydatki bieżące na programy, projekty lub zadania finansowane z udziałem środków, o których mowa w art. 5 ust. 1 pkt 2 i 3 ustawy | D83: Wydatki bieżące na programy, projekty lub zadania finansowane z udziałem środków, o których mowa w art. 5 ust. 1 pkt 2 i 3 ustawy | E83: =123162.52 -> 123162.52 | F83: =156869.11 -> 156869.11 | G83: =145119.65 -> 145119.65 | H83: =145119.65 -> 145119.65 | I83: =0 -> 0 | J83: =0 -> 0 | K83: =0 -> 0 | L83: =0 -> 0
B84: 12.3.1 | C84: w tym finansowane środkami określonymi w art. 5 ust. 1 pkt 2 ustawy | D84: w tym finansowane środkami określonymi w art. 5 ust. 1 pkt 2 ustawy | E84: =104205.63 -> 104205.63 | F84: =133542.58 -> 133542.58 | G84: =123351.7 -> 123351.7 | H84: =123351.7 -> 123351.7 | I84: =0 -> 0 | J84: =0 -> 0 | K84: =0 -> 0 | L84: =0 -> 0
B85: 12.3.2 | C85: Wydatki bieżące na realizację programu, projektu lub zadania wynikające wyłącznie z zawartych umów z podmiotem dysponującym środkami, o których mowa w art. 5 ust. 1 pkt 2 ustawy | D85: Wydatki bieżące na realizację programu, projektu lub zadania wynikające wyłącznie z zawartych umów z podmiotem dysponującym środkami, o których mowa w art. 5 ust. 1 pkt 2 ustawy | E85: =0 -> 0 | F85: =0 -> 0 | G85: =145119.65 -> 145119.65 | H85: =145119.65 -> 145119.65 | I85: =0 -> 0 | J85: =0 -> 0 | K85: =0 -> 0 | L85: =0 -> 0
B86: 12.4 | C86: Wydatki majątkowe na programy, projekty lub zadania finansowane z udziałem środków, o których mowa w art. 5 ust. 1 pkt 2 i 3 ustawy | D86: Wydatki majątkowe na programy, projekty lub zadania finansowane z udziałem środków, o których mowa w art. 5 ust. 1 pkt 2 i 3 ustawy | E86: =650923.96 -> 650923.96 | F86: =562105.4 -> 562105.4 | G86: =3401517 -> 3401517 | H86: =3401517 -> 3401517 | I86: =0 -> 0 | J86: =0 -> 0 | K86: =0 -> 0 | L86: =0 -> 0
B87: 12.4.1 | C87: w tym finansowane środkami określonymi w art. 5 ust. 1 pkt 2 ustawy | D87: w tym finansowane środkami określonymi w art. 5 ust. 1 pkt 2 ustawy | E87: =650923.96 -> 650923.96 | F87: =220814.52 -> 220814.52 | G87: =3401517 -> 3401517 | H87: =3401517 -> 3401517 | I87: =0 -> 0 | J87: =0 -> 0 | K87: =0 -> 0 | L87: =0 -> 0
B88: 12.4.2 | C88: Wydatki majątkowe na realizację programu, projektu lub zadania wynikające wyłącznie z zawartych umów z podmiotem dysponującym środkami, o których mowa w art. 5 ust. 1 pkt 2 ustawy | D88: Wydatki majątkowe na realizację programu, projektu lub zadania wynikające wyłącznie z zawartych umów z podmiotem dysponującym środkami, o których mowa w art. 5 ust. 1 pkt 2 ustawy | E88: =0 -> 0 | F88: =0 -> 0 | G88: =1590835.04 -> 1590835.04 | H88: =1590835.04 -> 1590835.04 | I88: =0 -> 0 | J88: =0 -> 0 | K88: =0 -> 0 | L88: =0 -> 0
B89: 13 | C89: Kwoty dotyczące przejęcia i spłaty zobowiązań po samodzielnych publicznych zakładach opieki zdrowotnej oraz pokrycia ujemnego wyniku | D89: Kwoty dotyczące przejęcia i spłaty zobowiązań po samodzielnych publicznych zakładach opieki zdrowotnej oraz pokrycia ujemnego wyniku | E89: x | F89: x | G89: x | H89: x | I89: x | J89: x | K89: x | L89: x
B90: 13.1 | C90: Kwota zobowiązań wynikających z przejęcia przez jednostkę samorządu terytorialnego zobowiązań po likwidowanych i przekształcanych samodzielnych zakładach opieki zdrowotnej | D90: Kwota zobowiązań wynikających z przejęcia przez jednostkę samorządu terytorialnego zobowiązań po likwidowanych i przekształcanych samodzielnych zakładach opieki zdrowotnej | E90: =0 -> 0 | F90: =0 -> 0 | G90: =0 -> 0 | H90: =0 -> 0 | I90: =0 -> 0 | J90: =0 -> 0 | K90: =0 -> 0 | L90: =0 -> 0
B91: 13.2 | C91: Dochody budżetowe z tytułu dotacji celowej z budżetu państwa, o której mowa w art. 196 ustawy z dnia 15 kwietnia 2011 r. o działalności leczniczej (Dz.U. Nr 112, poz. 654, z późn. zm.) | D91: Dochody budżetowe z tytułu dotacji celowej z budżetu państwa, o której mowa w art. 196 ustawy z dnia 15 kwietnia 2011 r. o działalności leczniczej (Dz.U. Nr 112, poz. 654, z późn. zm.) | E91: =0 -> 0 | F91: =0 -> 0 | G91: =0 -> 0 | H91: =0 -> 0 | I91: =0 -> 0 | J91: =0 -> 0 | K91: =0 -> 0 | L91: =0 -> 0
B92: 13.3 | C92: Wysokość zobowiązań podlegających umorzeniu, o którym mowa w art. 190 ustawy o działalności leczniczej | D92: Wysokość zobowiązań podlegających umorzeniu, o którym mowa w art. 190 ustawy o działalności leczniczej | E92: =0 -> 0 | F92: =0 -> 0 | G92: =0 -> 0 | H92: =0 -> 0 | I92: =0 -> 0 | J92: =0 -> 0 | K92: =0 -> 0 | L92: =0 -> 0
B93: 13.4 | C93: Wydatki na spłatę przejętych zobowiązań samodzielnego publicznego zakładu opieki zdrowotnej przekształconego na zasadach określonych w przepisach o działalności leczniczej | D93: Wydatki na spłatę przejętych zobowiązań samodzielnego publicznego zakładu opieki zdrowotnej przekształconego na zasadach określonych w przepisach o działalności leczniczej | E93: =0 -> 0 | F93: =0 -> 0 | G93: =0 -> 0 | H93: =0 -> 0 | I93: =0 -> 0 | J93: =0 -> 0 | K93: =0 -> 0 | L93: =0 -> 0
B94: 13.5 | C94: Wydatki na spłatę przejętych zobowiązań samodzielnego publicznego zakładu opieki zdrowotnej likwidowanego na zasadach określonych w przepisach o działalności leczniczej | D94: Wydatki na spłatę przejętych zobowiązań samodzielnego publicznego zakładu opieki zdrowotnej likwidowanego na zasadach określonych w przepisach o działalności leczniczej | E94: =0 -> 0 | F94: =0 -> 0 | G94: =0 -> 0 | H94: =0 -> 0 | I94: =0 -> 0 | J94: =0 -> 0 | K94: =0 -> 0 | L94: =0 -> 0
B95: 13.6 | C95: Wydatki na spłatę zobowiązań samodzielnego publicznego zakładu opieki zdrowotnej przejętych do końca 2011 r. na podstawie przepisów o zakładach opieki zdrowotnej | D95: Wydatki na spłatę zobowiązań samodzielnego publicznego zakładu opieki zdrowotnej przejętych do końca 2011 r. na podstawie przepisów o zakładach opieki zdrowotnej | E95: =0 -> 0 | F95: =0 -> 0 | G95: =0 -> 0 | H95: =0 -> 0 | I95: =0 -> 0 | J95: =0 -> 0 | K95: =0 -> 0 | L95: =0 -> 0
B96: 13.7 | C96: Wydatki bieżące na pokrycie ujemnego wyniku finansowego samodzielnego publicznego zakładu opieki zdrowotnej | D96: Wydatki bieżące na pokrycie ujemnego wyniku finansowego samodzielnego publicznego zakładu opieki zdrowotnej | E96: =0 -> 0 | F96: =0 -> 0 | G96: =0 -> 0 | H96: =0 -> 0 | I96: =0 -> 0 | J96: =0 -> 0 | K96: =0 -> 0 | L96: =0 -> 0
A97: x | B97: 14 | C97: Dane uzupełniające o długu i jego spłacie | D97: Dane uzupełniające o długu i jego spłacie | E97: x | F97: x | G97: x | H97: x | I97: x | J97: x | K97: x | L97: x
A98: x | B98: 14.1 | C98: Spłaty rat kapitałowych oraz wykup papierów wartościowych, o których mowa w pkt. 5.1., wynikające wyłącznie z tytułu zobowiązań już zaciągniętych | D98: Spłaty rat kapitałowych oraz wykup papierów wartościowych, o których mowa w pkt. 5.1., wynikające wyłącznie z tytułu zobowiązań już zaciągniętych | E98: =601088.34 -> 601088.34 | F98: =1278520.75 -> 1278520.75 | G98: =737521.46 -> 737521.46 | H98: =737521.46 -> 737521.46 | I98: =773956.19 -> 773956.19 | J98: =0 -> 0 | K98: =0 -> 0 | L98: =0 -> 0
A99: x | B99: 14.2 | C99: Kwota długu, którego planowana spłata dokona się z wydatków budżetu | D99: Kwota długu, którego planowana spłata dokona się z wydatków budżetu | E99: =0 -> 0 | F99: =0 -> 0 | G99: =0 -> 0 | H99: =0 -> 0 | I99: =0 -> 0 | J99: =0 -> 0 | K99: =0 -> 0 | L99: =0 -> 0
A100: x | B100: 14.3 | C100: Wydatki zmniejszające dług, w tym: | D100: Wydatki zmniejszające dług, w tym: | E100: =0 -> 0 | F100: =0 -> 0 | G100: =0 -> 0 | H100: =0 -> 0 | I100: =0 -> 0 | J100: =0 -> 0 | K100: =0 -> 0 | L100: =0 -> 0
A101: x | B101: 14.3.1 | C101: spłata zobowiązań wymagalnych z lat poprzednich, innych niż w pkt 14.3.3 | D101: spłata zobowiązań wymagalnych z lat poprzednich, innych niż w pkt 14.3.3 | E101: =0 -> 0 | F101: =0 -> 0 | G101: =0 -> 0 | H101: =0 -> 0 | I101: =0 -> 0 | J101: =0 -> 0 | K101: =0 -> 0 | L101: =0 -> 0
A102: x | B102: 14.3.2 | C102: związane z umowami zaliczanymi do tytułów dłużnych wliczanych w państwowy dług publiczny | D102: związane z umowami zaliczanymi do tytułów dłużnych wliczanych w państwowy dług publiczny | E102: =0 -> 0 | F102: =0 -> 0 | G102: =0 -> 0 | H102: =0 -> 0 | I102: =0 -> 0 | J102: =0 -> 0 | K102: =0 -> 0 | L102: =0 -> 0
A103: x | B103: 14.3.3 | C103: wypłaty z tytułu wymagalnych poręczeń i gwarancji | D103: wypłaty z tytułu wymagalnych poręczeń i gwarancji | E103: =0 -> 0 | F103: =0 -> 0 | G103: =0 -> 0 | H103: =0 -> 0 | I103: =0 -> 0 | J103: =0 -> 0 | K103: =0 -> 0 | L103: =0 -> 0
A104: x | B104: 14.4 | C104: Wynik operacji niekasowych wpływających na kwotę długu (m.in. umorzenia, różnice kursowe) | D104: Wynik operacji niekasowych wpływających na kwotę długu (m.in. umorzenia, różnice kursowe) | E104: =0 -> 0 | F104: =0 -> 0 | G104: =0 -> 0 | H104: =0 -> 0 | I104: =0 -> 0 | J104: =0 -> 0 | K104: =0 -> 0 | L104: =0 -> 0
B106: UWAGA!
B107: Do symulacji prognozy i obserwacji zmian wskaźników z art. 243, 169 i 170 na podstawie danych wprowadzanych ręcznie służy arkusz "WPF_AnalizaWsk_Projektowanie"
B110: Weryfikacja danych wykazanych w tabeli Wieloletnia Prognoza Finansowa
D111: Reguła formalna
D112: Reguła rachunkowa
D113: Reguła logiczna
D114: Reguły kontrolne
B115: [1.1] + [4.1] + [4.2] >= ([2.1] - [2.1.2]) | D115: Spełnienie wskaźnika z art. 242 | E115: x | F115: x | G115: x | H115: x | I115: =IF(ROUND(I11+I31+I33,2)>=ROUND(I22-I25,2),"TAK","NIE") -> TAK | J115: =IF(ROUND(J11+J31+J33,2)>=ROUND(J22-J25,2),"TAK","NIE") -> TAK | K115: =IF(ROUND(K11+K31+K33,2)>=ROUND(K22-K25,2),"TAK","NIE") -> TAK | L115: =IF(ROUND(L11+L31+L33,2)>=ROUND(L22-L25,2),"TAK","NIE") -> TAK
D116: Spełnienie wskaźnika z art. 169 suofp (bez wyłączeń) | E116: x | F116: x | G116: x | H116: x | I116: =IF(I54<=15%,"TAK","NIE") -> TAK | J116: x | K116: x | L116: x
D117: Spełnienie wskaźnika z art. 169 suofp (z wyłączeniami) | E117: x | F117: x | G117: x | H117: x | I117: =IF(I55<=15%,"TAK","NIE") -> TAK | J117: x | K117: x | L117: x
D118: Spełnienie wskaźnika z art. 170 suofp (bez wyłączeń) | E118: x | F118: x | G118: x | H118: x | I118: =IF(I47<=60%,"TAK","NIE") -> TAK | J118: x | K118: x | L118: x
D119: Spełnienie wskaźnika z art. 170 suofp (z wyłączeniami) | E119: x | F119: x | G119: x | H119: x | I119: =IF(I48<=60%,"TAK","NIE") -> TAK | J119: x | K119: x | L119: x
B120: [13.3] = 0 (dla lat 2014 i wyższych) | D120: Umorzenie zobowiązań, o którym mowa w art. 190 ustawy o działalności leczniczej nie wykracza poza ustawowy okres | E120: x | F120: x | G120: x | H120: x | I120: x | J120: x | K120: =IF(K92=0,"TAK","BŁĄD") -> TAK | L120: =IF(L92=0,"TAK","BŁĄD") -> TAK
B121: [1] + [4] - [2] - [5] = 0 | D121: Kontrola poprawności zbilansowania budżetu | E121: x | F121: x | G121: x | H121: x | I121: =IF(ROUND(I10+I30-I21-I39,2)=0,"OK",ROUND(I10+I30-I21-I39,2)) -> OK | J121: =IF(ROUND(J10+J30-J21-J39,2)=0,"OK",ROUND(J10+J30-J21-J39,2)) -> OK | K121: =IF(ROUND(K10+K30-K21-K39,2)=0,"OK",ROUND(K10+K30-K21-K39,2)) -> OK | L121: =IF(ROUND(L10+L30-L21-L39,2)=0,"OK",ROUND(L10+L30-L21-L39,2)) -> OK
B122: [6]"n" = [6]"n-1" + [4.3]"n" - [5.1]"n" + ([14.2]"n"-[14.2]"n-1") + [14.4] | D122: Kontrola poprawności wyliczenia kwoty długu | E122: x | F122: x | G122: x | H122: x | I122: =+IF(ROUND(H44+I35-I40+(I99-H99)+I104-I44,2)=0,"OK",ROUND(H44+I35-I40+(I99-H99)+I104-I44,2)) -> OK | J122: =+IF(ROUND(I44+J35-J40+(J99-I99)+J104-J44,2)=0,"OK",ROUND(I44+J35-J40+(J99-I99)+J104-J44,2)) -> OK | K122: =+IF(ROUND(J44+K35-K40+(K99-J99)+K104-K44,2)=0,"OK",ROUND(J44+K35-K40+(K99-J99)+K104-K44,2)) -> OK | L122: =+IF(ROUND(K44+L35-L40+(L99-K99)+L104-L44,2)=0,"OK",ROUND(K44+L35-L40+(L99-K99)+L104-L44,2)) -> OK
B123: [14.2] "n" = ( [14.2] "n-1" - [14.3] "n" ) | D123: Analiza zmiany kwoty długu spłacanego wydatkami budżetu - wartości różne od zera wymagają objaśnienia - wartości większe od zera wskazują na powstanie w roku prognozy nowego długu tego typu - wartości mniejsze od zera co do zasady nie powinny wystąpić | E123: x | F123: x | G123: x | H123: x | I123: =+IF(H99=0,"N/D",IF(ROUND(I99+I100-H99,2)=0,"OK",ROUND(I99+I100-H99,2))) -> N/D | J123: =+IF(I99=0,"N/D",IF(ROUND(J99+J100-I99,2)=0,"OK",ROUND(J99+J100-I99,2))) -> N/D | K123: =+IF(J99=0,"N/D",IF(ROUND(K99+K100-J99,2)=0,"OK",ROUND(K99+K100-J99,2))) -> N/D | L123: =+IF(K99=0,"N/D",IF(ROUND(L99+L100-K99,2)=0,"OK",ROUND(L99+L100-K99,2))) -> N/D
B124: [13.1] "n" - ( [13.3] + [13.4] + [13.5] + [13.6] ) "n" = [13.1] "n-1" | D124: Porównanie na koniec roku prognozy stanu zobowiązań przejętych przez jst po likwidowanych i przekształcanych SP ZOZ z wydatkami i umorzeniami poniesionymi na ten cel ze stanem zobowiązań z okresu N-1 | E124: x | F124: x | G124: x | H124: x | I124: =+IF(H90=0,"N/D",IF(ROUND(I90+(I92+I93+I94+I95)-H90,2)=0,"OK",ROUND(I90+(I92+I93+I94+I95)-H90,2))) -> N/D | J124: =+IF(I90=0,"N/D",IF(ROUND(J90+(J92+J93+J94+J95)-I90,2)=0,"OK",ROUND(J90+(J92+J93+J94+J95)-I90,2))) -> N/D | K124: =+IF(J90=0,"N/D",IF(ROUND(K90+(K92+K93+K94+K95)-J90,2)=0,"OK",ROUND(K90+(K92+K93+K94+K95)-J90,2))) -> N/D | L124: =+IF(K90=0,"N/D",IF(ROUND(L90+(L92+L93+L94+L95)-K90,2)=0,"OK",ROUND(L90+(L92+L93+L94+L95)-K90,2))) -> N/D
B125: jeśli [3] < 0 to sprawdź czy [4.1.1] + [4.2.1] + [4.3.1] + [4.4.1] + [3] = 0 | D125: Kontrola poprawności wykazania źródeł pokrycia deficytu | E125: x | F125: x | G125: x | H125: x | I125: =IF(I29<0,IF(ROUND(I32+I34+I36+I38+I29,2)=0,"OK",ROUND(I32+I34+I36+I38+I29,2)),"N/D") -> N/D | J125: =IF(J29<0,IF(ROUND(J32+J34+J36+J38+J29,2)=0,"OK",ROUND(J32+J34+J36+J38+J29,2)),"N/D") -> N/D | K125: =IF(K29<0,IF(ROUND(K32+K34+K36+K38+K29,2)=0,"OK",ROUND(K32+K34+K36+K38+K29,2)),"N/D") -> N/D | L125: =IF(L29<0,IF(ROUND(L32+L34+L36+L38+L29,2)=0,"OK",ROUND(L32+L34+L36+L38+L29,2)),"N/D") -> N/D
B126: jeśli [3] >= 0 to sprawdź czy [4.1.1]=0 i [4.2.1]=0 i [4.3.1]=0 i [4.4.1] = 0 | D126: Kontrola poprawności niewykazania źródeł pokrycia deficytu przy nadwyżce budżetu | E126: x | F126: x | G126: x | H126: x | I126: =IF(I29>=0,IF(ROUND(I32+I34+I36+I38,2)=0,"OK",ROUND(I32+I34+I36+I38,2)),"N/D") -> OK | J126: =IF(J29>=0,IF(ROUND(J32+J34+J36+J38,2)=0,"OK",ROUND(J32+J34+J36+J38,2)),"N/D") -> OK | K126: =IF(K29>=0,IF(ROUND(K32+K34+K36+K38,2)=0,"OK",ROUND(K32+K34+K36+K38,2)),"N/D") -> OK | L126: =IF(L29>=0,IF(ROUND(L32+L34+L36+L38,2)=0,"OK",ROUND(L32+L34+L36+L38,2)),"N/D") -> OK
B127: [1.1.3] >= [1.1.3.1] | D127: Reguła logiczna: [1.1.3] >= [1.1.3.1] | E127: x | F127: x | G127: x | H127: x | I127: =IF(I14>=I15,"OK","BŁĄD") -> OK | J127: =IF(J14>=J15,"OK","BŁĄD") -> OK | K127: =IF(K14>=K15,"OK","BŁĄD") -> OK | L127: =IF(L14>=L15,"OK","BŁĄD") -> OK
B128: [1.1.5] >= [13.2] | D128: Reguła logiczna: [1.1.5] >= [13.2] | E128: x | F128: x | G128: x | H128: x | I128: =IF(I17>=I91,"OK","BŁĄD") -> OK | J128: =IF(J17>=J91,"OK","BŁĄD") -> OK | K128: =IF(K17>=K91,"OK","BŁĄD") -> OK | L128: =IF(L17>=L91,"OK","BŁĄD") -> OK
B129: [1.1] >= ([1.1.1] + [1.1.2] + [1.1.3] + [1.1.4] + [1.1.5]) | D129: Reguła logiczna: [1.1] >= ([1.1.1] + [1.1.2] + [1.1.3] + [1.1.4] + [1.1.5]) | E129: x | F129: x | G129: x | H129: x | I129: =IF(I11>=I12+I13+I14+I16+I17,"OK","BŁĄD") -> OK | J129: =IF(J11>=J12+J13+J14+J16+J17,"OK","BŁĄD") -> OK | K129: =IF(K11>=K12+K13+K14+K16+K17,"OK","BŁĄD") -> OK | L129: =IF(L11>=L12+L13+L14+L16+L17,"OK","BŁĄD") -> OK
B130: [1.1] >= [12.1] | D130: Reguła logiczna: [1.1] >= [12.1] | E130: x | F130: x | G130: x | H130: x | I130: =IF(I11>=I77,"OK","BŁĄD") -> OK | J130: =IF(J11>=J77,"OK","BŁĄD") -> OK | K130: =IF(K11>=K77,"OK","BŁĄD") -> OK | L130: =IF(L11>=L77,"OK","BŁĄD") -> OK
B131: [1.2] >= [1.2.1] | D131: Reguła logiczna: [1.2] >= [1.2.1] | E131: x | F131: x | G131: x | H131: x | I131: =IF(I18>=I19,"OK","BŁĄD") -> OK | J131: =IF(J18>=J19,"OK","BŁĄD") -> OK | K131: =IF(K18>=K19,"OK","BŁĄD") -> OK | L131: =IF(L18>=L19,"OK","BŁĄD") -> OK
B132: [1.2] >= [1.2.2] | D132: Reguła logiczna: [1.2] >= [1.2.2] | E132: x | F132: x | G132: x | H132: x | I132: =IF(I18>=I20,"OK","BŁĄD") -> OK | J132: =IF(J18>=J20,"OK","BŁĄD") -> OK | K132: =IF(K18>=K20,"OK","BŁĄD") -> OK | L132: =IF(L18>=L20,"OK","BŁĄD") -> OK
B133: [1.2] >= [12.2] | D133: Reguła logiczna: [1.2] >= [12.2] | E133: x | F133: x | G133: x | H133: x | I133: =IF(I18>=I80,"OK","BŁĄD") -> OK | J133: =IF(J18>=J80,"OK","BŁĄD") -> OK | K133: =IF(K18>=K80,"OK","BŁĄD") -> OK | L133: =IF(L18>=L80,"OK","BŁĄD") -> OK
D134: Reguła logiczna: jeżeli [3] >0 to [10] = [3] | E134: x | F134: x | G134: x | H134: x | I134: =+IF(I29>0,IF(I29=I65,"OK","Błąd"),"N/D") -> OK | J134: =+IF(J29>0,IF(J29=J65,"OK","Błąd"),"N/D") -> N/D | K134: =+IF(K29>0,IF(K29=K65,"OK","Błąd"),"N/D") -> N/D | L134: =+IF(L29>0,IF(L29=L65,"OK","Błąd"),"N/D") -> N/D
B135: [10] >= [10.1] | D135: Reguła logiczna: [10] >= [10.1] | E135: x | F135: x | G135: x | H135: x | I135: =IF(I65>=I66,"OK","BŁĄD") -> OK | J135: =IF(J65>=J66,"OK","BŁĄD") -> OK | K135: =IF(K65>=K66,"OK","BŁĄD") -> OK | L135: =IF(L65>=L66,"OK","BŁĄD") -> OK
D136: Reguła logiczna: jeżeli [10] > 0 to [10.1] >0 | E136: x | F136: x | G136: x | H136: x | I136: =IF(I65>0,IF(I66>0,"OK","BŁĄD"),"N/D") -> OK | J136: =IF(J65>0,IF(J66>0,"OK","BŁĄD"),"N/D") -> N/D | K136: =IF(K65>0,IF(K66>0,"OK","BŁĄD"),"N/D") -> N/D | L136: =IF(L65>0,IF(L66>0,"OK","BŁĄD"),"N/D") -> N/D
B137: [12.1] >= [12.1.1] | D137: Reguła logiczna: [12.1] >= [12.1.1] | E137: x | F137: x | G137: x | H137: x | I137: =IF(I77>=I78,"OK","BŁĄD") -> OK | J137: OK | K137: OK | L137: OK
B138: [12.1.1] >= [12.1.1.1] | D138: Reguła logiczna: [12.1.1] >= [12.1.1.1] | E138: x | F138: x | G138: x | H138: x | I138: OK | J138: OK | K138: OK | L138: OK
B139: [12.2] >= [12.2.1] | D139: Reguła logiczna: [12.2] >= [12.2.1] | E139: x | F139: x | G139: x | H139: x | I139: =IF(I80>=I81,"OK","BŁĄD") -> OK | J139: OK | K139: OK | L139: OK
B140: [12.2.1] >= [12.2.1.1] | D140: Reguła logiczna: [12.2.1] >= [12.2.1.1] | E140: x | F140: x | G140: x | H140: x | I140: OK | J140: OK | K140: OK | L140: OK
B141: [12.3] >= [12.3.1] | D141: Reguła logiczna: [12.3] >= [12.3.1] | E141: x | F141: x | G141: x | H141: x | I141: =IF(I83>=I84,"OK","BŁĄD") -> OK | J141: =IF(J83>=J84,"OK","BŁĄD") -> OK | K141: =IF(K83>=K84,"OK","BŁĄD") -> OK | L141: =IF(L83>=L84,"OK","BŁĄD") -> OK
B142: [12.3] >= [12.3.2] | D142: Reguła logiczna: [12.3] >= [12.3.2] | E142: x | F142: x | G142: x | H142: x | I142: =IF(I83>=I85,"OK","BŁĄD") -> OK | J142: =IF(J83>=J85,"OK","BŁĄD") -> OK | K142: =IF(K83>=K85,"OK","BŁĄD") -> OK | L142: =IF(L83>=L85,"OK","BŁĄD") -> OK
B143: [12.4] >= [12.4.1] | D143: Reguła logiczna: [12.4] >= [12.4.1] | E143: x | F143: x | G143: x | H143: x | I143: =IF(I86>=I87,"OK","BŁĄD") -> OK | J143: =IF(J86>=J87,"OK","BŁĄD") -> OK | K143: =IF(K86>=K87,"OK","BŁĄD") -> OK | L143: =IF(L86>=L87,"OK","BŁĄD") -> OK
B144: [12.4] >= [12.4.2] | D144: Reguła logiczna: [12.4] >= [12.4.2] | E144: x | F144: x | G144: x | H144: x | I144: =IF(I86>=I88,"OK","BŁĄD") -> OK | J144: =IF(J86>=J88,"OK","BŁĄD") -> OK | K144: =IF(K86>=K88,"OK","BŁĄD") -> OK | L144: =IF(L86>=L88,"OK","BŁĄD") -> OK
B145: [13.1] >= [13.3] | D145: Reguła logiczna: [13.1] >= [13.3] | E145: x | F145: x | G145: x | H145: x | I145: =IF(I90>=I92,"OK","BŁĄD") -> OK | J145: =IF(J90>=J92,"OK","BŁĄD") -> OK | K145: =IF(K90>=K92,"OK","BŁĄD") -> OK | L145: =IF(L90>=L92,"OK","BŁĄD") -> OK
B146: [13.4] >= [2.1.2] | D146: Reguła logiczna: [13.4] >= [2.1.2] | E146: x | F146: x | G146: x | H146: x | I146: =IF(I93>=I25,"OK","BŁĄD") -> OK | J146: =IF(J93>=J25,"OK","BŁĄD") -> OK | K146: =IF(K93>=K25,"OK","BŁĄD") -> OK | L146: =IF(L93>=L25,"OK","BŁĄD") -> OK
B147: [14.3] >= [14.3.1] + [14.3.2] + [14.3.3] | D147: Reguła logiczna: [14.3] >= [14.3.1] + [14.3.2] + [14.3.3] | E147: x | F147: x | G147: x | H147: x | I147: =IF(I100>=(I101+I102+I103),"OK","BŁĄD") -> OK | J147: =IF(J100>=(J101+J102+J103),"OK","BŁĄD") -> OK | K147: =IF(K100>=(K101+K102+K103),"OK","BŁĄD") -> OK | L147: =IF(L100>=(L101+L102+L103),"OK","BŁĄD") -> OK
B148: [2.1.1] >= [2.1.1.1] | D148: Reguła logiczna: [2.1.1] >= [2.1.1.1] | E148: x | F148: x | G148: x | H148: x | I148: =IF(I23>=I24,"OK","BŁĄD") -> OK | J148: =IF(J23>=J24,"OK","BŁĄD") -> OK | K148: =IF(K23>=K24,"OK","BŁĄD") -> OK | L148: =IF(L23>=L24,"OK","BŁĄD") -> OK
B149: [2.1.1] >= [14.3.3] | D149: Reguła logiczna: [2.1.1] >= [14.3.3] | E149: x | F149: x | G149: x | H149: x | I149: =IF(I23>=I103,"OK","BŁĄD") -> OK | J149: =IF(J23>=J103,"OK","BŁĄD") -> OK | K149: =IF(K23>=K103,"OK","BŁĄD") -> OK | L149: =IF(L23>=L103,"OK","BŁĄD") -> OK
B150: [2.1.3] >= [2.1.3.1] | D150: Reguła logiczna: [2.1.3] >= [2.1.3.1] | E150: x | F150: x | G150: x | H150: x | I150: =IF(I26>=I27,"OK","BŁĄD") -> OK | J150: =IF(J26>=J27,"OK","BŁĄD") -> OK | K150: =IF(K26>=K27,"OK","BŁĄD") -> OK | L150: =IF(L26>=L27,"OK","BŁĄD") -> OK
B151: [2.1] >= ([2.1.1] + [2.1.2] + [2.1.3]) | D151: Reguła logiczna: [2.1] >= ([2.1.1] + [2.1.2] + [2.1.3]) | E151: x | F151: x | G151: x | H151: x | I151: =IF(I22>=(I23+I25+I26),"OK","BŁĄD") -> OK | J151: =IF(J22>=(J23+J25+J26),"OK","BŁĄD") -> OK | K151: =IF(K22>=(K23+K25+K26),"OK","BŁĄD") -> OK | L151: =IF(L22>=(L23+L25+L26),"OK","BŁĄD") -> OK
B152: [2.1] >= [11.1] | D152: Reguła logiczna: [2.1] >= [11.1] | E152: x | F152: x | G152: x | H152: x | I152: =IF(I22>=I68,"OK","BŁĄD") -> OK | J152: =IF(J22>=J68,"OK","BŁĄD") -> OK | K152: =IF(K22>=K68,"OK","BŁĄD") -> OK | L152: =IF(L22>=L68,"OK","BŁĄD") -> OK
B153: [2.1] >= [11.3.1] | D153: Reguła logiczna: [2.1] >= [11.3.1] | E153: x | F153: x | G153: x | H153: x | I153: =IF(I22>=I71,"OK","BŁĄD") -> OK | J153: =IF(J22>=J71,"OK","BŁĄD") -> OK | K153: =IF(K22>=K71,"OK","BŁĄD") -> OK | L153: =IF(L22>=L71,"OK","BŁĄD") -> OK
B154: [2.1] >= [12.3] | D154: Reguła logiczna: [2.1] >= [12.3] | E154: x | F154: x | G154: x | H154: x | I154: =IF(I22>=I83,"OK","BŁĄD") -> OK | J154: =IF(J22>=J83,"OK","BŁĄD") -> OK | K154: =IF(K22>=K83,"OK","BŁĄD") -> OK | L154: =IF(L22>=L83,"OK","BŁĄD") -> OK
B155: [2.1] >= [13.7] | D155: Reguła logiczna: [2.1] >= [13.7] | E155: x | F155: x | G155: x | H155: x | I155: =IF(I22>=I96,"OK","BŁĄD") -> OK | J155: =IF(J22>=J96,"OK","BŁĄD") -> OK | K155: =IF(K22>=K96,"OK","BŁĄD") -> OK | L155: =IF(L22>=L96,"OK","BŁĄD") -> OK
B156: [2.2] >= [11.3.2] | D156: Reguła logiczna: [2.2] >= [11.3.2] | E156: x | F156: x | G156: x | H156: x | I156: =IF(I28>=I72,"OK","BŁĄD") -> OK | J156: =IF(J28>=J72,"OK","BŁĄD") -> OK | K156: =IF(K28>=K72,"OK","BŁĄD") -> OK | L156: =IF(L28>=L72,"OK","BŁĄD") -> OK
B157: [2.2] >= [11.4] + [11.5] | D157: Reguła logiczna: [2.2] >= [11.4] + [11.5] | E157: x | F157: x | G157: x | H157: x | I157: =IF(I28>=I73+I74,"OK","BŁĄD") -> OK | J157: =IF(J28>=J73+J74,"OK","BŁĄD") -> OK | K157: =IF(K28>=K73+K74,"OK","BŁĄD") -> OK | L157: =IF(L28>=L73+L74,"OK","BŁĄD") -> OK
B158: [2.2] >= [11.6] | D158: Reguła logiczna: [2.2] >= [11.6] | E158: x | F158: x | G158: x | H158: x | I158: =IF(I28>=I75,"OK","BŁĄD") -> OK | J158: =IF(J28>=J75,"OK","BŁĄD") -> OK | K158: =IF(K28>=K75,"OK","BŁĄD") -> OK | L158: =IF(L28>=L75,"OK","BŁĄD") -> OK
B159: [2.2] >= [12.4] | D159: Reguła logiczna: [2.2] >= [12.4] | E159: x | F159: x | G159: x | H159: x | I159: =IF(I28>=I86,"OK","BŁĄD") -> OK | J159: =IF(J28>=J86,"OK","BŁĄD") -> OK | K159: =IF(K28>=K86,"OK","BŁĄD") -> OK | L159: =IF(L28>=L86,"OK","BŁĄD") -> OK
B160: [4.1] >= [4.1.1] | D160: Reguła logiczna: [4.1] >= [4.1.1] | E160: x | F160: x | G160: x | H160: x | I160: =IF(I31>=I32,"OK","BŁĄD") -> OK | J160: =IF(J31>=J32,"OK","BŁĄD") -> OK | K160: =IF(K31>=K32,"OK","BŁĄD") -> OK | L160: =IF(L31>=L32,"OK","BŁĄD") -> OK
B161: [4.2] >= [4.2.1] | D161: Reguła logiczna: [4.2] >= [4.2.1] | E161: x | F161: x | G161: x | H161: x | I161: =IF(I33>=I34,"OK","BŁĄD") -> OK | J161: =IF(J33>=J34,"OK","BŁĄD") -> OK | K161: =IF(K33>=K34,"OK","BŁĄD") -> OK | L161: =IF(L33>=L34,"OK","BŁĄD") -> OK
B162: [4.3] >= [4.3.1] | D162: Reguła logiczna: [4.3] >= [4.3.1] | E162: x | F162: x | G162: x | H162: x | I162: =IF(I35>=I36,"OK","BŁĄD") -> OK | J162: =IF(J35>=J36,"OK","BŁĄD") -> OK | K162: =IF(K35>=K36,"OK","BŁĄD") -> OK | L162: =IF(L35>=L36,"OK","BŁĄD") -> OK
B163: [4.4] >= [4.4.1] | D163: Reguła logiczna: [4.4] >= [4.4.1] | E163: x | F163: x | G163: x | H163: x | I163: =IF(I37>=I38,"OK","BŁĄD") -> OK | J163: =IF(J37>=J38,"OK","BŁĄD") -> OK | K163: =IF(K37>=K38,"OK","BŁĄD") -> OK | L163: =IF(L37>=L38,"OK","BŁĄD") -> OK
B164: [5.1] >= [5.1.1] | D164: Reguła logiczna: [5.1] >= [5.1.1] | E164: x | F164: x | G164: x | H164: x | I164: =IF(I40>=I41,"OK","BŁĄD") -> OK | J164: OK | K164: OK | L164: OK
B165: [5.1.1] >= [5.1.1.1] | D165: Reguła logiczna: [5.1.1] >= [5.1.1.1] | E165: x | F165: x | G165: x | H165: x | I165: OK | J165: OK | K165: OK | L165: OK
B166: [5.1] >= [10.1] | D166: Reguła logiczna: [5.1] >= [10.1] | E166: x | F166: x | G166: x | H166: x | I166: =IF(I40>=I66,"OK","BŁĄD") -> OK | J166: =IF(J40>=J66,"OK","BŁĄD") -> OK | K166: =IF(K40>=K66,"OK","BŁĄD") -> OK | L166: =IF(L40>=L66,"OK","BŁĄD") -> OK
B167: [5.1] >= [14.1] | D167: Reguła logiczna: [5.1] >= [14.1] | E167: x | F167: x | G167: x | H167: x | I167: =IF(I40>=I98,"OK","BŁĄD") -> OK | J167: =IF(J40>=J98,"OK","BŁĄD") -> OK | K167: =IF(K40>=K98,"OK","BŁĄD") -> OK | L167: =IF(L40>=L98,"OK","BŁĄD") -> OK
B168: [6] >= [6.1] | D168: Reguła logiczna: [6] >= [6.1] | E168: x | F168: x | G168: x | H168: x | I168: =IF(I44>=I45,"OK","BŁĄD") -> OK | J168: =IF(J44>=J45,"OK","BŁĄD") -> OK | K168: =IF(K44>=K45,"OK","BŁĄD") -> OK | L168: =IF(L44>=L45,"OK","BŁĄD") -> OK
B169: [6] >=[7] | D169: Reguła logiczna: [6] >=[7] | E169: x | F169: x | G169: x | H169: x | I169: =IF(I44>=I49,"OK","BŁĄD") -> OK | J169: =IF(J44>=J49,"OK","BŁĄD") -> OK | K169: =IF(K44>=K49,"OK","BŁĄD") -> OK | L169: =IF(L44>=L49,"OK","BŁĄD") -> OK
B170: [6] >= [14.2] | D170: Reguła logiczna: [6] >= [14.2] | E170: x | F170: x | G170: x | H170: x | I170: =IF(I44>=I99,"OK","BŁĄD") -> OK | J170: =IF(J44>=J99,"OK","BŁĄD") -> OK | K170: =IF(K44>=K99,"OK","BŁĄD") -> OK | L170: =IF(L44>=L99,"OK","BŁĄD") -> OK
B171: [6.1] >= [6.1.1] | D171: Reguła logiczna: [6.1] >= [6.1.1] | E171: x | F171: x | G171: x | H171: x | I171: =+IF(I45>=I46,"OK","BŁĄD") -> OK | J171: =+IF(J45>=J46,"OK","BŁĄD") -> OK | K171: =+IF(K45>=K46,"OK","BŁĄD") -> OK | L171: =+IF(L45>=L46,"OK","BŁĄD") -> OK
B172: 7>=13.1 | D172: Reguła logiczna: 7>=13.1 | E172: x | F172: x | G172: x | H172: x | I172: =IF(I49>=I90,"OK","BŁĄD") -> OK | J172: =IF(J49>=J90,"OK","BŁĄD") -> OK | K172: =IF(K49>=K90,"OK","BŁĄD") -> OK | L172: =IF(L49>=L90,"OK","BŁĄD") -> OK
B173: jeżeli [2.1.3] <> 0 to [2.1.3.1] <> 0 | D173: Reguła logiczna: jeżeli [2.1.3] <> 0 to [2.1.3.1] <> 0 | E173: x | F173: x | G173: x | H173: x | I173: =IF(I26<>0,IF(I27<>0,"OK","BŁĄD"),"N/D") -> OK | J173: =IF(J26<>0,IF(J27<>0,"OK","BŁĄD"),"N/D") -> N/D | K173: =IF(K26<>0,IF(K27<>0,"OK","BŁĄD"),"N/D") -> N/D | L173: =IF(L26<>0,IF(L27<>0,"OK","BŁĄD"),"N/D") -> N/D
D175: Kontrola poprawności podstawowych kwot
D176: Dochody ogółem = bieżące + majątkowe | E176: =E11+E18 -> 11735693.56 | F176: 14062028.15 | G176: 13471394.42 | H176: 12678694 | I176: 13601645 | J176: 10825000 | K176: 12050000 | L176: 12170000
D177: Wydatki ogółem = bieżące + majątkowe | E177: =E22+E28 -> 12835915.98 | F177: 11481546.43 | G177: 14584700.7 | H177: 14401220 | I177: 12827688.81 | J177: 10825000 | K177: 12050000 | L177: 12170000
D178: Wynik budżetu = dochody ogółem - wydatki ogółem | E178: =E10-E21 -> -1100222.42 | F178: 2580481.72 | G178: -1113306.28 | H178: -1722526 | I178: 773956.19 | J178: 0 | K178: 0 | L178: 0
D179: Kwota wyłączeń innych niż art. 243 ust. 3 (wyłączenia z art. 36 ustawy "okołobudżetowej" i art. 121a ([poz. 5.1.1] - [poz. 5.1.1.1.])) | E179: =+E41-E42 -> 0 | F179: =+F41-F42 -> 0 | G179: 0 | H179: 0 | I179: 0 | J179: 0 | K179: 0 | L179: 0
D180: Wyliczenie kwoty długu | E180: x | F180: =E44+F35-F40+(F99-E99)+F104 -> 1422477.65 | G180: x | H180: =F44+H35-H40+(H99-F99)+H104 -> 773956.19 | I180: =H44+I35-I40+(I99-H99)+I104 -> 0 | J180: =I44+J35-J40+(J99-I99)+J104 -> 0 | K180: =J44+K35-K40+(K99-J99)+K104 -> 0 | L180: =K44+L35-L40+(L99-K99)+L104 -> 0
D181: Wyliczenie zobowiązań wynikających z przejęcia przez jst zobowiązań po likwidowanych i przekształcanych SZOZ | E181: x | F181: =E90-(F92+F93+F94+F95) -> 0 | G181: x | H181: =F90-(H92+H93+H94+H95) -> 0 | I181: =H90-(I92+I93+I94+I95) -> 0 | J181: =I90-(J92+J93+J94+J95) -> 0 | K181: =J90-(K92+K93+K94+K95) -> 0 | L181: =K90-(L92+L93+L94+L95) -> 0
D183: Analiza ryzyka niespełnienia wskaźnika z art. 243
D184: Analiza składowych wzoru wskaźnika z art. 243
D185: 0 | E185: =+"różnica mniejsza od "&TEXT(D185*100,"0,0")&"%" -> różnica mniejsza od 0,0%
D186: 0.005 | E186: =+"różnica mniejsza od "&TEXT(D186*100,"0,0")&"%" -> różnica mniejsza od 0,5%
D187: 0.01 | E187: =+"różnica mniejsza od "&TEXT(D187*100,"0,0")&"%" -> różnica mniejsza od 1,0%
D188: max. limit spłat (planistyczny) - (R+O)/D (bez wyłączeń) | E188: x | F188: x | G188: x | H188: x | I188: =+IF(I10=0,"",I61-I56) -> 0.1305 | J188: =+IF(J10=0,"",J61-J56) -> 0.2186 | K188: =+IF(K10=0,"",K61-K56) -> 0.1834 | L188: =+IF(L10=0,"",L61-L56) -> 0.1875
D189: max. limit spłat (planistyczny) - (R+O)/D (z wyłączeniami) | E189: x | F189: x | G189: x | H189: x | I189: =+IF(I10=0,"",I61-I57) -> 0.1305 | J189: =+IF(J10=0,"",J61-J57) -> 0.2186 | K189: =+IF(K10=0,"",K61-K57) -> 0.1834 | L189: =+IF(L10=0,"",L61-L57) -> 0.1875
D190: max. limit spłat (wg wykonania) - (R+O)/D (bez wyłączeń) | E190: x | F190: x | G190: x | H190: x | I190: =+IF(I10=0,"",I62-I56) -> 0.1189 | J190: =+IF(J10=0,"",J62-J56) -> 0.207 | K190: =+IF(K10=0,"",K62-K56) -> 0.1718 | L190: =+IF(L10=0,"",L62-L56) -> 0.1875
D191: max. limit spłat (wg wykonania) - (R+O)/D (z wyłączeniami) | E191: x | F191: x | G191: x | H191: x | I191: =+IF(I10=0,"",I62-I57) -> 0.1189 | J191: =+IF(J10=0,"",J62-J57) -> 0.207 | K191: =+IF(K10=0,"",K62-K57) -> 0.1718 | L191: =+IF(L10=0,"",L62-L57) -> 0.1875
D192: DYNAMIKA podstawowych wielkości z prognozy
D193: 0.05 | E193: =+"zmiana większa niż +/- "&TEXT(D193*100,"0,0")&"%" -> zmiana większa niż +/- 5,0%
D194: 0.1 | E194: =+"zmiana większa niż +/- "&TEXT(D194*100,"0,0")&"%" -> zmiana większa niż +/- 10,0%
D195: 0.2 | E195: =+"zmiana większa niż +/- "&TEXT(D195*100,"0,0")&"%" -> zmiana większa niż +/- 20,0% | G195: [N-1]pl3kw / [N-2] | H195: [N-1]wyk / [N-1]pl3kw
D196: Dochody ogółem | E196: - | F196: =+IF(F10=0,0,IF(E222<>0,F222/E222-1,0)) -> 0.198227278 | G196: -0.04200203013 | H196: -0.05884323443 | I196: 0.07279543145 | J196: -0.2041403815 | K196: 0.1131639723 | L196: 0.009958506224
D197: dochody ogółem bez środków UE (fin. i współfin.) | E197: - | F197: =+IF(F10=0,0,IF(E223<>0,F223/E223-1,0)) -> 0.2152349977 | G197: 0.005560666287 | H197: -0.06125802866 | I197: -0.05971607418 | J197: -0.05228755023 | K197: 0.1131639723 | L197: 0.009958506224
D198: dochody bieżące bez środków UE (fin. i współfin.) | E198: - | F198: =+IF(F10=0,0,IF(E224<>0,F224/E224-1,0)) -> 0.2377770565 | G198: -0.01011806424 | H198: -0.03795481308 | I198: -0.05582824363 | J198: -0.03535467447 | K198: 0.1131639723 | L198: 0.009958506224
D199: dochody majątkowe bez środków UE (fin. i współfin.) | E199: - | F199: =+IF(F10=0,0,IF(E225<>0,F225/E225-1,0)) -> -0.2334301546 | G199: 0.509444418 | H199: -0.5523938203 | I199: -0.2358294966 | J199: -1 | K199: 0 | L199: 0
D200: dochody majątkowe bez środków UE (fin. i współfin.) i bez sprzedaży majątku | E200: - | F200: =+IF(F10=0,0,IF(E226<>0,F226/E226-1,0)) -> -0.1278339252 | G200: -0.1976949577 | H200: 0 | I200: -0.9980482169 | J200: -1 | K200: 0 | L200: 0
D201: dochody ze sprzedaży majątku | E201: - | F201: =+IF(F10=0,0,IF(E227<>0,F227/E227-1,0)) -> -0.5085953399 | G201: 3.77991324 | H201: -0.9812121212 | I201: 31.25806452 | J201: -1 | K201: 0 | L201: 0
D202: Wydatki ogółem | E202: - | F202: =+IF(F10=0,0,IF(E228<>0,F228/E228-1,0)) -> -0.1055140554 | G202: 0.2702731979 | H202: -0.01258035415 | I202: -0.1092637422 | J202: -0.1561223413 | K202: 0.1131639723 | L202: 0.009958506224
D203: wydatki ogółem bez wydatków na projekty finansowane i współfinansowane środkami UE | E203: - | F203: =+IF(F10=0,0,IF(E229<>0,F229/E229-1,0)) -> -0.1077164604 | G203: 0.0255972394 | H203: -0.01662254352 | I203: 0.1817762503 | J203: -0.1561223413 | K203: 0.1131639723 | L203: 0.009958506224
D204: wydatki bieżące ogółem | E204: - | F204: =+IF(F10=0,0,IF(E230<>0,F230/E230-1,0)) -> -0.01695587363 | G204: 0.09978877621 | H204: -0.01842300613 | I204: -0.08783437931 | J204: 0.02498670767 | K204: 0.0249452954 | L204: 0.02476515798
D205: wydatki bieżące ogółem bez wydatków na projekty współfinansowane środkami UE | E205: - | F205: =+IF(F10=0,0,IF(E231<>0,F231/E231-1,0)) -> -0.02089427029 | G205: 0.1028682063 | H205: -0.01869542149 | I205: -0.07408949878 | J205: 0.02498670767 | K205: 0.0249452954 | L205: 0.02476515798
D206: wydatki bieżące na wynagrodzenia i składki od nich naliczane | E206: - | F206: =+IF(F10=0,0,IF(E232<>0,F232/E232-1,0)) -> -0.06072613561 | G206: 0.05633900694 | H206: -0.03857914317 | I206: -0.01638929062 | J206: 0.02499980202 | K206: 0.02498308474 | L206: 0.025
... 123 more rows

Sheet rysunki
A1: Analiza graficzna danych z WPF | I1: =Zał.1_WPF_bazowy!D5&" - "&"WPF za lata "&Zał.1_WPF_bazowy!D6&" - Nr Uchwały JST: "&Zał.1_WPF_bazowy!D4 -> KRZYŻANÓW - WPF za lata 2014 - 2017 - Nr Uchwały JST: 1
B99: Rysunek z wskaźnikiem planistycznym | I99: Rysunek z wskaźnikiem planistycznym
B116: Rysunek z wskaźnikiem wg wykonania | I116: Rysunek z wskaźnikiem wg wykonania

Sheet WPF_AnalizaWsk_ProjektowanieJST
B1: Zestawienie wygenerowane na podstawie danych wprowadzonych do systemu BESTI@ | F1: Pola z tłem tego koloru są obliczane automatycznie i nie powinny być nadpisywane w celu ochrony formuł
B2: Niniejsze zestawienie można samodzielnie formatować i modyfikować wartości | F2: Pola z tłem tego koloru są obliczane automatycznie
B3: Układ WPF wg Rozporządzenia Ministra Finansów z dnia 10.01.2013 (Dz.U. z 2013 r., poz. 86) | F3: Pola z tłem tego koloru można edytowac wprowadzając nowe wartości (projektowanie WPF i obliczanie wskaźników)
B5: Nr Uchwały: | D5: =DaneZrodlowe!B4 -> 1 | I5: =D6&" - "&"WPF za lata "&D7&" - Nr Uchwały JST: "&D5 -> KRZYŻANÓW - WPF za lata 2014 - 2017 - Nr Uchwały JST: 1
B6: Nazwa JST: | D6: =DaneZrodlowe!C4 -> KRZYŻANÓW
B7: WPF za lata: | D7: =CONCATENATE(DaneZrodlowe!N1," - ",DaneZrodlowe!Q1) -> 2014 - 2017
E8: Wykonanie | G8: Plan 3 kw. | H8: Wykonanie | I8: ="" -> 
A9: X | B9: Lp. | C9: Formuła | D9: Wyszczególnienie | E9: =+F9-1 -> 2011 | F9: =+G9-1 -> 2012 | G9: =+H9 -> 2013 | H9: =+I9-1 -> 2013 | I9: =+DaneZrodlowe!$N$1 -> 2014 | J9: =+I9+1 -> 2015 | K9: =+J9+1 -> 2016 | L9: 2017 | M9: 2018 | N9: 2019 | O9: 2020 | P9: 2021 | Q9: 2022 | R9: 2023 | S9: 2024 | T9: 2025 | U9: 2026 | V9: 2027 | W9: 2028 | X9: 2029 | Y9: 2030 | Z9: 2031 | AA9: 2032 | AB9: 2033 | AC9: 2034 | AD9: 2035 | AE9: 2036 | AF9: 2037 | AG9: 2038 | AH9: 2039 | AI9: 2040 | AJ9: 2041 | AK9: 2042 | AL9: 2043
A10: x | B10: 1 | C10: [1.1]+[1.2] | D10: Dochody ogółem | E10: =Zał.1_WPF_bazowy!E10 -> 11735693.56 | F10: =Zał.1_WPF_bazowy!F10 -> 14062028.15 | G10: =Zał.1_WPF_bazowy!G10 -> 13471394.42 | H10: =+H11+H18 -> 12678694 | I10: =+I11+I18 -> 13601645 | J10: =+J11+J18 -> 10825000 | K10: 12050000 | L10: 12170000
A11: x | B11: 1.1 | D11: Dochody bieżące, w tym: | E11: =Zał.1_WPF_bazowy!E11 -> 10187163.27 | F11: =Zał.1_WPF_bazowy!F11 -> 12660364.54 | G11: =Zał.1_WPF_bazowy!G11 -> 12464064.42 | H11: =Zał.1_WPF_bazowy!H11 -> 11995164 | I11: =+Zał.1_WPF_bazowy!I11 -> 11221741 | J11: =+Zał.1_WPF_bazowy!J11 -> 10825000 | K11: =+Zał.1_WPF_bazowy!K11 -> 12050000 | L11: =+Zał.1_WPF_bazowy!L11 -> 12170000 | M11: =+Zał.1_WPF_bazowy!#REF! ->  | N11: =+Zał.1_WPF_bazowy!#REF! ->  | O11: =+Zał.1_WPF_bazowy!#REF! ->  | P11: =+Zał.1_WPF_bazowy!#REF! ->  | Q11: =+Zał.1_WPF_bazowy!#REF! ->  | R11: =+Zał.1_WPF_bazowy!#REF! ->  | S11: =+Zał.1_WPF_bazowy!#REF! ->  | T11: =+Zał.1_WPF_bazowy!#REF! ->  | U11: =+Zał.1_WPF_bazowy!#REF! ->  | V11: =+Zał.1_WPF_bazowy!#REF! ->  | W11: =+Zał.1_WPF_bazowy!#REF! ->  | X11: =+Zał.1_WPF_bazowy!#REF! ->  | Y11: =+Zał.1_WPF_bazowy!#REF! ->  | Z11: =+Zał.1_WPF_bazowy!#REF! ->  | AA11: =+Zał.1_WPF_bazowy!#REF! ->  | AB11: =+Zał.1_WPF_bazowy!#REF! ->  | AC11: =+Zał.1_WPF_bazowy!#REF! ->  | AD11: =+Zał.1_WPF_bazowy!#REF! ->  | AE11: =+Zał.1_WPF_bazowy!#REF! ->  | AF11: =+Zał.1_WPF_bazowy!#REF! ->  | AG11: =+Zał.1_WPF_bazowy!#REF! ->  | AH11: =+Zał.1_WPF_bazowy!#REF! ->  | AI11: =+Zał.1_WPF_bazowy!#REF! ->  | AJ11: =+Zał.1_WPF_bazowy!#REF! ->  | AK11: =+Zał.1_WPF_bazowy!#REF! ->  | AL11: =+Zał.1_WPF_bazowy!#REF! -> 
B12: 1.1.1 | D12: dochody z tytułu udziału we wpływach z podatku dochodowego od osób fizycznych | E12: =Zał.1_WPF_bazowy!E12 -> 976091 | F12: =Zał.1_WPF_bazowy!F12 -> 1398132 | G12: =Zał.1_WPF_bazowy!G12 -> 1443005 | H12: =Zał.1_WPF_bazowy!H12 -> 1443005 | I12: =+Zał.1_WPF_bazowy!I12 -> 1335088 | J12: =+Zał.1_WPF_bazowy!J12 -> 1335088 | K12: =+Zał.1_WPF_bazowy!K12 -> 1335088 | L12: =+Zał.1_WPF_bazowy!L12 -> 1335088 | M12: =+Zał.1_WPF_bazowy!#REF! ->  | N12: =+Zał.1_WPF_bazowy!#REF! ->  | O12: =+Zał.1_WPF_bazowy!#REF! ->  | P12: =+Zał.1_WPF_bazowy!#REF! ->  | Q12: =+Zał.1_WPF_bazowy!#REF! ->  | R12: =+Zał.1_WPF_bazowy!#REF! ->  | S12: =+Zał.1_WPF_bazowy!#REF! ->  | T12: =+Zał.1_WPF_bazowy!#REF! ->  | U12: =+Zał.1_WPF_bazowy!#REF! ->  | V12: =+Zał.1_WPF_bazowy!#REF! ->  | W12: =+Zał.1_WPF_bazowy!#REF! ->  | X12: =+Zał.1_WPF_bazowy!#REF! ->  | Y12: =+Zał.1_WPF_bazowy!#REF! ->  | Z12: =+Zał.1_WPF_bazowy!#REF! ->  | AA12: =+Zał.1_WPF_bazowy!#REF! ->  | AB12: =+Zał.1_WPF_bazowy!#REF! ->  | AC12: =+Zał.1_WPF_bazowy!#REF! ->  | AD12: =+Zał.1_WPF_bazowy!#REF! ->  | AE12: =+Zał.1_WPF_bazowy!#REF! ->  | AF12: =+Zał.1_WPF_bazowy!#REF! ->  | AG12: =+Zał.1_WPF_bazowy!#REF! ->  | AH12: =+Zał.1_WPF_bazowy!#REF! ->  | AI12: =+Zał.1_WPF_bazowy!#REF! ->  | AJ12: =+Zał.1_WPF_bazowy!#REF! ->  | AK12: =+Zał.1_WPF_bazowy!#REF! ->  | AL12: =+Zał.1_WPF_bazowy!#REF! -> 
B13: 1.1.2 | D13: dochody z tytułu udziału we wpływach z podatku dochodowego od osób prawnych | E13: =Zał.1_WPF_bazowy!E13 -> 7359.96 | F13: =Zał.1_WPF_bazowy!F13 -> 873.76 | G13: =Zał.1_WPF_bazowy!G13 -> 1000 | H13: =Zał.1_WPF_bazowy!H13 -> 1000 | I13: =+Zał.1_WPF_bazowy!I13 -> 1000 | J13: =+Zał.1_WPF_bazowy!J13 -> 1000 | K13: =+Zał.1_WPF_bazowy!K13 -> 1000 | L13: =+Zał.1_WPF_bazowy!L13 -> 1000 | M13: =+Zał.1_WPF_bazowy!#REF! ->  | N13: =+Zał.1_WPF_bazowy!#REF! ->  | O13: =+Zał.1_WPF_bazowy!#REF! ->  | P13: =+Zał.1_WPF_bazowy!#REF! ->  | Q13: =+Zał.1_WPF_bazowy!#REF! ->  | R13: =+Zał.1_WPF_bazowy!#REF! ->  | S13: =+Zał.1_WPF_bazowy!#REF! ->  | T13: =+Zał.1_WPF_bazowy!#REF! ->  | U13: =+Zał.1_WPF_bazowy!#REF! ->  | V13: =+Zał.1_WPF_bazowy!#REF! ->  | W13: =+Zał.1_WPF_bazowy!#REF! ->  | X13: =+Zał.1_WPF_bazowy!#REF! ->  | Y13: =+Zał.1_WPF_bazowy!#REF! ->  | Z13: =+Zał.1_WPF_bazowy!#REF! ->  | AA13: =+Zał.1_WPF_bazowy!#REF! ->  | AB13: =+Zał.1_WPF_bazowy!#REF! ->  | AC13: =+Zał.1_WPF_bazowy!#REF! ->  | AD13: =+Zał.1_WPF_bazowy!#REF! ->  | AE13: =+Zał.1_WPF_bazowy!#REF! ->  | AF13: =+Zał.1_WPF_bazowy!#REF! ->  | AG13: =+Zał.1_WPF_bazowy!#REF! ->  | AH13: =+Zał.1_WPF_bazowy!#REF! ->  | AI13: =+Zał.1_WPF_bazowy!#REF! ->  | AJ13: =+Zał.1_WPF_bazowy!#REF! ->  | AK13: =+Zał.1_WPF_bazowy!#REF! ->  | AL13: =+Zał.1_WPF_bazowy!#REF! -> 
B14: 1.1.3 | D14: podatki i opłaty, w tym: | E14: =Zał.1_WPF_bazowy!E14 -> 3093016.26 | F14: =Zał.1_WPF_bazowy!F14 -> 4719070.97 | G14: =Zał.1_WPF_bazowy!G14 -> 3848642.4 | H14: =Zał.1_WPF_bazowy!H14 -> 3379742 | I14: =+Zał.1_WPF_bazowy!I14 -> 4152101 | J14: =+Zał.1_WPF_bazowy!J14 -> 4194000 | K14: =+Zał.1_WPF_bazowy!K14 -> 5356000 | L14: =+Zał.1_WPF_bazowy!L14 -> 5410000 | M14: =+Zał.1_WPF_bazowy!#REF! ->  | N14: =+Zał.1_WPF_bazowy!#REF! ->  | O14: =+Zał.1_WPF_bazowy!#REF! ->  | P14: =+Zał.1_WPF_bazowy!#REF! ->  | Q14: =+Zał.1_WPF_bazowy!#REF! ->  | R14: =+Zał.1_WPF_bazowy!#REF! ->  | S14: =+Zał.1_WPF_bazowy!#REF! ->  | T14: =+Zał.1_WPF_bazowy!#REF! ->  | U14: =+Zał.1_WPF_bazowy!#REF! ->  | V14: =+Zał.1_WPF_bazowy!#REF! ->  | W14: =+Zał.1_WPF_bazowy!#REF! ->  | X14: =+Zał.1_WPF_bazowy!#REF! ->  | Y14: =+Zał.1_WPF_bazowy!#REF! ->  | Z14: =+Zał.1_WPF_bazowy!#REF! ->  | AA14: =+Zał.1_WPF_bazowy!#REF! ->  | AB14: =+Zał.1_WPF_bazowy!#REF! ->  | AC14: =+Zał.1_WPF_bazowy!#REF! ->  | AD14: =+Zał.1_WPF_bazowy!#REF! ->  | AE14: =+Zał.1_WPF_bazowy!#REF! ->  | AF14: =+Zał.1_WPF_bazowy!#REF! ->  | AG14: =+Zał.1_WPF_bazowy!#REF! ->  | AH14: =+Zał.1_WPF_bazowy!#REF! ->  | AI14: =+Zał.1_WPF_bazowy!#REF! ->  | AJ14: =+Zał.1_WPF_bazowy!#REF! ->  | AK14: =+Zał.1_WPF_bazowy!#REF! ->  | AL14: =+Zał.1_WPF_bazowy!#REF! -> 
B15: 1.1.3.1 | D15: z podatku od nieruchomości | E15: =Zał.1_WPF_bazowy!E15 -> 849319.19 | F15: =Zał.1_WPF_bazowy!F15 -> 1608877.11 | G15: =Zał.1_WPF_bazowy!G15 -> 1644617.4 | H15: =Zał.1_WPF_bazowy!H15 -> 1644617.4 | I15: =+Zał.1_WPF_bazowy!I15 -> 1657389 | J15: =+Zał.1_WPF_bazowy!J15 -> 1674000 | K15: =+Zał.1_WPF_bazowy!K15 -> 2811000 | L15: =+Zał.1_WPF_bazowy!L15 -> 2839000 | M15: =+Zał.1_WPF_bazowy!#REF! ->  | N15: =+Zał.1_WPF_bazowy!#REF! ->  | O15: =+Zał.1_WPF_bazowy!#REF! ->  | P15: =+Zał.1_WPF_bazowy!#REF! ->  | Q15: =+Zał.1_WPF_bazowy!#REF! ->  | R15: =+Zał.1_WPF_bazowy!#REF! ->  | S15: =+Zał.1_WPF_bazowy!#REF! ->  | T15: =+Zał.1_WPF_bazowy!#REF! ->  | U15: =+Zał.1_WPF_bazowy!#REF! ->  | V15: =+Zał.1_WPF_bazowy!#REF! ->  | W15: =+Zał.1_WPF_bazowy!#REF! ->  | X15: =+Zał.1_WPF_bazowy!#REF! ->  | Y15: =+Zał.1_WPF_bazowy!#REF! ->  | Z15: =+Zał.1_WPF_bazowy!#REF! ->  | AA15: =+Zał.1_WPF_bazowy!#REF! ->  | AB15: =+Zał.1_WPF_bazowy!#REF! ->  | AC15: =+Zał.1_WPF_bazowy!#REF! ->  | AD15: =+Zał.1_WPF_bazowy!#REF! ->  | AE15: =+Zał.1_WPF_bazowy!#REF! ->  | AF15: =+Zał.1_WPF_bazowy!#REF! ->  | AG15: =+Zał.1_WPF_bazowy!#REF! ->  | AH15: =+Zał.1_WPF_bazowy!#REF! ->  | AI15: =+Zał.1_WPF_bazowy!#REF! ->  | AJ15: =+Zał.1_WPF_bazowy!#REF! ->  | AK15: =+Zał.1_WPF_bazowy!#REF! ->  | AL15: =+Zał.1_WPF_bazowy!#REF! -> 
B16: 1.1.4 | D16: z subwencji ogólnej | E16: =Zał.1_WPF_bazowy!E16 -> 4037554 | F16: =Zał.1_WPF_bazowy!F16 -> 4481337 | G16: =Zał.1_WPF_bazowy!G16 -> 4504728 | H16: =Zał.1_WPF_bazowy!H16 -> 4504728 | I16: =+Zał.1_WPF_bazowy!I16 -> 3294922 | J16: =+Zał.1_WPF_bazowy!J16 -> 3294922 | K16: =+Zał.1_WPF_bazowy!K16 -> 3294922 | L16: =+Zał.1_WPF_bazowy!L16 -> 3294922 | M16: =+Zał.1_WPF_bazowy!#REF! ->  | N16: =+Zał.1_WPF_bazowy!#REF! ->  | O16: =+Zał.1_WPF_bazowy!#REF! ->  | P16: =+Zał.1_WPF_bazowy!#REF! ->  | Q16: =+Zał.1_WPF_bazowy!#REF! ->  | R16: =+Zał.1_WPF_bazowy!#REF! ->  | S16: =+Zał.1_WPF_bazowy!#REF! ->  | T16: =+Zał.1_WPF_bazowy!#REF! ->  | U16: =+Zał.1_WPF_bazowy!#REF! ->  | V16: =+Zał.1_WPF_bazowy!#REF! ->  | W16: =+Zał.1_WPF_bazowy!#REF! ->  | X16: =+Zał.1_WPF_bazowy!#REF! ->  | Y16: =+Zał.1_WPF_bazowy!#REF! ->  | Z16: =+Zał.1_WPF_bazowy!#REF! ->  | AA16: =+Zał.1_WPF_bazowy!#REF! ->  | AB16: =+Zał.1_WPF_bazowy!#REF! ->  | AC16: =+Zał.1_WPF_bazowy!#REF! ->  | AD16: =+Zał.1_WPF_bazowy!#REF! ->  | AE16: =+Zał.1_WPF_bazowy!#REF! ->  | AF16: =+Zał.1_WPF_bazowy!#REF! ->  | AG16: =+Zał.1_WPF_bazowy!#REF! ->  | AH16: =+Zał.1_WPF_bazowy!#REF! ->  | AI16: =+Zał.1_WPF_bazowy!#REF! ->  | AJ16: =+Zał.1_WPF_bazowy!#REF! ->  | AK16: =+Zał.1_WPF_bazowy!#REF! ->  | AL16: =+Zał.1_WPF_bazowy!#REF! -> 
B17: 1.1.5 | D17: z tytułu dotacji i środków przeznaczonych na cele bieżące | E17: =Zał.1_WPF_bazowy!E17 -> 2073142.05 | F17: =Zał.1_WPF_bazowy!F17 -> 2060950.81 | G17: =Zał.1_WPF_bazowy!G17 -> 1980030.02 | H17: =Zał.1_WPF_bazowy!H17 -> 1980030.02 | I17: =+Zał.1_WPF_bazowy!I17 -> 1350903 | J17: =+Zał.1_WPF_bazowy!J17 -> 1350903 | K17: =+Zał.1_WPF_bazowy!K17 -> 1350903 | L17: =+Zał.1_WPF_bazowy!L17 -> 1350903 | M17: =+Zał.1_WPF_bazowy!#REF! ->  | N17: =+Zał.1_WPF_bazowy!#REF! ->  | O17: =+Zał.1_WPF_bazowy!#REF! ->  | P17: =+Zał.1_WPF_bazowy!#REF! ->  | Q17: =+Zał.1_WPF_bazowy!#REF! ->  | R17: =+Zał.1_WPF_bazowy!#REF! ->  | S17: =+Zał.1_WPF_bazowy!#REF! ->  | T17: =+Zał.1_WPF_bazowy!#REF! ->  | U17: =+Zał.1_WPF_bazowy!#REF! ->  | V17: =+Zał.1_WPF_bazowy!#REF! ->  | W17: =+Zał.1_WPF_bazowy!#REF! ->  | X17: =+Zał.1_WPF_bazowy!#REF! ->  | Y17: =+Zał.1_WPF_bazowy!#REF! ->  | Z17: =+Zał.1_WPF_bazowy!#REF! ->  | AA17: =+Zał.1_WPF_bazowy!#REF! ->  | AB17: =+Zał.1_WPF_bazowy!#REF! ->  | AC17: =+Zał.1_WPF_bazowy!#REF! ->  | AD17: =+Zał.1_WPF_bazowy!#REF! ->  | AE17: =+Zał.1_WPF_bazowy!#REF! ->  | AF17: =+Zał.1_WPF_bazowy!#REF! ->  | AG17: =+Zał.1_WPF_bazowy!#REF! ->  | AH17: =+Zał.1_WPF_bazowy!#REF! ->  | AI17: =+Zał.1_WPF_bazowy!#REF! ->  | AJ17: =+Zał.1_WPF_bazowy!#REF! ->  | AK17: =+Zał.1_WPF_bazowy!#REF! ->  | AL17: =+Zał.1_WPF_bazowy!#REF! -> 
A18: x | B18: 1.2 | D18: Dochody majątkowe, w tym: | E18: =Zał.1_WPF_bazowy!E18 -> 1548530.29 | F18: =Zał.1_WPF_bazowy!F18 -> 1401663.61 | G18: =Zał.1_WPF_bazowy!G18 -> 1007330 | H18: =Zał.1_WPF_bazowy!H18 -> 683530 | I18: =+Zał.1_WPF_bazowy!I18 -> 2379904 | J18: =+Zał.1_WPF_bazowy!J18 -> 0 | K18: =+Zał.1_WPF_bazowy!K18 -> 0 | L18: =+Zał.1_WPF_bazowy!L18 -> 0 | M18: =+Zał.1_WPF_bazowy!#REF! ->  | N18: =+Zał.1_WPF_bazowy!#REF! ->  | O18: =+Zał.1_WPF_bazowy!#REF! ->  | P18: =+Zał.1_WPF_bazowy!#REF! ->  | Q18: =+Zał.1_WPF_bazowy!#REF! ->  | R18: =+Zał.1_WPF_bazowy!#REF! ->  | S18: =+Zał.1_WPF_bazowy!#REF! ->  | T18: =+Zał.1_WPF_bazowy!#REF! ->  | U18: =+Zał.1_WPF_bazowy!#REF! ->  | V18: =+Zał.1_WPF_bazowy!#REF! ->  | W18: =+Zał.1_WPF_bazowy!#REF! ->  | X18: =+Zał.1_WPF_bazowy!#REF! ->  | Y18: =+Zał.1_WPF_bazowy!#REF! ->  | Z18: =+Zał.1_WPF_bazowy!#REF! ->  | AA18: =+Zał.1_WPF_bazowy!#REF! ->  | AB18: =+Zał.1_WPF_bazowy!#REF! ->  | AC18: =+Zał.1_WPF_bazowy!#REF! ->  | AD18: =+Zał.1_WPF_bazowy!#REF! ->  | AE18: =+Zał.1_WPF_bazowy!#REF! ->  | AF18: =+Zał.1_WPF_bazowy!#REF! ->  | AG18: =+Zał.1_WPF_bazowy!#REF! ->  | AH18: =+Zał.1_WPF_bazowy!#REF! ->  | AI18: =+Zał.1_WPF_bazowy!#REF! ->  | AJ18: =+Zał.1_WPF_bazowy!#REF! ->  | AK18: =+Zał.1_WPF_bazowy!#REF! ->  | AL18: =+Zał.1_WPF_bazowy!#REF! -> 
A19: x | B19: 1.2.1 | D19: ze sprzedaży majątku | E19: =Zał.1_WPF_bazowy!E19 -> 140492.99 | F19: =Zał.1_WPF_bazowy!F19 -> 69038.91 | G19: =Zał.1_WPF_bazowy!G19 -> 330000 | H19: =Zał.1_WPF_bazowy!H19 -> 6200 | I19: =+Zał.1_WPF_bazowy!I19 -> 200000 | J19: =+Zał.1_WPF_bazowy!J19 -> 0 | K19: =+Zał.1_WPF_bazowy!K19 -> 0 | L19: =+Zał.1_WPF_bazowy!L19 -> 0 | M19: =+Zał.1_WPF_bazowy!#REF! ->  | N19: =+Zał.1_WPF_bazowy!#REF! ->  | O19: =+Zał.1_WPF_bazowy!#REF! ->  | P19: =+Zał.1_WPF_bazowy!#REF! ->  | Q19: =+Zał.1_WPF_bazowy!#REF! ->  | R19: =+Zał.1_WPF_bazowy!#REF! ->  | S19: =+Zał.1_WPF_bazowy!#REF! ->  | T19: =+Zał.1_WPF_bazowy!#REF! ->  | U19: =+Zał.1_WPF_bazowy!#REF! ->  | V19: =+Zał.1_WPF_bazowy!#REF! ->  | W19: =+Zał.1_WPF_bazowy!#REF! ->  | X19: =+Zał.1_WPF_bazowy!#REF! ->  | Y19: =+Zał.1_WPF_bazowy!#REF! ->  | Z19: =+Zał.1_WPF_bazowy!#REF! ->  | AA19: =+Zał.1_WPF_bazowy!#REF! ->  | AB19: =+Zał.1_WPF_bazowy!#REF! ->  | AC19: =+Zał.1_WPF_bazowy!#REF! ->  | AD19: =+Zał.1_WPF_bazowy!#REF! ->  | AE19: =+Zał.1_WPF_bazowy!#REF! ->  | AF19: =+Zał.1_WPF_bazowy!#REF! ->  | AG19: =+Zał.1_WPF_bazowy!#REF! ->  | AH19: =+Zał.1_WPF_bazowy!#REF! ->  | AI19: =+Zał.1_WPF_bazowy!#REF! ->  | AJ19: =+Zał.1_WPF_bazowy!#REF! ->  | AK19: =+Zał.1_WPF_bazowy!#REF! ->  | AL19: =+Zał.1_WPF_bazowy!#REF! -> 
B20: 1.2.2 | D20: z tytułu dotacji oraz środków przeznaczonych na inwestycje | E20: =Zał.1_WPF_bazowy!E20 -> 1405937.3 | F20: =Zał.1_WPF_bazowy!F20 -> 1332324.7 | G20: =Zał.1_WPF_bazowy!G20 -> 664102 | H20: =Zał.1_WPF_bazowy!H20 -> 664102 | I20: =+Zał.1_WPF_bazowy!I20 -> 2179904 | J20: =+Zał.1_WPF_bazowy!J20 -> 0 | K20: =+Zał.1_WPF_bazowy!K20 -> 0 | L20: =+Zał.1_WPF_bazowy!L20 -> 0 | M20: =+Zał.1_WPF_bazowy!#REF! ->  | N20: =+Zał.1_WPF_bazowy!#REF! ->  | O20: =+Zał.1_WPF_bazowy!#REF! ->  | P20: =+Zał.1_WPF_bazowy!#REF! ->  | Q20: =+Zał.1_WPF_bazowy!#REF! ->  | R20: =+Zał.1_WPF_bazowy!#REF! ->  | S20: =+Zał.1_WPF_bazowy!#REF! ->  | T20: =+Zał.1_WPF_bazowy!#REF! ->  | U20: =+Zał.1_WPF_bazowy!#REF! ->  | V20: =+Zał.1_WPF_bazowy!#REF! ->  | W20: =+Zał.1_WPF_bazowy!#REF! ->  | X20: =+Zał.1_WPF_bazowy!#REF! ->  | Y20: =+Zał.1_WPF_bazowy!#REF! ->  | Z20: =+Zał.1_WPF_bazowy!#REF! ->  | AA20: =+Zał.1_WPF_bazowy!#REF! ->  | AB20: =+Zał.1_WPF_bazowy!#REF! ->  | AC20: =+Zał.1_WPF_bazowy!#REF! ->  | AD20: =+Zał.1_WPF_bazowy!#REF! ->  | AE20: =+Zał.1_WPF_bazowy!#REF! ->  | AF20: =+Zał.1_WPF_bazowy!#REF! ->  | AG20: =+Zał.1_WPF_bazowy!#REF! ->  | AH20: =+Zał.1_WPF_bazowy!#REF! ->  | AI20: =+Zał.1_WPF_bazowy!#REF! ->  | AJ20: =+Zał.1_WPF_bazowy!#REF! ->  | AK20: =+Zał.1_WPF_bazowy!#REF! ->  | AL20: =+Zał.1_WPF_bazowy!#REF! -> 
A21: x | B21: 2 | C21: [2.1]+[2.2] | D21: Wydatki ogółem | E21: =Zał.1_WPF_bazowy!E21 -> 12835915.98 | F21: =Zał.1_WPF_bazowy!F21 -> 11481546.43 | G21: =Zał.1_WPF_bazowy!G21 -> 14584700.7 | H21: =+H22+H28 -> 14401220 | I21: =+I22+I28 -> 12827688.81 | J21: =+J22+J28 -> 10825000 | K21: 12050000 | L21: 12170000
A22: x | B22: 2.1 | D22: Wydatki bieżące, w tym: | E22: =Zał.1_WPF_bazowy!E22 -> 9211865.66 | F22: =Zał.1_WPF_bazowy!F22 -> 9055670.43 | G22: =Zał.1_WPF_bazowy!G22 -> 9959324.7 | H22: =Zał.1_WPF_bazowy!H22 -> 9775844 | I22: =+Zał.1_WPF_bazowy!I22 -> 8917188.81 | J22: =+Zał.1_WPF_bazowy!J22 -> 9140000 | K22: =+Zał.1_WPF_bazowy!K22 -> 9368000 | L22: =+Zał.1_WPF_bazowy!L22 -> 9600000 | M22: =+Zał.1_WPF_bazowy!#REF! ->  | N22: =+Zał.1_WPF_bazowy!#REF! ->  | O22: =+Zał.1_WPF_bazowy!#REF! ->  | P22: =+Zał.1_WPF_bazowy!#REF! ->  | Q22: =+Zał.1_WPF_bazowy!#REF! ->  | R22: =+Zał.1_WPF_bazowy!#REF! ->  | S22: =+Zał.1_WPF_bazowy!#REF! ->  | T22: =+Zał.1_WPF_bazowy!#REF! ->  | U22: =+Zał.1_WPF_bazowy!#REF! ->  | V22: =+Zał.1_WPF_bazowy!#REF! ->  | W22: =+Zał.1_WPF_bazowy!#REF! ->  | X22: =+Zał.1_WPF_bazowy!#REF! ->  | Y22: =+Zał.1_WPF_bazowy!#REF! ->  | Z22: =+Zał.1_WPF_bazowy!#REF! ->  | AA22: =+Zał.1_WPF_bazowy!#REF! ->  | AB22: =+Zał.1_WPF_bazowy!#REF! ->  | AC22: =+Zał.1_WPF_bazowy!#REF! ->  | AD22: =+Zał.1_WPF_bazowy!#REF! ->  | AE22: =+Zał.1_WPF_bazowy!#REF! ->  | AF22: =+Zał.1_WPF_bazowy!#REF! ->  | AG22: =+Zał.1_WPF_bazowy!#REF! ->  | AH22: =+Zał.1_WPF_bazowy!#REF! ->  | AI22: =+Zał.1_WPF_bazowy!#REF! ->  | AJ22: =+Zał.1_WPF_bazowy!#REF! ->  | AK22: =+Zał.1_WPF_bazowy!#REF! ->  | AL22: =+Zał.1_WPF_bazowy!#REF! -> 
A23: x | B23: 2.1.1 | D23: z tytułu poręczeń i gwarancji, w tym: | E23: =Zał.1_WPF_bazowy!E23 -> 0 | F23: =Zał.1_WPF_bazowy!F23 -> 0 | G23: =Zał.1_WPF_bazowy!G23 -> 0 | H23: =Zał.1_WPF_bazowy!H23 -> 0 | I23: =+Zał.1_WPF_bazowy!I23 -> 0 | J23: =+Zał.1_WPF_bazowy!J23 -> 0 | K23: =+Zał.1_WPF_bazowy!K23 -> 0 | L23: =+Zał.1_WPF_bazowy!L23 -> 0 | M23: =+Zał.1_WPF_bazowy!#REF! ->  | N23: =+Zał.1_WPF_bazowy!#REF! ->  | O23: =+Zał.1_WPF_bazowy!#REF! ->  | P23: =+Zał.1_WPF_bazowy!#REF! ->  | Q23: =+Zał.1_WPF_bazowy!#REF! ->  | R23: =+Zał.1_WPF_bazowy!#REF! ->  | S23: =+Zał.1_WPF_bazowy!#REF! ->  | T23: =+Zał.1_WPF_bazowy!#REF! ->  | U23: =+Zał.1_WPF_bazowy!#REF! ->  | V23: =+Zał.1_WPF_bazowy!#REF! ->  | W23: =+Zał.1_WPF_bazowy!#REF! ->  | X23: =+Zał.1_WPF_bazowy!#REF! ->  | Y23: =+Zał.1_WPF_bazowy!#REF! ->  | Z23: =+Zał.1_WPF_bazowy!#REF! ->  | AA23: =+Zał.1_WPF_bazowy!#REF! ->  | AB23: =+Zał.1_WPF_bazowy!#REF! ->  | AC23: =+Zał.1_WPF_bazowy!#REF! ->  | AD23: =+Zał.1_WPF_bazowy!#REF! ->  | AE23: =+Zał.1_WPF_bazowy!#REF! ->  | AF23: =+Zał.1_WPF_bazowy!#REF! ->  | AG23: =+Zał.1_WPF_bazowy!#REF! ->  | AH23: =+Zał.1_WPF_bazowy!#REF! ->  | AI23: =+Zał.1_WPF_bazowy!#REF! ->  | AJ23: =+Zał.1_WPF_bazowy!#REF! ->  | AK23: =+Zał.1_WPF_bazowy!#REF! ->  | AL23: =+Zał.1_WPF_bazowy!#REF! -> 
A24: x | B24: 2.1.1.1 | D24: gwarancje i poręczenia podlegające wyłączeniu z limitów spłaty zobowiązań określonych w art. 243 ust. 3 pkt 2 ustawy z dnia 27 sierpnia 2009 r. o finansach publicznych (Dz. U. Nr 157, poz. 1240, z późn. zm.) lub art. 169 ust. 3 pkt 2 ustawy z dnia 30 czerwca 2005 r. o finansach publicznych (Dz. U. Nr 249, poz. 2104, z późn. zm) | E24: =Zał.1_WPF_bazowy!E24 -> 0 | F24: =Zał.1_WPF_bazowy!F24 -> 0 | G24: =Zał.1_WPF_bazowy!G24 -> 0 | H24: =Zał.1_WPF_bazowy!H24 -> 0 | I24: =+Zał.1_WPF_bazowy!I24 -> 0 | J24: =+Zał.1_WPF_bazowy!J24 -> 0 | K24: =+Zał.1_WPF_bazowy!K24 -> 0 | L24: =+Zał.1_WPF_bazowy!L24 -> 0 | M24: =+Zał.1_WPF_bazowy!#REF! ->  | N24: =+Zał.1_WPF_bazowy!#REF! ->  | O24: =+Zał.1_WPF_bazowy!#REF! ->  | P24: =+Zał.1_WPF_bazowy!#REF! ->  | Q24: =+Zał.1_WPF_bazowy!#REF! ->  | R24: =+Zał.1_WPF_bazowy!#REF! ->  | S24: =+Zał.1_WPF_bazowy!#REF! ->  | T24: =+Zał.1_WPF_bazowy!#REF! ->  | U24: =+Zał.1_WPF_bazowy!#REF! ->  | V24: =+Zał.1_WPF_bazowy!#REF! ->  | W24: =+Zał.1_WPF_bazowy!#REF! ->  | X24: =+Zał.1_WPF_bazowy!#REF! ->  | Y24: =+Zał.1_WPF_bazowy!#REF! ->  | Z24: =+Zał.1_WPF_bazowy!#REF! ->  | AA24: =+Zał.1_WPF_bazowy!#REF! ->  | AB24: =+Zał.1_WPF_bazowy!#REF! ->  | AC24: =+Zał.1_WPF_bazowy!#REF! ->  | AD24: =+Zał.1_WPF_bazowy!#REF! ->  | AE24: =+Zał.1_WPF_bazowy!#REF! ->  | AF24: =+Zał.1_WPF_bazowy!#REF! ->  | AG24: =+Zał.1_WPF_bazowy!#REF! ->  | AH24: =+Zał.1_WPF_bazowy!#REF! ->  | AI24: =+Zał.1_WPF_bazowy!#REF! ->  | AJ24: =+Zał.1_WPF_bazowy!#REF! ->  | AK24: =+Zał.1_WPF_bazowy!#REF! ->  | AL24: =+Zał.1_WPF_bazowy!#REF! -> 
B25: 2.1.2 | D25: na spłatę przejętych zobowiązań samodzielnego publicznego zakładu opieki zdrowotnej przekształconego na zasadach określonych w przepisach o działalności leczniczej, w wysokości w jakiej nie podlegają sfinansowaniu dotacją z budżetu państwa) | E25: 0 | F25: 0 | G25: 0 | H25: 0 | I25: =+Zał.1_WPF_bazowy!I25 -> 0 | J25: =+Zał.1_WPF_bazowy!J25 -> 0 | K25: =+Zał.1_WPF_bazowy!K25 -> 0 | L25: =+Zał.1_WPF_bazowy!L25 -> 0 | M25: =+Zał.1_WPF_bazowy!#REF! ->  | N25: =+Zał.1_WPF_bazowy!#REF! ->  | O25: =+Zał.1_WPF_bazowy!#REF! ->  | P25: =+Zał.1_WPF_bazowy!#REF! ->  | Q25: =+Zał.1_WPF_bazowy!#REF! ->  | R25: =+Zał.1_WPF_bazowy!#REF! ->  | S25: =+Zał.1_WPF_bazowy!#REF! ->  | T25: =+Zał.1_WPF_bazowy!#REF! ->  | U25: =+Zał.1_WPF_bazowy!#REF! ->  | V25: =+Zał.1_WPF_bazowy!#REF! ->  | W25: =+Zał.1_WPF_bazowy!#REF! ->  | X25: =+Zał.1_WPF_bazowy!#REF! ->  | Y25: =+Zał.1_WPF_bazowy!#REF! ->  | Z25: =+Zał.1_WPF_bazowy!#REF! ->  | AA25: =+Zał.1_WPF_bazowy!#REF! ->  | AB25: =+Zał.1_WPF_bazowy!#REF! ->  | AC25: =+Zał.1_WPF_bazowy!#REF! ->  | AD25: =+Zał.1_WPF_bazowy!#REF! ->  | AE25: =+Zał.1_WPF_bazowy!#REF! ->  | AF25: =+Zał.1_WPF_bazowy!#REF! ->  | AG25: =+Zał.1_WPF_bazowy!#REF! ->  | AH25: =+Zał.1_WPF_bazowy!#REF! ->  | AI25: =+Zał.1_WPF_bazowy!#REF! ->  | AJ25: =+Zał.1_WPF_bazowy!#REF! ->  | AK25: =+Zał.1_WPF_bazowy!#REF! ->  | AL25: =+Zał.1_WPF_bazowy!#REF! -> 
A26: x | B26: 2.1.3 | D26: wydatki na obsługę długu, w tym: | E26: =Zał.1_WPF_bazowy!E26 -> 41411.77 | F26: =Zał.1_WPF_bazowy!F26 -> 84758.58 | G26: =Zał.1_WPF_bazowy!G26 -> 95000 | H26: =Zał.1_WPF_bazowy!H26 -> 35000 | I26: =+Zał.1_WPF_bazowy!I26 -> 20000 | J26: =+Zał.1_WPF_bazowy!J26 -> 0 | K26: =+Zał.1_WPF_bazowy!K26 -> 0 | L26: =+Zał.1_WPF_bazowy!L26 -> 0 | M26: =+Zał.1_WPF_bazowy!#REF! ->  | N26: =+Zał.1_WPF_bazowy!#REF! ->  | O26: =+Zał.1_WPF_bazowy!#REF! ->  | P26: =+Zał.1_WPF_bazowy!#REF! ->  | Q26: =+Zał.1_WPF_bazowy!#REF! ->  | R26: =+Zał.1_WPF_bazowy!#REF! ->  | S26: =+Zał.1_WPF_bazowy!#REF! ->  | T26: =+Zał.1_WPF_bazowy!#REF! ->  | U26: =+Zał.1_WPF_bazowy!#REF! ->  | V26: =+Zał.1_WPF_bazowy!#REF! ->  | W26: =+Zał.1_WPF_bazowy!#REF! ->  | X26: =+Zał.1_WPF_bazowy!#REF! ->  | Y26: =+Zał.1_WPF_bazowy!#REF! ->  | Z26: =+Zał.1_WPF_bazowy!#REF! ->  | AA26: =+Zał.1_WPF_bazowy!#REF! ->  | AB26: =+Zał.1_WPF_bazowy!#REF! ->  | AC26: =+Zał.1_WPF_bazowy!#REF! ->  | AD26: =+Zał.1_WPF_bazowy!#REF! ->  | AE26: =+Zał.1_WPF_bazowy!#REF! ->  | AF26: =+Zał.1_WPF_bazowy!#REF! ->  | AG26: =+Zał.1_WPF_bazowy!#REF! ->  | AH26: =+Zał.1_WPF_bazowy!#REF! ->  | AI26: =+Zał.1_WPF_bazowy!#REF! ->  | AJ26: =+Zał.1_WPF_bazowy!#REF! ->  | AK26: =+Zał.1_WPF_bazowy!#REF! ->  | AL26: =+Zał.1_WPF_bazowy!#REF! -> 
A27: x | B27: 2.1.3.1 | D27: odsetki i dyskonto określone w art. 243 ust. 1 ustawy lub art. 169 ust. 1 ufp z 2005 r.. | E27: =Zał.1_WPF_bazowy!E27 -> 38272.47 | F27: =Zał.1_WPF_bazowy!F27 -> 83194.59 | G27: =Zał.1_WPF_bazowy!G27 -> 95000 | H27: =Zał.1_WPF_bazowy!H27 -> 35000 | I27: =+Zał.1_WPF_bazowy!I27 -> 20000 | J27: =+Zał.1_WPF_bazowy!J27 -> 0 | K27: =+Zał.1_WPF_bazowy!K27 -> 0 | L27: =+Zał.1_WPF_bazowy!L27 -> 0 | M27: =+Zał.1_WPF_bazowy!#REF! ->  | N27: =+Zał.1_WPF_bazowy!#REF! ->  | O27: =+Zał.1_WPF_bazowy!#REF! ->  | P27: =+Zał.1_WPF_bazowy!#REF! ->  | Q27: =+Zał.1_WPF_bazowy!#REF! ->  | R27: =+Zał.1_WPF_bazowy!#REF! ->  | S27: =+Zał.1_WPF_bazowy!#REF! ->  | T27: =+Zał.1_WPF_bazowy!#REF! ->  | U27: =+Zał.1_WPF_bazowy!#REF! ->  | V27: =+Zał.1_WPF_bazowy!#REF! ->  | W27: =+Zał.1_WPF_bazowy!#REF! ->  | X27: =+Zał.1_WPF_bazowy!#REF! ->  | Y27: =+Zał.1_WPF_bazowy!#REF! ->  | Z27: =+Zał.1_WPF_bazowy!#REF! ->  | AA27: =+Zał.1_WPF_bazowy!#REF! ->  | AB27: =+Zał.1_WPF_bazowy!#REF! ->  | AC27: =+Zał.1_WPF_bazowy!#REF! ->  | AD27: =+Zał.1_WPF_bazowy!#REF! ->  | AE27: =+Zał.1_WPF_bazowy!#REF! ->  | AF27: =+Zał.1_WPF_bazowy!#REF! ->  | AG27: =+Zał.1_WPF_bazowy!#REF! ->  | AH27: =+Zał.1_WPF_bazowy!#REF! ->  | AI27: =+Zał.1_WPF_bazowy!#REF! ->  | AJ27: =+Zał.1_WPF_bazowy!#REF! ->  | AK27: =+Zał.1_WPF_bazowy!#REF! ->  | AL27: =+Zał.1_WPF_bazowy!#REF! -> 
A28: x | B28: 2.2 | D28: Wydatki majątkowe | E28: =Zał.1_WPF_bazowy!E28 -> 3624050.32 | F28: =Zał.1_WPF_bazowy!F28 -> 2425876 | G28: =Zał.1_WPF_bazowy!G28 -> 4625376 | H28: =Zał.1_WPF_bazowy!H28 -> 4625376 | I28: =+Zał.1_WPF_bazowy!I28 -> 3910500 | J28: =+Zał.1_WPF_bazowy!J28 -> 1685000 | K28: =+Zał.1_WPF_bazowy!K28 -> 2682000 | L28: =+Zał.1_WPF_bazowy!L28 -> 2570000 | M28: =+Zał.1_WPF_bazowy!#REF! ->  | N28: =+Zał.1_WPF_bazowy!#REF! ->  | O28: =+Zał.1_WPF_bazowy!#REF! ->  | P28: =+Zał.1_WPF_bazowy!#REF! ->  | Q28: =+Zał.1_WPF_bazowy!#REF! ->  | R28: =+Zał.1_WPF_bazowy!#REF! ->  | S28: =+Zał.1_WPF_bazowy!#REF! ->  | T28: =+Zał.1_WPF_bazowy!#REF! ->  | U28: =+Zał.1_WPF_bazowy!#REF! ->  | V28: =+Zał.1_WPF_bazowy!#REF! ->  | W28: =+Zał.1_WPF_bazowy!#REF! ->  | X28: =+Zał.1_WPF_bazowy!#REF! ->  | Y28: =+Zał.1_WPF_bazowy!#REF! ->  | Z28: =+Zał.1_WPF_bazowy!#REF! ->  | AA28: =+Zał.1_WPF_bazowy!#REF! ->  | AB28: =+Zał.1_WPF_bazowy!#REF! ->  | AC28: =+Zał.1_WPF_bazowy!#REF! ->  | AD28: =+Zał.1_WPF_bazowy!#REF! ->  | AE28: =+Zał.1_WPF_bazowy!#REF! ->  | AF28: =+Zał.1_WPF_bazowy!#REF! ->  | AG28: =+Zał.1_WPF_bazowy!#REF! ->  | AH28: =+Zał.1_WPF_bazowy!#REF! ->  | AI28: =+Zał.1_WPF_bazowy!#REF! ->  | AJ28: =+Zał.1_WPF_bazowy!#REF! ->  | AK28: =+Zał.1_WPF_bazowy!#REF! ->  | AL28: =+Zał.1_WPF_bazowy!#REF! -> 
A29: x | B29: 3 | C29: [1]-[2] | D29: Wynik budżetu | E29: =Zał.1_WPF_bazowy!E29 -> -1100222.42 | F29: =Zał.1_WPF_bazowy!F29 -> 2580481.72 | G29: =Zał.1_WPF_bazowy!G29 -> -1113306.28 | H29: =+H10-H21 -> -1722526 | I29: =+I10-I21 -> 773956.19 | J29: =+J10-J21 -> 0 | K29: 0 | L29: 0
A30: x | B30: 4 | C30: [4.1]+[4.2]+[4.3]+[4.4] | D30: Przychody budżetu | E30: =Zał.1_WPF_bazowy!E30 -> 2625223.85 | F30: =Zał.1_WPF_bazowy!F30 -> 1050519.37 | G30: =Zał.1_WPF_bazowy!G30 -> 1850827.74 | H30: =+H31+H33+H35+H37 -> 2460047.46 | I30: =+I31+I33+I35+I37 -> 0 | J30: =+J31+J33+J35+J37 -> 0 | K30: 0 | L30: 0
A31: x | B31: 4.1 | D31: Nadwyżka budżetowa z lat ubiegłych, w tym: | E31: =Zał.1_WPF_bazowy!E31 -> 0 | F31: =Zał.1_WPF_bazowy!F31 -> 0 | G31: =Zał.1_WPF_bazowy!G31 -> 314668.09 | H31: =Zał.1_WPF_bazowy!H31 -> 923887.81 | I31: =+Zał.1_WPF_bazowy!I31 -> 0 | J31: =+Zał.1_WPF_bazowy!J31 -> 0 | K31: =+Zał.1_WPF_bazowy!K31 -> 0 | L31: =+Zał.1_WPF_bazowy!L31 -> 0 | M31: =+Zał.1_WPF_bazowy!#REF! ->  | N31: =+Zał.1_WPF_bazowy!#REF! ->  | O31: =+Zał.1_WPF_bazowy!#REF! ->  | P31: =+Zał.1_WPF_bazowy!#REF! ->  | Q31: =+Zał.1_WPF_bazowy!#REF! ->  | R31: =+Zał.1_WPF_bazowy!#REF! ->  | S31: =+Zał.1_WPF_bazowy!#REF! ->  | T31: =+Zał.1_WPF_bazowy!#REF! ->  | U31: =+Zał.1_WPF_bazowy!#REF! ->  | V31: =+Zał.1_WPF_bazowy!#REF! ->  | W31: =+Zał.1_WPF_bazowy!#REF! ->  | X31: =+Zał.1_WPF_bazowy!#REF! ->  | Y31: =+Zał.1_WPF_bazowy!#REF! ->  | Z31: =+Zał.1_WPF_bazowy!#REF! ->  | AA31: =+Zał.1_WPF_bazowy!#REF! ->  | AB31: =+Zał.1_WPF_bazowy!#REF! ->  | AC31: =+Zał.1_WPF_bazowy!#REF! ->  | AD31: =+Zał.1_WPF_bazowy!#REF! ->  | AE31: =+Zał.1_WPF_bazowy!#REF! ->  | AF31: =+Zał.1_WPF_bazowy!#REF! ->  | AG31: =+Zał.1_WPF_bazowy!#REF! ->  | AH31: =+Zał.1_WPF_bazowy!#REF! ->  | AI31: =+Zał.1_WPF_bazowy!#REF! ->  | AJ31: =+Zał.1_WPF_bazowy!#REF! ->  | AK31: =+Zał.1_WPF_bazowy!#REF! ->  | AL31: =+Zał.1_WPF_bazowy!#REF! -> 
A32: x | B32: 4.1.1 | D32: na pokrycie deficytu budżetu | E32: =Zał.1_WPF_bazowy!E32 -> 0 | F32: =Zał.1_WPF_bazowy!F32 -> 0 | G32: =Zał.1_WPF_bazowy!G32 -> 0 | H32: =Zał.1_WPF_bazowy!H32 -> 211048.35 | I32: =+Zał.1_WPF_bazowy!I32 -> 0 | J32: =+Zał.1_WPF_bazowy!J32 -> 0 | K32: =+Zał.1_WPF_bazowy!K32 -> 0 | L32: =+Zał.1_WPF_bazowy!L32 -> 0 | M32: =+Zał.1_WPF_bazowy!#REF! ->  | N32: =+Zał.1_WPF_bazowy!#REF! ->  | O32: =+Zał.1_WPF_bazowy!#REF! ->  | P32: =+Zał.1_WPF_bazowy!#REF! ->  | Q32: =+Zał.1_WPF_bazowy!#REF! ->  | R32: =+Zał.1_WPF_bazowy!#REF! ->  | S32: =+Zał.1_WPF_bazowy!#REF! ->  | T32: =+Zał.1_WPF_bazowy!#REF! ->  | U32: =+Zał.1_WPF_bazowy!#REF! ->  | V32: =+Zał.1_WPF_bazowy!#REF! ->  | W32: =+Zał.1_WPF_bazowy!#REF! ->  | X32: =+Zał.1_WPF_bazowy!#REF! ->  | Y32: =+Zał.1_WPF_bazowy!#REF! ->  | Z32: =+Zał.1_WPF_bazowy!#REF! ->  | AA32: =+Zał.1_WPF_bazowy!#REF! ->  | AB32: =+Zał.1_WPF_bazowy!#REF! ->  | AC32: =+Zał.1_WPF_bazowy!#REF! ->  | AD32: =+Zał.1_WPF_bazowy!#REF! ->  | AE32: =+Zał.1_WPF_bazowy!#REF! ->  | AF32: =+Zał.1_WPF_bazowy!#REF! ->  | AG32: =+Zał.1_WPF_bazowy!#REF! ->  | AH32: =+Zał.1_WPF_bazowy!#REF! ->  | AI32: =+Zał.1_WPF_bazowy!#REF! ->  | AJ32: =+Zał.1_WPF_bazowy!#REF! ->  | AK32: =+Zał.1_WPF_bazowy!#REF! ->  | AL32: =+Zał.1_WPF_bazowy!#REF! -> 
A33: x | B33: 4.2 | D33: Wolne środki, o których mowa w art. 217 ust.2 pkt 6 ustawy, w tym: | E33: =Zał.1_WPF_bazowy!E33 -> 186016.39 | F33: =Zał.1_WPF_bazowy!F33 -> 902519.37 | G33: =Zał.1_WPF_bazowy!G33 -> 1422477.65 | H33: =Zał.1_WPF_bazowy!H33 -> 1422477.65 | I33: =+Zał.1_WPF_bazowy!I33 -> 0 | J33: =+Zał.1_WPF_bazowy!J33 -> 0 | K33: =+Zał.1_WPF_bazowy!K33 -> 0 | L33: =+Zał.1_WPF_bazowy!L33 -> 0 | M33: =+Zał.1_WPF_bazowy!#REF! ->  | N33: =+Zał.1_WPF_bazowy!#REF! ->  | O33: =+Zał.1_WPF_bazowy!#REF! ->  | P33: =+Zał.1_WPF_bazowy!#REF! ->  | Q33: =+Zał.1_WPF_bazowy!#REF! ->  | R33: =+Zał.1_WPF_bazowy!#REF! ->  | S33: =+Zał.1_WPF_bazowy!#REF! ->  | T33: =+Zał.1_WPF_bazowy!#REF! ->  | U33: =+Zał.1_WPF_bazowy!#REF! ->  | V33: =+Zał.1_WPF_bazowy!#REF! ->  | W33: =+Zał.1_WPF_bazowy!#REF! ->  | X33: =+Zał.1_WPF_bazowy!#REF! ->  | Y33: =+Zał.1_WPF_bazowy!#REF! ->  | Z33: =+Zał.1_WPF_bazowy!#REF! ->  | AA33: =+Zał.1_WPF_bazowy!#REF! ->  | AB33: =+Zał.1_WPF_bazowy!#REF! ->  | AC33: =+Zał.1_WPF_bazowy!#REF! ->  | AD33: =+Zał.1_WPF_bazowy!#REF! ->  | AE33: =+Zał.1_WPF_bazowy!#REF! ->  | AF33: =+Zał.1_WPF_bazowy!#REF! ->  | AG33: =+Zał.1_WPF_bazowy!#REF! ->  | AH33: =+Zał.1_WPF_bazowy!#REF! ->  | AI33: =+Zał.1_WPF_bazowy!#REF! ->  | AJ33: =+Zał.1_WPF_bazowy!#REF! ->  | AK33: =+Zał.1_WPF_bazowy!#REF! ->  | AL33: =+Zał.1_WPF_bazowy!#REF! -> 
A34: x | B34: 4.2.1 | D34: na pokrycie deficytu budżetu | E34: =Zał.1_WPF_bazowy!E34 -> 0 | F34: =Zał.1_WPF_bazowy!F34 -> 0 | G34: =Zał.1_WPF_bazowy!G34 -> 1024306.28 | H34: =Zał.1_WPF_bazowy!H34 -> 1422477.65 | I34: =+Zał.1_WPF_bazowy!I34 -> 0 | J34: =+Zał.1_WPF_bazowy!J34 -> 0 | K34: =+Zał.1_WPF_bazowy!K34 -> 0 | L34: =+Zał.1_WPF_bazowy!L34 -> 0 | M34: =+Zał.1_WPF_bazowy!#REF! ->  | N34: =+Zał.1_WPF_bazowy!#REF! ->  | O34: =+Zał.1_WPF_bazowy!#REF! ->  | P34: =+Zał.1_WPF_bazowy!#REF! ->  | Q34: =+Zał.1_WPF_bazowy!#REF! ->  | R34: =+Zał.1_WPF_bazowy!#REF! ->  | S34: =+Zał.1_WPF_bazowy!#REF! ->  | T34: =+Zał.1_WPF_bazowy!#REF! ->  | U34: =+Zał.1_WPF_bazowy!#REF! ->  | V34: =+Zał.1_WPF_bazowy!#REF! ->  | W34: =+Zał.1_WPF_bazowy!#REF! ->  | X34: =+Zał.1_WPF_bazowy!#REF! ->  | Y34: =+Zał.1_WPF_bazowy!#REF! ->  | Z34: =+Zał.1_WPF_bazowy!#REF! ->  | AA34: =+Zał.1_WPF_bazowy!#REF! ->  | AB34: =+Zał.1_WPF_bazowy!#REF! ->  | AC34: =+Zał.1_WPF_bazowy!#REF! ->  | AD34: =+Zał.1_WPF_bazowy!#REF! ->  | AE34: =+Zał.1_WPF_bazowy!#REF! ->  | AF34: =+Zał.1_WPF_bazowy!#REF! ->  | AG34: =+Zał.1_WPF_bazowy!#REF! ->  | AH34: =+Zał.1_WPF_bazowy!#REF! ->  | AI34: =+Zał.1_WPF_bazowy!#REF! ->  | AJ34: =+Zał.1_WPF_bazowy!#REF! ->  | AK34: =+Zał.1_WPF_bazowy!#REF! ->  | AL34: =+Zał.1_WPF_bazowy!#REF! -> 
A35: x | B35: 4.3 | D35: Kredyty, pożyczki, emisja papierów wartościowych, w tym: | E35: =Zał.1_WPF_bazowy!E35 -> 2417813.74 | F35: =Zał.1_WPF_bazowy!F35 -> 148000 | G35: =Zał.1_WPF_bazowy!G35 -> 89000 | H35: =Zał.1_WPF_bazowy!H35 -> 89000 | I35: =+Zał.1_WPF_bazowy!I35 -> 0 | J35: =+Zał.1_WPF_bazowy!J35 -> 0 | K35: =+Zał.1_WPF_bazowy!K35 -> 0 | L35: =+Zał.1_WPF_bazowy!L35 -> 0 | M35: =+Zał.1_WPF_bazowy!#REF! ->  | N35: =+Zał.1_WPF_bazowy!#REF! ->  | O35: =+Zał.1_WPF_bazowy!#REF! ->  | P35: =+Zał.1_WPF_bazowy!#REF! ->  | Q35: =+Zał.1_WPF_bazowy!#REF! ->  | R35: =+Zał.1_WPF_bazowy!#REF! ->  | S35: =+Zał.1_WPF_bazowy!#REF! ->  | T35: =+Zał.1_WPF_bazowy!#REF! ->  | U35: =+Zał.1_WPF_bazowy!#REF! ->  | V35: =+Zał.1_WPF_bazowy!#REF! ->  | W35: =+Zał.1_WPF_bazowy!#REF! ->  | X35: =+Zał.1_WPF_bazowy!#REF! ->  | Y35: =+Zał.1_WPF_bazowy!#REF! ->  | Z35: =+Zał.1_WPF_bazowy!#REF! ->  | AA35: =+Zał.1_WPF_bazowy!#REF! ->  | AB35: =+Zał.1_WPF_bazowy!#REF! ->  | AC35: =+Zał.1_WPF_bazowy!#REF! ->  | AD35: =+Zał.1_WPF_bazowy!#REF! ->  | AE35: =+Zał.1_WPF_bazowy!#REF! ->  | AF35: =+Zał.1_WPF_bazowy!#REF! ->  | AG35: =+Zał.1_WPF_bazowy!#REF! ->  | AH35: =+Zał.1_WPF_bazowy!#REF! ->  | AI35: =+Zał.1_WPF_bazowy!#REF! ->  | AJ35: =+Zał.1_WPF_bazowy!#REF! ->  | AK35: =+Zał.1_WPF_bazowy!#REF! ->  | AL35: =+Zał.1_WPF_bazowy!#REF! -> 
A36: x | B36: 4.3.1 | D36: na pokrycie deficytu budżetu | E36: =Zał.1_WPF_bazowy!E36 -> 1100222.42 | F36: =Zał.1_WPF_bazowy!F36 -> 0 | G36: =Zał.1_WPF_bazowy!G36 -> 89000 | H36: =Zał.1_WPF_bazowy!H36 -> 89000 | I36: =+Zał.1_WPF_bazowy!I36 -> 0 | J36: =+Zał.1_WPF_bazowy!J36 -> 0 | K36: =+Zał.1_WPF_bazowy!K36 -> 0 | L36: =+Zał.1_WPF_bazowy!L36 -> 0 | M36: =+Zał.1_WPF_bazowy!#REF! ->  | N36: =+Zał.1_WPF_bazowy!#REF! ->  | O36: =+Zał.1_WPF_bazowy!#REF! ->  | P36: =+Zał.1_WPF_bazowy!#REF! ->  | Q36: =+Zał.1_WPF_bazowy!#REF! ->  | R36: =+Zał.1_WPF_bazowy!#REF! ->  | S36: =+Zał.1_WPF_bazowy!#REF! ->  | T36: =+Zał.1_WPF_bazowy!#REF! ->  | U36: =+Zał.1_WPF_bazowy!#REF! ->  | V36: =+Zał.1_WPF_bazowy!#REF! ->  | W36: =+Zał.1_WPF_bazowy!#REF! ->  | X36: =+Zał.1_WPF_bazowy!#REF! ->  | Y36: =+Zał.1_WPF_bazowy!#REF! ->  | Z36: =+Zał.1_WPF_bazowy!#REF! ->  | AA36: =+Zał.1_WPF_bazowy!#REF! ->  | AB36: =+Zał.1_WPF_bazowy!#REF! ->  | AC36: =+Zał.1_WPF_bazowy!#REF! ->  | AD36: =+Zał.1_WPF_bazowy!#REF! ->  | AE36: =+Zał.1_WPF_bazowy!#REF! ->  | AF36: =+Zał.1_WPF_bazowy!#REF! ->  | AG36: =+Zał.1_WPF_bazowy!#REF! ->  | AH36: =+Zał.1_WPF_bazowy!#REF! ->  | AI36: =+Zał.1_WPF_bazowy!#REF! ->  | AJ36: =+Zał.1_WPF_bazowy!#REF! ->  | AK36: =+Zał.1_WPF_bazowy!#REF! ->  | AL36: =+Zał.1_WPF_bazowy!#REF! -> 
A37: x | B37: 4.4 | D37: Inne przychody niezwiązane z zaciągnięciem długu, w tym: | E37: =Zał.1_WPF_bazowy!E37 -> 21393.72 | F37: =Zał.1_WPF_bazowy!F37 -> 0 | G37: =Zał.1_WPF_bazowy!G37 -> 24682 | H37: =Zał.1_WPF_bazowy!H37 -> 24682 | I37: =+Zał.1_WPF_bazowy!I37 -> 0 | J37: =+Zał.1_WPF_bazowy!J37 -> 0 | K37: =+Zał.1_WPF_bazowy!K37 -> 0 | L37: =+Zał.1_WPF_bazowy!L37 -> 0 | M37: =+Zał.1_WPF_bazowy!#REF! ->  | N37: =+Zał.1_WPF_bazowy!#REF! ->  | O37: =+Zał.1_WPF_bazowy!#REF! ->  | P37: =+Zał.1_WPF_bazowy!#REF! ->  | Q37: =+Zał.1_WPF_bazowy!#REF! ->  | R37: =+Zał.1_WPF_bazowy!#REF! ->  | S37: =+Zał.1_WPF_bazowy!#REF! ->  | T37: =+Zał.1_WPF_bazowy!#REF! ->  | U37: =+Zał.1_WPF_bazowy!#REF! ->  | V37: =+Zał.1_WPF_bazowy!#REF! ->  | W37: =+Zał.1_WPF_bazowy!#REF! ->  | X37: =+Zał.1_WPF_bazowy!#REF! ->  | Y37: =+Zał.1_WPF_bazowy!#REF! ->  | Z37: =+Zał.1_WPF_bazowy!#REF! ->  | AA37: =+Zał.1_WPF_bazowy!#REF! ->  | AB37: =+Zał.1_WPF_bazowy!#REF! ->  | AC37: =+Zał.1_WPF_bazowy!#REF! ->  | AD37: =+Zał.1_WPF_bazowy!#REF! ->  | AE37: =+Zał.1_WPF_bazowy!#REF! ->  | AF37: =+Zał.1_WPF_bazowy!#REF! ->  | AG37: =+Zał.1_WPF_bazowy!#REF! ->  | AH37: =+Zał.1_WPF_bazowy!#REF! ->  | AI37: =+Zał.1_WPF_bazowy!#REF! ->  | AJ37: =+Zał.1_WPF_bazowy!#REF! ->  | AK37: =+Zał.1_WPF_bazowy!#REF! ->  | AL37: =+Zał.1_WPF_bazowy!#REF! -> 
A38: x | B38: 4.4.1 | D38: na pokrycie deficytu budżetu | E38: =Zał.1_WPF_bazowy!E38 -> 0 | F38: =Zał.1_WPF_bazowy!F38 -> 0 | G38: =Zał.1_WPF_bazowy!G38 -> 0 | H38: =Zał.1_WPF_bazowy!H38 -> 0 | I38: =+Zał.1_WPF_bazowy!I38 -> 0 | J38: =+Zał.1_WPF_bazowy!J38 -> 0 | K38: =+Zał.1_WPF_bazowy!K38 -> 0 | L38: =+Zał.1_WPF_bazowy!L38 -> 0 | M38: =+Zał.1_WPF_bazowy!#REF! ->  | N38: =+Zał.1_WPF_bazowy!#REF! ->  | O38: =+Zał.1_WPF_bazowy!#REF! ->  | P38: =+Zał.1_WPF_bazowy!#REF! ->  | Q38: =+Zał.1_WPF_bazowy!#REF! ->  | R38: =+Zał.1_WPF_bazowy!#REF! ->  | S38: =+Zał.1_WPF_bazowy!#REF! ->  | T38: =+Zał.1_WPF_bazowy!#REF! ->  | U38: =+Zał.1_WPF_bazowy!#REF! ->  | V38: =+Zał.1_WPF_bazowy!#REF! ->  | W38: =+Zał.1_WPF_bazowy!#REF! ->  | X38: =+Zał.1_WPF_bazowy!#REF! ->  | Y38: =+Zał.1_WPF_bazowy!#REF! ->  | Z38: =+Zał.1_WPF_bazowy!#REF! ->  | AA38: =+Zał.1_WPF_bazowy!#REF! ->  | AB38: =+Zał.1_WPF_bazowy!#REF! ->  | AC38: =+Zał.1_WPF_bazowy!#REF! ->  | AD38: =+Zał.1_WPF_bazowy!#REF! ->  | AE38: =+Zał.1_WPF_bazowy!#REF! ->  | AF38: =+Zał.1_WPF_bazowy!#REF! ->  | AG38: =+Zał.1_WPF_bazowy!#REF! ->  | AH38: =+Zał.1_WPF_bazowy!#REF! ->  | AI38: =+Zał.1_WPF_bazowy!#REF! ->  | AJ38: =+Zał.1_WPF_bazowy!#REF! ->  | AK38: =+Zał.1_WPF_bazowy!#REF! ->  | AL38: =+Zał.1_WPF_bazowy!#REF! -> 
A39: x | B39: 5 | C39: [5.1]+[5.2] | D39: Rozchody budżetu | E39: =Zał.1_WPF_bazowy!E39 -> 601088.34 | F39: =Zał.1_WPF_bazowy!F39 -> 1303202.75 | G39: =Zał.1_WPF_bazowy!G39 -> 737521.46 | H39: =+H40+H43 -> 737521.46 | I39: =+I40+I43 -> 773956.19 | J39: =+J40+J43 -> 0 | K39: 0 | L39: 0
A40: x | B40: 5.1 | D40: Spłaty rat kapitałowych kredytów i pożyczek oraz wykup papierów wartościowych, w tym: | E40: =Zał.1_WPF_bazowy!E40 -> 601088.34 | F40: =Zał.1_WPF_bazowy!F40 -> 1278520.75 | G40: =Zał.1_WPF_bazowy!G40 -> 737521.46 | H40: =Zał.1_WPF_bazowy!H40 -> 737521.46 | I40: =+Zał.1_WPF_bazowy!I40 -> 773956.19 | J40: =+Zał.1_WPF_bazowy!J40 -> 0 | K40: =+Zał.1_WPF_bazowy!K40 -> 0 | L40: =+Zał.1_WPF_bazowy!L40 -> 0 | M40: =+Zał.1_WPF_bazowy!#REF! ->  | N40: =+Zał.1_WPF_bazowy!#REF! ->  | O40: =+Zał.1_WPF_bazowy!#REF! ->  | P40: =+Zał.1_WPF_bazowy!#REF! ->  | Q40: =+Zał.1_WPF_bazowy!#REF! ->  | R40: =+Zał.1_WPF_bazowy!#REF! ->  | S40: =+Zał.1_WPF_bazowy!#REF! ->  | T40: =+Zał.1_WPF_bazowy!#REF! ->  | U40: =+Zał.1_WPF_bazowy!#REF! ->  | V40: =+Zał.1_WPF_bazowy!#REF! ->  | W40: =+Zał.1_WPF_bazowy!#REF! ->  | X40: =+Zał.1_WPF_bazowy!#REF! ->  | Y40: =+Zał.1_WPF_bazowy!#REF! ->  | Z40: =+Zał.1_WPF_bazowy!#REF! ->  | AA40: =+Zał.1_WPF_bazowy!#REF! ->  | AB40: =+Zał.1_WPF_bazowy!#REF! ->  | AC40: =+Zał.1_WPF_bazowy!#REF! ->  | AD40: =+Zał.1_WPF_bazowy!#REF! ->  | AE40: =+Zał.1_WPF_bazowy!#REF! ->  | AF40: =+Zał.1_WPF_bazowy!#REF! ->  | AG40: =+Zał.1_WPF_bazowy!#REF! ->  | AH40: =+Zał.1_WPF_bazowy!#REF! ->  | AI40: =+Zał.1_WPF_bazowy!#REF! ->  | AJ40: =+Zał.1_WPF_bazowy!#REF! ->  | AK40: =+Zał.1_WPF_bazowy!#REF! ->  | AL40: =+Zał.1_WPF_bazowy!#REF! -> 
A41: x | B41: 5.1.1 | D41: łączna kwota przypadających na dany rok kwot wyłączeń określonych w: art. 243 ust. 3 pkt 1 ustawy (lub art. 169 ust. 3 pkt 1 ufp z 2005 r.), art. 121a ustawy z dnia 27 sierpnia 2009 r. – Przepisy wprowadzające ustawę o finansach publicznych (Dz. U. Nr 157, poz. 1241, z późn. zm.) oraz art. 36 ustawy z dnia 7 grudnia 2012 r. o zmianie niektórych ustaw związanych z realizacją ustawy budżetowej (Dz.U. poz. 1456), w tym: | E41: =Zał.1_WPF_bazowy!E41 -> 552822 | F41: =Zał.1_WPF_bazowy!F41 -> 595645.15 | G41: =Zał.1_WPF_bazowy!G41 -> 0 | H41: =Zał.1_WPF_bazowy!H41 -> 0 | I41: =+Zał.1_WPF_bazowy!I41 -> 0 | J41: =+Zał.1_WPF_bazowy!J41 -> 0 | K41: =+Zał.1_WPF_bazowy!K41 -> 0 | L41: =+Zał.1_WPF_bazowy!L41 -> 0 | M41: =+Zał.1_WPF_bazowy!#REF! ->  | N41: =+Zał.1_WPF_bazowy!#REF! ->  | O41: =+Zał.1_WPF_bazowy!#REF! ->  | P41: =+Zał.1_WPF_bazowy!#REF! ->  | Q41: =+Zał.1_WPF_bazowy!#REF! ->  | R41: =+Zał.1_WPF_bazowy!#REF! ->  | S41: =+Zał.1_WPF_bazowy!#REF! ->  | T41: =+Zał.1_WPF_bazowy!#REF! ->  | U41: =+Zał.1_WPF_bazowy!#REF! ->  | V41: =+Zał.1_WPF_bazowy!#REF! ->  | W41: =+Zał.1_WPF_bazowy!#REF! ->  | X41: =+Zał.1_WPF_bazowy!#REF! ->  | Y41: =+Zał.1_WPF_bazowy!#REF! ->  | Z41: =+Zał.1_WPF_bazowy!#REF! ->  | AA41: =+Zał.1_WPF_bazowy!#REF! ->  | AB41: =+Zał.1_WPF_bazowy!#REF! ->  | AC41: =+Zał.1_WPF_bazowy!#REF! ->  | AD41: =+Zał.1_WPF_bazowy!#REF! ->  | AE41: =+Zał.1_WPF_bazowy!#REF! ->  | AF41: =+Zał.1_WPF_bazowy!#REF! ->  | AG41: =+Zał.1_WPF_bazowy!#REF! ->  | AH41: =+Zał.1_WPF_bazowy!#REF! ->  | AI41: =+Zał.1_WPF_bazowy!#REF! ->  | AJ41: =+Zał.1_WPF_bazowy!#REF! ->  | AK41: =+Zał.1_WPF_bazowy!#REF! ->  | AL41: =+Zał.1_WPF_bazowy!#REF! -> 
A42: x | B42: 5.1.1.1 | D42: kwota przypadających na dany rok kwot wyłączeń określonych w art. 243 ust. 3 pkt 1 ustawy lub art. 169 ust. 3 pkt 1 ufp z 2005 r. | E42: =Zał.1_WPF_bazowy!E42 -> 552822 | F42: =Zał.1_WPF_bazowy!F42 -> 595645.15 | G42: =Zał.1_WPF_bazowy!G42 -> 0 | H42: =Zał.1_WPF_bazowy!H42 -> 0 | I42: =+Zał.1_WPF_bazowy!I42 -> 0 | J42: =+Zał.1_WPF_bazowy!J42 -> 0 | K42: =+Zał.1_WPF_bazowy!K42 -> 0 | L42: =+Zał.1_WPF_bazowy!L42 -> 0 | M42: =+Zał.1_WPF_bazowy!#REF! ->  | N42: =+Zał.1_WPF_bazowy!#REF! ->  | O42: =+Zał.1_WPF_bazowy!#REF! ->  | P42: =+Zał.1_WPF_bazowy!#REF! ->  | Q42: =+Zał.1_WPF_bazowy!#REF! ->  | R42: =+Zał.1_WPF_bazowy!#REF! ->  | S42: =+Zał.1_WPF_bazowy!#REF! ->  | T42: =+Zał.1_WPF_bazowy!#REF! ->  | U42: =+Zał.1_WPF_bazowy!#REF! ->  | V42: =+Zał.1_WPF_bazowy!#REF! ->  | W42: =+Zał.1_WPF_bazowy!#REF! ->  | X42: =+Zał.1_WPF_bazowy!#REF! ->  | Y42: =+Zał.1_WPF_bazowy!#REF! ->  | Z42: =+Zał.1_WPF_bazowy!#REF! ->  | AA42: =+Zał.1_WPF_bazowy!#REF! ->  | AB42: =+Zał.1_WPF_bazowy!#REF! ->  | AC42: =+Zał.1_WPF_bazowy!#REF! ->  | AD42: =+Zał.1_WPF_bazowy!#REF! ->  | AE42: =+Zał.1_WPF_bazowy!#REF! ->  | AF42: =+Zał.1_WPF_bazowy!#REF! ->  | AG42: =+Zał.1_WPF_bazowy!#REF! ->  | AH42: =+Zał.1_WPF_bazowy!#REF! ->  | AI42: =+Zał.1_WPF_bazowy!#REF! ->  | AJ42: =+Zał.1_WPF_bazowy!#REF! ->  | AK42: =+Zał.1_WPF_bazowy!#REF! ->  | AL42: =+Zał.1_WPF_bazowy!#REF! -> 
B43: 5.2 | D43: Inne rozchody niezwiązane ze spłatą długu | E43: =Zał.1_WPF_bazowy!E43 -> 0 | F43: =Zał.1_WPF_bazowy!F43 -> 24682 | G43: =Zał.1_WPF_bazowy!G43 -> 0 | H43: =Zał.1_WPF_bazowy!H43 -> 0 | I43: =+Zał.1_WPF_bazowy!I43 -> 0 | J43: =+Zał.1_WPF_bazowy!J43 -> 0 | K43: =+Zał.1_WPF_bazowy!K43 -> 0 | L43: =+Zał.1_WPF_bazowy!L43 -> 0 | M43: =+Zał.1_WPF_bazowy!#REF! ->  | N43: =+Zał.1_WPF_bazowy!#REF! ->  | O43: =+Zał.1_WPF_bazowy!#REF! ->  | P43: =+Zał.1_WPF_bazowy!#REF! ->  | Q43: =+Zał.1_WPF_bazowy!#REF! ->  | R43: =+Zał.1_WPF_bazowy!#REF! ->  | S43: =+Zał.1_WPF_bazowy!#REF! ->  | T43: =+Zał.1_WPF_bazowy!#REF! ->  | U43: =+Zał.1_WPF_bazowy!#REF! ->  | V43: =+Zał.1_WPF_bazowy!#REF! ->  | W43: =+Zał.1_WPF_bazowy!#REF! ->  | X43: =+Zał.1_WPF_bazowy!#REF! ->  | Y43: =+Zał.1_WPF_bazowy!#REF! ->  | Z43: =+Zał.1_WPF_bazowy!#REF! ->  | AA43: =+Zał.1_WPF_bazowy!#REF! ->  | AB43: =+Zał.1_WPF_bazowy!#REF! ->  | AC43: =+Zał.1_WPF_bazowy!#REF! ->  | AD43: =+Zał.1_WPF_bazowy!#REF! ->  | AE43: =+Zał.1_WPF_bazowy!#REF! ->  | AF43: =+Zał.1_WPF_bazowy!#REF! ->  | AG43: =+Zał.1_WPF_bazowy!#REF! ->  | AH43: =+Zał.1_WPF_bazowy!#REF! ->  | AI43: =+Zał.1_WPF_bazowy!#REF! ->  | AJ43: =+Zał.1_WPF_bazowy!#REF! ->  | AK43: =+Zał.1_WPF_bazowy!#REF! ->  | AL43: =+Zał.1_WPF_bazowy!#REF! -> 
A44: x | B44: 6 | D44: Kwota długu | E44: =Zał.1_WPF_bazowy!E44 -> 2552998.4 | F44: =Zał.1_WPF_bazowy!F44 -> 1422477.65 | G44: =Zał.1_WPF_bazowy!G44 -> 773956.19 | H44: =Zał.1_WPF_bazowy!H44 -> 773956.19 | I44: =+IF(I10<>0,H44+I35-I40+(I99-H99)+I104,0) -> 0 | J44: =+IF(J10<>0,I44+J35-J40+(J99-I99)+J104,0) -> 0 | K44: 0 | L44: 0
B45: 6.1 | D45: Łączna kwota wyłączeń z ograniczeń długu określonych w art. 170 ust. 3 ufp z 2005 r. oraz w art. 36 ustawy o zmianie niektórych ustaw związanych z realizacją ustawy budżetowej, w tym: | E45: =Zał.1_WPF_bazowy!E45 -> 0 | F45: =Zał.1_WPF_bazowy!F45 -> 0 | G45: =Zał.1_WPF_bazowy!G45 -> 0 | H45: =Zał.1_WPF_bazowy!H45 -> 0 | I45: =+Zał.1_WPF_bazowy!I45 -> 0 | J45: =+Zał.1_WPF_bazowy!J45 -> 0 | K45: =+Zał.1_WPF_bazowy!K45 -> 0 | L45: =+Zał.1_WPF_bazowy!L45 -> 0 | M45: =+Zał.1_WPF_bazowy!#REF! ->  | N45: =+Zał.1_WPF_bazowy!#REF! ->  | O45: =+Zał.1_WPF_bazowy!#REF! ->  | P45: =+Zał.1_WPF_bazowy!#REF! ->  | Q45: =+Zał.1_WPF_bazowy!#REF! ->  | R45: =+Zał.1_WPF_bazowy!#REF! ->  | S45: =+Zał.1_WPF_bazowy!#REF! ->  | T45: =+Zał.1_WPF_bazowy!#REF! ->  | U45: =+Zał.1_WPF_bazowy!#REF! ->  | V45: =+Zał.1_WPF_bazowy!#REF! ->  | W45: =+Zał.1_WPF_bazowy!#REF! ->  | X45: =+Zał.1_WPF_bazowy!#REF! ->  | Y45: =+Zał.1_WPF_bazowy!#REF! ->  | Z45: =+Zał.1_WPF_bazowy!#REF! ->  | AA45: =+Zał.1_WPF_bazowy!#REF! ->  | AB45: =+Zał.1_WPF_bazowy!#REF! ->  | AC45: =+Zał.1_WPF_bazowy!#REF! ->  | AD45: =+Zał.1_WPF_bazowy!#REF! ->  | AE45: =+Zał.1_WPF_bazowy!#REF! ->  | AF45: =+Zał.1_WPF_bazowy!#REF! ->  | AG45: =+Zał.1_WPF_bazowy!#REF! ->  | AH45: =+Zał.1_WPF_bazowy!#REF! ->  | AI45: =+Zał.1_WPF_bazowy!#REF! ->  | AJ45: =+Zał.1_WPF_bazowy!#REF! ->  | AK45: =+Zał.1_WPF_bazowy!#REF! ->  | AL45: =+Zał.1_WPF_bazowy!#REF! -> 
B46: 6.1.1 | D46: kwota wyłączeń z ograniczeń długu określonych w art. 170 ust. 3 ufp z 2005 r. | E46: =Zał.1_WPF_bazowy!E46 -> 595645.15 | F46: =Zał.1_WPF_bazowy!F46 -> 0 | G46: =Zał.1_WPF_bazowy!G46 -> 0 | H46: =Zał.1_WPF_bazowy!H46 -> 0 | I46: =+Zał.1_WPF_bazowy!I46 -> 0 | J46: =+Zał.1_WPF_bazowy!J46 -> 0 | K46: =+Zał.1_WPF_bazowy!K46 -> 0 | L46: =+Zał.1_WPF_bazowy!L46 -> 0 | M46: =+Zał.1_WPF_bazowy!#REF! ->  | N46: =+Zał.1_WPF_bazowy!#REF! ->  | O46: =+Zał.1_WPF_bazowy!#REF! ->  | P46: =+Zał.1_WPF_bazowy!#REF! ->  | Q46: =+Zał.1_WPF_bazowy!#REF! ->  | R46: =+Zał.1_WPF_bazowy!#REF! ->  | S46: =+Zał.1_WPF_bazowy!#REF! ->  | T46: =+Zał.1_WPF_bazowy!#REF! ->  | U46: =+Zał.1_WPF_bazowy!#REF! ->  | V46: =+Zał.1_WPF_bazowy!#REF! ->  | W46: =+Zał.1_WPF_bazowy!#REF! ->  | X46: =+Zał.1_WPF_bazowy!#REF! ->  | Y46: =+Zał.1_WPF_bazowy!#REF! ->  | Z46: =+Zał.1_WPF_bazowy!#REF! ->  | AA46: =+Zał.1_WPF_bazowy!#REF! ->  | AB46: =+Zał.1_WPF_bazowy!#REF! ->  | AC46: =+Zał.1_WPF_bazowy!#REF! ->  | AD46: =+Zał.1_WPF_bazowy!#REF! ->  | AE46: =+Zał.1_WPF_bazowy!#REF! ->  | AF46: =+Zał.1_WPF_bazowy!#REF! ->  | AG46: =+Zał.1_WPF_bazowy!#REF! ->  | AH46: =+Zał.1_WPF_bazowy!#REF! ->  | AI46: =+Zał.1_WPF_bazowy!#REF! ->  | AJ46: =+Zał.1_WPF_bazowy!#REF! ->  | AK46: =+Zał.1_WPF_bazowy!#REF! ->  | AL46: =+Zał.1_WPF_bazowy!#REF! -> 
B47: 6.2 | C47: [6]/[1] | D47: Wskaźnik zadłużenia do dochodów ogółem określony w art. 170 ufp z 2005 r., bez uwzględniania wyłączeń określonych w pkt 6.1. | E47: =Zał.1_WPF_bazowy!E47 -> 0.2175 | F47: =Zał.1_WPF_bazowy!F47 -> 0.1012 | G47: =Zał.1_WPF_bazowy!G47 -> 0.0575 | H47: =+IF(H10<>0,H44/H10,"-") -> 0.06104384174 | I47: =+IF(I10<>0,I44/I10,"-") -> 0 | J47: =+IF(J10<>0,J44/J10,"-") -> 0 | K47: 0 | L47: 0
B48: 6.3 | C48: ([6]-[6.1])/[1] | D48: Wskaźnik zadłużenia do dochodów ogółem, o którym mowa w art. 170 ufp z 2005 r., po uwzględnieniu wyłączeń określonych w pkt 6.1. | E48: =Zał.1_WPF_bazowy!E48 -> 0.2175 | F48: =Zał.1_WPF_bazowy!F48 -> 0.1012 | G48: =Zał.1_WPF_bazowy!G48 -> 0.0575 | H48: =+IF(H10<>0,(H44-H45)/H10,"-") -> 0.06104384174 | I48: =+IF(I10<>0,(I44-I45)/I10,"-") -> 0 | J48: =+IF(J10<>0,(J44-J45)/J10,"-") -> 0 | K48: 0 | L48: 0
B49: 7 | D49: Kwota zobowiązań wynikających z przejęcia przez jednostkę samorządu terytorialnego zobowiązań po likwidowanych i przekształcanych jednostkach zaliczanych do sektora finansów publicznych | E49: =Zał.1_WPF_bazowy!E49 -> 0 | F49: =Zał.1_WPF_bazowy!F49 -> 0 | G49: =Zał.1_WPF_bazowy!G49 -> 0 | H49: =Zał.1_WPF_bazowy!H49 -> 0 | I49: =+Zał.1_WPF_bazowy!I49 -> 0 | J49: =+Zał.1_WPF_bazowy!J49 -> 0 | K49: =+Zał.1_WPF_bazowy!K49 -> 0 | L49: =+Zał.1_WPF_bazowy!L49 -> 0 | M49: =+Zał.1_WPF_bazowy!#REF! ->  | N49: =+Zał.1_WPF_bazowy!#REF! ->  | O49: =+Zał.1_WPF_bazowy!#REF! ->  | P49: =+Zał.1_WPF_bazowy!#REF! ->  | Q49: =+Zał.1_WPF_bazowy!#REF! ->  | R49: =+Zał.1_WPF_bazowy!#REF! ->  | S49: =+Zał.1_WPF_bazowy!#REF! ->  | T49: =+Zał.1_WPF_bazowy!#REF! ->  | U49: =+Zał.1_WPF_bazowy!#REF! ->  | V49: =+Zał.1_WPF_bazowy!#REF! ->  | W49: =+Zał.1_WPF_bazowy!#REF! ->  | X49: =+Zał.1_WPF_bazowy!#REF! ->  | Y49: =+Zał.1_WPF_bazowy!#REF! ->  | Z49: =+Zał.1_WPF_bazowy!#REF! ->  | AA49: =+Zał.1_WPF_bazowy!#REF! ->  | AB49: =+Zał.1_WPF_bazowy!#REF! ->  | AC49: =+Zał.1_WPF_bazowy!#REF! ->  | AD49: =+Zał.1_WPF_bazowy!#REF! ->  | AE49: =+Zał.1_WPF_bazowy!#REF! ->  | AF49: =+Zał.1_WPF_bazowy!#REF! ->  | AG49: =+Zał.1_WPF_bazowy!#REF! ->  | AH49: =+Zał.1_WPF_bazowy!#REF! ->  | AI49: =+Zał.1_WPF_bazowy!#REF! ->  | AJ49: =+Zał.1_WPF_bazowy!#REF! ->  | AK49: =+Zał.1_WPF_bazowy!#REF! ->  | AL49: =+Zał.1_WPF_bazowy!#REF! -> 
B50: 8 | D50: Relacja zrównoważenia wydatków bieżących, o której mowa w art. 242 ustawy | E50: x | F50: x | G50: x | H50: x | I50: x | J50: x | K50: x | L50: x | M50: x | N50: x | O50: x | P50: x | Q50: x | R50: x | S50: x | T50: x | U50: x | V50: x | W50: x | X50: x | Y50: x | Z50: x | AA50: x | AB50: x | AC50: x | AD50: x | AE50: x | AF50: x | AG50: x | AH50: x | AI50: x | AJ50: x | AK50: x | AL50: x
B51: 8.1 | C51: [1.1]-[2.1] | D51: Różnica między dochodami bieżącymi a wydatkami bieżącymi | E51: =Zał.1_WPF_bazowy!E51 -> 975297.61 | F51: =Zał.1_WPF_bazowy!F51 -> 3604694.11 | G51: =Zał.1_WPF_bazowy!G51 -> 2504739.72 | H51: =+H11-H22 -> 2219320 | I51: =+I11-I22 -> 2304552.19 | J51: =+J11-J22 -> 1685000 | K51: 2682000 | L51: 2570000
B52: 8.2 | C52: [1.1]+[4.1]+[4.2]-([2.1]-[2.1.2]) | D52: Różnica między dochodami bieżącymi, powiększonymi o nadwyżkę budżetową określoną w pkt 4.1. i wolne środki określone w pkt 4.2. a wydatkami bieżącymi, pomniejszonym o wydatki określone w pkt 2.1.2. | E52: =+IF(AND(E9>=2013,E9<=2015),+E11+E31+E33-(E22-E25),+E11+E31+E33-E22) -> 1161314 | F52: =+IF(AND(F9>=2013,F9<=2015),+F11+F31+F33-(F22-F25),+F11+F31+F33-F22) -> 4507213.48 | G52: =+IF(AND(G9>=2013,G9<=2015),+G11+G31+G33-(G22-G25),+G11+G31+G33-G22) -> 4241885.46 | H52: =+IF(AND(H9>=2013,H9<=2015),+H11+H31+H33-(H22-H25),+H11+H31+H33-H22) -> 4565685.46 | I52: =+IF(AND(I9>=2013,I9<=2015),+I11+I31+I33-(I22-I25),+I11+I31+I33-I22) -> 2304552.19 | J52: =+IF(AND(J9>=2013,J9<=2015),+J11+J31+J33-(J22-J25),+J11+J31+J33-J22) -> 1685000 | K52: 2682000 | L52: 2570000
A53: x | B53: 9 | D53: Wskaźnik spłaty zobowiązań | E53: x | F53: x | G53: x | H53: x | I53: x | J53: x | K53: x | L53: x | M53: x | N53: x | O53: x | P53: x | Q53: x | R53: x | S53: x | T53: x | U53: x | V53: x | W53: x | X53: x | Y53: x | Z53: x | AA53: x | AB53: x | AC53: x | AD53: x | AE53: x | AF53: x | AG53: x | AH53: x | AI53: x | AJ53: x | AK53: x | AL53: x
B54: 9.1 | C54: ([2.1.1]+[2.1.3.1]+[5.1])/[1] | D54: Wskaźnik planowanej łącznej kwoty spłaty zobowiązań, o której mowa w art. 169 ust. 1 ufp z 2005 r. do dochodów ogółem, bez uwzględnienia wyłączeń określonych w pkt 5.1.1. | E54: =Zał.1_WPF_bazowy!E54 -> 0.0545 | F54: =Zał.1_WPF_bazowy!F54 -> 0.0968 | G54: =Zał.1_WPF_bazowy!G54 -> 0.0618 | H54: =+IF(H10<>0,(H23+H27+H40)/H10,"-") -> 0.06093068103 | I54: =+IF(I10<>0,(I23+I27+I40)/I10,"-") -> 0.05837207117 | J54: =+IF(J10<>0,(J23+J27+J40)/J10,"-") -> 0 | K54: 0 | L54: 0
B55: 9.2 | C55: ([2.1.1]+[2.1.3.1]+[5.1]-[5.1.1])/[1] | D55: Wskaźnik planowanej łącznej kwoty spłaty zobowiązań, o której mowa w art. 169 ust. 1 ufp z 2005 r. do dochodów ogółem, po uwzględnieniu wyłączeń przypadających na dany rok określonych w pkt 5.1.1. | E55: =Zał.1_WPF_bazowy!E55 -> 0.0074 | F55: =Zał.1_WPF_bazowy!F55 -> 0.0545 | G55: =Zał.1_WPF_bazowy!G55 -> 0.0618 | H55: =+IF(H10<>0,(H23+H27+H40-H41-H24)/H10,"-") -> 0.06093068103 | I55: =+IF(I10<>0,(I23+I27+I40-I41-I24)/I10,"-") -> 0.05837207117 | J55: =+IF(J10<>0,(J23+J27+J40-J41-J24)/J10,"-") -> 0 | K55: =+IF(K10<>0,(K23+K27+K40-K41-K24)/K10,"-") -> 0 | L55: 0
A56: x | B56: 9.3 | C56: ([2.1.1]+[2.1.3.1]+[5.1])/[1] | D56: Wskaźnik planowanej łącznej kwoty spłaty zobowiązań, o której mowa w art. 243 ust. 1 ustawy do dochodów ogółem, bez uwzględnienia zobowiązań związku współtworzonego przez jednostkę samorządu terytorialnego i bez uwzględniania wyłączeń przypadających na dany rok określonych w pkt 5.1.1. | E56: =Zał.1_WPF_bazowy!E56 -> 0.0545 | F56: =Zał.1_WPF_bazowy!F56 -> 0.0968 | G56: =Zał.1_WPF_bazowy!G56 -> 0.0618 | H56: =+IF(H10<>0,(H23+H27+H40)/H10,"-") -> 0.06093068103 | I56: =+IF(I10<>0,(I23+I27+I40)/I10,"-") -> 0.05837207117 | J56: =+IF(J10<>0,(J23+J27+J40)/J10,"-") -> 0 | K56: 0 | L56: 0
A57: x | B57: 9.4 | C57: ([2.1.1]+[2.1.3.1]+[5.1]-[5.1.1])/[1] | D57: Wskaźnik planowanej łącznej kwoty spłaty zobowiązań, o której mowa w art. 243 ust. 1 ustawy do dochodów ogółem, bez uwzględnienia zobowiązań związku współtworzonego przez jednostkę samorządu terytorialnego, po uwzględnieniu wyłączeń przypadających na dany rok określonych w pkt 5.1.1. | E57: =Zał.1_WPF_bazowy!E57 -> 0.0074 | F57: =Zał.1_WPF_bazowy!F57 -> 0.0545 | G57: =Zał.1_WPF_bazowy!G57 -> 0.0618 | H57: =+IF(H10<>0,(H23+H27+H40-H41-H24)/H10,"-") -> 0.06093068103 | I57: =+IF(I10<>0,(I23+I27+I40-I41-I24)/I10,"-") -> 0.05837207117 | J57: 0 | K57: 0 | L57: 0
A58: x | B58: 9.5 | D58: Kwota zobowiązań związku współtworzonego przez jednostkę samorządu terytorialnego przypadających do spłaty w danym roku budżetowym, podlegająca doliczeniu zgodnie z art. 244 ustawy | E58: =Zał.1_WPF_bazowy!E58 -> 0 | F58: =Zał.1_WPF_bazowy!F58 -> 0 | G58: =Zał.1_WPF_bazowy!G58 -> 0 | H58: =Zał.1_WPF_bazowy!H58 -> 0 | I58: =+Zał.1_WPF_bazowy!I58 -> 0 | J58: =+Zał.1_WPF_bazowy!J58 -> 0 | K58: =+Zał.1_WPF_bazowy!K58 -> 0 | L58: =+Zał.1_WPF_bazowy!L58 -> 0 | M58: =+Zał.1_WPF_bazowy!#REF! ->  | N58: =+Zał.1_WPF_bazowy!#REF! ->  | O58: =+Zał.1_WPF_bazowy!#REF! ->  | P58: =+Zał.1_WPF_bazowy!#REF! ->  | Q58: =+Zał.1_WPF_bazowy!#REF! ->  | R58: =+Zał.1_WPF_bazowy!#REF! ->  | S58: =+Zał.1_WPF_bazowy!#REF! ->  | T58: =+Zał.1_WPF_bazowy!#REF! ->  | U58: =+Zał.1_WPF_bazowy!#REF! ->  | V58: =+Zał.1_WPF_bazowy!#REF! ->  | W58: =+Zał.1_WPF_bazowy!#REF! ->  | X58: =+Zał.1_WPF_bazowy!#REF! ->  | Y58: =+Zał.1_WPF_bazowy!#REF! ->  | Z58: =+Zał.1_WPF_bazowy!#REF! ->  | AA58: =+Zał.1_WPF_bazowy!#REF! ->  | AB58: =+Zał.1_WPF_bazowy!#REF! ->  | AC58: =+Zał.1_WPF_bazowy!#REF! ->  | AD58: =+Zał.1_WPF_bazowy!#REF! ->  | AE58: =+Zał.1_WPF_bazowy!#REF! ->  | AF58: =+Zał.1_WPF_bazowy!#REF! ->  | AG58: =+Zał.1_WPF_bazowy!#REF! ->  | AH58: =+Zał.1_WPF_bazowy!#REF! ->  | AI58: =+Zał.1_WPF_bazowy!#REF! ->  | AJ58: =+Zał.1_WPF_bazowy!#REF! ->  | AK58: =+Zał.1_WPF_bazowy!#REF! ->  | AL58: =+Zał.1_WPF_bazowy!#REF! -> 
A59: x | B59: 9.6 | C59: ([2.1.1]+[2.1.3.1]+[5.1]+[9.5]-[5.1.1])/[1] | D59: Wskaźnik planowanej łącznej kwoty spłaty zobowiązań, o której mowa w art. 243 ust. 1 ustawy do dochodów ogółem, po uwzględnieniu zobowiązań związku współtworzonego przez jednostkę samorządu terytorialnego oraz po uwzględnieniu wyłączeń przypadających na dany rok określonych w pkt 5.1.1. | E59: =Zał.1_WPF_bazowy!E59 -> 0.0074 | F59: =Zał.1_WPF_bazowy!F59 -> 0.0545 | G59: =Zał.1_WPF_bazowy!G59 -> 0.0618 | H59: =+IF(H10<>0,(H23+H27+H40+H58-H41-H24)/H10,"-") -> 0.06093068103 | I59: =+IF(I10<>0,(I23+I27+I40+I58-I41-I24)/I10,"-") -> 0.05837207117 | J59: 0 | K59: 0 | L59: 0
A60: x | B60: 9.6.1 | C60: [1.1]+[1.2.1]-[2.1]/[1] | D60: Wskaźnik jednoroczny (prawa strona wzoru z art. 243) | E60: =+IF(AND(E9>=2013,E9<=2018),IF(E10<>0,(E11+E19-E22+E25)/E10,0),IF(E10<>0,(E11+E19-E22)/E10,0)) -> 0.09507666456 | F60: =+IF(AND(F9>=2013,F9<=2018),IF(F10<>0,(F11+F19-F22+F25)/F10,0),IF(F10<>0,(F11+F19-F22)/F10,0)) -> 0.261252003 | G60: 0.2104265996 | H60: 0.1755322749 | I60: =+IF(AND(I9>=2013,I9<=2018),IF(I10<>0,(I11+I19-I22+I25)/I10,0),IF(I10<>0,(I11+I19-I22)/I10,0)) -> 0.1841359769 | J60: 0.1556581986 | K60: 0.2225726141 | L60: 0.2111750205
A61: x | B61: 9.7 | C61: średnia z trzech poprzednich lat [9.6.1] | D61: Dopuszczalny wskaźnik spłaty zobowiązań określony w art. 243 ustawy, po uwzględnieniu wyłączeń określonych w art. 36 ustawy z dnia 7 grudnia 2012 r. o zmianie niektórych ustaw związanych z realizacją ustawy budżetowej, obliczony w oparciu o plan 3 kwartałów roku poprzedzającego rok budżetowy | E61: =Zał.1_WPF_bazowy!E61 -> x | F61: =Zał.1_WPF_bazowy!F61 -> x | G61: =Zał.1_WPF_bazowy!G61 -> x | H61: =Zał.1_WPF_bazowy!H61 -> x | I61: =+IF(I10<>0,(G60+F60+E60)/3,"-") -> 0.1889184224 | J61: =+IF(J10<>0,(I60+G60+F60)/3,"-") -> 0.2186048598 | K61: =+IF(K10<>0,(J60+I60+G60)/3,"-") -> 0.1834069251 | L61: =+IF(L10<>0,(K60+J60+I60)/3,"-") -> 0.1874555966 | M61: =+IF(M10<>0,(L60+K60+J60)/3,"-") -> 
A62: x | B62: 9.7.1 | C62: średnia z trzech poprzednich lat [9.6.1] | D62: Dopuszczalny wskaźnik spłaty zobowiązań określony w art. 243 ustawy, po uwzględnieniu wyłączeń określonych w art. 36 ustawy z dnia 7 grudnia 2012 r. o zmianie niektórych ustaw związanych z realizacją ustawy budżetowej, obliczony w oparciu o wykonanie roku poprzedzającego rok budżetowy | E62: =Zał.1_WPF_bazowy!E62 -> x | F62: =Zał.1_WPF_bazowy!F62 -> x | G62: =Zał.1_WPF_bazowy!G62 -> x | H62: =Zał.1_WPF_bazowy!H62 -> x | I62: =+IF(I10<>0,(H60+F60+E60)/3,"-") -> 0.1772869808 | J62: =+IF(J10<>0,(I60+H60+F60)/3,"-") -> 0.2069734183 | K62: =+IF(K10<>0,(J60+I60+H60)/3,"-") -> 0.1717754835 | L62: =+IF(L10<>0,(K60+J60+I60)/3,"-") -> 0.1874555966 | M62: =+IF(M10<>0,(L60+K60+J60)/3,"-") -> 
A63: x | B63: 9.8 | C63: [9.6]-[9.7] | D63: Informacja o spełnieniu wskaźnika spłaty zobowiązań określonego w art. 243 ustawy, po uwzględnieniu zobowiązań związku współtworzonego przez jednostkę samorządu terytorialnego oraz po uwzględnieniu wyłączeń określonych w pkt 5.1.1., obliczonego w oparciu o plan 3 kwartałów roku poprzedzającego rok budżetowy | E63: =Zał.1_WPF_bazowy!E63 -> x | F63: =Zał.1_WPF_bazowy!F63 -> x | G63: =Zał.1_WPF_bazowy!G63 -> x | H63: =Zał.1_WPF_bazowy!H63 -> x | I63: =+IF(I10<>0,IF(I61>=I59,"Spełniona","Nie spełniona"),"-") -> Spełniona | J63: Spełniona | K63: Spełniona | L63: Spełniona
A64: x | B64: 9.8.1 | C64: [9.6]-[9.7.1] | D64: Informacja o spełnieniu wskaźnika spłaty zobowiązań określonego w art. 243 ustawy, po uwzględnieniu zobowiązań związku współtworzonego przez jednostkę samorządu terytorialnego oraz po uwzględnieniu wyłączeń określonych w pkt 5.1.1., obliczonego w oparciu o wykonanie roku poprzedzającego rok budżetowy | E64: =Zał.1_WPF_bazowy!E64 -> x | F64: =Zał.1_WPF_bazowy!F64 -> x | G64: =Zał.1_WPF_bazowy!G64 -> x | H64: =Zał.1_WPF_bazowy!H64 -> x | I64: =+IF(I10<>0,IF(I62>=I59,"Spełniona","Nie spełniona"),"-") -> Spełniona | J64: Spełniona | K64: Spełniona | L64: Spełniona
B65: 10 | D65: Przeznaczenie prognozowanej nadwyżki budżetowej, w tym na: | E65: =Zał.1_WPF_bazowy!E65 -> 0 | F65: =Zał.1_WPF_bazowy!F65 -> 0 | G65: =Zał.1_WPF_bazowy!G65 -> 0 | H65: =Zał.1_WPF_bazowy!H65 -> 0 | I65: =+Zał.1_WPF_bazowy!I65 -> 773956.19 | J65: =+Zał.1_WPF_bazowy!J65 -> 0 | K65: =+Zał.1_WPF_bazowy!K65 -> 0 | L65: =+Zał.1_WPF_bazowy!L65 -> 0 | M65: =+Zał.1_WPF_bazowy!#REF! ->  | N65: =+Zał.1_WPF_bazowy!#REF! ->  | O65: =+Zał.1_WPF_bazowy!#REF! ->  | P65: =+Zał.1_WPF_bazowy!#REF! ->  | Q65: =+Zał.1_WPF_bazowy!#REF! ->  | R65: =+Zał.1_WPF_bazowy!#REF! ->  | S65: =+Zał.1_WPF_bazowy!#REF! ->  | T65: =+Zał.1_WPF_bazowy!#REF! ->  | U65: =+Zał.1_WPF_bazowy!#REF! ->  | V65: =+Zał.1_WPF_bazowy!#REF! ->  | W65: =+Zał.1_WPF_bazowy!#REF! ->  | X65: =+Zał.1_WPF_bazowy!#REF! ->  | Y65: =+Zał.1_WPF_bazowy!#REF! ->  | Z65: =+Zał.1_WPF_bazowy!#REF! ->  | AA65: =+Zał.1_WPF_bazowy!#REF! ->  | AB65: =+Zał.1_WPF_bazowy!#REF! ->  | AC65: =+Zał.1_WPF_bazowy!#REF! ->  | AD65: =+Zał.1_WPF_bazowy!#REF! ->  | AE65: =+Zał.1_WPF_bazowy!#REF! ->  | AF65: =+Zał.1_WPF_bazowy!#REF! ->  | AG65: =+Zał.1_WPF_bazowy!#REF! ->  | AH65: =+Zał.1_WPF_bazowy!#REF! ->  | AI65: =+Zał.1_WPF_bazowy!#REF! ->  | AJ65: =+Zał.1_WPF_bazowy!#REF! ->  | AK65: =+Zał.1_WPF_bazowy!#REF! ->  | AL65: =+Zał.1_WPF_bazowy!#REF! -> 
B66: 10.1 | D66: Spłaty kredytów, pożyczek i wykup papierów wartościowych | E66: =Zał.1_WPF_bazowy!E66 -> 0 | F66: =Zał.1_WPF_bazowy!F66 -> 0 | G66: =Zał.1_WPF_bazowy!G66 -> 0 | H66: =Zał.1_WPF_bazowy!H66 -> 0 | I66: =+Zał.1_WPF_bazowy!I66 -> 773956.19 | J66: =+Zał.1_WPF_bazowy!J66 -> 0 | K66: =+Zał.1_WPF_bazowy!K66 -> 0 | L66: =+Zał.1_WPF_bazowy!L66 -> 0 | M66: =+Zał.1_WPF_bazowy!#REF! ->  | N66: =+Zał.1_WPF_bazowy!#REF! ->  | O66: =+Zał.1_WPF_bazowy!#REF! ->  | P66: =+Zał.1_WPF_bazowy!#REF! ->  | Q66: =+Zał.1_WPF_bazowy!#REF! ->  | R66: =+Zał.1_WPF_bazowy!#REF! ->  | S66: =+Zał.1_WPF_bazowy!#REF! ->  | T66: =+Zał.1_WPF_bazowy!#REF! ->  | U66: =+Zał.1_WPF_bazowy!#REF! ->  | V66: =+Zał.1_WPF_bazowy!#REF! ->  | W66: =+Zał.1_WPF_bazowy!#REF! ->  | X66: =+Zał.1_WPF_bazowy!#REF! ->  | Y66: =+Zał.1_WPF_bazowy!#REF! ->  | Z66: =+Zał.1_WPF_bazowy!#REF! ->  | AA66: =+Zał.1_WPF_bazowy!#REF! ->  | AB66: =+Zał.1_WPF_bazowy!#REF! ->  | AC66: =+Zał.1_WPF_bazowy!#REF! ->  | AD66: =+Zał.1_WPF_bazowy!#REF! ->  | AE66: =+Zał.1_WPF_bazowy!#REF! ->  | AF66: =+Zał.1_WPF_bazowy!#REF! ->  | AG66: =+Zał.1_WPF_bazowy!#REF! ->  | AH66: =+Zał.1_WPF_bazowy!#REF! ->  | AI66: =+Zał.1_WPF_bazowy!#REF! ->  | AJ66: =+Zał.1_WPF_bazowy!#REF! ->  | AK66: =+Zał.1_WPF_bazowy!#REF! ->  | AL66: =+Zał.1_WPF_bazowy!#REF! -> 
B67: 11 | D67: Informacje uzupełniające o wybranych rodzajach wydatków budżetowych | E67: x | F67: x | G67: x | H67: x | I67: x | J67: x | K67: x | L67: x | M67: x | N67: x | O67: x | P67: x | Q67: x | R67: x | S67: x | T67: x | U67: x | V67: x | W67: x | X67: x | Y67: x | Z67: x | AA67: x | AB67: x | AC67: x | AD67: x | AE67: x | AF67: x | AG67: x | AH67: x | AI67: x | AJ67: x | AK67: x | AL67: x
B68: 11.1 | D68: Wydatki bieżące na wynagrodzenia i składki od nich naliczane | E68: =Zał.1_WPF_bazowy!E68 -> 4441226.62 | F68: =Zał.1_WPF_bazowy!F68 -> 4171528.09 | G68: =Zał.1_WPF_bazowy!G68 -> 4406547.84 | H68: =Zał.1_WPF_bazowy!H68 -> 4236547 | I68: =+Zał.1_WPF_bazowy!I68 -> 4167113 | J68: =+Zał.1_WPF_bazowy!J68 -> 4271290 | K68: =+Zał.1_WPF_bazowy!K68 -> 4378000 | L68: =+Zał.1_WPF_bazowy!L68 -> 4487450 | M68: =+Zał.1_WPF_bazowy!#REF! ->  | N68: =+Zał.1_WPF_bazowy!#REF! ->  | O68: =+Zał.1_WPF_bazowy!#REF! ->  | P68: =+Zał.1_WPF_bazowy!#REF! ->  | Q68: =+Zał.1_WPF_bazowy!#REF! ->  | R68: =+Zał.1_WPF_bazowy!#REF! ->  | S68: =+Zał.1_WPF_bazowy!#REF! ->  | T68: =+Zał.1_WPF_bazowy!#REF! ->  | U68: =+Zał.1_WPF_bazowy!#REF! ->  | V68: =+Zał.1_WPF_bazowy!#REF! ->  | W68: =+Zał.1_WPF_bazowy!#REF! ->  | X68: =+Zał.1_WPF_bazowy!#REF! ->  | Y68: =+Zał.1_WPF_bazowy!#REF! ->  | Z68: =+Zał.1_WPF_bazowy!#REF! ->  | AA68: =+Zał.1_WPF_bazowy!#REF! ->  | AB68: =+Zał.1_WPF_bazowy!#REF! ->  | AC68: =+Zał.1_WPF_bazowy!#REF! ->  | AD68: =+Zał.1_WPF_bazowy!#REF! ->  | AE68: =+Zał.1_WPF_bazowy!#REF! ->  | AF68: =+Zał.1_WPF_bazowy!#REF! ->  | AG68: =+Zał.1_WPF_bazowy!#REF! ->  | AH68: =+Zał.1_WPF_bazowy!#REF! ->  | AI68: =+Zał.1_WPF_bazowy!#REF! ->  | AJ68: =+Zał.1_WPF_bazowy!#REF! ->  | AK68: =+Zał.1_WPF_bazowy!#REF! ->  | AL68: =+Zał.1_WPF_bazowy!#REF! -> 
B69: 11.2 | D69: Wydatki związane z funkcjonowaniem organów jednostki samorządu terytorialnego | E69: =Zał.1_WPF_bazowy!E69 -> 1397090.95 | F69: =Zał.1_WPF_bazowy!F69 -> 1438877.18 | G69: =Zał.1_WPF_bazowy!G69 -> 1491519 | H69: =Zał.1_WPF_bazowy!H69 -> 1491519 | I69: =+Zał.1_WPF_bazowy!I69 -> 1487583 | J69: =+Zał.1_WPF_bazowy!J69 -> 1509400 | K69: =+Zał.1_WPF_bazowy!K69 -> 1547135 | L69: =+Zał.1_WPF_bazowy!L69 -> 1585800 | M69: =+Zał.1_WPF_bazowy!#REF! ->  | N69: =+Zał.1_WPF_bazowy!#REF! ->  | O69: =+Zał.1_WPF_bazowy!#REF! ->  | P69: =+Zał.1_WPF_bazowy!#REF! ->  | Q69: =+Zał.1_WPF_bazowy!#REF! ->  | R69: =+Zał.1_WPF_bazowy!#REF! ->  | S69: =+Zał.1_WPF_bazowy!#REF! ->  | T69: =+Zał.1_WPF_bazowy!#REF! ->  | U69: =+Zał.1_WPF_bazowy!#REF! ->  | V69: =+Zał.1_WPF_bazowy!#REF! ->  | W69: =+Zał.1_WPF_bazowy!#REF! ->  | X69: =+Zał.1_WPF_bazowy!#REF! ->  | Y69: =+Zał.1_WPF_bazowy!#REF! ->  | Z69: =+Zał.1_WPF_bazowy!#REF! ->  | AA69: =+Zał.1_WPF_bazowy!#REF! ->  | AB69: =+Zał.1_WPF_bazowy!#REF! ->  | AC69: =+Zał.1_WPF_bazowy!#REF! ->  | AD69: =+Zał.1_WPF_bazowy!#REF! ->  | AE69: =+Zał.1_WPF_bazowy!#REF! ->  | AF69: =+Zał.1_WPF_bazowy!#REF! ->  | AG69: =+Zał.1_WPF_bazowy!#REF! ->  | AH69: =+Zał.1_WPF_bazowy!#REF! ->  | AI69: =+Zał.1_WPF_bazowy!#REF! ->  | AJ69: =+Zał.1_WPF_bazowy!#REF! ->  | AK69: =+Zał.1_WPF_bazowy!#REF! ->  | AL69: =+Zał.1_WPF_bazowy!#REF! -> 
B70: 11.3 | C70: [11.3.1]+[11.3.2] | D70: Wydatki objęte limitem art. 226 ust. 3 ustawy, z tego: | E70: =Zał.1_WPF_bazowy!E70 -> 1480853.69 | F70: =Zał.1_WPF_bazowy!F70 -> 718974.51 | G70: =Zał.1_WPF_bazowy!G70 -> 3546636.65 | H70: =+H71+H72 -> 3546636.65 | I70: =+I71+I72 -> 30300 | J70: =+J71+J72 -> 784700 | K70: 0 | L70: 0
B71: 11.3.1 | D71: bieżące | E71: =Zał.1_WPF_bazowy!E71 -> 123162.52 | F71: =Zał.1_WPF_bazowy!F71 -> 156869.11 | G71: =Zał.1_WPF_bazowy!G71 -> 145119.65 | H71: =Zał.1_WPF_bazowy!H71 -> 145119.65 | I71: =+Zał.1_WPF_bazowy!I71 -> 0 | J71: =+Zał.1_WPF_bazowy!J71 -> 0 | K71: =+Zał.1_WPF_bazowy!K71 -> 0 | L71: =+Zał.1_WPF_bazowy!L71 -> 0 | M71: =+Zał.1_WPF_bazowy!#REF! ->  | N71: =+Zał.1_WPF_bazowy!#REF! ->  | O71: =+Zał.1_WPF_bazowy!#REF! ->  | P71: =+Zał.1_WPF_bazowy!#REF! ->  | Q71: =+Zał.1_WPF_bazowy!#REF! ->  | R71: =+Zał.1_WPF_bazowy!#REF! ->  | S71: =+Zał.1_WPF_bazowy!#REF! ->  | T71: =+Zał.1_WPF_bazowy!#REF! ->  | U71: =+Zał.1_WPF_bazowy!#REF! ->  | V71: =+Zał.1_WPF_bazowy!#REF! ->  | W71: =+Zał.1_WPF_bazowy!#REF! ->  | X71: =+Zał.1_WPF_bazowy!#REF! ->  | Y71: =+Zał.1_WPF_bazowy!#REF! ->  | Z71: =+Zał.1_WPF_bazowy!#REF! ->  | AA71: =+Zał.1_WPF_bazowy!#REF! ->  | AB71: =+Zał.1_WPF_bazowy!#REF! ->  | AC71: =+Zał.1_WPF_bazowy!#REF! ->  | AD71: =+Zał.1_WPF_bazowy!#REF! ->  | AE71: =+Zał.1_WPF_bazowy!#REF! ->  | AF71: =+Zał.1_WPF_bazowy!#REF! ->  | AG71: =+Zał.1_WPF_bazowy!#REF! ->  | AH71: =+Zał.1_WPF_bazowy!#REF! ->  | AI71: =+Zał.1_WPF_bazowy!#REF! ->  | AJ71: =+Zał.1_WPF_bazowy!#REF! ->  | AK71: =+Zał.1_WPF_bazowy!#REF! ->  | AL71: =+Zał.1_WPF_bazowy!#REF! -> 
B72: 11.3.2 | D72: majątkowe | E72: =Zał.1_WPF_bazowy!E72 -> 1357691.17 | F72: =Zał.1_WPF_bazowy!F72 -> 562105.4 | G72: =Zał.1_WPF_bazowy!G72 -> 3401517 | H72: =Zał.1_WPF_bazowy!H72 -> 3401517 | I72: =+Zał.1_WPF_bazowy!I72 -> 30300 | J72: =+Zał.1_WPF_bazowy!J72 -> 784700 | K72: =+Zał.1_WPF_bazowy!K72 -> 0 | L72: =+Zał.1_WPF_bazowy!L72 -> 0 | M72: =+Zał.1_WPF_bazowy!#REF! ->  | N72: =+Zał.1_WPF_bazowy!#REF! ->  | O72: =+Zał.1_WPF_bazowy!#REF! ->  | P72: =+Zał.1_WPF_bazowy!#REF! ->  | Q72: =+Zał.1_WPF_bazowy!#REF! ->  | R72: =+Zał.1_WPF_bazowy!#REF! ->  | S72: =+Zał.1_WPF_bazowy!#REF! ->  | T72: =+Zał.1_WPF_bazowy!#REF! ->  | U72: =+Zał.1_WPF_bazowy!#REF! ->  | V72: =+Zał.1_WPF_bazowy!#REF! ->  | W72: =+Zał.1_WPF_bazowy!#REF! ->  | X72: =+Zał.1_WPF_bazowy!#REF! ->  | Y72: =+Zał.1_WPF_bazowy!#REF! ->  | Z72: =+Zał.1_WPF_bazowy!#REF! ->  | AA72: =+Zał.1_WPF_bazowy!#REF! ->  | AB72: =+Zał.1_WPF_bazowy!#REF! ->  | AC72: =+Zał.1_WPF_bazowy!#REF! ->  | AD72: =+Zał.1_WPF_bazowy!#REF! ->  | AE72: =+Zał.1_WPF_bazowy!#REF! ->  | AF72: =+Zał.1_WPF_bazowy!#REF! ->  | AG72: =+Zał.1_WPF_bazowy!#REF! ->  | AH72: =+Zał.1_WPF_bazowy!#REF! ->  | AI72: =+Zał.1_WPF_bazowy!#REF! ->  | AJ72: =+Zał.1_WPF_bazowy!#REF! ->  | AK72: =+Zał.1_WPF_bazowy!#REF! ->  | AL72: =+Zał.1_WPF_bazowy!#REF! -> 
B73: 11.4 | D73: Wydatki inwestycyjne kontynuowane | E73: =Zał.1_WPF_bazowy!E73 -> 1173514.32 | F73: =Zał.1_WPF_bazowy!F73 -> 835040.96 | G73: =Zał.1_WPF_bazowy!G73 -> 3401517 | H73: =Zał.1_WPF_bazowy!H73 -> 3401517 | I73: =+Zał.1_WPF_bazowy!I73 -> 0 | J73: =+Zał.1_WPF_bazowy!J73 -> 784700 | K73: =+Zał.1_WPF_bazowy!K73 -> 0 | L73: =+Zał.1_WPF_bazowy!L73 -> 0 | M73: =+Zał.1_WPF_bazowy!#REF! ->  | N73: =+Zał.1_WPF_bazowy!#REF! ->  | O73: =+Zał.1_WPF_bazowy!#REF! ->  | P73: =+Zał.1_WPF_bazowy!#REF! ->  | Q73: =+Zał.1_WPF_bazowy!#REF! ->  | R73: =+Zał.1_WPF_bazowy!#REF! ->  | S73: =+Zał.1_WPF_bazowy!#REF! ->  | T73: =+Zał.1_WPF_bazowy!#REF! ->  | U73: =+Zał.1_WPF_bazowy!#REF! ->  | V73: =+Zał.1_WPF_bazowy!#REF! ->  | W73: =+Zał.1_WPF_bazowy!#REF! ->  | X73: =+Zał.1_WPF_bazowy!#REF! ->  | Y73: =+Zał.1_WPF_bazowy!#REF! ->  | Z73: =+Zał.1_WPF_bazowy!#REF! ->  | AA73: =+Zał.1_WPF_bazowy!#REF! ->  | AB73: =+Zał.1_WPF_bazowy!#REF! ->  | AC73: =+Zał.1_WPF_bazowy!#REF! ->  | AD73: =+Zał.1_WPF_bazowy!#REF! ->  | AE73: =+Zał.1_WPF_bazowy!#REF! ->  | AF73: =+Zał.1_WPF_bazowy!#REF! ->  | AG73: =+Zał.1_WPF_bazowy!#REF! ->  | AH73: =+Zał.1_WPF_bazowy!#REF! ->  | AI73: =+Zał.1_WPF_bazowy!#REF! ->  | AJ73: =+Zał.1_WPF_bazowy!#REF! ->  | AK73: =+Zał.1_WPF_bazowy!#REF! ->  | AL73: =+Zał.1_WPF_bazowy!#REF! -> 
B74: 11.5 | D74: Nowe wydatki inwestycyjne | E74: =Zał.1_WPF_bazowy!E74 -> 2450536 | F74: =Zał.1_WPF_bazowy!F74 -> 1590835.04 | G74: =Zał.1_WPF_bazowy!G74 -> 1184859 | H74: =Zał.1_WPF_bazowy!H74 -> 1184859 | I74: =+Zał.1_WPF_bazowy!I74 -> 3910500 | J74: =+Zał.1_WPF_bazowy!J74 -> 900300 | K74: =+Zał.1_WPF_bazowy!K74 -> 2682000 | L74: =+Zał.1_WPF_bazowy!L74 -> 2570000 | M74: =+Zał.1_WPF_bazowy!#REF! ->  | N74: =+Zał.1_WPF_bazowy!#REF! ->  | O74: =+Zał.1_WPF_bazowy!#REF! ->  | P74: =+Zał.1_WPF_bazowy!#REF! ->  | Q74: =+Zał.1_WPF_bazowy!#REF! ->  | R74: =+Zał.1_WPF_bazowy!#REF! ->  | S74: =+Zał.1_WPF_bazowy!#REF! ->  | T74: =+Zał.1_WPF_bazowy!#REF! ->  | U74: =+Zał.1_WPF_bazowy!#REF! ->  | V74: =+Zał.1_WPF_bazowy!#REF! ->  | W74: =+Zał.1_WPF_bazowy!#REF! ->  | X74: =+Zał.1_WPF_bazowy!#REF! ->  | Y74: =+Zał.1_WPF_bazowy!#REF! ->  | Z74: =+Zał.1_WPF_bazowy!#REF! ->  | AA74: =+Zał.1_WPF_bazowy!#REF! ->  | AB74: =+Zał.1_WPF_bazowy!#REF! ->  | AC74: =+Zał.1_WPF_bazowy!#REF! ->  | AD74: =+Zał.1_WPF_bazowy!#REF! ->  | AE74: =+Zał.1_WPF_bazowy!#REF! ->  | AF74: =+Zał.1_WPF_bazowy!#REF! ->  | AG74: =+Zał.1_WPF_bazowy!#REF! ->  | AH74: =+Zał.1_WPF_bazowy!#REF! ->  | AI74: =+Zał.1_WPF_bazowy!#REF! ->  | AJ74: =+Zał.1_WPF_bazowy!#REF! ->  | AK74: =+Zał.1_WPF_bazowy!#REF! ->  | AL74: =+Zał.1_WPF_bazowy!#REF! -> 
B75: 11.6 | D75: Wydatki majątkowe w formie dotacji | E75: =Zał.1_WPF_bazowy!E75 -> 0 | F75: =Zał.1_WPF_bazowy!F75 -> 0 | G75: =Zał.1_WPF_bazowy!G75 -> 39000 | H75: =Zał.1_WPF_bazowy!H75 -> 39000 | I75: =+Zał.1_WPF_bazowy!I75 -> 0 | J75: =+Zał.1_WPF_bazowy!J75 -> 0 | K75: =+Zał.1_WPF_bazowy!K75 -> 0 | L75: =+Zał.1_WPF_bazowy!L75 -> 0 | M75: =+Zał.1_WPF_bazowy!#REF! ->  | N75: =+Zał.1_WPF_bazowy!#REF! ->  | O75: =+Zał.1_WPF_bazowy!#REF! ->  | P75: =+Zał.1_WPF_bazowy!#REF! ->  | Q75: =+Zał.1_WPF_bazowy!#REF! ->  | R75: =+Zał.1_WPF_bazowy!#REF! ->  | S75: =+Zał.1_WPF_bazowy!#REF! ->  | T75: =+Zał.1_WPF_bazowy!#REF! ->  | U75: =+Zał.1_WPF_bazowy!#REF! ->  | V75: =+Zał.1_WPF_bazowy!#REF! ->  | W75: =+Zał.1_WPF_bazowy!#REF! ->  | X75: =+Zał.1_WPF_bazowy!#REF! ->  | Y75: =+Zał.1_WPF_bazowy!#REF! ->  | Z75: =+Zał.1_WPF_bazowy!#REF! ->  | AA75: =+Zał.1_WPF_bazowy!#REF! ->  | AB75: =+Zał.1_WPF_bazowy!#REF! ->  | AC75: =+Zał.1_WPF_bazowy!#REF! ->  | AD75: =+Zał.1_WPF_bazowy!#REF! ->  | AE75: =+Zał.1_WPF_bazowy!#REF! ->  | AF75: =+Zał.1_WPF_bazowy!#REF! ->  | AG75: =+Zał.1_WPF_bazowy!#REF! ->  | AH75: =+Zał.1_WPF_bazowy!#REF! ->  | AI75: =+Zał.1_WPF_bazowy!#REF! ->  | AJ75: =+Zał.1_WPF_bazowy!#REF! ->  | AK75: =+Zał.1_WPF_bazowy!#REF! ->  | AL75: =+Zał.1_WPF_bazowy!#REF! -> 
B76: 12 | D76: Finansowanie programów, projektów lub zadań realizowanych z udziałem środków, o których mowa w art. 5 ust. 1 pkt 2 i 3 ustawy | E76: x | F76: x | G76: x | H76: x | I76: x | J76: x | K76: x | L76: x | M76: x | N76: x | O76: x | P76: x | Q76: x | R76: x | S76: x | T76: x | U76: x | V76: x | W76: x | X76: x | Y76: x | Z76: x | AA76: x | AB76: x | AC76: x | AD76: x | AE76: x | AF76: x | AG76: x | AH76: x | AI76: x | AJ76: x | AK76: x | AL76: x
B77: 12.1 | D77: Dochody bieżące na programy, projekty lub zadania finansowane z udziałem środków, o których mowa w art. 5 ust. 1 pkt 2 i 3 ustawy, w tym: | E77: =Zał.1_WPF_bazowy!E77 -> 104205.75 | F77: =Zał.1_WPF_bazowy!F77 -> 179911.06 | G77: =Zał.1_WPF_bazowy!G77 -> 109888.97 | H77: =Zał.1_WPF_bazowy!H77 -> 109888.97 | I77: =+Zał.1_WPF_bazowy!I77 -> 0 | J77: =+Zał.1_WPF_bazowy!J77 -> 0 | K77: =+Zał.1_WPF_bazowy!K77 -> 0 | L77: =+Zał.1_WPF_bazowy!L77 -> 0 | M77: =+Zał.1_WPF_bazowy!#REF! ->  | N77: =+Zał.1_WPF_bazowy!#REF! ->  | O77: =+Zał.1_WPF_bazowy!#REF! ->  | P77: =+Zał.1_WPF_bazowy!#REF! ->  | Q77: =+Zał.1_WPF_bazowy!#REF! ->  | R77: =+Zał.1_WPF_bazowy!#REF! ->  | S77: =+Zał.1_WPF_bazowy!#REF! ->  | T77: =+Zał.1_WPF_bazowy!#REF! ->  | U77: =+Zał.1_WPF_bazowy!#REF! ->  | V77: =+Zał.1_WPF_bazowy!#REF! ->  | W77: =+Zał.1_WPF_bazowy!#REF! ->  | X77: =+Zał.1_WPF_bazowy!#REF! ->  | Y77: =+Zał.1_WPF_bazowy!#REF! ->  | Z77: =+Zał.1_WPF_bazowy!#REF! ->  | AA77: =+Zał.1_WPF_bazowy!#REF! ->  | AB77: =+Zał.1_WPF_bazowy!#REF! ->  | AC77: =+Zał.1_WPF_bazowy!#REF! ->  | AD77: =+Zał.1_WPF_bazowy!#REF! ->  | AE77: =+Zał.1_WPF_bazowy!#REF! ->  | AF77: =+Zał.1_WPF_bazowy!#REF! ->  | AG77: =+Zał.1_WPF_bazowy!#REF! ->  | AH77: =+Zał.1_WPF_bazowy!#REF! ->  | AI77: =+Zał.1_WPF_bazowy!#REF! ->  | AJ77: =+Zał.1_WPF_bazowy!#REF! ->  | AK77: =+Zał.1_WPF_bazowy!#REF! ->  | AL77: =+Zał.1_WPF_bazowy!#REF! -> 
B78: 12.1.1 | D78: środki określone w art. 5 ust. 1 pkt 2 ustawy, w tym: | E78: =Zał.1_WPF_bazowy!E78 -> 104205.75 | F78: =Zał.1_WPF_bazowy!F78 -> 160689 | G78: =Zał.1_WPF_bazowy!G78 -> 96205.25 | H78: =Zał.1_WPF_bazowy!H78 -> 96205.25 | I78: =+Zał.1_WPF_bazowy!I78 -> 0 | J78: =+Zał.1_WPF_bazowy!J78 -> 0 | K78: =+Zał.1_WPF_bazowy!K78 -> 0 | L78: =+Zał.1_WPF_bazowy!L78 -> 0 | M78: =+Zał.1_WPF_bazowy!#REF! ->  | N78: =+Zał.1_WPF_bazowy!#REF! ->  | O78: =+Zał.1_WPF_bazowy!#REF! ->  | P78: =+Zał.1_WPF_bazowy!#REF! ->  | Q78: =+Zał.1_WPF_bazowy!#REF! ->  | R78: =+Zał.1_WPF_bazowy!#REF! ->  | S78: =+Zał.1_WPF_bazowy!#REF! ->  | T78: =+Zał.1_WPF_bazowy!#REF! ->  | U78: =+Zał.1_WPF_bazowy!#REF! ->  | V78: =+Zał.1_WPF_bazowy!#REF! ->  | W78: =+Zał.1_WPF_bazowy!#REF! ->  | X78: =+Zał.1_WPF_bazowy!#REF! ->  | Y78: =+Zał.1_WPF_bazowy!#REF! ->  | Z78: =+Zał.1_WPF_bazowy!#REF! ->  | AA78: =+Zał.1_WPF_bazowy!#REF! ->  | AB78: =+Zał.1_WPF_bazowy!#REF! ->  | AC78: =+Zał.1_WPF_bazowy!#REF! ->  | AD78: =+Zał.1_WPF_bazowy!#REF! ->  | AE78: =+Zał.1_WPF_bazowy!#REF! ->  | AF78: =+Zał.1_WPF_bazowy!#REF! ->  | AG78: =+Zał.1_WPF_bazowy!#REF! ->  | AH78: =+Zał.1_WPF_bazowy!#REF! ->  | AI78: =+Zał.1_WPF_bazowy!#REF! ->  | AJ78: =+Zał.1_WPF_bazowy!#REF! ->  | AK78: =+Zał.1_WPF_bazowy!#REF! ->  | AL78: =+Zał.1_WPF_bazowy!#REF! -> 
B79: 12.1.1.1 | D79: środki określone w art. 5 ust. 1 pkt 2 ustawy wynikające wyłącznie z zawartych umów na realizację programu, projektu lub zadania | E79: =Zał.1_WPF_bazowy!E79 -> 0 | F79: =Zał.1_WPF_bazowy!F79 -> 0 | G79: =Zał.1_WPF_bazowy!G79 -> 96205.25 | H79: =Zał.1_WPF_bazowy!H79 -> 96205.25 | I79: =+Zał.1_WPF_bazowy!I79 -> 0 | J79: =+Zał.1_WPF_bazowy!J79 -> 0 | K79: =+Zał.1_WPF_bazowy!K79 -> 0 | L79: =+Zał.1_WPF_bazowy!L79 -> 0 | M79: =+Zał.1_WPF_bazowy!#REF! ->  | N79: =+Zał.1_WPF_bazowy!#REF! ->  | O79: =+Zał.1_WPF_bazowy!#REF! ->  | P79: =+Zał.1_WPF_bazowy!#REF! ->  | Q79: =+Zał.1_WPF_bazowy!#REF! ->  | R79: =+Zał.1_WPF_bazowy!#REF! ->  | S79: =+Zał.1_WPF_bazowy!#REF! ->  | T79: =+Zał.1_WPF_bazowy!#REF! ->  | U79: =+Zał.1_WPF_bazowy!#REF! ->  | V79: =+Zał.1_WPF_bazowy!#REF! ->  | W79: =+Zał.1_WPF_bazowy!#REF! ->  | X79: =+Zał.1_WPF_bazowy!#REF! ->  | Y79: =+Zał.1_WPF_bazowy!#REF! ->  | Z79: =+Zał.1_WPF_bazowy!#REF! ->  | AA79: =+Zał.1_WPF_bazowy!#REF! ->  | AB79: =+Zał.1_WPF_bazowy!#REF! ->  | AC79: =+Zał.1_WPF_bazowy!#REF! ->  | AD79: =+Zał.1_WPF_bazowy!#REF! ->  | AE79: =+Zał.1_WPF_bazowy!#REF! ->  | AF79: =+Zał.1_WPF_bazowy!#REF! ->  | AG79: =+Zał.1_WPF_bazowy!#REF! ->  | AH79: =+Zał.1_WPF_bazowy!#REF! ->  | AI79: =+Zał.1_WPF_bazowy!#REF! ->  | AJ79: =+Zał.1_WPF_bazowy!#REF! ->  | AK79: =+Zał.1_WPF_bazowy!#REF! ->  | AL79: =+Zał.1_WPF_bazowy!#REF! -> 
B80: 12.2 | D80: Dochody majątkowe na programy, projekty lub zadania finansowane z udziałem środków, o których mowa w art. 5 ust. 1 pkt 2 i 3 ustawy, w tym: | E80: =Zał.1_WPF_bazowy!E80 -> 1041937.3 | F80: =Zał.1_WPF_bazowy!F80 -> 1013324.7 | G80: =Zał.1_WPF_bazowy!G80 -> 421154 | H80: =Zał.1_WPF_bazowy!H80 -> 421154 | I80: =+Zał.1_WPF_bazowy!I80 -> 2179404 | J80: =+Zał.1_WPF_bazowy!J80 -> 0 | K80: =+Zał.1_WPF_bazowy!K80 -> 0 | L80: =+Zał.1_WPF_bazowy!L80 -> 0 | M80: =+Zał.1_WPF_bazowy!#REF! ->  | N80: =+Zał.1_WPF_bazowy!#REF! ->  | O80: =+Zał.1_WPF_bazowy!#REF! ->  | P80: =+Zał.1_WPF_bazowy!#REF! ->  | Q80: =+Zał.1_WPF_bazowy!#REF! ->  | R80: =+Zał.1_WPF_bazowy!#REF! ->  | S80: =+Zał.1_WPF_bazowy!#REF! ->  | T80: =+Zał.1_WPF_bazowy!#REF! ->  | U80: =+Zał.1_WPF_bazowy!#REF! ->  | V80: =+Zał.1_WPF_bazowy!#REF! ->  | W80: =+Zał.1_WPF_bazowy!#REF! ->  | X80: =+Zał.1_WPF_bazowy!#REF! ->  | Y80: =+Zał.1_WPF_bazowy!#REF! ->  | Z80: =+Zał.1_WPF_bazowy!#REF! ->  | AA80: =+Zał.1_WPF_bazowy!#REF! ->  | AB80: =+Zał.1_WPF_bazowy!#REF! ->  | AC80: =+Zał.1_WPF_bazowy!#REF! ->  | AD80: =+Zał.1_WPF_bazowy!#REF! ->  | AE80: =+Zał.1_WPF_bazowy!#REF! ->  | AF80: =+Zał.1_WPF_bazowy!#REF! ->  | AG80: =+Zał.1_WPF_bazowy!#REF! ->  | AH80: =+Zał.1_WPF_bazowy!#REF! ->  | AI80: =+Zał.1_WPF_bazowy!#REF! ->  | AJ80: =+Zał.1_WPF_bazowy!#REF! ->  | AK80: =+Zał.1_WPF_bazowy!#REF! ->  | AL80: =+Zał.1_WPF_bazowy!#REF! -> 
B81: 12.2.1 | D81: środki określone w art. 5 ust. 1 pkt 2 ustawy, w tym: | E81: =Zał.1_WPF_bazowy!E81 -> 1041937.3 | F81: =Zał.1_WPF_bazowy!F81 -> 826032 | G81: =Zał.1_WPF_bazowy!G81 -> 232602 | H81: =Zał.1_WPF_bazowy!H81 -> 232602 | I81: =+Zał.1_WPF_bazowy!I81 -> 2114404 | J81: =+Zał.1_WPF_bazowy!J81 -> 0 | K81: =+Zał.1_WPF_bazowy!K81 -> 0 | L81: =+Zał.1_WPF_bazowy!L81 -> 0 | M81: =+Zał.1_WPF_bazowy!#REF! ->  | N81: =+Zał.1_WPF_bazowy!#REF! ->  | O81: =+Zał.1_WPF_bazowy!#REF! ->  | P81: =+Zał.1_WPF_bazowy!#REF! ->  | Q81: =+Zał.1_WPF_bazowy!#REF! ->  | R81: =+Zał.1_WPF_bazowy!#REF! ->  | S81: =+Zał.1_WPF_bazowy!#REF! ->  | T81: =+Zał.1_WPF_bazowy!#REF! ->  | U81: =+Zał.1_WPF_bazowy!#REF! ->  | V81: =+Zał.1_WPF_bazowy!#REF! ->  | W81: =+Zał.1_WPF_bazowy!#REF! ->  | X81: =+Zał.1_WPF_bazowy!#REF! ->  | Y81: =+Zał.1_WPF_bazowy!#REF! ->  | Z81: =+Zał.1_WPF_bazowy!#REF! ->  | AA81: =+Zał.1_WPF_bazowy!#REF! ->  | AB81: =+Zał.1_WPF_bazowy!#REF! ->  | AC81: =+Zał.1_WPF_bazowy!#REF! ->  | AD81: =+Zał.1_WPF_bazowy!#REF! ->  | AE81: =+Zał.1_WPF_bazowy!#REF! ->  | AF81: =+Zał.1_WPF_bazowy!#REF! ->  | AG81: =+Zał.1_WPF_bazowy!#REF! ->  | AH81: =+Zał.1_WPF_bazowy!#REF! ->  | AI81: =+Zał.1_WPF_bazowy!#REF! ->  | AJ81: =+Zał.1_WPF_bazowy!#REF! ->  | AK81: =+Zał.1_WPF_bazowy!#REF! ->  | AL81: =+Zał.1_WPF_bazowy!#REF! -> 
B82: 12.2.1.1 | D82: środki określone w art. 5 ust. 1 pkt 2 ustawy wynikające wyłącznie z zawartych umów na realizację programu, projektu lub zadania | E82: =Zał.1_WPF_bazowy!E82 -> 0 | F82: =Zał.1_WPF_bazowy!F82 -> 0 | G82: =Zał.1_WPF_bazowy!G82 -> 232602 | H82: =Zał.1_WPF_bazowy!H82 -> 232602 | I82: =+Zał.1_WPF_bazowy!I82 -> 0 | J82: =+Zał.1_WPF_bazowy!J82 -> 0 | K82: =+Zał.1_WPF_bazowy!K82 -> 0 | L82: =+Zał.1_WPF_bazowy!L82 -> 0 | M82: =+Zał.1_WPF_bazowy!#REF! ->  | N82: =+Zał.1_WPF_bazowy!#REF! ->  | O82: =+Zał.1_WPF_bazowy!#REF! ->  | P82: =+Zał.1_WPF_bazowy!#REF! ->  | Q82: =+Zał.1_WPF_bazowy!#REF! ->  | R82: =+Zał.1_WPF_bazowy!#REF! ->  | S82: =+Zał.1_WPF_bazowy!#REF! ->  | T82: =+Zał.1_WPF_bazowy!#REF! ->  | U82: =+Zał.1_WPF_bazowy!#REF! ->  | V82: =+Zał.1_WPF_bazowy!#REF! ->  | W82: =+Zał.1_WPF_bazowy!#REF! ->  | X82: =+Zał.1_WPF_bazowy!#REF! ->  | Y82: =+Zał.1_WPF_bazowy!#REF! ->  | Z82: =+Zał.1_WPF_bazowy!#REF! ->  | AA82: =+Zał.1_WPF_bazowy!#REF! ->  | AB82: =+Zał.1_WPF_bazowy!#REF! ->  | AC82: =+Zał.1_WPF_bazowy!#REF! ->  | AD82: =+Zał.1_WPF_bazowy!#REF! ->  | AE82: =+Zał.1_WPF_bazowy!#REF! ->  | AF82: =+Zał.1_WPF_bazowy!#REF! ->  | AG82: =+Zał.1_WPF_bazowy!#REF! ->  | AH82: =+Zał.1_WPF_bazowy!#REF! ->  | AI82: =+Zał.1_WPF_bazowy!#REF! ->  | AJ82: =+Zał.1_WPF_bazowy!#REF! ->  | AK82: =+Zał.1_WPF_bazowy!#REF! ->  | AL82: =+Zał.1_WPF_bazowy!#REF! -> 
B83: 12.3 | D83: Wydatki bieżące na programy, projekty lub zadania finansowane z udziałem środków, o których mowa w art. 5 ust. 1 pkt 2 i 3 ustawy | E83: =Zał.1_WPF_bazowy!E83 -> 123162.52 | F83: =Zał.1_WPF_bazowy!F83 -> 156869.11 | G83: =Zał.1_WPF_bazowy!G83 -> 145119.65 | H83: =Zał.1_WPF_bazowy!H83 -> 145119.65 | I83: =+Zał.1_WPF_bazowy!I83 -> 0 | J83: =+Zał.1_WPF_bazowy!J83 -> 0 | K83: =+Zał.1_WPF_bazowy!K83 -> 0 | L83: =+Zał.1_WPF_bazowy!L83 -> 0 | M83: =+Zał.1_WPF_bazowy!#REF! ->  | N83: =+Zał.1_WPF_bazowy!#REF! ->  | O83: =+Zał.1_WPF_bazowy!#REF! ->  | P83: =+Zał.1_WPF_bazowy!#REF! ->  | Q83: =+Zał.1_WPF_bazowy!#REF! ->  | R83: =+Zał.1_WPF_bazowy!#REF! ->  | S83: =+Zał.1_WPF_bazowy!#REF! ->  | T83: =+Zał.1_WPF_bazowy!#REF! ->  | U83: =+Zał.1_WPF_bazowy!#REF! ->  | V83: =+Zał.1_WPF_bazowy!#REF! ->  | W83: =+Zał.1_WPF_bazowy!#REF! ->  | X83: =+Zał.1_WPF_bazowy!#REF! ->  | Y83: =+Zał.1_WPF_bazowy!#REF! ->  | Z83: =+Zał.1_WPF_bazowy!#REF! ->  | AA83: =+Zał.1_WPF_bazowy!#REF! ->  | AB83: =+Zał.1_WPF_bazowy!#REF! ->  | AC83: =+Zał.1_WPF_bazowy!#REF! ->  | AD83: =+Zał.1_WPF_bazowy!#REF! ->  | AE83: =+Zał.1_WPF_bazowy!#REF! ->  | AF83: =+Zał.1_WPF_bazowy!#REF! ->  | AG83: =+Zał.1_WPF_bazowy!#REF! ->  | AH83: =+Zał.1_WPF_bazowy!#REF! ->  | AI83: =+Zał.1_WPF_bazowy!#REF! ->  | AJ83: =+Zał.1_WPF_bazowy!#REF! ->  | AK83: =+Zał.1_WPF_bazowy!#REF! ->  | AL83: =+Zał.1_WPF_bazowy!#REF! -> 
B84: 12.3.1 | D84: w tym finansowane środkami określonymi w art. 5 ust. 1 pkt 2 ustawy | E84: =Zał.1_WPF_bazowy!E84 -> 104205.63 | F84: =Zał.1_WPF_bazowy!F84 -> 133542.58 | G84: =Zał.1_WPF_bazowy!G84 -> 123351.7 | H84: =Zał.1_WPF_bazowy!H84 -> 123351.7 | I84: =+Zał.1_WPF_bazowy!I84 -> 0 | J84: =+Zał.1_WPF_bazowy!J84 -> 0 | K84: =+Zał.1_WPF_bazowy!K84 -> 0 | L84: =+Zał.1_WPF_bazowy!L84 -> 0 | M84: =+Zał.1_WPF_bazowy!#REF! ->  | N84: =+Zał.1_WPF_bazowy!#REF! ->  | O84: =+Zał.1_WPF_bazowy!#REF! ->  | P84: =+Zał.1_WPF_bazowy!#REF! ->  | Q84: =+Zał.1_WPF_bazowy!#REF! ->  | R84: =+Zał.1_WPF_bazowy!#REF! ->  | S84: =+Zał.1_WPF_bazowy!#REF! ->  | T84: =+Zał.1_WPF_bazowy!#REF! ->  | U84: =+Zał.1_WPF_bazowy!#REF! ->  | V84: =+Zał.1_WPF_bazowy!#REF! ->  | W84: =+Zał.1_WPF_bazowy!#REF! ->  | X84: =+Zał.1_WPF_bazowy!#REF! ->  | Y84: =+Zał.1_WPF_bazowy!#REF! ->  | Z84: =+Zał.1_WPF_bazowy!#REF! ->  | AA84: =+Zał.1_WPF_bazowy!#REF! ->  | AB84: =+Zał.1_WPF_bazowy!#REF! ->  | AC84: =+Zał.1_WPF_bazowy!#REF! ->  | AD84: =+Zał.1_WPF_bazowy!#REF! ->  | AE84: =+Zał.1_WPF_bazowy!#REF! ->  | AF84: =+Zał.1_WPF_bazowy!#REF! ->  | AG84: =+Zał.1_WPF_bazowy!#REF! ->  | AH84: =+Zał.1_WPF_bazowy!#REF! ->  | AI84: =+Zał.1_WPF_bazowy!#REF! ->  | AJ84: =+Zał.1_WPF_bazowy!#REF! ->  | AK84: =+Zał.1_WPF_bazowy!#REF! ->  | AL84: =+Zał.1_WPF_bazowy!#REF! -> 
B85: 12.3.2 | D85: Wydatki bieżące na realizację programu, projektu lub zadania wynikające wyłącznie z zawartych umów z podmiotem dysponującym środkami, o których mowa w art. 5 ust. 1 pkt 2 ustawy | E85: =Zał.1_WPF_bazowy!E85 -> 0 | F85: =Zał.1_WPF_bazowy!F85 -> 0 | G85: =Zał.1_WPF_bazowy!G85 -> 145119.65 | H85: =Zał.1_WPF_bazowy!H85 -> 145119.65 | I85: =+Zał.1_WPF_bazowy!I85 -> 0 | J85: =+Zał.1_WPF_bazowy!J85 -> 0 | K85: =+Zał.1_WPF_bazowy!K85 -> 0 | L85: =+Zał.1_WPF_bazowy!L85 -> 0 | M85: =+Zał.1_WPF_bazowy!#REF! ->  | N85: =+Zał.1_WPF_bazowy!#REF! ->  | O85: =+Zał.1_WPF_bazowy!#REF! ->  | P85: =+Zał.1_WPF_bazowy!#REF! ->  | Q85: =+Zał.1_WPF_bazowy!#REF! ->  | R85: =+Zał.1_WPF_bazowy!#REF! ->  | S85: =+Zał.1_WPF_bazowy!#REF! ->  | T85: =+Zał.1_WPF_bazowy!#REF! ->  | U85: =+Zał.1_WPF_bazowy!#REF! ->  | V85: =+Zał.1_WPF_bazowy!#REF! ->  | W85: =+Zał.1_WPF_bazowy!#REF! ->  | X85: =+Zał.1_WPF_bazowy!#REF! ->  | Y85: =+Zał.1_WPF_bazowy!#REF! ->  | Z85: =+Zał.1_WPF_bazowy!#REF! ->  | AA85: =+Zał.1_WPF_bazowy!#REF! ->  | AB85: =+Zał.1_WPF_bazowy!#REF! ->  | AC85: =+Zał.1_WPF_bazowy!#REF! ->  | AD85: =+Zał.1_WPF_bazowy!#REF! ->  | AE85: =+Zał.1_WPF_bazowy!#REF! ->  | AF85: =+Zał.1_WPF_bazowy!#REF! ->  | AG85: =+Zał.1_WPF_bazowy!#REF! ->  | AH85: =+Zał.1_WPF_bazowy!#REF! ->  | AI85: =+Zał.1_WPF_bazowy!#REF! ->  | AJ85: =+Zał.1_WPF_bazowy!#REF! ->  | AK85: =+Zał.1_WPF_bazowy!#REF! ->  | AL85: =+Zał.1_WPF_bazowy!#REF! -> 
B86: 12.4 | D86: Wydatki majątkowe na programy, projekty lub zadania finansowane z udziałem środków, o których mowa w art. 5 ust. 1 pkt 2 i 3 ustawy | E86: =Zał.1_WPF_bazowy!E86 -> 650923.96 | F86: =Zał.1_WPF_bazowy!F86 -> 562105.4 | G86: =Zał.1_WPF_bazowy!G86 -> 3401517 | H86: =Zał.1_WPF_bazowy!H86 -> 3401517 | I86: =+Zał.1_WPF_bazowy!I86 -> 0 | J86: =+Zał.1_WPF_bazowy!J86 -> 0 | K86: =+Zał.1_WPF_bazowy!K86 -> 0 | L86: =+Zał.1_WPF_bazowy!L86 -> 0 | M86: =+Zał.1_WPF_bazowy!#REF! ->  | N86: =+Zał.1_WPF_bazowy!#REF! ->  | O86: =+Zał.1_WPF_bazowy!#REF! ->  | P86: =+Zał.1_WPF_bazowy!#REF! ->  | Q86: =+Zał.1_WPF_bazowy!#REF! ->  | R86: =+Zał.1_WPF_bazowy!#REF! ->  | S86: =+Zał.1_WPF_bazowy!#REF! ->  | T86: =+Zał.1_WPF_bazowy!#REF! ->  | U86: =+Zał.1_WPF_bazowy!#REF! ->  | V86: =+Zał.1_WPF_bazowy!#REF! ->  | W86: =+Zał.1_WPF_bazowy!#REF! ->  | X86: =+Zał.1_WPF_bazowy!#REF! ->  | Y86: =+Zał.1_WPF_bazowy!#REF! ->  | Z86: =+Zał.1_WPF_bazowy!#REF! ->  | AA86: =+Zał.1_WPF_bazowy!#REF! ->  | AB86: =+Zał.1_WPF_bazowy!#REF! ->  | AC86: =+Zał.1_WPF_bazowy!#REF! ->  | AD86: =+Zał.1_WPF_bazowy!#REF! ->  | AE86: =+Zał.1_WPF_bazowy!#REF! ->  | AF86: =+Zał.1_WPF_bazowy!#REF! ->  | AG86: =+Zał.1_WPF_bazowy!#REF! ->  | AH86: =+Zał.1_WPF_bazowy!#REF! ->  | AI86: =+Zał.1_WPF_bazowy!#REF! ->  | AJ86: =+Zał.1_WPF_bazowy!#REF! ->  | AK86: =+Zał.1_WPF_bazowy!#REF! ->  | AL86: =+Zał.1_WPF_bazowy!#REF! -> 
B87: 12.4.1 | D87: w tym finansowane środkami określonymi w art. 5 ust. 1 pkt 2 ustawy | E87: =Zał.1_WPF_bazowy!E87 -> 650923.96 | F87: =Zał.1_WPF_bazowy!F87 -> 220814.52 | G87: =Zał.1_WPF_bazowy!G87 -> 3401517 | H87: =Zał.1_WPF_bazowy!H87 -> 3401517 | I87: =+Zał.1_WPF_bazowy!I87 -> 0 | J87: =+Zał.1_WPF_bazowy!J87 -> 0 | K87: =+Zał.1_WPF_bazowy!K87 -> 0 | L87: =+Zał.1_WPF_bazowy!L87 -> 0 | M87: =+Zał.1_WPF_bazowy!#REF! ->  | N87: =+Zał.1_WPF_bazowy!#REF! ->  | O87: =+Zał.1_WPF_bazowy!#REF! ->  | P87: =+Zał.1_WPF_bazowy!#REF! ->  | Q87: =+Zał.1_WPF_bazowy!#REF! ->  | R87: =+Zał.1_WPF_bazowy!#REF! ->  | S87: =+Zał.1_WPF_bazowy!#REF! ->  | T87: =+Zał.1_WPF_bazowy!#REF! ->  | U87: =+Zał.1_WPF_bazowy!#REF! ->  | V87: =+Zał.1_WPF_bazowy!#REF! ->  | W87: =+Zał.1_WPF_bazowy!#REF! ->  | X87: =+Zał.1_WPF_bazowy!#REF! ->  | Y87: =+Zał.1_WPF_bazowy!#REF! ->  | Z87: =+Zał.1_WPF_bazowy!#REF! ->  | AA87: =+Zał.1_WPF_bazowy!#REF! ->  | AB87: =+Zał.1_WPF_bazowy!#REF! ->  | AC87: =+Zał.1_WPF_bazowy!#REF! ->  | AD87: =+Zał.1_WPF_bazowy!#REF! ->  | AE87: =+Zał.1_WPF_bazowy!#REF! ->  | AF87: =+Zał.1_WPF_bazowy!#REF! ->  | AG87: =+Zał.1_WPF_bazowy!#REF! ->  | AH87: =+Zał.1_WPF_bazowy!#REF! ->  | AI87: =+Zał.1_WPF_bazowy!#REF! ->  | AJ87: =+Zał.1_WPF_bazowy!#REF! ->  | AK87: =+Zał.1_WPF_bazowy!#REF! ->  | AL87: =+Zał.1_WPF_bazowy!#REF! -> 
B88: 12.4.2 | D88: Wydatki majątkowe na realizację programu, projektu lub zadania wynikające wyłącznie z zawartych umów z podmiotem dysponującym środkami, o których mowa w art. 5 ust. 1 pkt 2 ustawy | E88: =Zał.1_WPF_bazowy!E88 -> 0 | F88: =Zał.1_WPF_bazowy!F88 -> 0 | G88: =Zał.1_WPF_bazowy!G88 -> 1590835.04 | H88: =Zał.1_WPF_bazowy!H88 -> 1590835.04 | I88: =+Zał.1_WPF_bazowy!I88 -> 0 | J88: =+Zał.1_WPF_bazowy!J88 -> 0 | K88: =+Zał.1_WPF_bazowy!K88 -> 0 | L88: =+Zał.1_WPF_bazowy!L88 -> 0 | M88: =+Zał.1_WPF_bazowy!#REF! ->  | N88: =+Zał.1_WPF_bazowy!#REF! ->  | O88: =+Zał.1_WPF_bazowy!#REF! ->  | P88: =+Zał.1_WPF_bazowy!#REF! ->  | Q88: =+Zał.1_WPF_bazowy!#REF! ->  | R88: =+Zał.1_WPF_bazowy!#REF! ->  | S88: =+Zał.1_WPF_bazowy!#REF! ->  | T88: =+Zał.1_WPF_bazowy!#REF! ->  | U88: =+Zał.1_WPF_bazowy!#REF! ->  | V88: =+Zał.1_WPF_bazowy!#REF! ->  | W88: =+Zał.1_WPF_bazowy!#REF! ->  | X88: =+Zał.1_WPF_bazowy!#REF! ->  | Y88: =+Zał.1_WPF_bazowy!#REF! ->  | Z88: =+Zał.1_WPF_bazowy!#REF! ->  | AA88: =+Zał.1_WPF_bazowy!#REF! ->  | AB88: =+Zał.1_WPF_bazowy!#REF! ->  | AC88: =+Zał.1_WPF_bazowy!#REF! ->  | AD88: =+Zał.1_WPF_bazowy!#REF! ->  | AE88: =+Zał.1_WPF_bazowy!#REF! ->  | AF88: =+Zał.1_WPF_bazowy!#REF! ->  | AG88: =+Zał.1_WPF_bazowy!#REF! ->  | AH88: =+Zał.1_WPF_bazowy!#REF! ->  | AI88: =+Zał.1_WPF_bazowy!#REF! ->  | AJ88: =+Zał.1_WPF_bazowy!#REF! ->  | AK88: =+Zał.1_WPF_bazowy!#REF! ->  | AL88: =+Zał.1_WPF_bazowy!#REF! -> 
B89: 13 | D89: Kwoty dotyczące przejęcia i spłaty zobowiązań po samodzielnych publicznych zakładach opieki zdrowotnej oraz pokrycia ujemnego wyniku | E89: x | F89: x | G89: x | H89: x | I89: x | J89: x | K89: x | L89: x | M89: x | N89: x | O89: x | P89: x | Q89: x | R89: x | S89: x | T89: x | U89: x | V89: x | W89: x | X89: x | Y89: x | Z89: x | AA89: x | AB89: x | AC89: x | AD89: x | AE89: x | AF89: x | AG89: x | AH89: x | AI89: x | AJ89: x | AK89: x | AL89: x
B90: 13.1 | D90: Kwota zobowiązań wynikających z przejęcia przez jednostkę samorządu terytorialnego zobowiązań po likwidowanych i przekształcanych samodzielnych zakładach opieki zdrowotnej | E90: =Zał.1_WPF_bazowy!E90 -> 0 | F90: =Zał.1_WPF_bazowy!F90 -> 0 | G90: =Zał.1_WPF_bazowy!G90 -> 0 | H90: =Zał.1_WPF_bazowy!H90 -> 0 | I90: =+IF(I10<>0,H90-(I92+I93+I94+I95),0) -> 0 | J90: =+IF(J10<>0,I90-(J92+J93+J94+J95),0) -> 0 | K90: 0 | L90: 0
B91: 13.2 | D91: Dochody budżetowe z tytułu dotacji celowej z budżetu państwa, o której mowa w art. 196 ustawy z dnia 15 kwietnia 2011 r. o działalności leczniczej (Dz.U. Nr 112, poz. 654, z późn. zm.) | E91: =Zał.1_WPF_bazowy!E91 -> 0 | F91: =Zał.1_WPF_bazowy!F91 -> 0 | G91: =Zał.1_WPF_bazowy!G91 -> 0 | H91: =Zał.1_WPF_bazowy!H91 -> 0 | I91: =+Zał.1_WPF_bazowy!I91 -> 0 | J91: =+Zał.1_WPF_bazowy!J91 -> 0 | K91: =+Zał.1_WPF_bazowy!K91 -> 0 | L91: =+Zał.1_WPF_bazowy!L91 -> 0 | M91: =+Zał.1_WPF_bazowy!#REF! ->  | N91: =+Zał.1_WPF_bazowy!#REF! ->  | O91: =+Zał.1_WPF_bazowy!#REF! ->  | P91: =+Zał.1_WPF_bazowy!#REF! ->  | Q91: =+Zał.1_WPF_bazowy!#REF! ->  | R91: =+Zał.1_WPF_bazowy!#REF! ->  | S91: =+Zał.1_WPF_bazowy!#REF! ->  | T91: =+Zał.1_WPF_bazowy!#REF! ->  | U91: =+Zał.1_WPF_bazowy!#REF! ->  | V91: =+Zał.1_WPF_bazowy!#REF! ->  | W91: =+Zał.1_WPF_bazowy!#REF! ->  | X91: =+Zał.1_WPF_bazowy!#REF! ->  | Y91: =+Zał.1_WPF_bazowy!#REF! ->  | Z91: =+Zał.1_WPF_bazowy!#REF! ->  | AA91: =+Zał.1_WPF_bazowy!#REF! ->  | AB91: =+Zał.1_WPF_bazowy!#REF! ->  | AC91: =+Zał.1_WPF_bazowy!#REF! ->  | AD91: =+Zał.1_WPF_bazowy!#REF! ->  | AE91: =+Zał.1_WPF_bazowy!#REF! ->  | AF91: =+Zał.1_WPF_bazowy!#REF! ->  | AG91: =+Zał.1_WPF_bazowy!#REF! ->  | AH91: =+Zał.1_WPF_bazowy!#REF! ->  | AI91: =+Zał.1_WPF_bazowy!#REF! ->  | AJ91: =+Zał.1_WPF_bazowy!#REF! ->  | AK91: =+Zał.1_WPF_bazowy!#REF! ->  | AL91: =+Zał.1_WPF_bazowy!#REF! -> 
B92: 13.3 | D92: Wysokość zobowiązań podlegających umorzeniu, o którym mowa w art. 190 ustawy o działalności leczniczej | E92: =Zał.1_WPF_bazowy!E92 -> 0 | F92: =Zał.1_WPF_bazowy!F92 -> 0 | G92: =Zał.1_WPF_bazowy!G92 -> 0 | H92: =Zał.1_WPF_bazowy!H92 -> 0 | I92: =+Zał.1_WPF_bazowy!I92 -> 0 | J92: =+Zał.1_WPF_bazowy!J92 -> 0 | K92: =+Zał.1_WPF_bazowy!K92 -> 0 | L92: =+Zał.1_WPF_bazowy!L92 -> 0 | M92: =+Zał.1_WPF_bazowy!#REF! ->  | N92: =+Zał.1_WPF_bazowy!#REF! ->  | O92: =+Zał.1_WPF_bazowy!#REF! ->  | P92: =+Zał.1_WPF_bazowy!#REF! ->  | Q92: =+Zał.1_WPF_bazowy!#REF! ->  | R92: =+Zał.1_WPF_bazowy!#REF! ->  | S92: =+Zał.1_WPF_bazowy!#REF! ->  | T92: =+Zał.1_WPF_bazowy!#REF! ->  | U92: =+Zał.1_WPF_bazowy!#REF! ->  | V92: =+Zał.1_WPF_bazowy!#REF! ->  | W92: =+Zał.1_WPF_bazowy!#REF! ->  | X92: =+Zał.1_WPF_bazowy!#REF! ->  | Y92: =+Zał.1_WPF_bazowy!#REF! ->  | Z92: =+Zał.1_WPF_bazowy!#REF! ->  | AA92: =+Zał.1_WPF_bazowy!#REF! ->  | AB92: =+Zał.1_WPF_bazowy!#REF! ->  | AC92: =+Zał.1_WPF_bazowy!#REF! ->  | AD92: =+Zał.1_WPF_bazowy!#REF! ->  | AE92: =+Zał.1_WPF_bazowy!#REF! ->  | AF92: =+Zał.1_WPF_bazowy!#REF! ->  | AG92: =+Zał.1_WPF_bazowy!#REF! ->  | AH92: =+Zał.1_WPF_bazowy!#REF! ->  | AI92: =+Zał.1_WPF_bazowy!#REF! ->  | AJ92: =+Zał.1_WPF_bazowy!#REF! ->  | AK92: =+Zał.1_WPF_bazowy!#REF! ->  | AL92: =+Zał.1_WPF_bazowy!#REF! -> 
B93: 13.4 | D93: Wydatki na spłatę przejętych zobowiązań samodzielnego publicznego zakładu opieki zdrowotnej przekształconego na zasadach określonych w przepisach o działalności leczniczej | E93: =Zał.1_WPF_bazowy!E93 -> 0 | F93: =Zał.1_WPF_bazowy!F93 -> 0 | G93: =Zał.1_WPF_bazowy!G93 -> 0 | H93: =Zał.1_WPF_bazowy!H93 -> 0 | I93: =+Zał.1_WPF_bazowy!I93 -> 0 | J93: =+Zał.1_WPF_bazowy!J93 -> 0 | K93: =+Zał.1_WPF_bazowy!K93 -> 0 | L93: =+Zał.1_WPF_bazowy!L93 -> 0 | M93: =+Zał.1_WPF_bazowy!#REF! ->  | N93: =+Zał.1_WPF_bazowy!#REF! ->  | O93: =+Zał.1_WPF_bazowy!#REF! ->  | P93: =+Zał.1_WPF_bazowy!#REF! ->  | Q93: =+Zał.1_WPF_bazowy!#REF! ->  | R93: =+Zał.1_WPF_bazowy!#REF! ->  | S93: =+Zał.1_WPF_bazowy!#REF! ->  | T93: =+Zał.1_WPF_bazowy!#REF! ->  | U93: =+Zał.1_WPF_bazowy!#REF! ->  | V93: =+Zał.1_WPF_bazowy!#REF! ->  | W93: =+Zał.1_WPF_bazowy!#REF! ->  | X93: =+Zał.1_WPF_bazowy!#REF! ->  | Y93: =+Zał.1_WPF_bazowy!#REF! ->  | Z93: =+Zał.1_WPF_bazowy!#REF! ->  | AA93: =+Zał.1_WPF_bazowy!#REF! ->  | AB93: =+Zał.1_WPF_bazowy!#REF! ->  | AC93: =+Zał.1_WPF_bazowy!#REF! ->  | AD93: =+Zał.1_WPF_bazowy!#REF! ->  | AE93: =+Zał.1_WPF_bazowy!#REF! ->  | AF93: =+Zał.1_WPF_bazowy!#REF! ->  | AG93: =+Zał.1_WPF_bazowy!#REF! ->  | AH93: =+Zał.1_WPF_bazowy!#REF! ->  | AI93: =+Zał.1_WPF_bazowy!#REF! ->  | AJ93: =+Zał.1_WPF_bazowy!#REF! ->  | AK93: =+Zał.1_WPF_bazowy!#REF! ->  | AL93: =+Zał.1_WPF_bazowy!#REF! -> 
B94: 13.5 | D94: Wydatki na spłatę przejętych zobowiązań samodzielnego publicznego zakładu opieki zdrowotnej likwidowanego na zasadach określonych w przepisach o działalności leczniczej | E94: =Zał.1_WPF_bazowy!E94 -> 0 | F94: =Zał.1_WPF_bazowy!F94 -> 0 | G94: =Zał.1_WPF_bazowy!G94 -> 0 | H94: =Zał.1_WPF_bazowy!H94 -> 0 | I94: =+Zał.1_WPF_bazowy!I94 -> 0 | J94: =+Zał.1_WPF_bazowy!J94 -> 0 | K94: =+Zał.1_WPF_bazowy!K94 -> 0 | L94: =+Zał.1_WPF_bazowy!L94 -> 0 | M94: =+Zał.1_WPF_bazowy!#REF! ->  | N94: =+Zał.1_WPF_bazowy!#REF! ->  | O94: =+Zał.1_WPF_bazowy!#REF! ->  | P94: =+Zał.1_WPF_bazowy!#REF! ->  | Q94: =+Zał.1_WPF_bazowy!#REF! ->  | R94: =+Zał.1_WPF_bazowy!#REF! ->  | S94: =+Zał.1_WPF_bazowy!#REF! ->  | T94: =+Zał.1_WPF_bazowy!#REF! ->  | U94: =+Zał.1_WPF_bazowy!#REF! ->  | V94: =+Zał.1_WPF_bazowy!#REF! ->  | W94: =+Zał.1_WPF_bazowy!#REF! ->  | X94: =+Zał.1_WPF_bazowy!#REF! ->  | Y94: =+Zał.1_WPF_bazowy!#REF! ->  | Z94: =+Zał.1_WPF_bazowy!#REF! ->  | AA94: =+Zał.1_WPF_bazowy!#REF! ->  | AB94: =+Zał.1_WPF_bazowy!#REF! ->  | AC94: =+Zał.1_WPF_bazowy!#REF! ->  | AD94: =+Zał.1_WPF_bazowy!#REF! ->  | AE94: =+Zał.1_WPF_bazowy!#REF! ->  | AF94: =+Zał.1_WPF_bazowy!#REF! ->  | AG94: =+Zał.1_WPF_bazowy!#REF! ->  | AH94: =+Zał.1_WPF_bazowy!#REF! ->  | AI94: =+Zał.1_WPF_bazowy!#REF! ->  | AJ94: =+Zał.1_WPF_bazowy!#REF! ->  | AK94: =+Zał.1_WPF_bazowy!#REF! ->  | AL94: =+Zał.1_WPF_bazowy!#REF! -> 
B95: 13.6 | D95: Wydatki na spłatę zobowiązań samodzielnego publicznego zakładu opieki zdrowotnej przejętych do końca 2011 r. na podstawie przepisów o zakładach opieki zdrowotnej | E95: =Zał.1_WPF_bazowy!E95 -> 0 | F95: =Zał.1_WPF_bazowy!F95 -> 0 | G95: =Zał.1_WPF_bazowy!G95 -> 0 | H95: =Zał.1_WPF_bazowy!H95 -> 0 | I95: =+Zał.1_WPF_bazowy!I95 -> 0 | J95: =+Zał.1_WPF_bazowy!J95 -> 0 | K95: =+Zał.1_WPF_bazowy!K95 -> 0 | L95: =+Zał.1_WPF_bazowy!L95 -> 0 | M95: =+Zał.1_WPF_bazowy!#REF! ->  | N95: =+Zał.1_WPF_bazowy!#REF! ->  | O95: =+Zał.1_WPF_bazowy!#REF! ->  | P95: =+Zał.1_WPF_bazowy!#REF! ->  | Q95: =+Zał.1_WPF_bazowy!#REF! ->  | R95: =+Zał.1_WPF_bazowy!#REF! ->  | S95: =+Zał.1_WPF_bazowy!#REF! ->  | T95: =+Zał.1_WPF_bazowy!#REF! ->  | U95: =+Zał.1_WPF_bazowy!#REF! ->  | V95: =+Zał.1_WPF_bazowy!#REF! ->  | W95: =+Zał.1_WPF_bazowy!#REF! ->  | X95: =+Zał.1_WPF_bazowy!#REF! ->  | Y95: =+Zał.1_WPF_bazowy!#REF! ->  | Z95: =+Zał.1_WPF_bazowy!#REF! ->  | AA95: =+Zał.1_WPF_bazowy!#REF! ->  | AB95: =+Zał.1_WPF_bazowy!#REF! ->  | AC95: =+Zał.1_WPF_bazowy!#REF! ->  | AD95: =+Zał.1_WPF_bazowy!#REF! ->  | AE95: =+Zał.1_WPF_bazowy!#REF! ->  | AF95: =+Zał.1_WPF_bazowy!#REF! ->  | AG95: =+Zał.1_WPF_bazowy!#REF! ->  | AH95: =+Zał.1_WPF_bazowy!#REF! ->  | AI95: =+Zał.1_WPF_bazowy!#REF! ->  | AJ95: =+Zał.1_WPF_bazowy!#REF! ->  | AK95: =+Zał.1_WPF_bazowy!#REF! ->  | AL95: =+Zał.1_WPF_bazowy!#REF! -> 
B96: 13.7 | D96: Wydatki bieżące na pokrycie ujemnego wyniku finansowego samodzielnego publicznego zakładu opieki zdrowotnej | E96: =Zał.1_WPF_bazowy!E96 -> 0 | F96: =Zał.1_WPF_bazowy!F96 -> 0 | G96: =Zał.1_WPF_bazowy!G96 -> 0 | H96: =Zał.1_WPF_bazowy!H96 -> 0 | I96: =+Zał.1_WPF_bazowy!I96 -> 0 | J96: =+Zał.1_WPF_bazowy!J96 -> 0 | K96: =+Zał.1_WPF_bazowy!K96 -> 0 | L96: =+Zał.1_WPF_bazowy!L96 -> 0 | M96: =+Zał.1_WPF_bazowy!#REF! ->  | N96: =+Zał.1_WPF_bazowy!#REF! ->  | O96: =+Zał.1_WPF_bazowy!#REF! ->  | P96: =+Zał.1_WPF_bazowy!#REF! ->  | Q96: =+Zał.1_WPF_bazowy!#REF! ->  | R96: =+Zał.1_WPF_bazowy!#REF! ->  | S96: =+Zał.1_WPF_bazowy!#REF! ->  | T96: =+Zał.1_WPF_bazowy!#REF! ->  | U96: =+Zał.1_WPF_bazowy!#REF! ->  | V96: =+Zał.1_WPF_bazowy!#REF! ->  | W96: =+Zał.1_WPF_bazowy!#REF! ->  | X96: =+Zał.1_WPF_bazowy!#REF! ->  | Y96: =+Zał.1_WPF_bazowy!#REF! ->  | Z96: =+Zał.1_WPF_bazowy!#REF! ->  | AA96: =+Zał.1_WPF_bazowy!#REF! ->  | AB96: =+Zał.1_WPF_bazowy!#REF! ->  | AC96: =+Zał.1_WPF_bazowy!#REF! ->  | AD96: =+Zał.1_WPF_bazowy!#REF! ->  | AE96: =+Zał.1_WPF_bazowy!#REF! ->  | AF96: =+Zał.1_WPF_bazowy!#REF! ->  | AG96: =+Zał.1_WPF_bazowy!#REF! ->  | AH96: =+Zał.1_WPF_bazowy!#REF! ->  | AI96: =+Zał.1_WPF_bazowy!#REF! ->  | AJ96: =+Zał.1_WPF_bazowy!#REF! ->  | AK96: =+Zał.1_WPF_bazowy!#REF! ->  | AL96: =+Zał.1_WPF_bazowy!#REF! -> 
A97: x | B97: 14 | D97: Dane uzupełniające o długu i jego spłacie | E97: x | F97: x | G97: x | H97: x | I97: x | J97: x | K97: x | L97: x | M97: x | N97: x | O97: x | P97: x | Q97: x | R97: x | S97: x | T97: x | U97: x | V97: x | W97: x | X97: x | Y97: x | Z97: x | AA97: x | AB97: x | AC97: x | AD97: x | AE97: x | AF97: x | AG97: x | AH97: x | AI97: x | AJ97: x | AK97: x | AL97: x
A98: x | B98: 14.1 | D98: Spłaty rat kapitałowych oraz wykup papierów wartościowych, o których mowa w pkt. 5.1., wynikające wyłącznie z tytułu zobowiązań już zaciągniętych | E98: =Zał.1_WPF_bazowy!E98 -> 601088.34 | F98: =Zał.1_WPF_bazowy!F98 -> 1278520.75 | G98: =Zał.1_WPF_bazowy!G98 -> 737521.46 | H98: =Zał.1_WPF_bazowy!H98 -> 737521.46 | I98: =+Zał.1_WPF_bazowy!I98 -> 773956.19 | J98: =+Zał.1_WPF_bazowy!J98 -> 0 | K98: =+Zał.1_WPF_bazowy!K98 -> 0 | L98: =+Zał.1_WPF_bazowy!L98 -> 0 | M98: =+Zał.1_WPF_bazowy!#REF! ->  | N98: =+Zał.1_WPF_bazowy!#REF! ->  | O98: =+Zał.1_WPF_bazowy!#REF! ->  | P98: =+Zał.1_WPF_bazowy!#REF! ->  | Q98: =+Zał.1_WPF_bazowy!#REF! ->  | R98: =+Zał.1_WPF_bazowy!#REF! ->  | S98: =+Zał.1_WPF_bazowy!#REF! ->  | T98: =+Zał.1_WPF_bazowy!#REF! ->  | U98: =+Zał.1_WPF_bazowy!#REF! ->  | V98: =+Zał.1_WPF_bazowy!#REF! ->  | W98: =+Zał.1_WPF_bazowy!#REF! ->  | X98: =+Zał.1_WPF_bazowy!#REF! ->  | Y98: =+Zał.1_WPF_bazowy!#REF! ->  | Z98: =+Zał.1_WPF_bazowy!#REF! ->  | AA98: =+Zał.1_WPF_bazowy!#REF! ->  | AB98: =+Zał.1_WPF_bazowy!#REF! ->  | AC98: =+Zał.1_WPF_bazowy!#REF! ->  | AD98: =+Zał.1_WPF_bazowy!#REF! ->  | AE98: =+Zał.1_WPF_bazowy!#REF! ->  | AF98: =+Zał.1_WPF_bazowy!#REF! ->  | AG98: =+Zał.1_WPF_bazowy!#REF! ->  | AH98: =+Zał.1_WPF_bazowy!#REF! ->  | AI98: =+Zał.1_WPF_bazowy!#REF! ->  | AJ98: =+Zał.1_WPF_bazowy!#REF! ->  | AK98: =+Zał.1_WPF_bazowy!#REF! ->  | AL98: =+Zał.1_WPF_bazowy!#REF! -> 
A99: x | B99: 14.2 | D99: Kwota długu, którego planowana spłata dokona się z wydatków budżetu | E99: =Zał.1_WPF_bazowy!E99 -> 0 | F99: =Zał.1_WPF_bazowy!F99 -> 0 | G99: =Zał.1_WPF_bazowy!G99 -> 0 | H99: =Zał.1_WPF_bazowy!H99 -> 0 | I99: =+Zał.1_WPF_bazowy!I99 -> 0 | J99: =+Zał.1_WPF_bazowy!J99 -> 0 | K99: =+Zał.1_WPF_bazowy!K99 -> 0 | L99: =+Zał.1_WPF_bazowy!L99 -> 0 | M99: =+Zał.1_WPF_bazowy!#REF! ->  | N99: =+Zał.1_WPF_bazowy!#REF! ->  | O99: =+Zał.1_WPF_bazowy!#REF! ->  | P99: =+Zał.1_WPF_bazowy!#REF! ->  | Q99: =+Zał.1_WPF_bazowy!#REF! ->  | R99: =+Zał.1_WPF_bazowy!#REF! ->  | S99: =+Zał.1_WPF_bazowy!#REF! ->  | T99: =+Zał.1_WPF_bazowy!#REF! ->  | U99: =+Zał.1_WPF_bazowy!#REF! ->  | V99: =+Zał.1_WPF_bazowy!#REF! ->  | W99: =+Zał.1_WPF_bazowy!#REF! ->  | X99: =+Zał.1_WPF_bazowy!#REF! ->  | Y99: =+Zał.1_WPF_bazowy!#REF! ->  | Z99: =+Zał.1_WPF_bazowy!#REF! ->  | AA99: =+Zał.1_WPF_bazowy!#REF! ->  | AB99: =+Zał.1_WPF_bazowy!#REF! ->  | AC99: =+Zał.1_WPF_bazowy!#REF! ->  | AD99: =+Zał.1_WPF_bazowy!#REF! ->  | AE99: =+Zał.1_WPF_bazowy!#REF! ->  | AF99: =+Zał.1_WPF_bazowy!#REF! ->  | AG99: =+Zał.1_WPF_bazowy!#REF! ->  | AH99: =+Zał.1_WPF_bazowy!#REF! ->  | AI99: =+Zał.1_WPF_bazowy!#REF! ->  | AJ99: =+Zał.1_WPF_bazowy!#REF! ->  | AK99: =+Zał.1_WPF_bazowy!#REF! ->  | AL99: =+Zał.1_WPF_bazowy!#REF! -> 
A100: x | B100: 14.3 | D100: Wydatki zmniejszające dług, w tym: | E100: =Zał.1_WPF_bazowy!E100 -> 0 | F100: =Zał.1_WPF_bazowy!F100 -> 0 | G100: =Zał.1_WPF_bazowy!G100 -> 0 | H100: =Zał.1_WPF_bazowy!H100 -> 0 | I100: =+Zał.1_WPF_bazowy!I100 -> 0 | J100: =+Zał.1_WPF_bazowy!J100 -> 0 | K100: =+Zał.1_WPF_bazowy!K100 -> 0 | L100: =+Zał.1_WPF_bazowy!L100 -> 0 | M100: =+Zał.1_WPF_bazowy!#REF! ->  | N100: =+Zał.1_WPF_bazowy!#REF! ->  | O100: =+Zał.1_WPF_bazowy!#REF! ->  | P100: =+Zał.1_WPF_bazowy!#REF! ->  | Q100: =+Zał.1_WPF_bazowy!#REF! ->  | R100: =+Zał.1_WPF_bazowy!#REF! ->  | S100: =+Zał.1_WPF_bazowy!#REF! ->  | T100: =+Zał.1_WPF_bazowy!#REF! ->  | U100: =+Zał.1_WPF_bazowy!#REF! ->  | V100: =+Zał.1_WPF_bazowy!#REF! ->  | W100: =+Zał.1_WPF_bazowy!#REF! ->  | X100: =+Zał.1_WPF_bazowy!#REF! ->  | Y100: =+Zał.1_WPF_bazowy!#REF! ->  | Z100: =+Zał.1_WPF_bazowy!#REF! ->  | AA100: =+Zał.1_WPF_bazowy!#REF! ->  | AB100: =+Zał.1_WPF_bazowy!#REF! ->  | AC100: =+Zał.1_WPF_bazowy!#REF! ->  | AD100: =+Zał.1_WPF_bazowy!#REF! ->  | AE100: =+Zał.1_WPF_bazowy!#REF! ->  | AF100: =+Zał.1_WPF_bazowy!#REF! ->  | AG100: =+Zał.1_WPF_bazowy!#REF! ->  | AH100: =+Zał.1_WPF_bazowy!#REF! ->  | AI100: =+Zał.1_WPF_bazowy!#REF! ->  | AJ100: =+Zał.1_WPF_bazowy!#REF! ->  | AK100: =+Zał.1_WPF_bazowy!#REF! ->  | AL100: =+Zał.1_WPF_bazowy!#REF! -> 
A101: x | B101: 14.3.1 | D101: spłata zobowiązań wymagalnych z lat poprzednich, innych niż w pkt 14.3.3 | E101: =Zał.1_WPF_bazowy!E101 -> 0 | F101: =Zał.1_WPF_bazowy!F101 -> 0 | G101: =Zał.1_WPF_bazowy!G101 -> 0 | H101: =Zał.1_WPF_bazowy!H101 -> 0 | I101: =+Zał.1_WPF_bazowy!I101 -> 0 | J101: =+Zał.1_WPF_bazowy!J101 -> 0 | K101: =+Zał.1_WPF_bazowy!K101 -> 0 | L101: =+Zał.1_WPF_bazowy!L101 -> 0 | M101: =+Zał.1_WPF_bazowy!#REF! ->  | N101: =+Zał.1_WPF_bazowy!#REF! ->  | O101: =+Zał.1_WPF_bazowy!#REF! ->  | P101: =+Zał.1_WPF_bazowy!#REF! ->  | Q101: =+Zał.1_WPF_bazowy!#REF! ->  | R101: =+Zał.1_WPF_bazowy!#REF! ->  | S101: =+Zał.1_WPF_bazowy!#REF! ->  | T101: =+Zał.1_WPF_bazowy!#REF! ->  | U101: =+Zał.1_WPF_bazowy!#REF! ->  | V101: =+Zał.1_WPF_bazowy!#REF! ->  | W101: =+Zał.1_WPF_bazowy!#REF! ->  | X101: =+Zał.1_WPF_bazowy!#REF! ->  | Y101: =+Zał.1_WPF_bazowy!#REF! ->  | Z101: =+Zał.1_WPF_bazowy!#REF! ->  | AA101: =+Zał.1_WPF_bazowy!#REF! ->  | AB101: =+Zał.1_WPF_bazowy!#REF! ->  | AC101: =+Zał.1_WPF_bazowy!#REF! ->  | AD101: =+Zał.1_WPF_bazowy!#REF! ->  | AE101: =+Zał.1_WPF_bazowy!#REF! ->  | AF101: =+Zał.1_WPF_bazowy!#REF! ->  | AG101: =+Zał.1_WPF_bazowy!#REF! ->  | AH101: =+Zał.1_WPF_bazowy!#REF! ->  | AI101: =+Zał.1_WPF_bazowy!#REF! ->  | AJ101: =+Zał.1_WPF_bazowy!#REF! ->  | AK101: =+Zał.1_WPF_bazowy!#REF! ->  | AL101: =+Zał.1_WPF_bazowy!#REF! -> 
A102: x | B102: 14.3.2 | D102: związane z umowami zaliczanymi do tytułów dłużnych wliczanych w państwowy dług publiczny | E102: =Zał.1_WPF_bazowy!E102 -> 0 | F102: =Zał.1_WPF_bazowy!F102 -> 0 | G102: =Zał.1_WPF_bazowy!G102 -> 0 | H102: =Zał.1_WPF_bazowy!H102 -> 0 | I102: =+Zał.1_WPF_bazowy!I102 -> 0 | J102: =+Zał.1_WPF_bazowy!J102 -> 0 | K102: =+Zał.1_WPF_bazowy!K102 -> 0 | L102: =+Zał.1_WPF_bazowy!L102 -> 0 | M102: =+Zał.1_WPF_bazowy!#REF! ->  | N102: =+Zał.1_WPF_bazowy!#REF! ->  | O102: =+Zał.1_WPF_bazowy!#REF! ->  | P102: =+Zał.1_WPF_bazowy!#REF! ->  | Q102: =+Zał.1_WPF_bazowy!#REF! ->  | R102: =+Zał.1_WPF_bazowy!#REF! ->  | S102: =+Zał.1_WPF_bazowy!#REF! ->  | T102: =+Zał.1_WPF_bazowy!#REF! ->  | U102: =+Zał.1_WPF_bazowy!#REF! ->  | V102: =+Zał.1_WPF_bazowy!#REF! ->  | W102: =+Zał.1_WPF_bazowy!#REF! ->  | X102: =+Zał.1_WPF_bazowy!#REF! ->  | Y102: =+Zał.1_WPF_bazowy!#REF! ->  | Z102: =+Zał.1_WPF_bazowy!#REF! ->  | AA102: =+Zał.1_WPF_bazowy!#REF! ->  | AB102: =+Zał.1_WPF_bazowy!#REF! ->  | AC102: =+Zał.1_WPF_bazowy!#REF! ->  | AD102: =+Zał.1_WPF_bazowy!#REF! ->  | AE102: =+Zał.1_WPF_bazowy!#REF! ->  | AF102: =+Zał.1_WPF_bazowy!#REF! ->  | AG102: =+Zał.1_WPF_bazowy!#REF! ->  | AH102: =+Zał.1_WPF_bazowy!#REF! ->  | AI102: =+Zał.1_WPF_bazowy!#REF! ->  | AJ102: =+Zał.1_WPF_bazowy!#REF! ->  | AK102: =+Zał.1_WPF_bazowy!#REF! ->  | AL102: =+Zał.1_WPF_bazowy!#REF! -> 
A103: x | B103: 14.3.3 | D103: wypłaty z tytułu wymagalnych poręczeń i gwarancji | E103: =Zał.1_WPF_bazowy!E103 -> 0 | F103: =Zał.1_WPF_bazowy!F103 -> 0 | G103: =Zał.1_WPF_bazowy!G103 -> 0 | H103: =Zał.1_WPF_bazowy!H103 -> 0 | I103: =+Zał.1_WPF_bazowy!I103 -> 0 | J103: =+Zał.1_WPF_bazowy!J103 -> 0 | K103: =+Zał.1_WPF_bazowy!K103 -> 0 | L103: =+Zał.1_WPF_bazowy!L103 -> 0 | M103: =+Zał.1_WPF_bazowy!#REF! ->  | N103: =+Zał.1_WPF_bazowy!#REF! ->  | O103: =+Zał.1_WPF_bazowy!#REF! ->  | P103: =+Zał.1_WPF_bazowy!#REF! ->  | Q103: =+Zał.1_WPF_bazowy!#REF! ->  | R103: =+Zał.1_WPF_bazowy!#REF! ->  | S103: =+Zał.1_WPF_bazowy!#REF! ->  | T103: =+Zał.1_WPF_bazowy!#REF! ->  | U103: =+Zał.1_WPF_bazowy!#REF! ->  | V103: =+Zał.1_WPF_bazowy!#REF! ->  | W103: =+Zał.1_WPF_bazowy!#REF! ->  | X103: =+Zał.1_WPF_bazowy!#REF! ->  | Y103: =+Zał.1_WPF_bazowy!#REF! ->  | Z103: =+Zał.1_WPF_bazowy!#REF! ->  | AA103: =+Zał.1_WPF_bazowy!#REF! ->  | AB103: =+Zał.1_WPF_bazowy!#REF! ->  | AC103: =+Zał.1_WPF_bazowy!#REF! ->  | AD103: =+Zał.1_WPF_bazowy!#REF! ->  | AE103: =+Zał.1_WPF_bazowy!#REF! ->  | AF103: =+Zał.1_WPF_bazowy!#REF! ->  | AG103: =+Zał.1_WPF_bazowy!#REF! ->  | AH103: =+Zał.1_WPF_bazowy!#REF! ->  | AI103: =+Zał.1_WPF_bazowy!#REF! ->  | AJ103: =+Zał.1_WPF_bazowy!#REF! ->  | AK103: =+Zał.1_WPF_bazowy!#REF! ->  | AL103: =+Zał.1_WPF_bazowy!#REF! -> 
A104: x | B104: 14.4 | D104: Wynik operacji niekasowych wpływających na kwotę długu (m.in. umorzenia, różnice kursowe) | E104: =Zał.1_WPF_bazowy!E104 -> 0 | F104: =Zał.1_WPF_bazowy!F104 -> 0 | G104: =Zał.1_WPF_bazowy!G104 -> 0 | H104: =Zał.1_WPF_bazowy!H104 -> 0 | I104: =+Zał.1_WPF_bazowy!I104 -> 0 | J104: =+Zał.1_WPF_bazowy!J104 -> 0 | K104: =+Zał.1_WPF_bazowy!K104 -> 0 | L104: =+Zał.1_WPF_bazowy!L104 -> 0 | M104: =+Zał.1_WPF_bazowy!#REF! ->  | N104: =+Zał.1_WPF_bazowy!#REF! ->  | O104: =+Zał.1_WPF_bazowy!#REF! ->  | P104: =+Zał.1_WPF_bazowy!#REF! ->  | Q104: =+Zał.1_WPF_bazowy!#REF! ->  | R104: =+Zał.1_WPF_bazowy!#REF! ->  | S104: =+Zał.1_WPF_bazowy!#REF! ->  | T104: =+Zał.1_WPF_bazowy!#REF! ->  | U104: =+Zał.1_WPF_bazowy!#REF! ->  | V104: =+Zał.1_WPF_bazowy!#REF! ->  | W104: =+Zał.1_WPF_bazowy!#REF! ->  | X104: =+Zał.1_WPF_bazowy!#REF! ->  | Y104: =+Zał.1_WPF_bazowy!#REF! ->  | Z104: =+Zał.1_WPF_bazowy!#REF! ->  | AA104: =+Zał.1_WPF_bazowy!#REF! ->  | AB104: =+Zał.1_WPF_bazowy!#REF! ->  | AC104: =+Zał.1_WPF_bazowy!#REF! ->  | AD104: =+Zał.1_WPF_bazowy!#REF! ->  | AE104: =+Zał.1_WPF_bazowy!#REF! ->  | AF104: =+Zał.1_WPF_bazowy!#REF! ->  | AG104: =+Zał.1_WPF_bazowy!#REF! ->  | AH104: =+Zał.1_WPF_bazowy!#REF! ->  | AI104: =+Zał.1_WPF_bazowy!#REF! ->  | AJ104: =+Zał.1_WPF_bazowy!#REF! ->  | AK104: =+Zał.1_WPF_bazowy!#REF! ->  | AL104: =+Zał.1_WPF_bazowy!#REF! -> 
B110: Weryfikacja danych wykazanych w tabeli Wieloletnia Prognoza Finansowa
D111: Reguła formalna
D112: Reguła rachunkowa
D113: Reguła logiczna
D114: Reguły kontrolne
C115: [1.1] + [4.1] + [4.2] >= ([2.1] - [2.1.2]) | D115: Spełnienie wskaźnika z art. 242 | E115: x | F115: x | G115: x | H115: x | I115: =IF(ROUND(I11+I31+I33,2)>=ROUND(I22-I25,2),"TAK","NIE") -> TAK | J115: =IF(ROUND(J11+J31+J33,2)>=ROUND(J22-J25,2),"TAK","NIE") -> TAK | K115: TAK | L115: TAK
D116: Spełnienie wskaźnika z art. 169 suofp (bez wyłączeń) | E116: x | F116: x | G116: x | H116: x | I116: =IF(I54<=15%,"TAK","NIE") -> TAK | J116: x | K116: x | L116: x | M116: x | N116: x | O116: x | P116: x | Q116: x | R116: x | S116: x | T116: x | U116: x | V116: x | W116: x | X116: x | Y116: x | Z116: x | AA116: x | AB116: x | AC116: x | AD116: x | AE116: x | AF116: x | AG116: x | AH116: x | AI116: x | AJ116: x | AK116: x | AL116: x
D117: Spełnienie wskaźnika z art. 169 suofp (z wyłączeniami) | E117: x | F117: x | G117: x | H117: x | I117: =IF(I55<=15%,"TAK","NIE") -> TAK | J117: x | K117: x | L117: x | M117: x | N117: x | O117: x | P117: x | Q117: x | R117: x | S117: x | T117: x | U117: x | V117: x | W117: x | X117: x | Y117: x | Z117: x | AA117: x | AB117: x | AC117: x | AD117: x | AE117: x | AF117: x | AG117: x | AH117: x | AI117: x | AJ117: x | AK117: x | AL117: x
D118: Spełnienie wskaźnika z art. 170 suofp (bez wyłączeń) | E118: x | F118: x | G118: x | H118: x | I118: =IF(I47<=60%,"TAK","NIE") -> TAK | J118: x | K118: x | L118: x | M118: x | N118: x | O118: x | P118: x | Q118: x | R118: x | S118: x | T118: x | U118: x | V118: x | W118: x | X118: x | Y118: x | Z118: x | AA118: x | AB118: x | AC118: x | AD118: x | AE118: x | AF118: x | AG118: x | AH118: x | AI118: x | AJ118: x | AK118: x | AL118: x
D119: Spełnienie wskaźnika z art. 170 suofp (z wyłączeniami) | E119: x | F119: x | G119: x | H119: x | I119: =IF(I48<=60%,"TAK","NIE") -> TAK | J119: x | K119: x | L119: x | M119: x | N119: x | O119: x | P119: x | Q119: x | R119: x | S119: x | T119: x | U119: x | V119: x | W119: x | X119: x | Y119: x | Z119: x | AA119: x | AB119: x | AC119: x | AD119: x | AE119: x | AF119: x | AG119: x | AH119: x | AI119: x | AJ119: x | AK119: x | AL119: x
C120: [13.3] = 0 (dla lat 2014 i wyższych) | D120: Umorzenie zobowiązań, o którym mowa w art. 190 ustawy o działalności leczniczej nie wykracza poza ustawowy okres | E120: x | F120: x | G120: x | H120: x | I120: x | J120: x | K120: =IF(K92=0,"TAK","BŁĄD") -> TAK | L120: TAK
C121: [1] + [4] - [2] - [5] = 0 | D121: Kontrola poprawności zbilansowania budżetu | E121: x | F121: x | G121: x | H121: x | I121: =IF(ROUND(I10+I30-I21-I39,2)=0,"OK",ROUND(I10+I30-I21-I39,2)) -> OK | J121: =IF(ROUND(J10+J30-J21-J39,2)=0,"OK",ROUND(J10+J30-J21-J39,2)) -> OK | K121: OK | L121: OK
C122: [6]"n" = [6]"n-1" + [4.3]"n" - [5.1]"n" + ([14.2]"n"-[14.2]"n-1") + [14.4] | D122: Kontrola poprawności wyliczenia kwoty długu | E122: x | F122: x | G122: x | H122: x | I122: =+IF(ROUND(H44+I35-I40+(I99-H99)+I104-I44,2)=0,"OK",ROUND(H44+I35-I40+(I99-H99)+I104-I44,2)) -> OK | J122: =+IF(ROUND(I44+J35-J40+(J99-I99)+J104-J44,2)=0,"OK",ROUND(I44+J35-J40+(J99-I99)+J104-J44,2)) -> OK | K122: OK | L122: OK
C123: [14.2] "n" = ( [14.2] "n-1" - [14.3] "n" ) | D123: Analiza zmiany kwoty długu spłacanego wydatkami budżetu - wartości różne od zera wymagają objaśnienia - wartości większe od zera wskazują na powstanie w roku prognozy nowego długu tego typu - wartości mniejsze od zera co do zasady nie powinny wystąpić | E123: x | F123: x | G123: x | H123: x | I123: =+IF(H99=0,"N/D",IF(ROUND(I99+I100-H99,2)=0,"OK",ROUND(I99+I100-H99,2))) -> N/D | J123: =+IF(I99=0,"N/D",IF(ROUND(J99+J100-I99,2)=0,"OK",ROUND(J99+J100-I99,2))) -> N/D | K123: N/D | L123: N/D | M123: N/D
C124: [13.1] "n" - ( [13.3] + [13.4] + [13.5] + [13.6] ) "n" = [13.1] "n-1" | D124: Porównanie na koniec roku prognozy stanu zobowiązań przejętych przez jst po likwidowanych i przekształcanych SP ZOZ z wydatkami i umorzeniami poniesionymi na ten cel ze stanem zobowiązań z okresu N-1 | E124: x | F124: x | G124: x | H124: x | I124: =+IF(H90=0,"N/D",IF(ROUND(I90+(I92+I93+I94+I95)-H90,2)=0,"OK",ROUND(I90+(I92+I93+I94+I95)-H90,2))) -> N/D | J124: =+IF(I90=0,"N/D",IF(ROUND(J90+(J92+J93+J94+J95)-I90,2)=0,"OK",ROUND(J90+(J92+J93+J94+J95)-I90,2))) -> N/D | K124: N/D | L124: N/D | M124: N/D
C125: jeśli [3] < 0 to sprawdź czy [4.1.1] + [4.2.1] + [4.3.1] + [4.4.1] + [3] = 0 | D125: Kontrola poprawności wykazania źródeł pokrycia deficytu | E125: x | F125: x | G125: x | H125: x | I125: =IF(I29<0,IF(ROUND(I32+I34+I36+I38+I29,2)=0,"OK",ROUND(I32+I34+I36+I38+I29,2)),"N/D") -> N/D | J125: =IF(J29<0,IF(ROUND(J32+J34+J36+J38+J29,2)=0,"OK",ROUND(J32+J34+J36+J38+J29,2)),"N/D") -> N/D | K125: N/D | L125: N/D
C126: jeśli [3] >= 0 to sprawdź czy [4.1.1]=0 i [4.2.1]=0 i [4.3.1]=0 i [4.4.1] = 0 | D126: Kontrola poprawności niewykazania źródeł pokrycia deficytu przy nadwyżce budżetu | E126: x | F126: x | G126: x | H126: x | I126: =IF(I29>=0,IF(ROUND(I32+I34+I36+I38,2)=0,"OK",ROUND(I32+I34+I36+I38,2)),"N/D") -> OK | J126: =IF(J29>=0,IF(ROUND(J32+J34+J36+J38,2)=0,"OK",ROUND(J32+J34+J36+J38,2)),"N/D") -> OK | K126: OK | L126: OK
C127: [1.1.3] >= [1.1.3.1] | D127: Reguła logiczna: [1.1.3] >= [1.1.3.1] | E127: x | F127: x | G127: x | H127: x | I127: =IF(I14>=I15,"OK","BŁĄD") -> OK | J127: OK | K127: OK | L127: OK
C128: [1.1.5] >= [13.2] | D128: Reguła logiczna: [1.1.5] >= [13.2] | E128: x | F128: x | G128: x | H128: x | I128: =IF(I17>=I91,"OK","BŁĄD") -> OK | J128: OK | K128: OK | L128: OK
C129: [1.1] >= ([1.1.1] + [1.1.2] + [1.1.3] + [1.1.4] + [1.1.5]) | D129: Reguła logiczna: [1.1] >= ([1.1.1] + [1.1.2] + [1.1.3] + [1.1.4] + [1.1.5]) | E129: x | F129: x | G129: x | H129: x | I129: =IF(I11>=I12+I13+I14+I16+I17,"OK","BŁĄD") -> OK | J129: OK | K129: OK | L129: OK
C130: [1.1] >= [12.1] | D130: Reguła logiczna: [1.1] >= [12.1] | E130: x | F130: x | G130: x | H130: x | I130: =IF(I11>=I77,"OK","BŁĄD") -> OK | J130: OK | K130: OK | L130: OK
C131: [1.2] >= [1.2.1] | D131: Reguła logiczna: [1.2] >= [1.2.1] | E131: x | F131: x | G131: x | H131: x | I131: =IF(I18>=I19,"OK","BŁĄD") -> OK | J131: OK | K131: OK | L131: OK
C132: [1.2] >= [1.2.2] | D132: Reguła logiczna: [1.2] >= [1.2.2] | E132: x | F132: x | G132: x | H132: x | I132: =IF(I18>=I20,"OK","BŁĄD") -> OK | J132: OK | K132: OK | L132: OK
C133: [1.2] >= [12.2] | D133: Reguła logiczna: [1.2] >= [12.2] | E133: x | F133: x | G133: x | H133: x | I133: =IF(I18>=I80,"OK","BŁĄD") -> OK | J133: OK | K133: OK | L133: OK
D134: Reguła logiczna: jeżeli [3] >0 to [10] = [3] | E134: x | F134: x | G134: x | H134: x | I134: =+IF(I29>0,IF(I29=I65,"OK","Błąd"),"N/D") -> Błąd | J134: =+IF(J29>0,IF(J29=J65,"OK","Błąd"),"N/D") -> N/D | K134: N/D | L134: N/D
C135: [10] >= [10.1] | D135: Reguła logiczna: [10] >= [10.1] | E135: x | F135: x | G135: x | H135: x | I135: =IF(I65>=I66,"OK","BŁĄD") -> OK | J135: OK | K135: OK | L135: OK
C136: jeśli [10] > 0 to powinno być [10.1] > 0 | D136: Reguła logiczna: jeżeli [10] > 0 to [10.1] >0 | E136: x | F136: x | G136: x | H136: x | I136: =IF(I65>0,IF(I66>0,"OK","BŁĄD"),"N/D") -> OK | J136: =IF(J65>0,IF(J66>0,"OK","BŁĄD"),"N/D") -> N/D | K136: N/D | L136: N/D
C137: [12.1] >= [12.1.1] | D137: Reguła logiczna: [12.1] >= [12.1.1] | E137: x | F137: x | G137: x | H137: x | I137: =IF(I77>=I78,"OK","BŁĄD") -> OK | J137: OK | K137: OK | L137: OK
C138: [12.1.1] >= [12.1.1.1] | D138: Reguła logiczna: [12.1.1] >= [12.1.1.1] | E138: x | F138: x | G138: x | H138: x | I138: =IF(I78>=I79,"OK","BŁĄD") -> OK | J138: OK | K138: OK | L138: OK
C139: [12.2] >= [12.2.1] | D139: Reguła logiczna: [12.2] >= [12.2.1] | E139: x | F139: x | G139: x | H139: x | I139: =IF(I80>=I81,"OK","BŁĄD") -> OK | J139: OK | K139: OK | L139: OK
C140: [12.2.1] >= [12.2.1.1] | D140: Reguła logiczna: [12.2.1] >= [12.2.1.1] | E140: x | F140: x | G140: x | H140: x | I140: =IF(I81>=I82,"OK","BŁĄD") -> OK | J140: OK | K140: OK | L140: OK
C141: [12.3] >= [12.3.1] | D141: Reguła logiczna: [12.3] >= [12.3.1] | E141: x | F141: x | G141: x | H141: x | I141: =IF(I83>=I84,"OK","BŁĄD") -> OK | J141: OK | K141: OK | L141: OK
C142: [12.3] >= [12.3.2] | D142: Reguła logiczna: [12.3] >= [12.3.2] | E142: x | F142: x | G142: x | H142: x | I142: =IF(I83>=I85,"OK","BŁĄD") -> OK | J142: OK | K142: OK | L142: OK
C143: [12.4] >= [12.4.1] | D143: Reguła logiczna: [12.4] >= [12.4.1] | E143: x | F143: x | G143: x | H143: x | I143: =IF(I86>=I87,"OK","BŁĄD") -> OK | J143: OK | K143: OK | L143: OK
C144: [12.4] >= [12.4.2] | D144: Reguła logiczna: [12.4] >= [12.4.2] | E144: x | F144: x | G144: x | H144: x | I144: =IF(I86>=I88,"OK","BŁĄD") -> OK | J144: OK | K144: OK | L144: OK
C145: [13.1] >= [13.3] | D145: Reguła logiczna: [13.1] >= [13.3] | E145: x | F145: x | G145: x | H145: x | I145: =IF(I90>=I92,"OK","BŁĄD") -> OK | J145: OK | K145: OK | L145: OK
C146: [13.4] >= [2.1.2] | D146: Reguła logiczna: [13.4] >= [2.1.2] | E146: x | F146: x | G146: x | H146: x | I146: =IF(I93>=I25,"OK","BŁĄD") -> OK | J146: OK | K146: OK | L146: OK
C147: [14.3] >= [14.3.1] + [14.3.2] + [14.3.3] | D147: Reguła logiczna: [14.3] >= [14.3.1] + [14.3.2] + [14.3.3] | E147: x | F147: x | G147: x | H147: x | I147: =IF(I100>=(I101+I102+I103),"OK","BŁĄD") -> OK | J147: OK | K147: OK | L147: OK
C148: [2.1.1] >= [2.1.1.1] | D148: Reguła logiczna: [2.1.1] >= [2.1.1.1] | E148: x | F148: x | G148: x | H148: x | I148: =IF(I23>=I24,"OK","BŁĄD") -> OK | J148: OK | K148: OK | L148: OK
C149: [2.1.1] >= [14.3.3] | D149: Reguła logiczna: [2.1.1] >= [14.3.3] | E149: x | F149: x | G149: x | H149: x | I149: =IF(I23>=I103,"OK","BŁĄD") -> OK | J149: OK | K149: OK | L149: OK
C150: [2.1.3] >= [2.1.3.1] | D150: Reguła logiczna: [2.1.3] >= [2.1.3.1] | E150: x | F150: x | G150: x | H150: x | I150: =IF(I26>=I27,"OK","BŁĄD") -> OK | J150: OK | K150: OK | L150: OK
C151: [2.1] >= ([2.1.1] + [2.1.2] + [2.1.3]) | D151: Reguła logiczna: [2.1] >= ([2.1.1] + [2.1.2] + [2.1.3]) | E151: x | F151: x | G151: x | H151: x | I151: =IF(I22>=(I23+I25+I26),"OK","BŁĄD") -> OK | J151: OK | K151: OK | L151: OK
C152: [2.1] >= [11.1] | D152: Reguła logiczna: [2.1] >= [11.1] | E152: x | F152: x | G152: x | H152: x | I152: =IF(I22>=I68,"OK","BŁĄD") -> OK | J152: OK | K152: OK | L152: OK
C153: [2.1] >= [11.3.1] | D153: Reguła logiczna: [2.1] >= [11.3.1] | E153: x | F153: x | G153: x | H153: x | I153: =IF(I22>=I71,"OK","BŁĄD") -> OK | J153: OK | K153: OK | L153: OK
C154: [2.1] >= [12.3] | D154: Reguła logiczna: [2.1] >= [12.3] | E154: x | F154: x | G154: x | H154: x | I154: =IF(I22>=I83,"OK","BŁĄD") -> OK | J154: OK | K154: OK | L154: OK
C155: [2.1] >= [13.7] | D155: Reguła logiczna: [2.1] >= [13.7] | E155: x | F155: x | G155: x | H155: x | I155: =IF(I22>=I96,"OK","BŁĄD") -> OK | J155: OK | K155: OK | L155: OK
C156: [2.2] >= [11.3.2] | D156: Reguła logiczna: [2.2] >= [11.3.2] | E156: x | F156: x | G156: x | H156: x | I156: =IF(I28>=I72,"OK","BŁĄD") -> OK | J156: OK | K156: OK | L156: OK
C157: [2.2] >= [11.4] + [11.5] | D157: Reguła logiczna: [2.2] >= [11.4] + [11.5] | E157: x | F157: x | G157: x | H157: x | I157: =IF(I28>=I73+I74,"OK","BŁĄD") -> OK | J157: OK | K157: OK | L157: OK
C158: [2.2] >= [11.6] | D158: Reguła logiczna: [2.2] >= [11.6] | E158: x | F158: x | G158: x | H158: x | I158: =IF(I28>=I75,"OK","BŁĄD") -> OK | J158: OK | K158: OK | L158: OK
C159: [2.2] >= [12.4] | D159: Reguła logiczna: [2.2] >= [12.4] | E159: x | F159: x | G159: x | H159: x | I159: =IF(I28>=I86,"OK","BŁĄD") -> OK | J159: OK | K159: OK | L159: OK
C160: [4.1] >= [4.1.1] | D160: Reguła logiczna: [4.1] >= [4.1.1] | E160: x | F160: x | G160: x | H160: x | I160: =IF(I31>=I32,"OK","BŁĄD") -> OK | J160: OK | K160: OK | L160: OK
C161: [4.2] >= [4.2.1] | D161: Reguła logiczna: [4.2] >= [4.2.1] | E161: x | F161: x | G161: x | H161: x | I161: =IF(I33>=I34,"OK","BŁĄD") -> OK | J161: OK | K161: OK | L161: OK
C162: [4.3] >= [4.3.1] | D162: Reguła logiczna: [4.3] >= [4.3.1] | E162: x | F162: x | G162: x | H162: x | I162: =IF(I35>=I36,"OK","BŁĄD") -> OK | J162: OK | K162: OK | L162: OK
C163: [4.4] >= [4.4.1] | D163: Reguła logiczna: [4.4] >= [4.4.1] | E163: x | F163: x | G163: x | H163: x | I163: =IF(I37>=I38,"OK","BŁĄD") -> OK | J163: OK | K163: OK | L163: OK
C164: [5.1] >= [5.1.1] | D164: Reguła logiczna: [5.1] >= [5.1.1] | E164: x | F164: x | G164: x | H164: x | I164: =IF(I40>=I41,"OK","BŁĄD") -> OK | J164: OK | K164: OK | L164: OK
C165: [5.1.1] >= [5.1.1.1] | D165: Reguła logiczna: [5.1.1] >= [5.1.1.1] | E165: x | F165: x | G165: x | H165: x | I165: =IF(I41>=I42,"OK","BŁĄD") -> OK | J165: OK | K165: OK | L165: OK
C166: [5.1] >= [10.1] | D166: Reguła logiczna: [5.1] >= [10.1] | E166: x | F166: x | G166: x | H166: x | I166: =IF(I40>=I66,"OK","BŁĄD") -> OK | J166: OK | K166: OK | L166: OK
C167: [5.1] >= [14.1] | D167: Reguła logiczna: [5.1] >= [14.1] | E167: x | F167: x | G167: x | H167: x | I167: =IF(I40>=I98,"OK","BŁĄD") -> OK | J167: OK | K167: OK | L167: OK
C168: [6] >= [6.1] | D168: Reguła logiczna: [6] >= [6.1] | E168: x | F168: x | G168: x | H168: x | I168: =IF(I44>=I45,"OK","BŁĄD") -> OK | J168: OK | K168: OK | L168: OK
C169: [6] >=[7] | D169: Reguła logiczna: [6] >=[7] | E169: x | F169: x | G169: x | H169: x | I169: =IF(I44>=I49,"OK","BŁĄD") -> OK | J169: OK | K169: OK | L169: OK
C170: [6] >= [14.2] | D170: Reguła logiczna: [6] >= [14.2] | E170: x | F170: x | G170: x | H170: x | I170: =IF(I44>=I99,"OK","BŁĄD") -> OK | J170: OK | K170: OK | L170: OK
C171: [6.1] >= [6.1.1] | D171: Reguła logiczna: [6.1] >= [6.1.1] | E171: x | F171: x | G171: x | H171: x | I171: =+IF(I45>=I46,"OK","BŁĄD") -> OK | J171: OK | K171: OK | L171: OK
C172: 7>=13.1 | D172: Reguła logiczna: 7>=13.1 | E172: x | F172: x | G172: x | H172: x | I172: =IF(I49>=I90,"OK","BŁĄD") -> OK | J172: OK | K172: OK | L172: OK
C173: jeżeli [2.1.3] <> 0 to [2.1.3.1] <> 0 | D173: Reguła logiczna: jeżeli [2.1.3] <> 0 to [2.1.3.1] <> 0 | E173: x | F173: x | G173: x | H173: x | I173: =IF(I26<>0,IF(I27<>0,"OK","BŁĄD"),"N/D") -> OK | J173: N/D | K173: N/D | L173: N/D
D175: Kontrola poprawności podstawowych kwot
D176: Dochody ogółem = bieżące + majątkowe | E176: =E11+E18 -> 11735693.56 | F176: 14062028.15 | G176: 13471394.42 | H176: 12678694 | I176: 13601645 | J176: 10825000 | K176: 12050000 | L176: 12170000
D177: Wydatki ogółem = bieżące + majątkowe | E177: =E22+E28 -> 12835915.98 | F177: 11481546.43 | G177: 14584700.7 | H177: 14401220 | I177: 12827688.81 | J177: 10825000 | K177: 12050000 | L177: 12170000
D178: Wynik budżetu = dochody ogółem - wydatki ogółem | E178: =E10-E21 -> -1100222.42 | F178: 2580481.72 | G178: -1113306.28 | H178: -1722526 | I178: 773956.19 | J178: 0 | K178: 0 | L178: 0
D179: Kwota wyłączeń innych niż art. 243 ust. 3 (wyłączenia z art. 36 ustawy "okołobudżetowej" i art. 121a ([poz. 5.1.1] - [poz. 5.1.1.1.])) | E179: =+E41-E42 -> 0 | F179: =+F41-F42 -> 0 | G179: 0 | H179: =+H41-H42 -> 0 | I179: 0 | J179: 0 | K179: 0 | L179: 0
D180: Wyliczenie kwoty długu | E180: x | F180: =E44+F35-F40+(F99-E99)+F104 -> 1422477.65 | G180: x | H180: =F44+H35-H40+(H99-F99)+H104 -> 773956.19 | I180: =H44+I35-I40+(I99-H99)+I104 -> 0 | J180: 0 | K180: 0 | L180: 0
D181: Wyliczenie zobowiązań wynikających z przejęcia przez jst zobowiązań po likwidowanych i przekształcanych SZOZ | E181: x | F181: =E90-(F92+F93+F94+F95) -> 0 | G181: x | H181: =F90-(H92+H93+H94+H95) -> 0 | I181: =H90-(I92+I93+I94+I95) -> 0 | J181: =I90-(J92+J93+J94+J95) -> 0 | K181: 0 | L181: 0
D183: Analiza ryzyka niespełnienia wskaźnika z art. 243
D184: Analiza składowych wzoru wskaźnika z art. 243
D185: 0 | E185: =+"różnica mniejsza od "&TEXT(D185*100,"0,0")&"%" -> różnica mniejsza od 0,0%
D186: 0.005 | E186: =+"różnica mniejsza od "&TEXT(D186*100,"0,0")&"%" -> różnica mniejsza od 0,5%
D187: 0.01 | E187: =+"różnica mniejsza od "&TEXT(D187*100,"0,0")&"%" -> różnica mniejsza od 1,0%
D188: max. limit spłat (planistyczny) - (R+O)/D (bez wyłączeń) | E188: x | F188: x | G188: x | H188: x | I188: =+IF(I10=0,"",I61-I56) -> 0.1305463512 | J188: 0.2186048598 | K188: 0.1834069251 | L188: 0.1874555966
D189: max. limit spłat (planistyczny) - (R+O)/D (z wyłączeniami) | E189: x | F189: x | G189: x | H189: x | I189: =+IF(I10=0,"",I61-I57) -> 0.1305463512 | J189: 0.2186048598 | K189: 0.1834069251 | L189: 0.1874555966
D190: max. limit spłat (wg wykonania) - (R+O)/D (bez wyłączeń) | E190: x | F190: x | G190: x | H190: x | I190: =+IF(I10=0,"",I62-I56) -> 0.1189149096 | J190: 0.2069734183 | K190: 0.1717754835 | L190: 0.1874555966
D191: max. limit spłat (wg wykonania) - (R+O)/D (z wyłączeniami) | E191: x | F191: x | G191: x | H191: x | I191: =+IF(I10=0,"",I62-I57) -> 0.1189149096 | J191: 0.2069734183 | K191: 0.1717754835 | L191: 0.1874555966
D192: DYNAMIKA podstawowych wielkości z prognozy
D193: 0.05 | E193: =+"zmiana większa niż +/- "&TEXT(D193*100,"0,0")&"%" -> zmiana większa niż +/- 5,0%
D194: 0.1 | E194: =+"zmiana większa niż +/- "&TEXT(D194*100,"0,0")&"%" -> zmiana większa niż +/- 10,0%
D195: 0.2 | E195: =+"zmiana większa niż +/- "&TEXT(D195*100,"0,0")&"%" -> zmiana większa niż +/- 20,0% | G195: [N-1]pl3kw / [N-2] | H195: [N-1]wyk / [N-1]pl3kw
D196: Dochody ogółem | E196: x | F196: =+IF(F10=0,0,IF(E222<>0,F222/E222-1,0)) -> 0.198227278 | G196: -0.04200203013 | H196: -0.05884323443 | I196: 0.07279543145 | J196: -0.2041403815 | K196: 0.1131639723 | L196: 0.009958506224
D197: dochody ogółem bez środków UE (fin. i współfin.) | E197: x | F197: =+IF(F10=0,0,IF(E223<>0,F223/E223-1,0)) -> 0.2152349977 | G197: 0.005560666287 | H197: -0.06125802866 | I197: -0.05971607418 | J197: -0.05228755023 | K197: 0.1131639723 | L197: 0.009958506224
D198: dochody bieżące bez środków UE (fin. i współfin.) | E198: x | F198: =+IF(F10=0,0,IF(E224<>0,F224/E224-1,0)) -> 0.2377770565 | G198: -0.01011806424 | H198: -0.03795481308 | I198: -0.05582824363 | J198: -0.03535467447 | K198: 0.1131639723 | L198: 0.009958506224
D199: dochody majątkowe bez środków UE (fin. i współfin.) | E199: x | F199: =+IF(F10=0,0,IF(E225<>0,F225/E225-1,0)) -> -0.2334301546 | G199: 0.509444418 | H199: -0.5523938203 | I199: -0.2358294966 | J199: -1 | K199: 0 | L199: 0
D200: dochody majątkowe bez środków UE (fin. i współfin.) i bez sprzedaży majątku | E200: x | F200: =+IF(F10=0,0,IF(E226<>0,F226/E226-1,0)) -> -0.1278339252 | G200: -0.1976949577 | H200: 0 | I200: -0.9980482169 | J200: -1 | K200: 0 | L200: 0
D201: dochody ze sprzedaży majątku | E201: x | F201: =+IF(F10=0,0,IF(E227<>0,F227/E227-1,0)) -> -0.5085953399 | G201: 3.77991324 | H201: -0.9812121212 | I201: 31.25806452 | J201: -1 | K201: 0 | L201: 0
D202: Wydatki ogółem | E202: x | F202: =+IF(F10=0,0,IF(E228<>0,F228/E228-1,0)) -> -0.1055140554 | G202: 0.2702731979 | H202: -0.01258035415 | I202: -0.1092637422 | J202: -0.1561223413 | K202: 0.1131639723 | L202: 0.009958506224
D203: wydatki ogółem bez wydatków na projekty finansowane i współfinansowane środkami UE | E203: x | F203: =+IF(F10=0,0,IF(E229<>0,F229/E229-1,0)) -> -0.1077164604 | G203: 0.0255972394 | H203: -0.01662254352 | I203: 0.1817762503 | J203: -0.1561223413 | K203: 0.1131639723 | L203: 0.009958506224
D204: wydatki bieżące ogółem | E204: x | F204: =+IF(F10=0,0,IF(E230<>0,F230/E230-1,0)) -> -0.01695587363 | G204: 0.09978877621 | H204: -0.01842300613 | I204: -0.08783437931 | J204: 0.02498670767 | K204: 0.0249452954 | L204: 0.02476515798
D205: wydatki bieżące ogółem bez wydatków na projekty współfinansowane środkami UE | E205: x | F205: =+IF(F10=0,0,IF(E231<>0,F231/E231-1,0)) -> -0.02089427029 | G205: 0.1028682063 | H205: -0.01869542149 | I205: -0.07408949878 | J205: 0.02498670767 | K205: 0.0249452954 | L205: 0.02476515798
D206: wydatki bieżące na wynagrodzenia i składki od nich naliczane | E206: x | F206: =+IF(F10=0,0,IF(E232<>0,F232/E232-1,0)) -> -0.06072613561 | G206: 0.05633900694 | H206: -0.03857914317 | I206: -0.01638929062 | J206: 0.02499980202 | K206: 0.02498308474 | L206: 0.025
D207: pozostałe wydatki bieżące (wydatki bieżące bez wynagrodzeń i pochodnych oraz wydatków związanych z funkcjonowaniem organów jst, wydatków na obsługę długu oraz poręczeń i gwarancji) | E207: x | F207: =+IF(F10=0,0,IF(E233<>0,F233/E233-1,0)) -> 0.00851413546 | G207: 0.1802559422 | H207: 0.01172897518 | I207: -0.1919580874 | J207: 0.03602696963 | K207: 0.0248726673 | L207: 0.02436488215
D208: WIELKOŚĆ ZMIAN w podstawowych kwotach prognozy | G208: [N-1]pl3kw - [N-2] | H208: [N-1]wyk - [N-1]pl3kw
... 25 more rows

Sheet definicja (hidden)
B9: Lp. | C9: Wyszczególnienie | D9: 0 | E9: 0 | F9: =+E9+1 -> 1 | G9: =+F9+1 -> 2 | H9: 3 | I9: 4 | J9: 5 | K9: 6 | L9: 7 | M9: 8 | N9: 9 | O9: 10 | P9: =+O9+1 -> 11 | Q9: 12 | R9: 13 | S9: 14 | T9: 15 | U9: 16 | V9: 17 | W9: 18 | X9: 19 | Y9: 20 | Z9: 21 | AA9: 22 | AB9: 23 | AC9: 24 | AD9: 25 | AE9: 26 | AF9: 27 | AG9: =+AF9+1 -> 28 | AH9: =+AG9+1 -> 29
A10: 10 | B10: 1 | C10: Dochody ogółem | D10: =+"rokwzgl="&D$9&" i lp="&$A10 -> rokwzgl=0 i lp=10 | E10: rokwzgl=0 i lp=10 | F10: rokwzgl=1 i lp=10 | G10: rokwzgl=2 i lp=10 | H10: rokwzgl=3 i lp=10 | I10: rokwzgl=4 i lp=10 | J10: rokwzgl=5 i lp=10 | K10: rokwzgl=6 i lp=10 | L10: rokwzgl=7 i lp=10 | M10: rokwzgl=8 i lp=10 | N10: =+"rokwzgl="&N$9&" i lp="&$A10 -> rokwzgl=9 i lp=10 | O10: rokwzgl=10 i lp=10 | P10: rokwzgl=11 i lp=10 | Q10: rokwzgl=12 i lp=10 | R10: rokwzgl=13 i lp=10 | S10: rokwzgl=14 i lp=10 | T10: rokwzgl=15 i lp=10 | U10: rokwzgl=16 i lp=10 | V10: rokwzgl=17 i lp=10 | W10: rokwzgl=18 i lp=10 | X10: =+"rokwzgl="&X$9&" i lp="&$A10 -> rokwzgl=19 i lp=10 | Y10: rokwzgl=20 i lp=10 | Z10: rokwzgl=21 i lp=10 | AA10: rokwzgl=22 i lp=10 | AB10: rokwzgl=23 i lp=10 | AC10: rokwzgl=24 i lp=10 | AD10: rokwzgl=25 i lp=10 | AE10: rokwzgl=26 i lp=10 | AF10: rokwzgl=27 i lp=10 | AG10: rokwzgl=28 i lp=10 | AH10: rokwzgl=29 i lp=10
A11: 20 | B11: 1.1 | C11: Dochody bieżące | D11: rokwzgl=0 i lp=20 | E11: rokwzgl=0 i lp=20 | F11: rokwzgl=1 i lp=20 | G11: rokwzgl=2 i lp=20 | H11: rokwzgl=3 i lp=20 | I11: rokwzgl=4 i lp=20 | J11: rokwzgl=5 i lp=20 | K11: rokwzgl=6 i lp=20 | L11: rokwzgl=7 i lp=20 | M11: rokwzgl=8 i lp=20 | N11: rokwzgl=9 i lp=20 | O11: rokwzgl=10 i lp=20 | P11: rokwzgl=11 i lp=20 | Q11: rokwzgl=12 i lp=20 | R11: rokwzgl=13 i lp=20 | S11: rokwzgl=14 i lp=20 | T11: rokwzgl=15 i lp=20 | U11: rokwzgl=16 i lp=20 | V11: rokwzgl=17 i lp=20 | W11: rokwzgl=18 i lp=20 | X11: rokwzgl=19 i lp=20 | Y11: rokwzgl=20 i lp=20 | Z11: rokwzgl=21 i lp=20 | AA11: rokwzgl=22 i lp=20 | AB11: rokwzgl=23 i lp=20 | AC11: rokwzgl=24 i lp=20 | AD11: rokwzgl=25 i lp=20 | AE11: rokwzgl=26 i lp=20 | AF11: rokwzgl=27 i lp=20 | AG11: rokwzgl=28 i lp=20 | AH11: rokwzgl=29 i lp=20
A12: 30 | B12: 1.1.1 | C12: dochody z tytułu udziału we wpływach z podatku dochodowego od osób fizycznych | D12: rokwzgl=0 i lp=30 | E12: rokwzgl=0 i lp=30 | F12: rokwzgl=1 i lp=30 | G12: rokwzgl=2 i lp=30 | H12: rokwzgl=3 i lp=30 | I12: rokwzgl=4 i lp=30 | J12: rokwzgl=5 i lp=30 | K12: rokwzgl=6 i lp=30 | L12: rokwzgl=7 i lp=30 | M12: rokwzgl=8 i lp=30 | N12: rokwzgl=9 i lp=30 | O12: rokwzgl=10 i lp=30 | P12: rokwzgl=11 i lp=30 | Q12: rokwzgl=12 i lp=30 | R12: rokwzgl=13 i lp=30 | S12: rokwzgl=14 i lp=30 | T12: rokwzgl=15 i lp=30 | U12: rokwzgl=16 i lp=30 | V12: rokwzgl=17 i lp=30 | W12: rokwzgl=18 i lp=30 | X12: rokwzgl=19 i lp=30 | Y12: rokwzgl=20 i lp=30 | Z12: rokwzgl=21 i lp=30 | AA12: rokwzgl=22 i lp=30 | AB12: rokwzgl=23 i lp=30 | AC12: rokwzgl=24 i lp=30 | AD12: rokwzgl=25 i lp=30 | AE12: rokwzgl=26 i lp=30 | AF12: rokwzgl=27 i lp=30 | AG12: rokwzgl=28 i lp=30 | AH12: rokwzgl=29 i lp=30
A13: 40 | B13: 1.1.2 | C13: dochody z tytułu udziału we wpływach z podatku dochodowego od osób prawnych | D13: rokwzgl=0 i lp=40 | E13: rokwzgl=0 i lp=40 | F13: rokwzgl=1 i lp=40 | G13: rokwzgl=2 i lp=40 | H13: rokwzgl=3 i lp=40 | I13: rokwzgl=4 i lp=40 | J13: rokwzgl=5 i lp=40 | K13: rokwzgl=6 i lp=40 | L13: rokwzgl=7 i lp=40 | M13: rokwzgl=8 i lp=40 | N13: rokwzgl=9 i lp=40 | O13: rokwzgl=10 i lp=40 | P13: rokwzgl=11 i lp=40 | Q13: rokwzgl=12 i lp=40 | R13: rokwzgl=13 i lp=40 | S13: rokwzgl=14 i lp=40 | T13: rokwzgl=15 i lp=40 | U13: rokwzgl=16 i lp=40 | V13: rokwzgl=17 i lp=40 | W13: rokwzgl=18 i lp=40 | X13: rokwzgl=19 i lp=40 | Y13: rokwzgl=20 i lp=40 | Z13: rokwzgl=21 i lp=40 | AA13: rokwzgl=22 i lp=40 | AB13: rokwzgl=23 i lp=40 | AC13: rokwzgl=24 i lp=40 | AD13: rokwzgl=25 i lp=40 | AE13: rokwzgl=26 i lp=40 | AF13: rokwzgl=27 i lp=40 | AG13: rokwzgl=28 i lp=40 | AH13: rokwzgl=29 i lp=40
A14: 50 | B14: 1.1.3 | C14: podatki i opłaty | D14: rokwzgl=0 i lp=50 | E14: rokwzgl=0 i lp=50 | F14: rokwzgl=1 i lp=50 | G14: rokwzgl=2 i lp=50 | H14: rokwzgl=3 i lp=50 | I14: rokwzgl=4 i lp=50 | J14: rokwzgl=5 i lp=50 | K14: rokwzgl=6 i lp=50 | L14: rokwzgl=7 i lp=50 | M14: rokwzgl=8 i lp=50 | N14: rokwzgl=9 i lp=50 | O14: rokwzgl=10 i lp=50 | P14: rokwzgl=11 i lp=50 | Q14: rokwzgl=12 i lp=50 | R14: rokwzgl=13 i lp=50 | S14: rokwzgl=14 i lp=50 | T14: rokwzgl=15 i lp=50 | U14: rokwzgl=16 i lp=50 | V14: rokwzgl=17 i lp=50 | W14: rokwzgl=18 i lp=50 | X14: rokwzgl=19 i lp=50 | Y14: rokwzgl=20 i lp=50 | Z14: rokwzgl=21 i lp=50 | AA14: rokwzgl=22 i lp=50 | AB14: rokwzgl=23 i lp=50 | AC14: rokwzgl=24 i lp=50 | AD14: rokwzgl=25 i lp=50 | AE14: rokwzgl=26 i lp=50 | AF14: rokwzgl=27 i lp=50 | AG14: rokwzgl=28 i lp=50 | AH14: rokwzgl=29 i lp=50
A15: 60 | B15: 1.1.3.1 | C15: z podatku od nieruchomości | D15: rokwzgl=0 i lp=60 | E15: rokwzgl=0 i lp=60 | F15: rokwzgl=1 i lp=60 | G15: rokwzgl=2 i lp=60 | H15: rokwzgl=3 i lp=60 | I15: rokwzgl=4 i lp=60 | J15: rokwzgl=5 i lp=60 | K15: rokwzgl=6 i lp=60 | L15: rokwzgl=7 i lp=60 | M15: rokwzgl=8 i lp=60 | N15: rokwzgl=9 i lp=60 | O15: rokwzgl=10 i lp=60 | P15: rokwzgl=11 i lp=60 | Q15: rokwzgl=12 i lp=60 | R15: rokwzgl=13 i lp=60 | S15: rokwzgl=14 i lp=60 | T15: rokwzgl=15 i lp=60 | U15: rokwzgl=16 i lp=60 | V15: rokwzgl=17 i lp=60 | W15: rokwzgl=18 i lp=60 | X15: rokwzgl=19 i lp=60 | Y15: rokwzgl=20 i lp=60 | Z15: rokwzgl=21 i lp=60 | AA15: rokwzgl=22 i lp=60 | AB15: rokwzgl=23 i lp=60 | AC15: rokwzgl=24 i lp=60 | AD15: rokwzgl=25 i lp=60 | AE15: rokwzgl=26 i lp=60 | AF15: rokwzgl=27 i lp=60 | AG15: rokwzgl=28 i lp=60 | AH15: rokwzgl=29 i lp=60
A16: 70 | B16: 1.1.4 | C16: z subwencji ogólnej | D16: rokwzgl=0 i lp=70 | E16: rokwzgl=0 i lp=70 | F16: rokwzgl=1 i lp=70 | G16: rokwzgl=2 i lp=70 | H16: rokwzgl=3 i lp=70 | I16: rokwzgl=4 i lp=70 | J16: rokwzgl=5 i lp=70 | K16: rokwzgl=6 i lp=70 | L16: rokwzgl=7 i lp=70 | M16: rokwzgl=8 i lp=70 | N16: rokwzgl=9 i lp=70 | O16: rokwzgl=10 i lp=70 | P16: rokwzgl=11 i lp=70 | Q16: rokwzgl=12 i lp=70 | R16: rokwzgl=13 i lp=70 | S16: rokwzgl=14 i lp=70 | T16: rokwzgl=15 i lp=70 | U16: rokwzgl=16 i lp=70 | V16: rokwzgl=17 i lp=70 | W16: rokwzgl=18 i lp=70 | X16: rokwzgl=19 i lp=70 | Y16: rokwzgl=20 i lp=70 | Z16: rokwzgl=21 i lp=70 | AA16: rokwzgl=22 i lp=70 | AB16: rokwzgl=23 i lp=70 | AC16: rokwzgl=24 i lp=70 | AD16: rokwzgl=25 i lp=70 | AE16: rokwzgl=26 i lp=70 | AF16: rokwzgl=27 i lp=70 | AG16: rokwzgl=28 i lp=70 | AH16: rokwzgl=29 i lp=70
A17: 80 | B17: 1.1.5 | C17: z tytułu dotacji i środków przeznaczonych na cele bieżące | D17: rokwzgl=0 i lp=80 | E17: rokwzgl=0 i lp=80 | F17: rokwzgl=1 i lp=80 | G17: rokwzgl=2 i lp=80 | H17: rokwzgl=3 i lp=80 | I17: rokwzgl=4 i lp=80 | J17: rokwzgl=5 i lp=80 | K17: rokwzgl=6 i lp=80 | L17: rokwzgl=7 i lp=80 | M17: rokwzgl=8 i lp=80 | N17: rokwzgl=9 i lp=80 | O17: rokwzgl=10 i lp=80 | P17: rokwzgl=11 i lp=80 | Q17: rokwzgl=12 i lp=80 | R17: rokwzgl=13 i lp=80 | S17: rokwzgl=14 i lp=80 | T17: rokwzgl=15 i lp=80 | U17: rokwzgl=16 i lp=80 | V17: rokwzgl=17 i lp=80 | W17: rokwzgl=18 i lp=80 | X17: rokwzgl=19 i lp=80 | Y17: rokwzgl=20 i lp=80 | Z17: rokwzgl=21 i lp=80 | AA17: rokwzgl=22 i lp=80 | AB17: rokwzgl=23 i lp=80 | AC17: rokwzgl=24 i lp=80 | AD17: rokwzgl=25 i lp=80 | AE17: rokwzgl=26 i lp=80 | AF17: rokwzgl=27 i lp=80 | AG17: rokwzgl=28 i lp=80 | AH17: rokwzgl=29 i lp=80
A18: 90 | B18: 1.2 | C18: Dochody majątkowe, w tym | D18: rokwzgl=0 i lp=90 | E18: rokwzgl=0 i lp=90 | F18: rokwzgl=1 i lp=90 | G18: rokwzgl=2 i lp=90 | H18: rokwzgl=3 i lp=90 | I18: rokwzgl=4 i lp=90 | J18: rokwzgl=5 i lp=90 | K18: rokwzgl=6 i lp=90 | L18: rokwzgl=7 i lp=90 | M18: rokwzgl=8 i lp=90 | N18: rokwzgl=9 i lp=90 | O18: rokwzgl=10 i lp=90 | P18: rokwzgl=11 i lp=90 | Q18: rokwzgl=12 i lp=90 | R18: rokwzgl=13 i lp=90 | S18: rokwzgl=14 i lp=90 | T18: rokwzgl=15 i lp=90 | U18: rokwzgl=16 i lp=90 | V18: rokwzgl=17 i lp=90 | W18: rokwzgl=18 i lp=90 | X18: rokwzgl=19 i lp=90 | Y18: rokwzgl=20 i lp=90 | Z18: rokwzgl=21 i lp=90 | AA18: rokwzgl=22 i lp=90 | AB18: rokwzgl=23 i lp=90 | AC18: rokwzgl=24 i lp=90 | AD18: rokwzgl=25 i lp=90 | AE18: rokwzgl=26 i lp=90 | AF18: rokwzgl=27 i lp=90 | AG18: rokwzgl=28 i lp=90 | AH18: rokwzgl=29 i lp=90
A19: 100 | B19: 1.2.1 | C19: ze sprzedaży majątku | D19: rokwzgl=0 i lp=100 | E19: rokwzgl=0 i lp=100 | F19: rokwzgl=1 i lp=100 | G19: rokwzgl=2 i lp=100 | H19: rokwzgl=3 i lp=100 | I19: rokwzgl=4 i lp=100 | J19: rokwzgl=5 i lp=100 | K19: rokwzgl=6 i lp=100 | L19: rokwzgl=7 i lp=100 | M19: rokwzgl=8 i lp=100 | N19: rokwzgl=9 i lp=100 | O19: rokwzgl=10 i lp=100 | P19: rokwzgl=11 i lp=100 | Q19: rokwzgl=12 i lp=100 | R19: rokwzgl=13 i lp=100 | S19: rokwzgl=14 i lp=100 | T19: rokwzgl=15 i lp=100 | U19: rokwzgl=16 i lp=100 | V19: rokwzgl=17 i lp=100 | W19: rokwzgl=18 i lp=100 | X19: rokwzgl=19 i lp=100 | Y19: rokwzgl=20 i lp=100 | Z19: rokwzgl=21 i lp=100 | AA19: rokwzgl=22 i lp=100 | AB19: rokwzgl=23 i lp=100 | AC19: rokwzgl=24 i lp=100 | AD19: rokwzgl=25 i lp=100 | AE19: rokwzgl=26 i lp=100 | AF19: rokwzgl=27 i lp=100 | AG19: rokwzgl=28 i lp=100 | AH19: rokwzgl=29 i lp=100
A20: 110 | B20: 1.2.2 | C20: z tytułu dotacji oraz środków przeznaczonych na inwestycje | D20: =+"rokwzgl="&D$9&" i lp="&$A20 -> rokwzgl=0 i lp=110 | E20: rokwzgl=0 i lp=110 | F20: rokwzgl=1 i lp=110 | G20: rokwzgl=2 i lp=110 | H20: rokwzgl=3 i lp=110 | I20: rokwzgl=4 i lp=110 | J20: rokwzgl=5 i lp=110 | K20: rokwzgl=6 i lp=110 | L20: rokwzgl=7 i lp=110 | M20: rokwzgl=8 i lp=110 | N20: =+"rokwzgl="&N$9&" i lp="&$A20 -> rokwzgl=9 i lp=110 | O20: rokwzgl=10 i lp=110 | P20: rokwzgl=11 i lp=110 | Q20: rokwzgl=12 i lp=110 | R20: rokwzgl=13 i lp=110 | S20: rokwzgl=14 i lp=110 | T20: rokwzgl=15 i lp=110 | U20: rokwzgl=16 i lp=110 | V20: rokwzgl=17 i lp=110 | W20: rokwzgl=18 i lp=110 | X20: =+"rokwzgl="&X$9&" i lp="&$A20 -> rokwzgl=19 i lp=110 | Y20: rokwzgl=20 i lp=110 | Z20: rokwzgl=21 i lp=110 | AA20: rokwzgl=22 i lp=110 | AB20: rokwzgl=23 i lp=110 | AC20: rokwzgl=24 i lp=110 | AD20: rokwzgl=25 i lp=110 | AE20: rokwzgl=26 i lp=110 | AF20: rokwzgl=27 i lp=110 | AG20: rokwzgl=28 i lp=110 | AH20: rokwzgl=29 i lp=110
A21: 120 | B21: 2 | C21: Wydatki ogółem | D21: rokwzgl=0 i lp=120 | E21: rokwzgl=0 i lp=120 | F21: rokwzgl=1 i lp=120 | G21: rokwzgl=2 i lp=120 | H21: rokwzgl=3 i lp=120 | I21: rokwzgl=4 i lp=120 | J21: rokwzgl=5 i lp=120 | K21: rokwzgl=6 i lp=120 | L21: rokwzgl=7 i lp=120 | M21: rokwzgl=8 i lp=120 | N21: rokwzgl=9 i lp=120 | O21: rokwzgl=10 i lp=120 | P21: rokwzgl=11 i lp=120 | Q21: rokwzgl=12 i lp=120 | R21: rokwzgl=13 i lp=120 | S21: rokwzgl=14 i lp=120 | T21: rokwzgl=15 i lp=120 | U21: rokwzgl=16 i lp=120 | V21: rokwzgl=17 i lp=120 | W21: rokwzgl=18 i lp=120 | X21: rokwzgl=19 i lp=120 | Y21: rokwzgl=20 i lp=120 | Z21: rokwzgl=21 i lp=120 | AA21: rokwzgl=22 i lp=120 | AB21: rokwzgl=23 i lp=120 | AC21: rokwzgl=24 i lp=120 | AD21: rokwzgl=25 i lp=120 | AE21: rokwzgl=26 i lp=120 | AF21: rokwzgl=27 i lp=120 | AG21: rokwzgl=28 i lp=120 | AH21: rokwzgl=29 i lp=120
A22: 130 | B22: 2.1 | C22: Wydatki bieżące, w tym: | D22: rokwzgl=0 i lp=130 | E22: rokwzgl=0 i lp=130 | F22: rokwzgl=1 i lp=130 | G22: rokwzgl=2 i lp=130 | H22: rokwzgl=3 i lp=130 | I22: rokwzgl=4 i lp=130 | J22: rokwzgl=5 i lp=130 | K22: rokwzgl=6 i lp=130 | L22: rokwzgl=7 i lp=130 | M22: rokwzgl=8 i lp=130 | N22: rokwzgl=9 i lp=130 | O22: rokwzgl=10 i lp=130 | P22: rokwzgl=11 i lp=130 | Q22: rokwzgl=12 i lp=130 | R22: rokwzgl=13 i lp=130 | S22: rokwzgl=14 i lp=130 | T22: rokwzgl=15 i lp=130 | U22: rokwzgl=16 i lp=130 | V22: rokwzgl=17 i lp=130 | W22: rokwzgl=18 i lp=130 | X22: rokwzgl=19 i lp=130 | Y22: rokwzgl=20 i lp=130 | Z22: rokwzgl=21 i lp=130 | AA22: rokwzgl=22 i lp=130 | AB22: rokwzgl=23 i lp=130 | AC22: rokwzgl=24 i lp=130 | AD22: rokwzgl=25 i lp=130 | AE22: rokwzgl=26 i lp=130 | AF22: rokwzgl=27 i lp=130 | AG22: rokwzgl=28 i lp=130 | AH22: rokwzgl=29 i lp=130
A23: 140 | B23: 2.1.1 | C23: z tytułu poręczeń i gwarancji | D23: rokwzgl=0 i lp=140 | E23: rokwzgl=0 i lp=140 | F23: rokwzgl=1 i lp=140 | G23: rokwzgl=2 i lp=140 | H23: rokwzgl=3 i lp=140 | I23: rokwzgl=4 i lp=140 | J23: rokwzgl=5 i lp=140 | K23: rokwzgl=6 i lp=140 | L23: rokwzgl=7 i lp=140 | M23: rokwzgl=8 i lp=140 | N23: rokwzgl=9 i lp=140 | O23: rokwzgl=10 i lp=140 | P23: rokwzgl=11 i lp=140 | Q23: rokwzgl=12 i lp=140 | R23: rokwzgl=13 i lp=140 | S23: rokwzgl=14 i lp=140 | T23: rokwzgl=15 i lp=140 | U23: rokwzgl=16 i lp=140 | V23: rokwzgl=17 i lp=140 | W23: rokwzgl=18 i lp=140 | X23: rokwzgl=19 i lp=140 | Y23: rokwzgl=20 i lp=140 | Z23: rokwzgl=21 i lp=140 | AA23: rokwzgl=22 i lp=140 | AB23: rokwzgl=23 i lp=140 | AC23: rokwzgl=24 i lp=140 | AD23: rokwzgl=25 i lp=140 | AE23: rokwzgl=26 i lp=140 | AF23: rokwzgl=27 i lp=140 | AG23: rokwzgl=28 i lp=140 | AH23: rokwzgl=29 i lp=140
A24: 150 | B24: 2.1.1.1 | C24: w tym: gwarancje i poręczenia podlegające wyłączeniu z limitów spłaty zobowiązań określonych w art. 243 ust. 3 pkt 2 ustawy z dnia 27 sierpnia 2009 r. o finansach publicznych (Dz. U. Nr 157, poz. 1240, z późn. zm.) lub art. 169 ust. 3 pkt 2 ustawy z dnia 30 czerwca 2005 r. o finansach publicznych (Dz. U. Nr 249, poz. 2104, z późn. zm) | D24: rokwzgl=0 i lp=150 | E24: rokwzgl=0 i lp=150 | F24: rokwzgl=1 i lp=150 | G24: rokwzgl=2 i lp=150 | H24: rokwzgl=3 i lp=150 | I24: rokwzgl=4 i lp=150 | J24: rokwzgl=5 i lp=150 | K24: rokwzgl=6 i lp=150 | L24: rokwzgl=7 i lp=150 | M24: rokwzgl=8 i lp=150 | N24: rokwzgl=9 i lp=150 | O24: rokwzgl=10 i lp=150 | P24: rokwzgl=11 i lp=150 | Q24: rokwzgl=12 i lp=150 | R24: rokwzgl=13 i lp=150 | S24: rokwzgl=14 i lp=150 | T24: rokwzgl=15 i lp=150 | U24: rokwzgl=16 i lp=150 | V24: rokwzgl=17 i lp=150 | W24: rokwzgl=18 i lp=150 | X24: rokwzgl=19 i lp=150 | Y24: rokwzgl=20 i lp=150 | Z24: rokwzgl=21 i lp=150 | AA24: rokwzgl=22 i lp=150 | AB24: rokwzgl=23 i lp=150 | AC24: rokwzgl=24 i lp=150 | AD24: rokwzgl=25 i lp=150 | AE24: rokwzgl=26 i lp=150 | AF24: rokwzgl=27 i lp=150 | AG24: rokwzgl=28 i lp=150 | AH24: rokwzgl=29 i lp=150
A25: 160 | B25: 2.1.2 | C25: na spłatę przejętych zobowiązań samodzielnego publicznego zakładu opieki zdrowotnej przekształconego na zasadach określonych w przepisach o działalności leczniczej, w wysokości w jakiej nie podlegają sfinansowaniu dotacją z budżetu państwa) | D25: rokwzgl=0 i lp=160 | E25: rokwzgl=0 i lp=160 | F25: rokwzgl=1 i lp=160 | G25: rokwzgl=2 i lp=160 | H25: rokwzgl=3 i lp=160 | I25: rokwzgl=4 i lp=160 | J25: rokwzgl=5 i lp=160 | K25: rokwzgl=6 i lp=160 | L25: rokwzgl=7 i lp=160 | M25: rokwzgl=8 i lp=160 | N25: rokwzgl=9 i lp=160 | O25: rokwzgl=10 i lp=160 | P25: rokwzgl=11 i lp=160 | Q25: rokwzgl=12 i lp=160 | R25: rokwzgl=13 i lp=160 | S25: rokwzgl=14 i lp=160 | T25: rokwzgl=15 i lp=160 | U25: rokwzgl=16 i lp=160 | V25: rokwzgl=17 i lp=160 | W25: rokwzgl=18 i lp=160 | X25: rokwzgl=19 i lp=160 | Y25: rokwzgl=20 i lp=160 | Z25: rokwzgl=21 i lp=160 | AA25: rokwzgl=22 i lp=160 | AB25: rokwzgl=23 i lp=160 | AC25: rokwzgl=24 i lp=160 | AD25: rokwzgl=25 i lp=160 | AE25: rokwzgl=26 i lp=160 | AF25: rokwzgl=27 i lp=160 | AG25: rokwzgl=28 i lp=160 | AH25: rokwzgl=29 i lp=160
A26: 170 | B26: 2.1.3 | C26: wydatki na obsługę długu | D26: rokwzgl=0 i lp=170 | E26: rokwzgl=0 i lp=170 | F26: rokwzgl=1 i lp=170 | G26: rokwzgl=2 i lp=170 | H26: rokwzgl=3 i lp=170 | I26: rokwzgl=4 i lp=170 | J26: rokwzgl=5 i lp=170 | K26: rokwzgl=6 i lp=170 | L26: rokwzgl=7 i lp=170 | M26: rokwzgl=8 i lp=170 | N26: rokwzgl=9 i lp=170 | O26: rokwzgl=10 i lp=170 | P26: rokwzgl=11 i lp=170 | Q26: rokwzgl=12 i lp=170 | R26: rokwzgl=13 i lp=170 | S26: rokwzgl=14 i lp=170 | T26: rokwzgl=15 i lp=170 | U26: rokwzgl=16 i lp=170 | V26: rokwzgl=17 i lp=170 | W26: rokwzgl=18 i lp=170 | X26: rokwzgl=19 i lp=170 | Y26: rokwzgl=20 i lp=170 | Z26: rokwzgl=21 i lp=170 | AA26: rokwzgl=22 i lp=170 | AB26: rokwzgl=23 i lp=170 | AC26: rokwzgl=24 i lp=170 | AD26: rokwzgl=25 i lp=170 | AE26: rokwzgl=26 i lp=170 | AF26: rokwzgl=27 i lp=170 | AG26: rokwzgl=28 i lp=170 | AH26: rokwzgl=29 i lp=170
A27: 180 | B27: 2.1.3.1 | C27: w tym odsetki i dyskonto określone w art. 243 ust. 1 ustawy lub art. 169 ust. 1 ufp z 2005 r.. | D27: rokwzgl=0 i lp=180 | E27: rokwzgl=0 i lp=180 | F27: rokwzgl=1 i lp=180 | G27: rokwzgl=2 i lp=180 | H27: rokwzgl=3 i lp=180 | I27: rokwzgl=4 i lp=180 | J27: rokwzgl=5 i lp=180 | K27: rokwzgl=6 i lp=180 | L27: rokwzgl=7 i lp=180 | M27: rokwzgl=8 i lp=180 | N27: rokwzgl=9 i lp=180 | O27: rokwzgl=10 i lp=180 | P27: rokwzgl=11 i lp=180 | Q27: rokwzgl=12 i lp=180 | R27: rokwzgl=13 i lp=180 | S27: rokwzgl=14 i lp=180 | T27: rokwzgl=15 i lp=180 | U27: rokwzgl=16 i lp=180 | V27: rokwzgl=17 i lp=180 | W27: rokwzgl=18 i lp=180 | X27: rokwzgl=19 i lp=180 | Y27: rokwzgl=20 i lp=180 | Z27: rokwzgl=21 i lp=180 | AA27: rokwzgl=22 i lp=180 | AB27: rokwzgl=23 i lp=180 | AC27: rokwzgl=24 i lp=180 | AD27: rokwzgl=25 i lp=180 | AE27: rokwzgl=26 i lp=180 | AF27: rokwzgl=27 i lp=180 | AG27: rokwzgl=28 i lp=180 | AH27: rokwzgl=29 i lp=180
A28: 190 | B28: 2.2 | C28: Wydatki majątkowe | D28: rokwzgl=0 i lp=190 | E28: rokwzgl=0 i lp=190 | F28: rokwzgl=1 i lp=190 | G28: rokwzgl=2 i lp=190 | H28: rokwzgl=3 i lp=190 | I28: rokwzgl=4 i lp=190 | J28: rokwzgl=5 i lp=190 | K28: rokwzgl=6 i lp=190 | L28: rokwzgl=7 i lp=190 | M28: rokwzgl=8 i lp=190 | N28: rokwzgl=9 i lp=190 | O28: rokwzgl=10 i lp=190 | P28: rokwzgl=11 i lp=190 | Q28: rokwzgl=12 i lp=190 | R28: rokwzgl=13 i lp=190 | S28: rokwzgl=14 i lp=190 | T28: rokwzgl=15 i lp=190 | U28: rokwzgl=16 i lp=190 | V28: rokwzgl=17 i lp=190 | W28: rokwzgl=18 i lp=190 | X28: rokwzgl=19 i lp=190 | Y28: rokwzgl=20 i lp=190 | Z28: rokwzgl=21 i lp=190 | AA28: rokwzgl=22 i lp=190 | AB28: rokwzgl=23 i lp=190 | AC28: rokwzgl=24 i lp=190 | AD28: rokwzgl=25 i lp=190 | AE28: rokwzgl=26 i lp=190 | AF28: rokwzgl=27 i lp=190 | AG28: rokwzgl=28 i lp=190 | AH28: rokwzgl=29 i lp=190
A29: 200 | B29: 3 | C29: Wynik budżetu | D29: rokwzgl=0 i lp=200 | E29: rokwzgl=0 i lp=200 | F29: rokwzgl=1 i lp=200 | G29: rokwzgl=2 i lp=200 | H29: rokwzgl=3 i lp=200 | I29: rokwzgl=4 i lp=200 | J29: rokwzgl=5 i lp=200 | K29: rokwzgl=6 i lp=200 | L29: rokwzgl=7 i lp=200 | M29: rokwzgl=8 i lp=200 | N29: rokwzgl=9 i lp=200 | O29: rokwzgl=10 i lp=200 | P29: rokwzgl=11 i lp=200 | Q29: rokwzgl=12 i lp=200 | R29: rokwzgl=13 i lp=200 | S29: rokwzgl=14 i lp=200 | T29: rokwzgl=15 i lp=200 | U29: rokwzgl=16 i lp=200 | V29: rokwzgl=17 i lp=200 | W29: rokwzgl=18 i lp=200 | X29: rokwzgl=19 i lp=200 | Y29: rokwzgl=20 i lp=200 | Z29: rokwzgl=21 i lp=200 | AA29: rokwzgl=22 i lp=200 | AB29: rokwzgl=23 i lp=200 | AC29: rokwzgl=24 i lp=200 | AD29: rokwzgl=25 i lp=200 | AE29: rokwzgl=26 i lp=200 | AF29: rokwzgl=27 i lp=200 | AG29: rokwzgl=28 i lp=200 | AH29: rokwzgl=29 i lp=200
A30: 210 | B30: 4 | C30: Przychody budżetu | D30: =+"rokwzgl="&D$9&" i lp="&$A30 -> rokwzgl=0 i lp=210 | E30: rokwzgl=0 i lp=210 | F30: rokwzgl=1 i lp=210 | G30: rokwzgl=2 i lp=210 | H30: rokwzgl=3 i lp=210 | I30: rokwzgl=4 i lp=210 | J30: rokwzgl=5 i lp=210 | K30: rokwzgl=6 i lp=210 | L30: rokwzgl=7 i lp=210 | M30: rokwzgl=8 i lp=210 | N30: =+"rokwzgl="&N$9&" i lp="&$A30 -> rokwzgl=9 i lp=210 | O30: rokwzgl=10 i lp=210 | P30: rokwzgl=11 i lp=210 | Q30: rokwzgl=12 i lp=210 | R30: rokwzgl=13 i lp=210 | S30: rokwzgl=14 i lp=210 | T30: rokwzgl=15 i lp=210 | U30: rokwzgl=16 i lp=210 | V30: rokwzgl=17 i lp=210 | W30: rokwzgl=18 i lp=210 | X30: =+"rokwzgl="&X$9&" i lp="&$A30 -> rokwzgl=19 i lp=210 | Y30: rokwzgl=20 i lp=210 | Z30: rokwzgl=21 i lp=210 | AA30: rokwzgl=22 i lp=210 | AB30: rokwzgl=23 i lp=210 | AC30: rokwzgl=24 i lp=210 | AD30: rokwzgl=25 i lp=210 | AE30: rokwzgl=26 i lp=210 | AF30: rokwzgl=27 i lp=210 | AG30: rokwzgl=28 i lp=210 | AH30: rokwzgl=29 i lp=210
A31: 220 | B31: 4.1 | C31: Nadwyżka budżetowa z lat ubiegłych | D31: rokwzgl=0 i lp=220 | E31: rokwzgl=0 i lp=220 | F31: rokwzgl=1 i lp=220 | G31: rokwzgl=2 i lp=220 | H31: rokwzgl=3 i lp=220 | I31: rokwzgl=4 i lp=220 | J31: rokwzgl=5 i lp=220 | K31: rokwzgl=6 i lp=220 | L31: rokwzgl=7 i lp=220 | M31: rokwzgl=8 i lp=220 | N31: rokwzgl=9 i lp=220 | O31: rokwzgl=10 i lp=220 | P31: rokwzgl=11 i lp=220 | Q31: rokwzgl=12 i lp=220 | R31: rokwzgl=13 i lp=220 | S31: rokwzgl=14 i lp=220 | T31: rokwzgl=15 i lp=220 | U31: rokwzgl=16 i lp=220 | V31: rokwzgl=17 i lp=220 | W31: rokwzgl=18 i lp=220 | X31: rokwzgl=19 i lp=220 | Y31: rokwzgl=20 i lp=220 | Z31: rokwzgl=21 i lp=220 | AA31: rokwzgl=22 i lp=220 | AB31: rokwzgl=23 i lp=220 | AC31: rokwzgl=24 i lp=220 | AD31: rokwzgl=25 i lp=220 | AE31: rokwzgl=26 i lp=220 | AF31: rokwzgl=27 i lp=220 | AG31: rokwzgl=28 i lp=220 | AH31: rokwzgl=29 i lp=220
A32: 230 | B32: 4.1.1 | C32: w tym na pokrycie deficytu budżetu | D32: rokwzgl=0 i lp=230 | E32: rokwzgl=0 i lp=230 | F32: rokwzgl=1 i lp=230 | G32: rokwzgl=2 i lp=230 | H32: rokwzgl=3 i lp=230 | I32: rokwzgl=4 i lp=230 | J32: rokwzgl=5 i lp=230 | K32: rokwzgl=6 i lp=230 | L32: rokwzgl=7 i lp=230 | M32: rokwzgl=8 i lp=230 | N32: rokwzgl=9 i lp=230 | O32: rokwzgl=10 i lp=230 | P32: rokwzgl=11 i lp=230 | Q32: rokwzgl=12 i lp=230 | R32: rokwzgl=13 i lp=230 | S32: rokwzgl=14 i lp=230 | T32: rokwzgl=15 i lp=230 | U32: rokwzgl=16 i lp=230 | V32: rokwzgl=17 i lp=230 | W32: rokwzgl=18 i lp=230 | X32: rokwzgl=19 i lp=230 | Y32: rokwzgl=20 i lp=230 | Z32: rokwzgl=21 i lp=230 | AA32: rokwzgl=22 i lp=230 | AB32: rokwzgl=23 i lp=230 | AC32: rokwzgl=24 i lp=230 | AD32: rokwzgl=25 i lp=230 | AE32: rokwzgl=26 i lp=230 | AF32: rokwzgl=27 i lp=230 | AG32: rokwzgl=28 i lp=230 | AH32: rokwzgl=29 i lp=230
A33: 240 | B33: 4.2 | C33: Wolne środki, o których mowa w art. 217 ust.2 pkt 6 ustawy | D33: rokwzgl=0 i lp=240 | E33: rokwzgl=0 i lp=240 | F33: rokwzgl=1 i lp=240 | G33: rokwzgl=2 i lp=240 | H33: rokwzgl=3 i lp=240 | I33: rokwzgl=4 i lp=240 | J33: rokwzgl=5 i lp=240 | K33: rokwzgl=6 i lp=240 | L33: rokwzgl=7 i lp=240 | M33: rokwzgl=8 i lp=240 | N33: rokwzgl=9 i lp=240 | O33: rokwzgl=10 i lp=240 | P33: rokwzgl=11 i lp=240 | Q33: rokwzgl=12 i lp=240 | R33: rokwzgl=13 i lp=240 | S33: rokwzgl=14 i lp=240 | T33: rokwzgl=15 i lp=240 | U33: rokwzgl=16 i lp=240 | V33: rokwzgl=17 i lp=240 | W33: rokwzgl=18 i lp=240 | X33: rokwzgl=19 i lp=240 | Y33: rokwzgl=20 i lp=240 | Z33: rokwzgl=21 i lp=240 | AA33: rokwzgl=22 i lp=240 | AB33: rokwzgl=23 i lp=240 | AC33: rokwzgl=24 i lp=240 | AD33: rokwzgl=25 i lp=240 | AE33: rokwzgl=26 i lp=240 | AF33: rokwzgl=27 i lp=240 | AG33: rokwzgl=28 i lp=240 | AH33: rokwzgl=29 i lp=240
A34: 250 | B34: 4.2.1 | C34: w tym na pokrycie deficytu budżetu | D34: rokwzgl=0 i lp=250 | E34: rokwzgl=0 i lp=250 | F34: rokwzgl=1 i lp=250 | G34: rokwzgl=2 i lp=250 | H34: rokwzgl=3 i lp=250 | I34: rokwzgl=4 i lp=250 | J34: rokwzgl=5 i lp=250 | K34: rokwzgl=6 i lp=250 | L34: rokwzgl=7 i lp=250 | M34: rokwzgl=8 i lp=250 | N34: rokwzgl=9 i lp=250 | O34: rokwzgl=10 i lp=250 | P34: rokwzgl=11 i lp=250 | Q34: rokwzgl=12 i lp=250 | R34: rokwzgl=13 i lp=250 | S34: rokwzgl=14 i lp=250 | T34: rokwzgl=15 i lp=250 | U34: rokwzgl=16 i lp=250 | V34: rokwzgl=17 i lp=250 | W34: rokwzgl=18 i lp=250 | X34: rokwzgl=19 i lp=250 | Y34: rokwzgl=20 i lp=250 | Z34: rokwzgl=21 i lp=250 | AA34: rokwzgl=22 i lp=250 | AB34: rokwzgl=23 i lp=250 | AC34: rokwzgl=24 i lp=250 | AD34: rokwzgl=25 i lp=250 | AE34: rokwzgl=26 i lp=250 | AF34: rokwzgl=27 i lp=250 | AG34: rokwzgl=28 i lp=250 | AH34: rokwzgl=29 i lp=250
A35: 260 | B35: 4.3 | C35: Kredyty, pożyczki, emisja papierów wartościowych | D35: rokwzgl=0 i lp=260 | E35: rokwzgl=0 i lp=260 | F35: rokwzgl=1 i lp=260 | G35: rokwzgl=2 i lp=260 | H35: rokwzgl=3 i lp=260 | I35: rokwzgl=4 i lp=260 | J35: rokwzgl=5 i lp=260 | K35: rokwzgl=6 i lp=260 | L35: rokwzgl=7 i lp=260 | M35: rokwzgl=8 i lp=260 | N35: rokwzgl=9 i lp=260 | O35: rokwzgl=10 i lp=260 | P35: rokwzgl=11 i lp=260 | Q35: rokwzgl=12 i lp=260 | R35: rokwzgl=13 i lp=260 | S35: rokwzgl=14 i lp=260 | T35: rokwzgl=15 i lp=260 | U35: rokwzgl=16 i lp=260 | V35: rokwzgl=17 i lp=260 | W35: rokwzgl=18 i lp=260 | X35: rokwzgl=19 i lp=260 | Y35: rokwzgl=20 i lp=260 | Z35: rokwzgl=21 i lp=260 | AA35: rokwzgl=22 i lp=260 | AB35: rokwzgl=23 i lp=260 | AC35: rokwzgl=24 i lp=260 | AD35: rokwzgl=25 i lp=260 | AE35: rokwzgl=26 i lp=260 | AF35: rokwzgl=27 i lp=260 | AG35: rokwzgl=28 i lp=260 | AH35: rokwzgl=29 i lp=260
A36: 270 | B36: 4.3.1 | C36: w tym na pokrycie deficytu budżetu | D36: rokwzgl=0 i lp=270 | E36: rokwzgl=0 i lp=270 | F36: rokwzgl=1 i lp=270 | G36: rokwzgl=2 i lp=270 | H36: rokwzgl=3 i lp=270 | I36: rokwzgl=4 i lp=270 | J36: rokwzgl=5 i lp=270 | K36: rokwzgl=6 i lp=270 | L36: rokwzgl=7 i lp=270 | M36: rokwzgl=8 i lp=270 | N36: rokwzgl=9 i lp=270 | O36: rokwzgl=10 i lp=270 | P36: rokwzgl=11 i lp=270 | Q36: rokwzgl=12 i lp=270 | R36: rokwzgl=13 i lp=270 | S36: rokwzgl=14 i lp=270 | T36: rokwzgl=15 i lp=270 | U36: rokwzgl=16 i lp=270 | V36: rokwzgl=17 i lp=270 | W36: rokwzgl=18 i lp=270 | X36: rokwzgl=19 i lp=270 | Y36: rokwzgl=20 i lp=270 | Z36: rokwzgl=21 i lp=270 | AA36: rokwzgl=22 i lp=270 | AB36: rokwzgl=23 i lp=270 | AC36: rokwzgl=24 i lp=270 | AD36: rokwzgl=25 i lp=270 | AE36: rokwzgl=26 i lp=270 | AF36: rokwzgl=27 i lp=270 | AG36: rokwzgl=28 i lp=270 | AH36: rokwzgl=29 i lp=270
A37: 280 | B37: 4.4 | C37: Inne przychody niezwiązane z zaciągnięciem długu | D37: rokwzgl=0 i lp=280 | E37: rokwzgl=0 i lp=280 | F37: rokwzgl=1 i lp=280 | G37: rokwzgl=2 i lp=280 | H37: rokwzgl=3 i lp=280 | I37: rokwzgl=4 i lp=280 | J37: rokwzgl=5 i lp=280 | K37: rokwzgl=6 i lp=280 | L37: rokwzgl=7 i lp=280 | M37: rokwzgl=8 i lp=280 | N37: rokwzgl=9 i lp=280 | O37: rokwzgl=10 i lp=280 | P37: rokwzgl=11 i lp=280 | Q37: rokwzgl=12 i lp=280 | R37: rokwzgl=13 i lp=280 | S37: rokwzgl=14 i lp=280 | T37: rokwzgl=15 i lp=280 | U37: rokwzgl=16 i lp=280 | V37: rokwzgl=17 i lp=280 | W37: rokwzgl=18 i lp=280 | X37: rokwzgl=19 i lp=280 | Y37: rokwzgl=20 i lp=280 | Z37: rokwzgl=21 i lp=280 | AA37: rokwzgl=22 i lp=280 | AB37: rokwzgl=23 i lp=280 | AC37: rokwzgl=24 i lp=280 | AD37: rokwzgl=25 i lp=280 | AE37: rokwzgl=26 i lp=280 | AF37: rokwzgl=27 i lp=280 | AG37: rokwzgl=28 i lp=280 | AH37: rokwzgl=29 i lp=280
A38: 290 | B38: 4.4.1 | C38: w tym na pokrycie deficytu budżetu | D38: rokwzgl=0 i lp=290 | E38: rokwzgl=0 i lp=290 | F38: rokwzgl=1 i lp=290 | G38: rokwzgl=2 i lp=290 | H38: rokwzgl=3 i lp=290 | I38: rokwzgl=4 i lp=290 | J38: rokwzgl=5 i lp=290 | K38: rokwzgl=6 i lp=290 | L38: rokwzgl=7 i lp=290 | M38: rokwzgl=8 i lp=290 | N38: rokwzgl=9 i lp=290 | O38: rokwzgl=10 i lp=290 | P38: rokwzgl=11 i lp=290 | Q38: rokwzgl=12 i lp=290 | R38: rokwzgl=13 i lp=290 | S38: rokwzgl=14 i lp=290 | T38: rokwzgl=15 i lp=290 | U38: rokwzgl=16 i lp=290 | V38: rokwzgl=17 i lp=290 | W38: rokwzgl=18 i lp=290 | X38: rokwzgl=19 i lp=290 | Y38: rokwzgl=20 i lp=290 | Z38: rokwzgl=21 i lp=290 | AA38: rokwzgl=22 i lp=290 | AB38: rokwzgl=23 i lp=290 | AC38: rokwzgl=24 i lp=290 | AD38: rokwzgl=25 i lp=290 | AE38: rokwzgl=26 i lp=290 | AF38: rokwzgl=27 i lp=290 | AG38: rokwzgl=28 i lp=290 | AH38: rokwzgl=29 i lp=290
A39: 300 | B39: 5 | C39: Rozchody budżetu | D39: rokwzgl=0 i lp=300 | E39: rokwzgl=0 i lp=300 | F39: rokwzgl=1 i lp=300 | G39: rokwzgl=2 i lp=300 | H39: rokwzgl=3 i lp=300 | I39: rokwzgl=4 i lp=300 | J39: rokwzgl=5 i lp=300 | K39: rokwzgl=6 i lp=300 | L39: rokwzgl=7 i lp=300 | M39: rokwzgl=8 i lp=300 | N39: rokwzgl=9 i lp=300 | O39: rokwzgl=10 i lp=300 | P39: rokwzgl=11 i lp=300 | Q39: rokwzgl=12 i lp=300 | R39: rokwzgl=13 i lp=300 | S39: rokwzgl=14 i lp=300 | T39: rokwzgl=15 i lp=300 | U39: rokwzgl=16 i lp=300 | V39: rokwzgl=17 i lp=300 | W39: rokwzgl=18 i lp=300 | X39: rokwzgl=19 i lp=300 | Y39: rokwzgl=20 i lp=300 | Z39: rokwzgl=21 i lp=300 | AA39: rokwzgl=22 i lp=300 | AB39: rokwzgl=23 i lp=300 | AC39: rokwzgl=24 i lp=300 | AD39: rokwzgl=25 i lp=300 | AE39: rokwzgl=26 i lp=300 | AF39: rokwzgl=27 i lp=300 | AG39: rokwzgl=28 i lp=300 | AH39: rokwzgl=29 i lp=300
A40: 310 | B40: 5.1 | C40: Spłaty rat kapitałowych kredytów i pożyczek oraz wykup papierów wartościowych | D40: =+"rokwzgl="&D$9&" i lp="&$A40 -> rokwzgl=0 i lp=310 | E40: rokwzgl=0 i lp=310 | F40: rokwzgl=1 i lp=310 | G40: rokwzgl=2 i lp=310 | H40: rokwzgl=3 i lp=310 | I40: rokwzgl=4 i lp=310 | J40: rokwzgl=5 i lp=310 | K40: rokwzgl=6 i lp=310 | L40: rokwzgl=7 i lp=310 | M40: rokwzgl=8 i lp=310 | N40: =+"rokwzgl="&N$9&" i lp="&$A40 -> rokwzgl=9 i lp=310 | O40: rokwzgl=10 i lp=310 | P40: rokwzgl=11 i lp=310 | Q40: rokwzgl=12 i lp=310 | R40: rokwzgl=13 i lp=310 | S40: rokwzgl=14 i lp=310 | T40: rokwzgl=15 i lp=310 | U40: rokwzgl=16 i lp=310 | V40: rokwzgl=17 i lp=310 | W40: rokwzgl=18 i lp=310 | X40: =+"rokwzgl="&X$9&" i lp="&$A40 -> rokwzgl=19 i lp=310 | Y40: rokwzgl=20 i lp=310 | Z40: rokwzgl=21 i lp=310 | AA40: rokwzgl=22 i lp=310 | AB40: rokwzgl=23 i lp=310 | AC40: rokwzgl=24 i lp=310 | AD40: rokwzgl=25 i lp=310 | AE40: rokwzgl=26 i lp=310 | AF40: rokwzgl=27 i lp=310 | AG40: rokwzgl=28 i lp=310 | AH40: rokwzgl=29 i lp=310
A41: 320 | B41: 5.1.1 | C41: w tym łączna kwota przypadających na dany rok kwot wyłączeń określonych w: art. 243 ust. 3 pkt 1 ustawy (lub art. 169 ust. 3 pkt 1 ufp z 2005 r.), art. 121a ustawy z dnia 27 sierpnia 2009 r. – Przepisy wprowadzające ustawę o finansach publicznych (Dz. U. Nr 157, poz. 1241, z późn. zm.) oraz art. 36 ustawy z dnia 7 grudnia 2012 r. o zmianie niektórych ustaw związanych z realizacją ustawy budżetowej (Dz.U. poz. 1456) | D41: rokwzgl=0 i lp=320 | E41: rokwzgl=0 i lp=320 | F41: rokwzgl=1 i lp=320 | G41: rokwzgl=2 i lp=320 | H41: rokwzgl=3 i lp=320 | I41: rokwzgl=4 i lp=320 | J41: rokwzgl=5 i lp=320 | K41: rokwzgl=6 i lp=320 | L41: rokwzgl=7 i lp=320 | M41: rokwzgl=8 i lp=320 | N41: rokwzgl=9 i lp=320 | O41: rokwzgl=10 i lp=320 | P41: rokwzgl=11 i lp=320 | Q41: rokwzgl=12 i lp=320 | R41: rokwzgl=13 i lp=320 | S41: rokwzgl=14 i lp=320 | T41: rokwzgl=15 i lp=320 | U41: rokwzgl=16 i lp=320 | V41: rokwzgl=17 i lp=320 | W41: rokwzgl=18 i lp=320 | X41: rokwzgl=19 i lp=320 | Y41: rokwzgl=20 i lp=320 | Z41: rokwzgl=21 i lp=320 | AA41: rokwzgl=22 i lp=320 | AB41: rokwzgl=23 i lp=320 | AC41: rokwzgl=24 i lp=320 | AD41: rokwzgl=25 i lp=320 | AE41: rokwzgl=26 i lp=320 | AF41: rokwzgl=27 i lp=320 | AG41: rokwzgl=28 i lp=320 | AH41: rokwzgl=29 i lp=320
A42: 330 | B42: 5.1.1.1 | C42: w tym kwota przypadających na dany rok kwot wyłączeń określonych w art. 243 ust. 3 pkt 1 ustawy lub art. 169 ust. 3 pkt 1 ufp z 2005 r. | D42: rokwzgl=0 i lp=330 | E42: rokwzgl=0 i lp=330 | F42: rokwzgl=1 i lp=330 | G42: rokwzgl=2 i lp=330 | H42: rokwzgl=3 i lp=330 | I42: rokwzgl=4 i lp=330 | J42: rokwzgl=5 i lp=330 | K42: rokwzgl=6 i lp=330 | L42: rokwzgl=7 i lp=330 | M42: rokwzgl=8 i lp=330 | N42: rokwzgl=9 i lp=330 | O42: rokwzgl=10 i lp=330 | P42: rokwzgl=11 i lp=330 | Q42: rokwzgl=12 i lp=330 | R42: rokwzgl=13 i lp=330 | S42: rokwzgl=14 i lp=330 | T42: rokwzgl=15 i lp=330 | U42: rokwzgl=16 i lp=330 | V42: rokwzgl=17 i lp=330 | W42: rokwzgl=18 i lp=330 | X42: rokwzgl=19 i lp=330 | Y42: rokwzgl=20 i lp=330 | Z42: rokwzgl=21 i lp=330 | AA42: rokwzgl=22 i lp=330 | AB42: rokwzgl=23 i lp=330 | AC42: rokwzgl=24 i lp=330 | AD42: rokwzgl=25 i lp=330 | AE42: rokwzgl=26 i lp=330 | AF42: rokwzgl=27 i lp=330 | AG42: rokwzgl=28 i lp=330 | AH42: rokwzgl=29 i lp=330
A43: 340 | B43: 5.2 | C43: Inne rozchody niezwiązane ze spłatą długu | D43: rokwzgl=0 i lp=340 | E43: rokwzgl=0 i lp=340 | F43: rokwzgl=1 i lp=340 | G43: rokwzgl=2 i lp=340 | H43: rokwzgl=3 i lp=340 | I43: rokwzgl=4 i lp=340 | J43: rokwzgl=5 i lp=340 | K43: rokwzgl=6 i lp=340 | L43: rokwzgl=7 i lp=340 | M43: rokwzgl=8 i lp=340 | N43: rokwzgl=9 i lp=340 | O43: rokwzgl=10 i lp=340 | P43: rokwzgl=11 i lp=340 | Q43: rokwzgl=12 i lp=340 | R43: rokwzgl=13 i lp=340 | S43: rokwzgl=14 i lp=340 | T43: rokwzgl=15 i lp=340 | U43: rokwzgl=16 i lp=340 | V43: rokwzgl=17 i lp=340 | W43: rokwzgl=18 i lp=340 | X43: rokwzgl=19 i lp=340 | Y43: rokwzgl=20 i lp=340 | Z43: rokwzgl=21 i lp=340 | AA43: rokwzgl=22 i lp=340 | AB43: rokwzgl=23 i lp=340 | AC43: rokwzgl=24 i lp=340 | AD43: rokwzgl=25 i lp=340 | AE43: rokwzgl=26 i lp=340 | AF43: rokwzgl=27 i lp=340 | AG43: rokwzgl=28 i lp=340 | AH43: rokwzgl=29 i lp=340
A44: 350 | B44: 6 | C44: Kwota długu | D44: rokwzgl=0 i lp=350 | E44: rokwzgl=0 i lp=350 | F44: rokwzgl=1 i lp=350 | G44: rokwzgl=2 i lp=350 | H44: rokwzgl=3 i lp=350 | I44: rokwzgl=4 i lp=350 | J44: rokwzgl=5 i lp=350 | K44: rokwzgl=6 i lp=350 | L44: rokwzgl=7 i lp=350 | M44: rokwzgl=8 i lp=350 | N44: rokwzgl=9 i lp=350 | O44: rokwzgl=10 i lp=350 | P44: rokwzgl=11 i lp=350 | Q44: rokwzgl=12 i lp=350 | R44: rokwzgl=13 i lp=350 | S44: rokwzgl=14 i lp=350 | T44: rokwzgl=15 i lp=350 | U44: rokwzgl=16 i lp=350 | V44: rokwzgl=17 i lp=350 | W44: rokwzgl=18 i lp=350 | X44: rokwzgl=19 i lp=350 | Y44: rokwzgl=20 i lp=350 | Z44: rokwzgl=21 i lp=350 | AA44: rokwzgl=22 i lp=350 | AB44: rokwzgl=23 i lp=350 | AC44: rokwzgl=24 i lp=350 | AD44: rokwzgl=25 i lp=350 | AE44: rokwzgl=26 i lp=350 | AF44: rokwzgl=27 i lp=350 | AG44: rokwzgl=28 i lp=350 | AH44: rokwzgl=29 i lp=350
A45: 360 | B45: 6.1 | C45: Łączna kwota wyłączeń z ograniczeń długu określonych w art. 170 ust. 3 ufp z 2005 r. oraz w art. 36 ustawy o zmianie niektórych ustaw związanych z realizacją ustawy budżetowej, w tym: | D45: rokwzgl=0 i lp=360 | E45: rokwzgl=0 i lp=360 | F45: rokwzgl=1 i lp=360 | G45: rokwzgl=2 i lp=360 | H45: rokwzgl=3 i lp=360 | I45: rokwzgl=4 i lp=360 | J45: rokwzgl=5 i lp=360 | K45: rokwzgl=6 i lp=360 | L45: rokwzgl=7 i lp=360 | M45: rokwzgl=8 i lp=360 | N45: rokwzgl=9 i lp=360 | O45: rokwzgl=10 i lp=360 | P45: rokwzgl=11 i lp=360 | Q45: rokwzgl=12 i lp=360 | R45: rokwzgl=13 i lp=360 | S45: rokwzgl=14 i lp=360 | T45: rokwzgl=15 i lp=360 | U45: rokwzgl=16 i lp=360 | V45: rokwzgl=17 i lp=360 | W45: rokwzgl=18 i lp=360 | X45: rokwzgl=19 i lp=360 | Y45: rokwzgl=20 i lp=360 | Z45: rokwzgl=21 i lp=360 | AA45: rokwzgl=22 i lp=360 | AB45: rokwzgl=23 i lp=360 | AC45: rokwzgl=24 i lp=360 | AD45: rokwzgl=25 i lp=360 | AE45: rokwzgl=26 i lp=360 | AF45: rokwzgl=27 i lp=360 | AG45: rokwzgl=28 i lp=360 | AH45: rokwzgl=29 i lp=360
A46: 370 | B46: 6.1.1 | C46: - kwota wyłączeń z ograniczeń długu określonych w art. 170 ust. 3 ufp z 2005 r. | D46: rokwzgl=0 i lp=370 | E46: rokwzgl=0 i lp=370 | F46: rokwzgl=1 i lp=370 | G46: rokwzgl=2 i lp=370 | H46: rokwzgl=3 i lp=370 | I46: rokwzgl=4 i lp=370 | J46: rokwzgl=5 i lp=370 | K46: rokwzgl=6 i lp=370 | L46: rokwzgl=7 i lp=370 | M46: rokwzgl=8 i lp=370 | N46: rokwzgl=9 i lp=370 | O46: rokwzgl=10 i lp=370 | P46: rokwzgl=11 i lp=370 | Q46: rokwzgl=12 i lp=370 | R46: rokwzgl=13 i lp=370 | S46: rokwzgl=14 i lp=370 | T46: rokwzgl=15 i lp=370 | U46: rokwzgl=16 i lp=370 | V46: rokwzgl=17 i lp=370 | W46: rokwzgl=18 i lp=370 | X46: rokwzgl=19 i lp=370 | Y46: rokwzgl=20 i lp=370 | Z46: rokwzgl=21 i lp=370 | AA46: rokwzgl=22 i lp=370 | AB46: rokwzgl=23 i lp=370 | AC46: rokwzgl=24 i lp=370 | AD46: rokwzgl=25 i lp=370 | AE46: rokwzgl=26 i lp=370 | AF46: rokwzgl=27 i lp=370 | AG46: rokwzgl=28 i lp=370 | AH46: rokwzgl=29 i lp=370
A47: 380 | B47: 6.2 | C47: Wskaźnik zadłużenia do dochodów ogółem określony w art. 170 ufp z 2005 r., bez uwzględniania wyłączeń określonych w pkt 6.1. | D47: rokwzgl=0 i lp=380 | E47: rokwzgl=0 i lp=380 | F47: rokwzgl=1 i lp=380 | G47: rokwzgl=2 i lp=380 | H47: rokwzgl=3 i lp=380 | I47: rokwzgl=4 i lp=380 | J47: rokwzgl=5 i lp=380 | K47: rokwzgl=6 i lp=380 | L47: rokwzgl=7 i lp=380 | M47: rokwzgl=8 i lp=380 | N47: rokwzgl=9 i lp=380 | O47: rokwzgl=10 i lp=380 | P47: rokwzgl=11 i lp=380 | Q47: rokwzgl=12 i lp=380 | R47: rokwzgl=13 i lp=380 | S47: rokwzgl=14 i lp=380 | T47: rokwzgl=15 i lp=380 | U47: rokwzgl=16 i lp=380 | V47: rokwzgl=17 i lp=380 | W47: rokwzgl=18 i lp=380 | X47: rokwzgl=19 i lp=380 | Y47: rokwzgl=20 i lp=380 | Z47: rokwzgl=21 i lp=380 | AA47: rokwzgl=22 i lp=380 | AB47: rokwzgl=23 i lp=380 | AC47: rokwzgl=24 i lp=380 | AD47: rokwzgl=25 i lp=380 | AE47: rokwzgl=26 i lp=380 | AF47: rokwzgl=27 i lp=380 | AG47: rokwzgl=28 i lp=380 | AH47: rokwzgl=29 i lp=380
A48: 390 | B48: 6.3 | C48: Wskaźnik zadłużenia do dochodów ogółem, o którym mowa w art. 170 ufp z 2005 r., po uwzględnieniu wyłączeń określonych w pkt 6.1. | D48: rokwzgl=0 i lp=390 | E48: rokwzgl=0 i lp=390 | F48: rokwzgl=1 i lp=390 | G48: rokwzgl=2 i lp=390 | H48: rokwzgl=3 i lp=390 | I48: rokwzgl=4 i lp=390 | J48: rokwzgl=5 i lp=390 | K48: rokwzgl=6 i lp=390 | L48: rokwzgl=7 i lp=390 | M48: rokwzgl=8 i lp=390 | N48: rokwzgl=9 i lp=390 | O48: rokwzgl=10 i lp=390 | P48: rokwzgl=11 i lp=390 | Q48: rokwzgl=12 i lp=390 | R48: rokwzgl=13 i lp=390 | S48: rokwzgl=14 i lp=390 | T48: rokwzgl=15 i lp=390 | U48: rokwzgl=16 i lp=390 | V48: rokwzgl=17 i lp=390 | W48: rokwzgl=18 i lp=390 | X48: rokwzgl=19 i lp=390 | Y48: rokwzgl=20 i lp=390 | Z48: rokwzgl=21 i lp=390 | AA48: rokwzgl=22 i lp=390 | AB48: rokwzgl=23 i lp=390 | AC48: rokwzgl=24 i lp=390 | AD48: rokwzgl=25 i lp=390 | AE48: rokwzgl=26 i lp=390 | AF48: rokwzgl=27 i lp=390 | AG48: rokwzgl=28 i lp=390 | AH48: rokwzgl=29 i lp=390
A49: 400 | B49: 7 | C49: Kwota zobowiązań wynikających z przejęcia przez jednostkę samorządu terytorialnego zobowiązań po likwidowanych i przekształcanych jednostkach zaliczanych do sektora finansów publicznych | D49: rokwzgl=0 i lp=400 | E49: rokwzgl=0 i lp=400 | F49: rokwzgl=1 i lp=400 | G49: rokwzgl=2 i lp=400 | H49: rokwzgl=3 i lp=400 | I49: rokwzgl=4 i lp=400 | J49: rokwzgl=5 i lp=400 | K49: rokwzgl=6 i lp=400 | L49: rokwzgl=7 i lp=400 | M49: rokwzgl=8 i lp=400 | N49: rokwzgl=9 i lp=400 | O49: rokwzgl=10 i lp=400 | P49: rokwzgl=11 i lp=400 | Q49: rokwzgl=12 i lp=400 | R49: rokwzgl=13 i lp=400 | S49: rokwzgl=14 i lp=400 | T49: rokwzgl=15 i lp=400 | U49: rokwzgl=16 i lp=400 | V49: rokwzgl=17 i lp=400 | W49: rokwzgl=18 i lp=400 | X49: rokwzgl=19 i lp=400 | Y49: rokwzgl=20 i lp=400 | Z49: rokwzgl=21 i lp=400 | AA49: rokwzgl=22 i lp=400 | AB49: rokwzgl=23 i lp=400 | AC49: rokwzgl=24 i lp=400 | AD49: rokwzgl=25 i lp=400 | AE49: rokwzgl=26 i lp=400 | AF49: rokwzgl=27 i lp=400 | AG49: rokwzgl=28 i lp=400 | AH49: rokwzgl=29 i lp=400
A50: 410 | D50: =+"rokwzgl="&D$9&" i lp="&$A50 -> rokwzgl=0 i lp=410 | E50: rokwzgl=0 i lp=410 | F50: rokwzgl=1 i lp=410 | G50: rokwzgl=2 i lp=410 | H50: rokwzgl=3 i lp=410 | I50: rokwzgl=4 i lp=410 | J50: rokwzgl=5 i lp=410 | K50: rokwzgl=6 i lp=410 | L50: rokwzgl=7 i lp=410 | M50: rokwzgl=8 i lp=410 | N50: =+"rokwzgl="&N$9&" i lp="&$A50 -> rokwzgl=9 i lp=410 | O50: rokwzgl=10 i lp=410 | P50: rokwzgl=11 i lp=410 | Q50: rokwzgl=12 i lp=410 | R50: rokwzgl=13 i lp=410 | S50: rokwzgl=14 i lp=410 | T50: rokwzgl=15 i lp=410 | U50: rokwzgl=16 i lp=410 | V50: rokwzgl=17 i lp=410 | W50: rokwzgl=18 i lp=410 | X50: =+"rokwzgl="&X$9&" i lp="&$A50 -> rokwzgl=19 i lp=410 | Y50: rokwzgl=20 i lp=410 | Z50: rokwzgl=21 i lp=410 | AA50: rokwzgl=22 i lp=410 | AB50: rokwzgl=23 i lp=410 | AC50: rokwzgl=24 i lp=410 | AD50: rokwzgl=25 i lp=410 | AE50: rokwzgl=26 i lp=410 | AF50: rokwzgl=27 i lp=410 | AG50: rokwzgl=28 i lp=410 | AH50: rokwzgl=29 i lp=410
A51: 420 | B51: 8.1 | C51: Różnica między dochodami bieżącymi a wydatkami bieżącymi | D51: rokwzgl=0 i lp=420 | E51: rokwzgl=0 i lp=420 | F51: rokwzgl=1 i lp=420 | G51: rokwzgl=2 i lp=420 | H51: rokwzgl=3 i lp=420 | I51: rokwzgl=4 i lp=420 | J51: rokwzgl=5 i lp=420 | K51: rokwzgl=6 i lp=420 | L51: rokwzgl=7 i lp=420 | M51: rokwzgl=8 i lp=420 | N51: rokwzgl=9 i lp=420 | O51: rokwzgl=10 i lp=420 | P51: rokwzgl=11 i lp=420 | Q51: rokwzgl=12 i lp=420 | R51: rokwzgl=13 i lp=420 | S51: rokwzgl=14 i lp=420 | T51: rokwzgl=15 i lp=420 | U51: rokwzgl=16 i lp=420 | V51: rokwzgl=17 i lp=420 | W51: rokwzgl=18 i lp=420 | X51: rokwzgl=19 i lp=420 | Y51: rokwzgl=20 i lp=420 | Z51: rokwzgl=21 i lp=420 | AA51: rokwzgl=22 i lp=420 | AB51: rokwzgl=23 i lp=420 | AC51: rokwzgl=24 i lp=420 | AD51: rokwzgl=25 i lp=420 | AE51: rokwzgl=26 i lp=420 | AF51: rokwzgl=27 i lp=420 | AG51: rokwzgl=28 i lp=420 | AH51: rokwzgl=29 i lp=420
A52: 430 | B52: 8.2 | C52: Różnica między dochodami bieżącymi, powiększonymi o nadwyżkę budżetową określoną w pkt 4.1. i wolne środki określone w pkt 4.2. a wydatkami bieżącymi, pomniejszonym o wydatki określone w pkt 2.1.2. | D52: rokwzgl=0 i lp=430 | E52: rokwzgl=0 i lp=430 | F52: rokwzgl=1 i lp=430 | G52: rokwzgl=2 i lp=430 | H52: rokwzgl=3 i lp=430 | I52: rokwzgl=4 i lp=430 | J52: rokwzgl=5 i lp=430 | K52: rokwzgl=6 i lp=430 | L52: rokwzgl=7 i lp=430 | M52: rokwzgl=8 i lp=430 | N52: rokwzgl=9 i lp=430 | O52: rokwzgl=10 i lp=430 | P52: rokwzgl=11 i lp=430 | Q52: rokwzgl=12 i lp=430 | R52: rokwzgl=13 i lp=430 | S52: rokwzgl=14 i lp=430 | T52: rokwzgl=15 i lp=430 | U52: rokwzgl=16 i lp=430 | V52: rokwzgl=17 i lp=430 | W52: rokwzgl=18 i lp=430 | X52: rokwzgl=19 i lp=430 | Y52: rokwzgl=20 i lp=430 | Z52: rokwzgl=21 i lp=430 | AA52: rokwzgl=22 i lp=430 | AB52: rokwzgl=23 i lp=430 | AC52: rokwzgl=24 i lp=430 | AD52: rokwzgl=25 i lp=430 | AE52: rokwzgl=26 i lp=430 | AF52: rokwzgl=27 i lp=430 | AG52: rokwzgl=28 i lp=430 | AH52: rokwzgl=29 i lp=430
A53: 440 | D53: rokwzgl=0 i lp=440 | E53: rokwzgl=0 i lp=440 | F53: rokwzgl=1 i lp=440 | G53: rokwzgl=2 i lp=440 | H53: rokwzgl=3 i lp=440 | I53: rokwzgl=4 i lp=440 | J53: rokwzgl=5 i lp=440 | K53: rokwzgl=6 i lp=440 | L53: rokwzgl=7 i lp=440 | M53: rokwzgl=8 i lp=440 | N53: rokwzgl=9 i lp=440 | O53: rokwzgl=10 i lp=440 | P53: rokwzgl=11 i lp=440 | Q53: rokwzgl=12 i lp=440 | R53: rokwzgl=13 i lp=440 | S53: rokwzgl=14 i lp=440 | T53: rokwzgl=15 i lp=440 | U53: rokwzgl=16 i lp=440 | V53: rokwzgl=17 i lp=440 | W53: rokwzgl=18 i lp=440 | X53: rokwzgl=19 i lp=440 | Y53: rokwzgl=20 i lp=440 | Z53: rokwzgl=21 i lp=440 | AA53: rokwzgl=22 i lp=440 | AB53: rokwzgl=23 i lp=440 | AC53: rokwzgl=24 i lp=440 | AD53: rokwzgl=25 i lp=440 | AE53: rokwzgl=26 i lp=440 | AF53: rokwzgl=27 i lp=440 | AG53: rokwzgl=28 i lp=440 | AH53: rokwzgl=29 i lp=440
A54: 450 | B54: 9.1 | C54: Wskaźnik planowanej łącznej kwoty spłaty zobowiązań, o której mowa w art. 169 ust. 1 ufp z 2005 r. do dochodów ogółem, bez uwzględnienia wyłączeń określonych w pkt 5.1.1. | D54: rokwzgl=0 i lp=450 | E54: rokwzgl=0 i lp=450 | F54: rokwzgl=1 i lp=450 | G54: rokwzgl=2 i lp=450 | H54: rokwzgl=3 i lp=450 | I54: rokwzgl=4 i lp=450 | J54: rokwzgl=5 i lp=450 | K54: rokwzgl=6 i lp=450 | L54: rokwzgl=7 i lp=450 | M54: rokwzgl=8 i lp=450 | N54: rokwzgl=9 i lp=450 | O54: rokwzgl=10 i lp=450 | P54: rokwzgl=11 i lp=450 | Q54: rokwzgl=12 i lp=450 | R54: rokwzgl=13 i lp=450 | S54: rokwzgl=14 i lp=450 | T54: rokwzgl=15 i lp=450 | U54: rokwzgl=16 i lp=450 | V54: rokwzgl=17 i lp=450 | W54: rokwzgl=18 i lp=450 | X54: rokwzgl=19 i lp=450 | Y54: rokwzgl=20 i lp=450 | Z54: rokwzgl=21 i lp=450 | AA54: rokwzgl=22 i lp=450 | AB54: rokwzgl=23 i lp=450 | AC54: rokwzgl=24 i lp=450 | AD54: rokwzgl=25 i lp=450 | AE54: rokwzgl=26 i lp=450 | AF54: rokwzgl=27 i lp=450 | AG54: rokwzgl=28 i lp=450 | AH54: rokwzgl=29 i lp=450
A55: 460 | B55: 9.2 | C55: Wskaźnik planowanej łącznej kwoty spłaty zobowiązań, o której mowa w art. 169 ust. 1 ufp z 2005 r. do dochodów ogółem, po uwzględnieniu wyłączeń przypadających na dany rok określonych w pkt 5.1.1. | D55: rokwzgl=0 i lp=460 | E55: rokwzgl=0 i lp=460 | F55: rokwzgl=1 i lp=460 | G55: rokwzgl=2 i lp=460 | H55: rokwzgl=3 i lp=460 | I55: rokwzgl=4 i lp=460 | J55: rokwzgl=5 i lp=460 | K55: rokwzgl=6 i lp=460 | L55: rokwzgl=7 i lp=460 | M55: rokwzgl=8 i lp=460 | N55: rokwzgl=9 i lp=460 | O55: rokwzgl=10 i lp=460 | P55: rokwzgl=11 i lp=460 | Q55: rokwzgl=12 i lp=460 | R55: rokwzgl=13 i lp=460 | S55: rokwzgl=14 i lp=460 | T55: rokwzgl=15 i lp=460 | U55: rokwzgl=16 i lp=460 | V55: rokwzgl=17 i lp=460 | W55: rokwzgl=18 i lp=460 | X55: rokwzgl=19 i lp=460 | Y55: rokwzgl=20 i lp=460 | Z55: rokwzgl=21 i lp=460 | AA55: rokwzgl=22 i lp=460 | AB55: rokwzgl=23 i lp=460 | AC55: rokwzgl=24 i lp=460 | AD55: rokwzgl=25 i lp=460 | AE55: rokwzgl=26 i lp=460 | AF55: rokwzgl=27 i lp=460 | AG55: rokwzgl=28 i lp=460 | AH55: rokwzgl=29 i lp=460
A56: 470 | B56: 9.3 | C56: Wskaźnik planowanej łącznej kwoty spłaty zobowiązań, o której mowa w art. 243 ust. 1 ustawy do dochodów ogółem, bez uwzględnienia zobowiązań związku współtworzonego przez jednostkę samorządu terytorialnego i bez uwzględniania wyłączeń przypadających na dany rok określonych w pkt 5.1.1. | D56: rokwzgl=0 i lp=470 | E56: rokwzgl=0 i lp=470 | F56: rokwzgl=1 i lp=470 | G56: rokwzgl=2 i lp=470 | H56: rokwzgl=3 i lp=470 | I56: rokwzgl=4 i lp=470 | J56: rokwzgl=5 i lp=470 | K56: rokwzgl=6 i lp=470 | L56: rokwzgl=7 i lp=470 | M56: rokwzgl=8 i lp=470 | N56: rokwzgl=9 i lp=470 | O56: rokwzgl=10 i lp=470 | P56: rokwzgl=11 i lp=470 | Q56: rokwzgl=12 i lp=470 | R56: rokwzgl=13 i lp=470 | S56: rokwzgl=14 i lp=470 | T56: rokwzgl=15 i lp=470 | U56: rokwzgl=16 i lp=470 | V56: rokwzgl=17 i lp=470 | W56: rokwzgl=18 i lp=470 | X56: rokwzgl=19 i lp=470 | Y56: rokwzgl=20 i lp=470 | Z56: rokwzgl=21 i lp=470 | AA56: rokwzgl=22 i lp=470 | AB56: rokwzgl=23 i lp=470 | AC56: rokwzgl=24 i lp=470 | AD56: rokwzgl=25 i lp=470 | AE56: rokwzgl=26 i lp=470 | AF56: rokwzgl=27 i lp=470 | AG56: rokwzgl=28 i lp=470 | AH56: rokwzgl=29 i lp=470
A57: 480 | B57: 9.4 | C57: Wskaźnik planowanej łącznej kwoty spłaty zobowiązań, o której mowa w art. 243 ust. 1 ustawy do dochodów ogółem, bez uwzględnienia zobowiązań związku współtworzonego przez jednostkę samorządu terytorialnego, po uwzględnieniu wyłączeń przypadających na dany rok określonych w pkt 5.1.1. | D57: rokwzgl=0 i lp=480 | E57: rokwzgl=0 i lp=480 | F57: rokwzgl=1 i lp=480 | G57: rokwzgl=2 i lp=480 | H57: rokwzgl=3 i lp=480 | I57: rokwzgl=4 i lp=480 | J57: rokwzgl=5 i lp=480 | K57: rokwzgl=6 i lp=480 | L57: rokwzgl=7 i lp=480 | M57: rokwzgl=8 i lp=480 | N57: rokwzgl=9 i lp=480 | O57: rokwzgl=10 i lp=480 | P57: rokwzgl=11 i lp=480 | Q57: rokwzgl=12 i lp=480 | R57: rokwzgl=13 i lp=480 | S57: rokwzgl=14 i lp=480 | T57: rokwzgl=15 i lp=480 | U57: rokwzgl=16 i lp=480 | V57: rokwzgl=17 i lp=480 | W57: rokwzgl=18 i lp=480 | X57: rokwzgl=19 i lp=480 | Y57: rokwzgl=20 i lp=480 | Z57: rokwzgl=21 i lp=480 | AA57: rokwzgl=22 i lp=480 | AB57: rokwzgl=23 i lp=480 | AC57: rokwzgl=24 i lp=480 | AD57: rokwzgl=25 i lp=480 | AE57: rokwzgl=26 i lp=480 | AF57: rokwzgl=27 i lp=480 | AG57: rokwzgl=28 i lp=480 | AH57: rokwzgl=29 i lp=480
A58: 490 | B58: 9.5 | C58: Kwota zobowiązań związku współtworzonego przez jednostkę samorządu terytorialnego przypadających do spłaty w danym roku budżetowym, podlegająca doliczeniu zgodnie z art. 244 ustawy | D58: rokwzgl=0 i lp=490 | E58: rokwzgl=0 i lp=490 | F58: rokwzgl=1 i lp=490 | G58: rokwzgl=2 i lp=490 | H58: rokwzgl=3 i lp=490 | I58: rokwzgl=4 i lp=490 | J58: rokwzgl=5 i lp=490 | K58: rokwzgl=6 i lp=490 | L58: rokwzgl=7 i lp=490 | M58: rokwzgl=8 i lp=490 | N58: rokwzgl=9 i lp=490 | O58: rokwzgl=10 i lp=490 | P58: rokwzgl=11 i lp=490 | Q58: rokwzgl=12 i lp=490 | R58: rokwzgl=13 i lp=490 | S58: rokwzgl=14 i lp=490 | T58: rokwzgl=15 i lp=490 | U58: rokwzgl=16 i lp=490 | V58: rokwzgl=17 i lp=490 | W58: rokwzgl=18 i lp=490 | X58: rokwzgl=19 i lp=490 | Y58: rokwzgl=20 i lp=490 | Z58: rokwzgl=21 i lp=490 | AA58: rokwzgl=22 i lp=490 | AB58: rokwzgl=23 i lp=490 | AC58: rokwzgl=24 i lp=490 | AD58: rokwzgl=25 i lp=490 | AE58: rokwzgl=26 i lp=490 | AF58: rokwzgl=27 i lp=490 | AG58: rokwzgl=28 i lp=490 | AH58: rokwzgl=29 i lp=490
A59: 500 | B59: 9.6 | C59: Wskaźnik planowanej łącznej kwoty spłaty zobowiązań, o której mowa w art. 243 ust. 1 ustawy do dochodów ogółem, po uwzględnieniu zobowiązań związku współtworzonego przez jednostkę samorządu terytorialnego oraz po uwzględnieniu wyłączeń przypadających na dany rok określonych w pkt 5.1.1. | D59: rokwzgl=0 i lp=500 | E59: rokwzgl=0 i lp=500 | F59: rokwzgl=1 i lp=500 | G59: rokwzgl=2 i lp=500 | H59: rokwzgl=3 i lp=500 | I59: rokwzgl=4 i lp=500 | J59: rokwzgl=5 i lp=500 | K59: rokwzgl=6 i lp=500 | L59: rokwzgl=7 i lp=500 | M59: rokwzgl=8 i lp=500 | N59: rokwzgl=9 i lp=500 | O59: rokwzgl=10 i lp=500 | P59: rokwzgl=11 i lp=500 | Q59: rokwzgl=12 i lp=500 | R59: rokwzgl=13 i lp=500 | S59: rokwzgl=14 i lp=500 | T59: rokwzgl=15 i lp=500 | U59: rokwzgl=16 i lp=500 | V59: rokwzgl=17 i lp=500 | W59: rokwzgl=18 i lp=500 | X59: rokwzgl=19 i lp=500 | Y59: rokwzgl=20 i lp=500 | Z59: rokwzgl=21 i lp=500 | AA59: rokwzgl=22 i lp=500 | AB59: rokwzgl=23 i lp=500 | AC59: rokwzgl=24 i lp=500 | AD59: rokwzgl=25 i lp=500 | AE59: rokwzgl=26 i lp=500 | AF59: rokwzgl=27 i lp=500 | AG59: rokwzgl=28 i lp=500 | AH59: rokwzgl=29 i lp=500
A60: 505 | B60: 9.6.1 | C60: Wskaźnik jednoroczny | D60: =+"rokwzgl="&D$9&" i lp="&$A60 -> rokwzgl=0 i lp=505 | E60: rokwzgl=0 i lp=505 | F60: rokwzgl=1 i lp=505 | G60: rokwzgl=2 i lp=505 | H60: rokwzgl=3 i lp=505 | I60: rokwzgl=4 i lp=505 | J60: rokwzgl=5 i lp=505 | K60: rokwzgl=6 i lp=505 | L60: rokwzgl=7 i lp=505 | M60: rokwzgl=8 i lp=505 | N60: =+"rokwzgl="&N$9&" i lp="&$A60 -> rokwzgl=9 i lp=505 | O60: rokwzgl=10 i lp=505 | P60: rokwzgl=11 i lp=505 | Q60: rokwzgl=12 i lp=505 | R60: rokwzgl=13 i lp=505 | S60: rokwzgl=14 i lp=505 | T60: rokwzgl=15 i lp=505 | U60: rokwzgl=16 i lp=505 | V60: rokwzgl=17 i lp=505 | W60: rokwzgl=18 i lp=505 | X60: =+"rokwzgl="&X$9&" i lp="&$A60 -> rokwzgl=19 i lp=505 | Y60: rokwzgl=20 i lp=505 | Z60: rokwzgl=21 i lp=505 | AA60: rokwzgl=22 i lp=505 | AB60: rokwzgl=23 i lp=505 | AC60: rokwzgl=24 i lp=505 | AD60: rokwzgl=25 i lp=505 | AE60: rokwzgl=26 i lp=505 | AF60: rokwzgl=27 i lp=505 | AG60: rokwzgl=28 i lp=505 | AH60: rokwzgl=29 i lp=505
A61: 510 | B61: 9.7 | C61: Dopuszczalny wskaźnik spłaty zobowiązań określony w art. 243 ustawy, po uwzględnieniu wyłączeń określonych w art. 36 ustawy z dnia 7 grudnia 2012 r. o zmianie niektórych ustaw związanych z realizacją ustawy budżetowej, obliczony w oparciu o plan 3 kwartałów roku poprzedzającego rok budżetowy | D61: rokwzgl=0 i lp=510 | E61: rokwzgl=0 i lp=510 | F61: rokwzgl=1 i lp=510 | G61: rokwzgl=2 i lp=510 | H61: rokwzgl=3 i lp=510 | I61: rokwzgl=4 i lp=510 | J61: rokwzgl=5 i lp=510 | K61: rokwzgl=6 i lp=510 | L61: rokwzgl=7 i lp=510 | M61: rokwzgl=8 i lp=510 | N61: rokwzgl=9 i lp=510 | O61: rokwzgl=10 i lp=510 | P61: rokwzgl=11 i lp=510 | Q61: rokwzgl=12 i lp=510 | R61: rokwzgl=13 i lp=510 | S61: rokwzgl=14 i lp=510 | T61: rokwzgl=15 i lp=510 | U61: rokwzgl=16 i lp=510 | V61: rokwzgl=17 i lp=510 | W61: rokwzgl=18 i lp=510 | X61: rokwzgl=19 i lp=510 | Y61: rokwzgl=20 i lp=510 | Z61: rokwzgl=21 i lp=510 | AA61: rokwzgl=22 i lp=510 | AB61: rokwzgl=23 i lp=510 | AC61: rokwzgl=24 i lp=510 | AD61: rokwzgl=25 i lp=510 | AE61: rokwzgl=26 i lp=510 | AF61: rokwzgl=27 i lp=510 | AG61: rokwzgl=28 i lp=510 | AH61: rokwzgl=29 i lp=510
A62: 520 | B62: 9.7.1 | C62: Dopuszczalny wskaźnik spłaty zobowiązań określony w art. 243 ustawy, po uwzględnieniu wyłączeń określonych w art. 36 ustawy z dnia 7 grudnia 2012 r. o zmianie niektórych ustaw związanych z realizacją ustawy budżetowej, obliczony w oparciu o wykonanie roku poprzedzającego rok budżetowy | D62: rokwzgl=0 i lp=520 | E62: rokwzgl=0 i lp=520 | F62: rokwzgl=1 i lp=520 | G62: rokwzgl=2 i lp=520 | H62: rokwzgl=3 i lp=520 | I62: rokwzgl=4 i lp=520 | J62: rokwzgl=5 i lp=520 | K62: rokwzgl=6 i lp=520 | L62: rokwzgl=7 i lp=520 | M62: rokwzgl=8 i lp=520 | N62: rokwzgl=9 i lp=520 | O62: rokwzgl=10 i lp=520 | P62: rokwzgl=11 i lp=520 | Q62: rokwzgl=12 i lp=520 | R62: rokwzgl=13 i lp=520 | S62: rokwzgl=14 i lp=520 | T62: rokwzgl=15 i lp=520 | U62: rokwzgl=16 i lp=520 | V62: rokwzgl=17 i lp=520 | W62: rokwzgl=18 i lp=520 | X62: rokwzgl=19 i lp=520 | Y62: rokwzgl=20 i lp=520 | Z62: rokwzgl=21 i lp=520 | AA62: rokwzgl=22 i lp=520 | AB62: rokwzgl=23 i lp=520 | AC62: rokwzgl=24 i lp=520 | AD62: rokwzgl=25 i lp=520 | AE62: rokwzgl=26 i lp=520 | AF62: rokwzgl=27 i lp=520 | AG62: rokwzgl=28 i lp=520 | AH62: rokwzgl=29 i lp=520
A63: 530 | B63: 9.8 | C63: Informacja o spełnieniu wskaźnika spłaty zobowiązań określonego w art. 243 ustawy, po uwzględnieniu zobowiązań związku współtworzonego przez jednostkę samorządu terytorialnego oraz po uwzględnieniu wyłączeń określonych w pkt 5.1.1., obliczonego w oparciu o plan 3 kwartałów roku poprzedzającego rok budżetowy | D63: rokwzgl=0 i lp=530 | E63: rokwzgl=0 i lp=530 | F63: rokwzgl=1 i lp=530 | G63: rokwzgl=2 i lp=530 | H63: rokwzgl=3 i lp=530 | I63: rokwzgl=4 i lp=530 | J63: rokwzgl=5 i lp=530 | K63: rokwzgl=6 i lp=530 | L63: rokwzgl=7 i lp=530 | M63: rokwzgl=8 i lp=530 | N63: rokwzgl=9 i lp=530 | O63: rokwzgl=10 i lp=530 | P63: rokwzgl=11 i lp=530 | Q63: rokwzgl=12 i lp=530 | R63: rokwzgl=13 i lp=530 | S63: rokwzgl=14 i lp=530 | T63: rokwzgl=15 i lp=530 | U63: rokwzgl=16 i lp=530 | V63: rokwzgl=17 i lp=530 | W63: rokwzgl=18 i lp=530 | X63: rokwzgl=19 i lp=530 | Y63: rokwzgl=20 i lp=530 | Z63: rokwzgl=21 i lp=530 | AA63: rokwzgl=22 i lp=530 | AB63: rokwzgl=23 i lp=530 | AC63: rokwzgl=24 i lp=530 | AD63: rokwzgl=25 i lp=530 | AE63: rokwzgl=26 i lp=530 | AF63: rokwzgl=27 i lp=530 | AG63: rokwzgl=28 i lp=530 | AH63: rokwzgl=29 i lp=530
A64: 540 | B64: 9.8.1 | C64: Informacja o spełnieniu wskaźnika spłaty zobowiązań określonego w art. 243 ustawy, po uwzględnieniu zobowiązań związku współtworzonego przez jednostkę samorządu terytorialnego oraz po uwzględnieniu wyłączeń określonych w pkt 5.1.1., obliczonego w oparciu o wykonanie roku poprzedzającego rok budżetowy | D64: rokwzgl=0 i lp=540 | E64: rokwzgl=0 i lp=540 | F64: rokwzgl=1 i lp=540 | G64: rokwzgl=2 i lp=540 | H64: rokwzgl=3 i lp=540 | I64: rokwzgl=4 i lp=540 | J64: rokwzgl=5 i lp=540 | K64: rokwzgl=6 i lp=540 | L64: rokwzgl=7 i lp=540 | M64: rokwzgl=8 i lp=540 | N64: rokwzgl=9 i lp=540 | O64: rokwzgl=10 i lp=540 | P64: rokwzgl=11 i lp=540 | Q64: rokwzgl=12 i lp=540 | R64: rokwzgl=13 i lp=540 | S64: rokwzgl=14 i lp=540 | T64: rokwzgl=15 i lp=540 | U64: rokwzgl=16 i lp=540 | V64: rokwzgl=17 i lp=540 | W64: rokwzgl=18 i lp=540 | X64: rokwzgl=19 i lp=540 | Y64: rokwzgl=20 i lp=540 | Z64: rokwzgl=21 i lp=540 | AA64: rokwzgl=22 i lp=540 | AB64: rokwzgl=23 i lp=540 | AC64: rokwzgl=24 i lp=540 | AD64: rokwzgl=25 i lp=540 | AE64: rokwzgl=26 i lp=540 | AF64: rokwzgl=27 i lp=540 | AG64: rokwzgl=28 i lp=540 | AH64: rokwzgl=29 i lp=540
A65: 550 | B65: 10 | C65: Przeznaczenie prognozowanej nadwyżki budżetowej, w tym na: | D65: rokwzgl=0 i lp=550 | E65: rokwzgl=0 i lp=550 | F65: rokwzgl=1 i lp=550 | G65: rokwzgl=2 i lp=550 | H65: rokwzgl=3 i lp=550 | I65: rokwzgl=4 i lp=550 | J65: rokwzgl=5 i lp=550 | K65: rokwzgl=6 i lp=550 | L65: rokwzgl=7 i lp=550 | M65: rokwzgl=8 i lp=550 | N65: rokwzgl=9 i lp=550 | O65: rokwzgl=10 i lp=550 | P65: rokwzgl=11 i lp=550 | Q65: rokwzgl=12 i lp=550 | R65: rokwzgl=13 i lp=550 | S65: rokwzgl=14 i lp=550 | T65: rokwzgl=15 i lp=550 | U65: rokwzgl=16 i lp=550 | V65: rokwzgl=17 i lp=550 | W65: rokwzgl=18 i lp=550 | X65: rokwzgl=19 i lp=550 | Y65: rokwzgl=20 i lp=550 | Z65: rokwzgl=21 i lp=550 | AA65: rokwzgl=22 i lp=550 | AB65: rokwzgl=23 i lp=550 | AC65: rokwzgl=24 i lp=550 | AD65: rokwzgl=25 i lp=550 | AE65: rokwzgl=26 i lp=550 | AF65: rokwzgl=27 i lp=550 | AG65: rokwzgl=28 i lp=550 | AH65: rokwzgl=29 i lp=550
A66: 560 | B66: 10.1 | C66: Spłaty kredytów, pożyczek i wykup papierów wartościowych | D66: rokwzgl=0 i lp=560 | E66: rokwzgl=0 i lp=560 | F66: rokwzgl=1 i lp=560 | G66: rokwzgl=2 i lp=560 | H66: rokwzgl=3 i lp=560 | I66: rokwzgl=4 i lp=560 | J66: rokwzgl=5 i lp=560 | K66: rokwzgl=6 i lp=560 | L66: rokwzgl=7 i lp=560 | M66: rokwzgl=8 i lp=560 | N66: rokwzgl=9 i lp=560 | O66: rokwzgl=10 i lp=560 | P66: rokwzgl=11 i lp=560 | Q66: rokwzgl=12 i lp=560 | R66: rokwzgl=13 i lp=560 | S66: rokwzgl=14 i lp=560 | T66: rokwzgl=15 i lp=560 | U66: rokwzgl=16 i lp=560 | V66: rokwzgl=17 i lp=560 | W66: rokwzgl=18 i lp=560 | X66: rokwzgl=19 i lp=560 | Y66: rokwzgl=20 i lp=560 | Z66: rokwzgl=21 i lp=560 | AA66: rokwzgl=22 i lp=560 | AB66: rokwzgl=23 i lp=560 | AC66: rokwzgl=24 i lp=560 | AD66: rokwzgl=25 i lp=560 | AE66: rokwzgl=26 i lp=560 | AF66: rokwzgl=27 i lp=560 | AG66: rokwzgl=28 i lp=560 | AH66: rokwzgl=29 i lp=560
A67: 570 | B67: 11 | C67: Informacje uzupełniające o wybranych rodzajach wydatków budżetowych | D67: rokwzgl=0 i lp=570 | E67: rokwzgl=0 i lp=570 | F67: rokwzgl=1 i lp=570 | G67: rokwzgl=2 i lp=570 | H67: rokwzgl=3 i lp=570 | I67: rokwzgl=4 i lp=570 | J67: rokwzgl=5 i lp=570 | K67: rokwzgl=6 i lp=570 | L67: rokwzgl=7 i lp=570 | M67: rokwzgl=8 i lp=570 | N67: rokwzgl=9 i lp=570 | O67: rokwzgl=10 i lp=570 | P67: rokwzgl=11 i lp=570 | Q67: rokwzgl=12 i lp=570 | R67: rokwzgl=13 i lp=570 | S67: rokwzgl=14 i lp=570 | T67: rokwzgl=15 i lp=570 | U67: rokwzgl=16 i lp=570 | V67: rokwzgl=17 i lp=570 | W67: rokwzgl=18 i lp=570 | X67: rokwzgl=19 i lp=570 | Y67: rokwzgl=20 i lp=570 | Z67: rokwzgl=21 i lp=570 | AA67: rokwzgl=22 i lp=570 | AB67: rokwzgl=23 i lp=570 | AC67: rokwzgl=24 i lp=570 | AD67: rokwzgl=25 i lp=570 | AE67: rokwzgl=26 i lp=570 | AF67: rokwzgl=27 i lp=570 | AG67: rokwzgl=28 i lp=570 | AH67: rokwzgl=29 i lp=570
A68: 580 | B68: 11.1 | C68: Wydatki bieżące na wynagrodzenia i składki od nich naliczane | D68: rokwzgl=0 i lp=580 | E68: rokwzgl=0 i lp=580 | F68: rokwzgl=1 i lp=580 | G68: rokwzgl=2 i lp=580 | H68: rokwzgl=3 i lp=580 | I68: rokwzgl=4 i lp=580 | J68: rokwzgl=5 i lp=580 | K68: rokwzgl=6 i lp=580 | L68: rokwzgl=7 i lp=580 | M68: rokwzgl=8 i lp=580 | N68: rokwzgl=9 i lp=580 | O68: rokwzgl=10 i lp=580 | P68: rokwzgl=11 i lp=580 | Q68: rokwzgl=12 i lp=580 | R68: rokwzgl=13 i lp=580 | S68: rokwzgl=14 i lp=580 | T68: rokwzgl=15 i lp=580 | U68: rokwzgl=16 i lp=580 | V68: rokwzgl=17 i lp=580 | W68: rokwzgl=18 i lp=580 | X68: rokwzgl=19 i lp=580 | Y68: rokwzgl=20 i lp=580 | Z68: rokwzgl=21 i lp=580 | AA68: rokwzgl=22 i lp=580 | AB68: rokwzgl=23 i lp=580 | AC68: rokwzgl=24 i lp=580 | AD68: rokwzgl=25 i lp=580 | AE68: rokwzgl=26 i lp=580 | AF68: rokwzgl=27 i lp=580 | AG68: rokwzgl=28 i lp=580 | AH68: rokwzgl=29 i lp=580
A69: 590 | B69: 11.2 | C69: Wydatki związane z funkcjonowaniem organów jednostki samorządu terytorialnego | D69: rokwzgl=0 i lp=590 | E69: rokwzgl=0 i lp=590 | F69: rokwzgl=1 i lp=590 | G69: rokwzgl=2 i lp=590 | H69: rokwzgl=3 i lp=590 | I69: rokwzgl=4 i lp=590 | J69: rokwzgl=5 i lp=590 | K69: rokwzgl=6 i lp=590 | L69: rokwzgl=7 i lp=590 | M69: rokwzgl=8 i lp=590 | N69: rokwzgl=9 i lp=590 | O69: rokwzgl=10 i lp=590 | P69: rokwzgl=11 i lp=590 | Q69: rokwzgl=12 i lp=590 | R69: rokwzgl=13 i lp=590 | S69: rokwzgl=14 i lp=590 | T69: rokwzgl=15 i lp=590 | U69: rokwzgl=16 i lp=590 | V69: rokwzgl=17 i lp=590 | W69: rokwzgl=18 i lp=590 | X69: rokwzgl=19 i lp=590 | Y69: rokwzgl=20 i lp=590 | Z69: rokwzgl=21 i lp=590 | AA69: rokwzgl=22 i lp=590 | AB69: rokwzgl=23 i lp=590 | AC69: rokwzgl=24 i lp=590 | AD69: rokwzgl=25 i lp=590 | AE69: rokwzgl=26 i lp=590 | AF69: rokwzgl=27 i lp=590 | AG69: rokwzgl=28 i lp=590 | AH69: rokwzgl=29 i lp=590
A70: 600 | B70: 11.3 | C70: Wydatki objęte limitem art. 226 ust. 3 ustawy | D70: =+"rokwzgl="&D$9&" i lp="&$A70 -> rokwzgl=0 i lp=600 | E70: rokwzgl=0 i lp=600 | F70: rokwzgl=1 i lp=600 | G70: rokwzgl=2 i lp=600 | H70: rokwzgl=3 i lp=600 | I70: rokwzgl=4 i lp=600 | J70: rokwzgl=5 i lp=600 | K70: rokwzgl=6 i lp=600 | L70: rokwzgl=7 i lp=600 | M70: rokwzgl=8 i lp=600 | N70: =+"rokwzgl="&N$9&" i lp="&$A70 -> rokwzgl=9 i lp=600 | O70: rokwzgl=10 i lp=600 | P70: rokwzgl=11 i lp=600 | Q70: rokwzgl=12 i lp=600 | R70: rokwzgl=13 i lp=600 | S70: rokwzgl=14 i lp=600 | T70: rokwzgl=15 i lp=600 | U70: rokwzgl=16 i lp=600 | V70: rokwzgl=17 i lp=600 | W70: rokwzgl=18 i lp=600 | X70: =+"rokwzgl="&X$9&" i lp="&$A70 -> rokwzgl=19 i lp=600 | Y70: rokwzgl=20 i lp=600 | Z70: rokwzgl=21 i lp=600 | AA70: rokwzgl=22 i lp=600 | AB70: rokwzgl=23 i lp=600 | AC70: rokwzgl=24 i lp=600 | AD70: rokwzgl=25 i lp=600 | AE70: rokwzgl=26 i lp=600 | AF70: rokwzgl=27 i lp=600 | AG70: rokwzgl=28 i lp=600 | AH70: rokwzgl=29 i lp=600
A71: 610 | B71: 11.3.1 | C71: bieżące | D71: rokwzgl=0 i lp=610 | E71: rokwzgl=0 i lp=610 | F71: rokwzgl=1 i lp=610 | G71: rokwzgl=2 i lp=610 | H71: rokwzgl=3 i lp=610 | I71: rokwzgl=4 i lp=610 | J71: rokwzgl=5 i lp=610 | K71: rokwzgl=6 i lp=610 | L71: rokwzgl=7 i lp=610 | M71: rokwzgl=8 i lp=610 | N71: rokwzgl=9 i lp=610 | O71: rokwzgl=10 i lp=610 | P71: rokwzgl=11 i lp=610 | Q71: rokwzgl=12 i lp=610 | R71: rokwzgl=13 i lp=610 | S71: rokwzgl=14 i lp=610 | T71: rokwzgl=15 i lp=610 | U71: rokwzgl=16 i lp=610 | V71: rokwzgl=17 i lp=610 | W71: rokwzgl=18 i lp=610 | X71: rokwzgl=19 i lp=610 | Y71: rokwzgl=20 i lp=610 | Z71: rokwzgl=21 i lp=610 | AA71: rokwzgl=22 i lp=610 | AB71: rokwzgl=23 i lp=610 | AC71: rokwzgl=24 i lp=610 | AD71: rokwzgl=25 i lp=610 | AE71: rokwzgl=26 i lp=610 | AF71: rokwzgl=27 i lp=610 | AG71: rokwzgl=28 i lp=610 | AH71: rokwzgl=29 i lp=610
A72: 620 | B72: 11.3.2 | C72: majątkowe | D72: rokwzgl=0 i lp=620 | E72: rokwzgl=0 i lp=620 | F72: rokwzgl=1 i lp=620 | G72: rokwzgl=2 i lp=620 | H72: rokwzgl=3 i lp=620 | I72: rokwzgl=4 i lp=620 | J72: rokwzgl=5 i lp=620 | K72: rokwzgl=6 i lp=620 | L72: rokwzgl=7 i lp=620 | M72: rokwzgl=8 i lp=620 | N72: rokwzgl=9 i lp=620 | O72: rokwzgl=10 i lp=620 | P72: rokwzgl=11 i lp=620 | Q72: rokwzgl=12 i lp=620 | R72: rokwzgl=13 i lp=620 | S72: rokwzgl=14 i lp=620 | T72: rokwzgl=15 i lp=620 | U72: rokwzgl=16 i lp=620 | V72: rokwzgl=17 i lp=620 | W72: rokwzgl=18 i lp=620 | X72: rokwzgl=19 i lp=620 | Y72: rokwzgl=20 i lp=620 | Z72: rokwzgl=21 i lp=620 | AA72: rokwzgl=22 i lp=620 | AB72: rokwzgl=23 i lp=620 | AC72: rokwzgl=24 i lp=620 | AD72: rokwzgl=25 i lp=620 | AE72: rokwzgl=26 i lp=620 | AF72: rokwzgl=27 i lp=620 | AG72: rokwzgl=28 i lp=620 | AH72: rokwzgl=29 i lp=620
A73: 630 | B73: 11.4 | C73: Wydatki inwestycyjne kontynuowane | D73: rokwzgl=0 i lp=630 | E73: rokwzgl=0 i lp=630 | F73: rokwzgl=1 i lp=630 | G73: rokwzgl=2 i lp=630 | H73: rokwzgl=3 i lp=630 | I73: rokwzgl=4 i lp=630 | J73: rokwzgl=5 i lp=630 | K73: rokwzgl=6 i lp=630 | L73: rokwzgl=7 i lp=630 | M73: rokwzgl=8 i lp=630 | N73: rokwzgl=9 i lp=630 | O73: rokwzgl=10 i lp=630 | P73: rokwzgl=11 i lp=630 | Q73: rokwzgl=12 i lp=630 | R73: rokwzgl=13 i lp=630 | S73: rokwzgl=14 i lp=630 | T73: rokwzgl=15 i lp=630 | U73: rokwzgl=16 i lp=630 | V73: rokwzgl=17 i lp=630 | W73: rokwzgl=18 i lp=630 | X73: rokwzgl=19 i lp=630 | Y73: rokwzgl=20 i lp=630 | Z73: rokwzgl=21 i lp=630 | AA73: rokwzgl=22 i lp=630 | AB73: rokwzgl=23 i lp=630 | AC73: rokwzgl=24 i lp=630 | AD73: rokwzgl=25 i lp=630 | AE73: rokwzgl=26 i lp=630 | AF73: rokwzgl=27 i lp=630 | AG73: rokwzgl=28 i lp=630 | AH73: rokwzgl=29 i lp=630
A74: 640 | B74: 11.5 | C74: Nowe wydatki inwestycyjne | D74: rokwzgl=0 i lp=640 | E74: rokwzgl=0 i lp=640 | F74: rokwzgl=1 i lp=640 | G74: rokwzgl=2 i lp=640 | H74: rokwzgl=3 i lp=640 | I74: rokwzgl=4 i lp=640 | J74: rokwzgl=5 i lp=640 | K74: rokwzgl=6 i lp=640 | L74: rokwzgl=7 i lp=640 | M74: rokwzgl=8 i lp=640 | N74: rokwzgl=9 i lp=640 | O74: rokwzgl=10 i lp=640 | P74: rokwzgl=11 i lp=640 | Q74: rokwzgl=12 i lp=640 | R74: rokwzgl=13 i lp=640 | S74: rokwzgl=14 i lp=640 | T74: rokwzgl=15 i lp=640 | U74: rokwzgl=16 i lp=640 | V74: rokwzgl=17 i lp=640 | W74: rokwzgl=18 i lp=640 | X74: rokwzgl=19 i lp=640 | Y74: rokwzgl=20 i lp=640 | Z74: rokwzgl=21 i lp=640 | AA74: rokwzgl=22 i lp=640 | AB74: rokwzgl=23 i lp=640 | AC74: rokwzgl=24 i lp=640 | AD74: rokwzgl=25 i lp=640 | AE74: rokwzgl=26 i lp=640 | AF74: rokwzgl=27 i lp=640 | AG74: rokwzgl=28 i lp=640 | AH74: rokwzgl=29 i lp=640
A75: 650 | B75: 11.6 | C75: Wydatki majątkowe w formie dotacji | D75: rokwzgl=0 i lp=650 | E75: rokwzgl=0 i lp=650 | F75: rokwzgl=1 i lp=650 | G75: rokwzgl=2 i lp=650 | H75: rokwzgl=3 i lp=650 | I75: rokwzgl=4 i lp=650 | J75: rokwzgl=5 i lp=650 | K75: rokwzgl=6 i lp=650 | L75: rokwzgl=7 i lp=650 | M75: rokwzgl=8 i lp=650 | N75: rokwzgl=9 i lp=650 | O75: rokwzgl=10 i lp=650 | P75: rokwzgl=11 i lp=650 | Q75: rokwzgl=12 i lp=650 | R75: rokwzgl=13 i lp=650 | S75: rokwzgl=14 i lp=650 | T75: rokwzgl=15 i lp=650 | U75: rokwzgl=16 i lp=650 | V75: rokwzgl=17 i lp=650 | W75: rokwzgl=18 i lp=650 | X75: rokwzgl=19 i lp=650 | Y75: rokwzgl=20 i lp=650 | Z75: rokwzgl=21 i lp=650 | AA75: rokwzgl=22 i lp=650 | AB75: rokwzgl=23 i lp=650 | AC75: rokwzgl=24 i lp=650 | AD75: rokwzgl=25 i lp=650 | AE75: rokwzgl=26 i lp=650 | AF75: rokwzgl=27 i lp=650 | AG75: rokwzgl=28 i lp=650 | AH75: rokwzgl=29 i lp=650
A76: 660 | B76: 12 | C76: Finansowanie programów, projektów lub zadań realizowanych z udziałem środków, o których mowa w art. 5 ust. 1 pkt 2 i 3 ustawy | D76: rokwzgl=0 i lp=660 | E76: rokwzgl=0 i lp=660 | F76: rokwzgl=1 i lp=660 | G76: rokwzgl=2 i lp=660 | H76: rokwzgl=3 i lp=660 | I76: rokwzgl=4 i lp=660 | J76: rokwzgl=5 i lp=660 | K76: rokwzgl=6 i lp=660 | L76: rokwzgl=7 i lp=660 | M76: rokwzgl=8 i lp=660 | N76: rokwzgl=9 i lp=660 | O76: rokwzgl=10 i lp=660 | P76: rokwzgl=11 i lp=660 | Q76: rokwzgl=12 i lp=660 | R76: rokwzgl=13 i lp=660 | S76: rokwzgl=14 i lp=660 | T76: rokwzgl=15 i lp=660 | U76: rokwzgl=16 i lp=660 | V76: rokwzgl=17 i lp=660 | W76: rokwzgl=18 i lp=660 | X76: rokwzgl=19 i lp=660 | Y76: rokwzgl=20 i lp=660 | Z76: rokwzgl=21 i lp=660 | AA76: rokwzgl=22 i lp=660 | AB76: rokwzgl=23 i lp=660 | AC76: rokwzgl=24 i lp=660 | AD76: rokwzgl=25 i lp=660 | AE76: rokwzgl=26 i lp=660 | AF76: rokwzgl=27 i lp=660 | AG76: rokwzgl=28 i lp=660 | AH76: rokwzgl=29 i lp=660
A77: 670 | B77: 12.1 | C77: Dochody bieżące na programy, projekty lub zadania finansowane z udziałem środków, o których mowa w art. 5 ust. 1 pkt 2 i 3 ustawy | D77: rokwzgl=0 i lp=670 | E77: rokwzgl=0 i lp=670 | F77: rokwzgl=1 i lp=670 | G77: rokwzgl=2 i lp=670 | H77: rokwzgl=3 i lp=670 | I77: rokwzgl=4 i lp=670 | J77: rokwzgl=5 i lp=670 | K77: rokwzgl=6 i lp=670 | L77: rokwzgl=7 i lp=670 | M77: rokwzgl=8 i lp=670 | N77: rokwzgl=9 i lp=670 | O77: rokwzgl=10 i lp=670 | P77: rokwzgl=11 i lp=670 | Q77: rokwzgl=12 i lp=670 | R77: rokwzgl=13 i lp=670 | S77: rokwzgl=14 i lp=670 | T77: rokwzgl=15 i lp=670 | U77: rokwzgl=16 i lp=670 | V77: rokwzgl=17 i lp=670 | W77: rokwzgl=18 i lp=670 | X77: rokwzgl=19 i lp=670 | Y77: rokwzgl=20 i lp=670 | Z77: rokwzgl=21 i lp=670 | AA77: rokwzgl=22 i lp=670 | AB77: rokwzgl=23 i lp=670 | AC77: rokwzgl=24 i lp=670 | AD77: rokwzgl=25 i lp=670 | AE77: rokwzgl=26 i lp=670 | AF77: rokwzgl=27 i lp=670 | AG77: rokwzgl=28 i lp=670 | AH77: rokwzgl=29 i lp=670
A78: 680 | B78: 12.1.1 | C78: - w tym środki określone w art. 5 ust. 1 pkt 2 ustawy | D78: rokwzgl=0 i lp=680 | E78: rokwzgl=0 i lp=680 | F78: rokwzgl=1 i lp=680 | G78: rokwzgl=2 i lp=680 | H78: rokwzgl=3 i lp=680 | I78: rokwzgl=4 i lp=680 | J78: rokwzgl=5 i lp=680 | K78: rokwzgl=6 i lp=680 | L78: rokwzgl=7 i lp=680 | M78: rokwzgl=8 i lp=680 | N78: rokwzgl=9 i lp=680 | O78: rokwzgl=10 i lp=680 | P78: rokwzgl=11 i lp=680 | Q78: rokwzgl=12 i lp=680 | R78: rokwzgl=13 i lp=680 | S78: rokwzgl=14 i lp=680 | T78: rokwzgl=15 i lp=680 | U78: rokwzgl=16 i lp=680 | V78: rokwzgl=17 i lp=680 | W78: rokwzgl=18 i lp=680 | X78: rokwzgl=19 i lp=680 | Y78: rokwzgl=20 i lp=680 | Z78: rokwzgl=21 i lp=680 | AA78: rokwzgl=22 i lp=680 | AB78: rokwzgl=23 i lp=680 | AC78: rokwzgl=24 i lp=680 | AD78: rokwzgl=25 i lp=680 | AE78: rokwzgl=26 i lp=680 | AF78: rokwzgl=27 i lp=680 | AG78: rokwzgl=28 i lp=680 | AH78: rokwzgl=29 i lp=680
A79: 690 | B79: 12.1.1.1 | C79: - w tym środki określone w art. 5 ust. 1 pkt 2 ustawy wynikające wyłącznie z zawartych umów na realizację programu, projektu lub zadania | D79: rokwzgl=0 i lp=690 | E79: rokwzgl=0 i lp=690 | F79: rokwzgl=1 i lp=690 | G79: rokwzgl=2 i lp=690 | H79: rokwzgl=3 i lp=690 | I79: rokwzgl=4 i lp=690 | J79: rokwzgl=5 i lp=690 | K79: rokwzgl=6 i lp=690 | L79: rokwzgl=7 i lp=690 | M79: rokwzgl=8 i lp=690 | N79: rokwzgl=9 i lp=690 | O79: rokwzgl=10 i lp=690 | P79: rokwzgl=11 i lp=690 | Q79: rokwzgl=12 i lp=690 | R79: rokwzgl=13 i lp=690 | S79: rokwzgl=14 i lp=690 | T79: rokwzgl=15 i lp=690 | U79: rokwzgl=16 i lp=690 | V79: rokwzgl=17 i lp=690 | W79: rokwzgl=18 i lp=690 | X79: rokwzgl=19 i lp=690 | Y79: rokwzgl=20 i lp=690 | Z79: rokwzgl=21 i lp=690 | AA79: rokwzgl=22 i lp=690 | AB79: rokwzgl=23 i lp=690 | AC79: rokwzgl=24 i lp=690 | AD79: rokwzgl=25 i lp=690 | AE79: rokwzgl=26 i lp=690 | AF79: rokwzgl=27 i lp=690 | AG79: rokwzgl=28 i lp=690 | AH79: rokwzgl=29 i lp=690
A80: 700 | B80: 12.2 | C80: Dochody majątkowe na programy, projekty lub zadania finansowane z udziałem środków, o których mowa w art. 5 ust. 1 pkt 2 i 3 ustawy | D80: =+"rokwzgl="&D$9&" i lp="&$A80 -> rokwzgl=0 i lp=700 | E80: rokwzgl=0 i lp=700 | F80: rokwzgl=1 i lp=700 | G80: rokwzgl=2 i lp=700 | H80: rokwzgl=3 i lp=700 | I80: rokwzgl=4 i lp=700 | J80: rokwzgl=5 i lp=700 | K80: rokwzgl=6 i lp=700 | L80: rokwzgl=7 i lp=700 | M80: rokwzgl=8 i lp=700 | N80: =+"rokwzgl="&N$9&" i lp="&$A80 -> rokwzgl=9 i lp=700 | O80: rokwzgl=10 i lp=700 | P80: rokwzgl=11 i lp=700 | Q80: rokwzgl=12 i lp=700 | R80: rokwzgl=13 i lp=700 | S80: rokwzgl=14 i lp=700 | T80: rokwzgl=15 i lp=700 | U80: rokwzgl=16 i lp=700 | V80: rokwzgl=17 i lp=700 | W80: rokwzgl=18 i lp=700 | X80: =+"rokwzgl="&X$9&" i lp="&$A80 -> rokwzgl=19 i lp=700 | Y80: rokwzgl=20 i lp=700 | Z80: rokwzgl=21 i lp=700 | AA80: rokwzgl=22 i lp=700 | AB80: rokwzgl=23 i lp=700 | AC80: rokwzgl=24 i lp=700 | AD80: rokwzgl=25 i lp=700 | AE80: rokwzgl=26 i lp=700 | AF80: rokwzgl=27 i lp=700 | AG80: rokwzgl=28 i lp=700 | AH80: rokwzgl=29 i lp=700
A81: 710 | B81: 12.2.1 | C81: - w tym środki określone w art. 5 ust. 1 pkt 2 ustawy | D81: rokwzgl=0 i lp=710 | E81: rokwzgl=0 i lp=710 | F81: rokwzgl=1 i lp=710 | G81: rokwzgl=2 i lp=710 | H81: rokwzgl=3 i lp=710 | I81: rokwzgl=4 i lp=710 | J81: rokwzgl=5 i lp=710 | K81: rokwzgl=6 i lp=710 | L81: rokwzgl=7 i lp=710 | M81: rokwzgl=8 i lp=710 | N81: rokwzgl=9 i lp=710 | O81: rokwzgl=10 i lp=710 | P81: rokwzgl=11 i lp=710 | Q81: rokwzgl=12 i lp=710 | R81: rokwzgl=13 i lp=710 | S81: rokwzgl=14 i lp=710 | T81: rokwzgl=15 i lp=710 | U81: rokwzgl=16 i lp=710 | V81: rokwzgl=17 i lp=710 | W81: rokwzgl=18 i lp=710 | X81: rokwzgl=19 i lp=710 | Y81: rokwzgl=20 i lp=710 | Z81: rokwzgl=21 i lp=710 | AA81: rokwzgl=22 i lp=710 | AB81: rokwzgl=23 i lp=710 | AC81: rokwzgl=24 i lp=710 | AD81: rokwzgl=25 i lp=710 | AE81: rokwzgl=26 i lp=710 | AF81: rokwzgl=27 i lp=710 | AG81: rokwzgl=28 i lp=710 | AH81: rokwzgl=29 i lp=710
A82: 720 | B82: 12.2.1.1 | C82: - w tym środki określone w art. 5 ust. 1 pkt 2 ustawy wynikające wyłącznie z zawartych umów na realizację programu, projektu lub zadania | D82: rokwzgl=0 i lp=720 | E82: rokwzgl=0 i lp=720 | F82: rokwzgl=1 i lp=720 | G82: rokwzgl=2 i lp=720 | H82: rokwzgl=3 i lp=720 | I82: rokwzgl=4 i lp=720 | J82: rokwzgl=5 i lp=720 | K82: rokwzgl=6 i lp=720 | L82: rokwzgl=7 i lp=720 | M82: rokwzgl=8 i lp=720 | N82: rokwzgl=9 i lp=720 | O82: rokwzgl=10 i lp=720 | P82: rokwzgl=11 i lp=720 | Q82: rokwzgl=12 i lp=720 | R82: rokwzgl=13 i lp=720 | S82: rokwzgl=14 i lp=720 | T82: rokwzgl=15 i lp=720 | U82: rokwzgl=16 i lp=720 | V82: rokwzgl=17 i lp=720 | W82: rokwzgl=18 i lp=720 | X82: rokwzgl=19 i lp=720 | Y82: rokwzgl=20 i lp=720 | Z82: rokwzgl=21 i lp=720 | AA82: rokwzgl=22 i lp=720 | AB82: rokwzgl=23 i lp=720 | AC82: rokwzgl=24 i lp=720 | AD82: rokwzgl=25 i lp=720 | AE82: rokwzgl=26 i lp=720 | AF82: rokwzgl=27 i lp=720 | AG82: rokwzgl=28 i lp=720 | AH82: rokwzgl=29 i lp=720
A83: 730 | B83: 12.3 | C83: Wydatki bieżące na programy, projekty lub zadania finansowane z udziałem środków, o których mowa w art. 5 ust. 1 pkt 2 i 3 ustawy | D83: rokwzgl=0 i lp=730 | E83: rokwzgl=0 i lp=730 | F83: rokwzgl=1 i lp=730 | G83: rokwzgl=2 i lp=730 | H83: rokwzgl=3 i lp=730 | I83: rokwzgl=4 i lp=730 | J83: rokwzgl=5 i lp=730 | K83: rokwzgl=6 i lp=730 | L83: rokwzgl=7 i lp=730 | M83: rokwzgl=8 i lp=730 | N83: rokwzgl=9 i lp=730 | O83: rokwzgl=10 i lp=730 | P83: rokwzgl=11 i lp=730 | Q83: rokwzgl=12 i lp=730 | R83: rokwzgl=13 i lp=730 | S83: rokwzgl=14 i lp=730 | T83: rokwzgl=15 i lp=730 | U83: rokwzgl=16 i lp=730 | V83: rokwzgl=17 i lp=730 | W83: rokwzgl=18 i lp=730 | X83: rokwzgl=19 i lp=730 | Y83: rokwzgl=20 i lp=730 | Z83: rokwzgl=21 i lp=730 | AA83: rokwzgl=22 i lp=730 | AB83: rokwzgl=23 i lp=730 | AC83: rokwzgl=24 i lp=730 | AD83: rokwzgl=25 i lp=730 | AE83: rokwzgl=26 i lp=730 | AF83: rokwzgl=27 i lp=730 | AG83: rokwzgl=28 i lp=730 | AH83: rokwzgl=29 i lp=730
A84: 740 | B84: 12.3.1 | C84: - w tym finansowane środkami określonymi w art. 5 ust. 1 pkt 2 ustawy | D84: rokwzgl=0 i lp=740 | E84: rokwzgl=0 i lp=740 | F84: rokwzgl=1 i lp=740 | G84: rokwzgl=2 i lp=740 | H84: rokwzgl=3 i lp=740 | I84: rokwzgl=4 i lp=740 | J84: rokwzgl=5 i lp=740 | K84: rokwzgl=6 i lp=740 | L84: rokwzgl=7 i lp=740 | M84: rokwzgl=8 i lp=740 | N84: rokwzgl=9 i lp=740 | O84: rokwzgl=10 i lp=740 | P84: rokwzgl=11 i lp=740 | Q84: rokwzgl=12 i lp=740 | R84: rokwzgl=13 i lp=740 | S84: rokwzgl=14 i lp=740 | T84: rokwzgl=15 i lp=740 | U84: rokwzgl=16 i lp=740 | V84: rokwzgl=17 i lp=740 | W84: rokwzgl=18 i lp=740 | X84: rokwzgl=19 i lp=740 | Y84: rokwzgl=20 i lp=740 | Z84: rokwzgl=21 i lp=740 | AA84: rokwzgl=22 i lp=740 | AB84: rokwzgl=23 i lp=740 | AC84: rokwzgl=24 i lp=740 | AD84: rokwzgl=25 i lp=740 | AE84: rokwzgl=26 i lp=740 | AF84: rokwzgl=27 i lp=740 | AG84: rokwzgl=28 i lp=740 | AH84: rokwzgl=29 i lp=740
A85: 750 | B85: 12.3.2 | C85: Wydatki bieżące na realizację programu, projektu lub zadania wynikające wyłącznie z zawartych umów z podmiotem dysponującym środkami, o których mowa w art. 5 ust. 1 pkt 2 ustawy | D85: rokwzgl=0 i lp=750 | E85: rokwzgl=0 i lp=750 | F85: rokwzgl=1 i lp=750 | G85: rokwzgl=2 i lp=750 | H85: rokwzgl=3 i lp=750 | I85: rokwzgl=4 i lp=750 | J85: rokwzgl=5 i lp=750 | K85: rokwzgl=6 i lp=750 | L85: rokwzgl=7 i lp=750 | M85: rokwzgl=8 i lp=750 | N85: rokwzgl=9 i lp=750 | O85: rokwzgl=10 i lp=750 | P85: rokwzgl=11 i lp=750 | Q85: rokwzgl=12 i lp=750 | R85: rokwzgl=13 i lp=750 | S85: rokwzgl=14 i lp=750 | T85: rokwzgl=15 i lp=750 | U85: rokwzgl=16 i lp=750 | V85: rokwzgl=17 i lp=750 | W85: rokwzgl=18 i lp=750 | X85: rokwzgl=19 i lp=750 | Y85: rokwzgl=20 i lp=750 | Z85: rokwzgl=21 i lp=750 | AA85: rokwzgl=22 i lp=750 | AB85: rokwzgl=23 i lp=750 | AC85: rokwzgl=24 i lp=750 | AD85: rokwzgl=25 i lp=750 | AE85: rokwzgl=26 i lp=750 | AF85: rokwzgl=27 i lp=750 | AG85: rokwzgl=28 i lp=750 | AH85: rokwzgl=29 i lp=750
A86: 760 | B86: 12.4 | C86: Wydatki majątkowe na programy, projekty lub zadania finansowane z udziałem środków, o których mowa w art. 5 ust. 1 pkt 2 i 3 ustawy | D86: rokwzgl=0 i lp=760 | E86: rokwzgl=0 i lp=760 | F86: rokwzgl=1 i lp=760 | G86: rokwzgl=2 i lp=760 | H86: rokwzgl=3 i lp=760 | I86: rokwzgl=4 i lp=760 | J86: rokwzgl=5 i lp=760 | K86: rokwzgl=6 i lp=760 | L86: rokwzgl=7 i lp=760 | M86: rokwzgl=8 i lp=760 | N86: rokwzgl=9 i lp=760 | O86: rokwzgl=10 i lp=760 | P86: rokwzgl=11 i lp=760 | Q86: rokwzgl=12 i lp=760 | R86: rokwzgl=13 i lp=760 | S86: rokwzgl=14 i lp=760 | T86: rokwzgl=15 i lp=760 | U86: rokwzgl=16 i lp=760 | V86: rokwzgl=17 i lp=760 | W86: rokwzgl=18 i lp=760 | X86: rokwzgl=19 i lp=760 | Y86: rokwzgl=20 i lp=760 | Z86: rokwzgl=21 i lp=760 | AA86: rokwzgl=22 i lp=760 | AB86: rokwzgl=23 i lp=760 | AC86: rokwzgl=24 i lp=760 | AD86: rokwzgl=25 i lp=760 | AE86: rokwzgl=26 i lp=760 | AF86: rokwzgl=27 i lp=760 | AG86: rokwzgl=28 i lp=760 | AH86: rokwzgl=29 i lp=760
A87: 770 | B87: 12.4.1 | C87: - w tym finansowane środkami określonymi w art. 5 ust. 1 pkt 2 ustawy | D87: rokwzgl=0 i lp=770 | E87: rokwzgl=0 i lp=770 | F87: rokwzgl=1 i lp=770 | G87: rokwzgl=2 i lp=770 | H87: rokwzgl=3 i lp=770 | I87: rokwzgl=4 i lp=770 | J87: rokwzgl=5 i lp=770 | K87: rokwzgl=6 i lp=770 | L87: rokwzgl=7 i lp=770 | M87: rokwzgl=8 i lp=770 | N87: rokwzgl=9 i lp=770 | O87: rokwzgl=10 i lp=770 | P87: rokwzgl=11 i lp=770 | Q87: rokwzgl=12 i lp=770 | R87: rokwzgl=13 i lp=770 | S87: rokwzgl=14 i lp=770 | T87: rokwzgl=15 i lp=770 | U87: rokwzgl=16 i lp=770 | V87: rokwzgl=17 i lp=770 | W87: rokwzgl=18 i lp=770 | X87: rokwzgl=19 i lp=770 | Y87: rokwzgl=20 i lp=770 | Z87: rokwzgl=21 i lp=770 | AA87: rokwzgl=22 i lp=770 | AB87: rokwzgl=23 i lp=770 | AC87: rokwzgl=24 i lp=770 | AD87: rokwzgl=25 i lp=770 | AE87: rokwzgl=26 i lp=770 | AF87: rokwzgl=27 i lp=770 | AG87: rokwzgl=28 i lp=770 | AH87: rokwzgl=29 i lp=770
A88: 780 | B88: 12.4.2 | C88: Wydatki majątkowe na realizację programu, projektu lub zadania wynikające wyłącznie z zawartych umów z podmiotem dysponującym środkami, o których mowa w art. 5 ust. 1 pkt 2 ustawy | D88: rokwzgl=0 i lp=780 | E88: rokwzgl=0 i lp=780 | F88: rokwzgl=1 i lp=780 | G88: rokwzgl=2 i lp=780 | H88: rokwzgl=3 i lp=780 | I88: rokwzgl=4 i lp=780 | J88: rokwzgl=5 i lp=780 | K88: rokwzgl=6 i lp=780 | L88: rokwzgl=7 i lp=780 | M88: rokwzgl=8 i lp=780 | N88: rokwzgl=9 i lp=780 | O88: rokwzgl=10 i lp=780 | P88: rokwzgl=11 i lp=780 | Q88: rokwzgl=12 i lp=780 | R88: rokwzgl=13 i lp=780 | S88: rokwzgl=14 i lp=780 | T88: rokwzgl=15 i lp=780 | U88: rokwzgl=16 i lp=780 | V88: rokwzgl=17 i lp=780 | W88: rokwzgl=18 i lp=780 | X88: rokwzgl=19 i lp=780 | Y88: rokwzgl=20 i lp=780 | Z88: rokwzgl=21 i lp=780 | AA88: rokwzgl=22 i lp=780 | AB88: rokwzgl=23 i lp=780 | AC88: rokwzgl=24 i lp=780 | AD88: rokwzgl=25 i lp=780 | AE88: rokwzgl=26 i lp=780 | AF88: rokwzgl=27 i lp=780 | AG88: rokwzgl=28 i lp=780 | AH88: rokwzgl=29 i lp=780
A89: 790 | B89: 13 | C89: Kwoty dotyczące przejęcia i spłaty zobowiązań po samodzielnych publicznych zakładach opieki zdrowotnej oraz pokrycia ujemnego wyniku | D89: rokwzgl=0 i lp=790 | E89: rokwzgl=0 i lp=790 | F89: rokwzgl=1 i lp=790 | G89: rokwzgl=2 i lp=790 | H89: rokwzgl=3 i lp=790 | I89: rokwzgl=4 i lp=790 | J89: rokwzgl=5 i lp=790 | K89: rokwzgl=6 i lp=790 | L89: rokwzgl=7 i lp=790 | M89: rokwzgl=8 i lp=790 | N89: rokwzgl=9 i lp=790 | O89: rokwzgl=10 i lp=790 | P89: rokwzgl=11 i lp=790 | Q89: rokwzgl=12 i lp=790 | R89: rokwzgl=13 i lp=790 | S89: rokwzgl=14 i lp=790 | T89: rokwzgl=15 i lp=790 | U89: rokwzgl=16 i lp=790 | V89: rokwzgl=17 i lp=790 | W89: rokwzgl=18 i lp=790 | X89: rokwzgl=19 i lp=790 | Y89: rokwzgl=20 i lp=790 | Z89: rokwzgl=21 i lp=790 | AA89: rokwzgl=22 i lp=790 | AB89: rokwzgl=23 i lp=790 | AC89: rokwzgl=24 i lp=790 | AD89: rokwzgl=25 i lp=790 | AE89: rokwzgl=26 i lp=790 | AF89: rokwzgl=27 i lp=790 | AG89: rokwzgl=28 i lp=790 | AH89: rokwzgl=29 i lp=790
A90: 800 | B90: 13.1 | C90: Kwota zobowiązań wynikających z przejęcia przez jednostkę samorządu terytorialnego zobowiązań po likwidowanych i przekształcanych samodzielnych zakładach opieki zdrowotnej | D90: =+"rokwzgl="&D$9&" i lp="&$A90 -> rokwzgl=0 i lp=800 | E90: rokwzgl=0 i lp=800 | F90: rokwzgl=1 i lp=800 | G90: rokwzgl=2 i lp=800 | H90: rokwzgl=3 i lp=800 | I90: rokwzgl=4 i lp=800 | J90: rokwzgl=5 i lp=800 | K90: rokwzgl=6 i lp=800 | L90: rokwzgl=7 i lp=800 | M90: rokwzgl=8 i lp=800 | N90: =+"rokwzgl="&N$9&" i lp="&$A90 -> rokwzgl=9 i lp=800 | O90: rokwzgl=10 i lp=800 | P90: rokwzgl=11 i lp=800 | Q90: rokwzgl=12 i lp=800 | R90: rokwzgl=13 i lp=800 | S90: rokwzgl=14 i lp=800 | T90: rokwzgl=15 i lp=800 | U90: rokwzgl=16 i lp=800 | V90: rokwzgl=17 i lp=800 | W90: rokwzgl=18 i lp=800 | X90: =+"rokwzgl="&X$9&" i lp="&$A90 -> rokwzgl=19 i lp=800 | Y90: rokwzgl=20 i lp=800 | Z90: rokwzgl=21 i lp=800 | AA90: rokwzgl=22 i lp=800 | AB90: rokwzgl=23 i lp=800 | AC90: rokwzgl=24 i lp=800 | AD90: rokwzgl=25 i lp=800 | AE90: rokwzgl=26 i lp=800 | AF90: rokwzgl=27 i lp=800 | AG90: rokwzgl=28 i lp=800 | AH90: rokwzgl=29 i lp=800
A91: 810 | B91: 13.2 | C91: Dochody budżetowe z tytułu dotacji celowej z budżetu państwa, o której mowa w art. 196 ustawy z dnia 15 kwietnia 2011 r. o działalności leczniczej (Dz.U. Nr 112, poz. 654, z późn. zm.) | D91: rokwzgl=0 i lp=810 | E91: rokwzgl=0 i lp=810 | F91: rokwzgl=1 i lp=810 | G91: rokwzgl=2 i lp=810 | H91: rokwzgl=3 i lp=810 | I91: rokwzgl=4 i lp=810 | J91: rokwzgl=5 i lp=810 | K91: rokwzgl=6 i lp=810 | L91: rokwzgl=7 i lp=810 | M91: rokwzgl=8 i lp=810 | N91: rokwzgl=9 i lp=810 | O91: rokwzgl=10 i lp=810 | P91: rokwzgl=11 i lp=810 | Q91: rokwzgl=12 i lp=810 | R91: rokwzgl=13 i lp=810 | S91: rokwzgl=14 i lp=810 | T91: rokwzgl=15 i lp=810 | U91: rokwzgl=16 i lp=810 | V91: rokwzgl=17 i lp=810 | W91: rokwzgl=18 i lp=810 | X91: rokwzgl=19 i lp=810 | Y91: rokwzgl=20 i lp=810 | Z91: rokwzgl=21 i lp=810 | AA91: rokwzgl=22 i lp=810 | AB91: rokwzgl=23 i lp=810 | AC91: rokwzgl=24 i lp=810 | AD91: rokwzgl=25 i lp=810 | AE91: rokwzgl=26 i lp=810 | AF91: rokwzgl=27 i lp=810 | AG91: rokwzgl=28 i lp=810 | AH91: rokwzgl=29 i lp=810
A92: 820 | B92: 13.3 | C92: Wysokość zobowiązań podlegających umorzeniu, o którym mowa w art. 190 ustawy o działalności leczniczej | D92: rokwzgl=0 i lp=820 | E92: rokwzgl=0 i lp=820 | F92: rokwzgl=1 i lp=820 | G92: rokwzgl=2 i lp=820 | H92: rokwzgl=3 i lp=820 | I92: rokwzgl=4 i lp=820 | J92: rokwzgl=5 i lp=820 | K92: rokwzgl=6 i lp=820 | L92: rokwzgl=7 i lp=820 | M92: rokwzgl=8 i lp=820 | N92: rokwzgl=9 i lp=820 | O92: rokwzgl=10 i lp=820 | P92: rokwzgl=11 i lp=820 | Q92: rokwzgl=12 i lp=820 | R92: rokwzgl=13 i lp=820 | S92: rokwzgl=14 i lp=820 | T92: rokwzgl=15 i lp=820 | U92: rokwzgl=16 i lp=820 | V92: rokwzgl=17 i lp=820 | W92: rokwzgl=18 i lp=820 | X92: rokwzgl=19 i lp=820 | Y92: rokwzgl=20 i lp=820 | Z92: rokwzgl=21 i lp=820 | AA92: rokwzgl=22 i lp=820 | AB92: rokwzgl=23 i lp=820 | AC92: rokwzgl=24 i lp=820 | AD92: rokwzgl=25 i lp=820 | AE92: rokwzgl=26 i lp=820 | AF92: rokwzgl=27 i lp=820 | AG92: rokwzgl=28 i lp=820 | AH92: rokwzgl=29 i lp=820
A93: 830 | B93: 13.4 | C93: Wydatki na spłatę przejętych zobowiązań samodzielnego publicznego zakładu opieki zdrowotnej przekształconego na zasadach określonych w przepisach o działalności leczniczej | D93: rokwzgl=0 i lp=830 | E93: rokwzgl=0 i lp=830 | F93: rokwzgl=1 i lp=830 | G93: rokwzgl=2 i lp=830 | H93: rokwzgl=3 i lp=830 | I93: rokwzgl=4 i lp=830 | J93: rokwzgl=5 i lp=830 | K93: rokwzgl=6 i lp=830 | L93: rokwzgl=7 i lp=830 | M93: rokwzgl=8 i lp=830 | N93: rokwzgl=9 i lp=830 | O93: rokwzgl=10 i lp=830 | P93: rokwzgl=11 i lp=830 | Q93: rokwzgl=12 i lp=830 | R93: rokwzgl=13 i lp=830 | S93: rokwzgl=14 i lp=830 | T93: rokwzgl=15 i lp=830 | U93: rokwzgl=16 i lp=830 | V93: rokwzgl=17 i lp=830 | W93: rokwzgl=18 i lp=830 | X93: rokwzgl=19 i lp=830 | Y93: rokwzgl=20 i lp=830 | Z93: rokwzgl=21 i lp=830 | AA93: rokwzgl=22 i lp=830 | AB93: rokwzgl=23 i lp=830 | AC93: rokwzgl=24 i lp=830 | AD93: rokwzgl=25 i lp=830 | AE93: rokwzgl=26 i lp=830 | AF93: rokwzgl=27 i lp=830 | AG93: rokwzgl=28 i lp=830 | AH93: rokwzgl=29 i lp=830
A94: 840 | B94: 13.5 | C94: Wydatki na spłatę przejętych zobowiązań samodzielnego publicznego zakładu opieki zdrowotnej likwidowanego na zasadach określonych w przepisach o działalności leczniczej | D94: rokwzgl=0 i lp=840 | E94: rokwzgl=0 i lp=840 | F94: rokwzgl=1 i lp=840 | G94: rokwzgl=2 i lp=840 | H94: rokwzgl=3 i lp=840 | I94: rokwzgl=4 i lp=840 | J94: rokwzgl=5 i lp=840 | K94: rokwzgl=6 i lp=840 | L94: rokwzgl=7 i lp=840 | M94: rokwzgl=8 i lp=840 | N94: rokwzgl=9 i lp=840 | O94: rokwzgl=10 i lp=840 | P94: rokwzgl=11 i lp=840 | Q94: rokwzgl=12 i lp=840 | R94: rokwzgl=13 i lp=840 | S94: rokwzgl=14 i lp=840 | T94: rokwzgl=15 i lp=840 | U94: rokwzgl=16 i lp=840 | V94: rokwzgl=17 i lp=840 | W94: rokwzgl=18 i lp=840 | X94: rokwzgl=19 i lp=840 | Y94: rokwzgl=20 i lp=840 | Z94: rokwzgl=21 i lp=840 | AA94: rokwzgl=22 i lp=840 | AB94: rokwzgl=23 i lp=840 | AC94: rokwzgl=24 i lp=840 | AD94: rokwzgl=25 i lp=840 | AE94: rokwzgl=26 i lp=840 | AF94: rokwzgl=27 i lp=840 | AG94: rokwzgl=28 i lp=840 | AH94: rokwzgl=29 i lp=840
A95: 850 | B95: 13.6 | C95: Wydatki na spłatę zobowiązań samodzielnego publicznego zakładu opieki zdrowotnej przejętych do końca 2011 r. na podstawie przepisów o zakładach opieki zdrowotnej | D95: rokwzgl=0 i lp=850 | E95: rokwzgl=0 i lp=850 | F95: rokwzgl=1 i lp=850 | G95: rokwzgl=2 i lp=850 | H95: rokwzgl=3 i lp=850 | I95: rokwzgl=4 i lp=850 | J95: rokwzgl=5 i lp=850 | K95: rokwzgl=6 i lp=850 | L95: rokwzgl=7 i lp=850 | M95: rokwzgl=8 i lp=850 | N95: rokwzgl=9 i lp=850 | O95: rokwzgl=10 i lp=850 | P95: rokwzgl=11 i lp=850 | Q95: rokwzgl=12 i lp=850 | R95: rokwzgl=13 i lp=850 | S95: rokwzgl=14 i lp=850 | T95: rokwzgl=15 i lp=850 | U95: rokwzgl=16 i lp=850 | V95: rokwzgl=17 i lp=850 | W95: rokwzgl=18 i lp=850 | X95: rokwzgl=19 i lp=850 | Y95: rokwzgl=20 i lp=850 | Z95: rokwzgl=21 i lp=850 | AA95: rokwzgl=22 i lp=850 | AB95: rokwzgl=23 i lp=850 | AC95: rokwzgl=24 i lp=850 | AD95: rokwzgl=25 i lp=850 | AE95: rokwzgl=26 i lp=850 | AF95: rokwzgl=27 i lp=850 | AG95: rokwzgl=28 i lp=850 | AH95: rokwzgl=29 i lp=850
A96: 860 | B96: 13.7 | C96: Wydatki bieżące na pokrycie ujemnego wyniku finansowego samodzielnego publicznego zakładu opieki zdrowotnej | D96: rokwzgl=0 i lp=860 | E96: rokwzgl=0 i lp=860 | F96: rokwzgl=1 i lp=860 | G96: rokwzgl=2 i lp=860 | H96: rokwzgl=3 i lp=860 | I96: rokwzgl=4 i lp=860 | J96: rokwzgl=5 i lp=860 | K96: rokwzgl=6 i lp=860 | L96: rokwzgl=7 i lp=860 | M96: rokwzgl=8 i lp=860 | N96: rokwzgl=9 i lp=860 | O96: rokwzgl=10 i lp=860 | P96: rokwzgl=11 i lp=860 | Q96: rokwzgl=12 i lp=860 | R96: rokwzgl=13 i lp=860 | S96: rokwzgl=14 i lp=860 | T96: rokwzgl=15 i lp=860 | U96: rokwzgl=16 i lp=860 | V96: rokwzgl=17 i lp=860 | W96: rokwzgl=18 i lp=860 | X96: rokwzgl=19 i lp=860 | Y96: rokwzgl=20 i lp=860 | Z96: rokwzgl=21 i lp=860 | AA96: rokwzgl=22 i lp=860 | AB96: rokwzgl=23 i lp=860 | AC96: rokwzgl=24 i lp=860 | AD96: rokwzgl=25 i lp=860 | AE96: rokwzgl=26 i lp=860 | AF96: rokwzgl=27 i lp=860 | AG96: rokwzgl=28 i lp=860 | AH96: rokwzgl=29 i lp=860
A97: 870 | B97: 14 | C97: Dane uzupełniające o długu i jego spłacie | D97: rokwzgl=0 i lp=870 | E97: rokwzgl=0 i lp=870 | F97: rokwzgl=1 i lp=870 | G97: rokwzgl=2 i lp=870 | H97: rokwzgl=3 i lp=870 | I97: rokwzgl=4 i lp=870 | J97: rokwzgl=5 i lp=870 | K97: rokwzgl=6 i lp=870 | L97: rokwzgl=7 i lp=870 | M97: rokwzgl=8 i lp=870 | N97: rokwzgl=9 i lp=870 | O97: rokwzgl=10 i lp=870 | P97: rokwzgl=11 i lp=870 | Q97: rokwzgl=12 i lp=870 | R97: rokwzgl=13 i lp=870 | S97: rokwzgl=14 i lp=870 | T97: rokwzgl=15 i lp=870 | U97: rokwzgl=16 i lp=870 | V97: rokwzgl=17 i lp=870 | W97: rokwzgl=18 i lp=870 | X97: rokwzgl=19 i lp=870 | Y97: rokwzgl=20 i lp=870 | Z97: rokwzgl=21 i lp=870 | AA97: rokwzgl=22 i lp=870 | AB97: rokwzgl=23 i lp=870 | AC97: rokwzgl=24 i lp=870 | AD97: rokwzgl=25 i lp=870 | AE97: rokwzgl=26 i lp=870 | AF97: rokwzgl=27 i lp=870 | AG97: rokwzgl=28 i lp=870 | AH97: rokwzgl=29 i lp=870
A98: 880 | B98: 14.1 | C98: Spłaty rat kapitałowych oraz wykup papierów wartościowych, o których mowa w pkt. 5.1., wynikające wyłącznie z tytułu zobowiązań już zaciągniętych | D98: rokwzgl=0 i lp=880 | E98: rokwzgl=0 i lp=880 | F98: rokwzgl=1 i lp=880 | G98: rokwzgl=2 i lp=880 | H98: rokwzgl=3 i lp=880 | I98: rokwzgl=4 i lp=880 | J98: rokwzgl=5 i lp=880 | K98: rokwzgl=6 i lp=880 | L98: rokwzgl=7 i lp=880 | M98: rokwzgl=8 i lp=880 | N98: rokwzgl=9 i lp=880 | O98: rokwzgl=10 i lp=880 | P98: rokwzgl=11 i lp=880 | Q98: rokwzgl=12 i lp=880 | R98: rokwzgl=13 i lp=880 | S98: rokwzgl=14 i lp=880 | T98: rokwzgl=15 i lp=880 | U98: rokwzgl=16 i lp=880 | V98: rokwzgl=17 i lp=880 | W98: rokwzgl=18 i lp=880 | X98: rokwzgl=19 i lp=880 | Y98: rokwzgl=20 i lp=880 | Z98: rokwzgl=21 i lp=880 | AA98: rokwzgl=22 i lp=880 | AB98: rokwzgl=23 i lp=880 | AC98: rokwzgl=24 i lp=880 | AD98: rokwzgl=25 i lp=880 | AE98: rokwzgl=26 i lp=880 | AF98: rokwzgl=27 i lp=880 | AG98: rokwzgl=28 i lp=880 | AH98: rokwzgl=29 i lp=880
A99: 890 | B99: 14.2 | C99: Kwota długu, którego planowana spłata dokona się z wydatków budżetu | D99: rokwzgl=0 i lp=890 | E99: rokwzgl=0 i lp=890 | F99: rokwzgl=1 i lp=890 | G99: rokwzgl=2 i lp=890 | H99: rokwzgl=3 i lp=890 | I99: rokwzgl=4 i lp=890 | J99: rokwzgl=5 i lp=890 | K99: rokwzgl=6 i lp=890 | L99: rokwzgl=7 i lp=890 | M99: rokwzgl=8 i lp=890 | N99: rokwzgl=9 i lp=890 | O99: rokwzgl=10 i lp=890 | P99: rokwzgl=11 i lp=890 | Q99: rokwzgl=12 i lp=890 | R99: rokwzgl=13 i lp=890 | S99: rokwzgl=14 i lp=890 | T99: rokwzgl=15 i lp=890 | U99: rokwzgl=16 i lp=890 | V99: rokwzgl=17 i lp=890 | W99: rokwzgl=18 i lp=890 | X99: rokwzgl=19 i lp=890 | Y99: rokwzgl=20 i lp=890 | Z99: rokwzgl=21 i lp=890 | AA99: rokwzgl=22 i lp=890 | AB99: rokwzgl=23 i lp=890 | AC99: rokwzgl=24 i lp=890 | AD99: rokwzgl=25 i lp=890 | AE99: rokwzgl=26 i lp=890 | AF99: rokwzgl=27 i lp=890 | AG99: rokwzgl=28 i lp=890 | AH99: rokwzgl=29 i lp=890
A100: 900 | B100: 14.3 | C100: Wydatki zmniejszające dług, w tym | D100: rokwzgl=0 i lp=900 | E100: rokwzgl=0 i lp=900 | F100: rokwzgl=1 i lp=900 | G100: rokwzgl=2 i lp=900 | H100: rokwzgl=3 i lp=900 | I100: rokwzgl=4 i lp=900 | J100: rokwzgl=5 i lp=900 | K100: rokwzgl=6 i lp=900 | L100: rokwzgl=7 i lp=900 | M100: rokwzgl=8 i lp=900 | N100: rokwzgl=9 i lp=900 | O100: rokwzgl=10 i lp=900 | P100: rokwzgl=11 i lp=900 | Q100: rokwzgl=12 i lp=900 | R100: rokwzgl=13 i lp=900 | S100: rokwzgl=14 i lp=900 | T100: rokwzgl=15 i lp=900 | U100: rokwzgl=16 i lp=900 | V100: rokwzgl=17 i lp=900 | W100: rokwzgl=18 i lp=900 | X100: rokwzgl=19 i lp=900 | Y100: rokwzgl=20 i lp=900 | Z100: rokwzgl=21 i lp=900 | AA100: rokwzgl=22 i lp=900 | AB100: rokwzgl=23 i lp=900 | AC100: rokwzgl=24 i lp=900 | AD100: rokwzgl=25 i lp=900 | AE100: rokwzgl=26 i lp=900 | AF100: rokwzgl=27 i lp=900 | AG100: rokwzgl=28 i lp=900 | AH100: rokwzgl=29 i lp=900
A101: 910 | B101: 14.3.1 | C101: spłata zobowiązań wymagalnych z lat poprzednich, innych niż w pkt 14.3.3 | D101: rokwzgl=0 i lp=910 | E101: rokwzgl=0 i lp=910 | F101: rokwzgl=1 i lp=910 | G101: rokwzgl=2 i lp=910 | H101: rokwzgl=3 i lp=910 | I101: rokwzgl=4 i lp=910 | J101: rokwzgl=5 i lp=910 | K101: rokwzgl=6 i lp=910 | L101: rokwzgl=7 i lp=910 | M101: rokwzgl=8 i lp=910 | N101: rokwzgl=9 i lp=910 | O101: rokwzgl=10 i lp=910 | P101: rokwzgl=11 i lp=910 | Q101: rokwzgl=12 i lp=910 | R101: rokwzgl=13 i lp=910 | S101: rokwzgl=14 i lp=910 | T101: rokwzgl=15 i lp=910 | U101: rokwzgl=16 i lp=910 | V101: rokwzgl=17 i lp=910 | W101: rokwzgl=18 i lp=910 | X101: rokwzgl=19 i lp=910 | Y101: rokwzgl=20 i lp=910 | Z101: rokwzgl=21 i lp=910 | AA101: rokwzgl=22 i lp=910 | AB101: rokwzgl=23 i lp=910 | AC101: rokwzgl=24 i lp=910 | AD101: rokwzgl=25 i lp=910 | AE101: rokwzgl=26 i lp=910 | AF101: rokwzgl=27 i lp=910 | AG101: rokwzgl=28 i lp=910 | AH101: rokwzgl=29 i lp=910
A102: 920 | B102: 14.3.2 | C102: związane z umowami zaliczanymi do tytułów dłużnych wliczanych w państwowy dług publiczny | D102: rokwzgl=0 i lp=920 | E102: rokwzgl=0 i lp=920 | F102: rokwzgl=1 i lp=920 | G102: rokwzgl=2 i lp=920 | H102: rokwzgl=3 i lp=920 | I102: rokwzgl=4 i lp=920 | J102: rokwzgl=5 i lp=920 | K102: rokwzgl=6 i lp=920 | L102: rokwzgl=7 i lp=920 | M102: rokwzgl=8 i lp=920 | N102: rokwzgl=9 i lp=920 | O102: rokwzgl=10 i lp=920 | P102: rokwzgl=11 i lp=920 | Q102: rokwzgl=12 i lp=920 | R102: rokwzgl=13 i lp=920 | S102: rokwzgl=14 i lp=920 | T102: rokwzgl=15 i lp=920 | U102: rokwzgl=16 i lp=920 | V102: rokwzgl=17 i lp=920 | W102: rokwzgl=18 i lp=920 | X102: rokwzgl=19 i lp=920 | Y102: rokwzgl=20 i lp=920 | Z102: rokwzgl=21 i lp=920 | AA102: rokwzgl=22 i lp=920 | AB102: rokwzgl=23 i lp=920 | AC102: rokwzgl=24 i lp=920 | AD102: rokwzgl=25 i lp=920 | AE102: rokwzgl=26 i lp=920 | AF102: rokwzgl=27 i lp=920 | AG102: rokwzgl=28 i lp=920 | AH102: rokwzgl=29 i lp=920
A103: 930 | B103: 14.3.3 | C103: wypłaty z tytułu wymagalnych poręczeń i gwarancji | D103: rokwzgl=0 i lp=930 | E103: rokwzgl=0 i lp=930 | F103: rokwzgl=1 i lp=930 | G103: rokwzgl=2 i lp=930 | H103: rokwzgl=3 i lp=930 | I103: rokwzgl=4 i lp=930 | J103: rokwzgl=5 i lp=930 | K103: rokwzgl=6 i lp=930 | L103: rokwzgl=7 i lp=930 | M103: rokwzgl=8 i lp=930 | N103: rokwzgl=9 i lp=930 | O103: rokwzgl=10 i lp=930 | P103: rokwzgl=11 i lp=930 | Q103: rokwzgl=12 i lp=930 | R103: rokwzgl=13 i lp=930 | S103: rokwzgl=14 i lp=930 | T103: rokwzgl=15 i lp=930 | U103: rokwzgl=16 i lp=930 | V103: rokwzgl=17 i lp=930 | W103: rokwzgl=18 i lp=930 | X103: rokwzgl=19 i lp=930 | Y103: rokwzgl=20 i lp=930 | Z103: rokwzgl=21 i lp=930 | AA103: rokwzgl=22 i lp=930 | AB103: rokwzgl=23 i lp=930 | AC103: rokwzgl=24 i lp=930 | AD103: rokwzgl=25 i lp=930 | AE103: rokwzgl=26 i lp=930 | AF103: rokwzgl=27 i lp=930 | AG103: rokwzgl=28 i lp=930 | AH103: rokwzgl=29 i lp=930
A104: 940 | B104: 14.4 | C104: Wynik operacji niekasowych wpływających na kwotę długu ( m.in. umorzenia, różnice kursowe) | D104: rokwzgl=0 i lp=940 | E104: rokwzgl=0 i lp=940 | F104: rokwzgl=1 i lp=940 | G104: rokwzgl=2 i lp=940 | H104: rokwzgl=3 i lp=940 | I104: rokwzgl=4 i lp=940 | J104: rokwzgl=5 i lp=940 | K104: rokwzgl=6 i lp=940 | L104: rokwzgl=7 i lp=940 | M104: rokwzgl=8 i lp=940 | N104: rokwzgl=9 i lp=940 | O104: rokwzgl=10 i lp=940 | P104: rokwzgl=11 i lp=940 | Q104: rokwzgl=12 i lp=940 | R104: rokwzgl=13 i lp=940 | S104: rokwzgl=14 i lp=940 | T104: rokwzgl=15 i lp=940 | U104: rokwzgl=16 i lp=940 | V104: rokwzgl=17 i lp=940 | W104: rokwzgl=18 i lp=940 | X104: rokwzgl=19 i lp=940 | Y104: rokwzgl=20 i lp=940 | Z104: rokwzgl=21 i lp=940 | AA104: rokwzgl=22 i lp=940 | AB104: rokwzgl=23 i lp=940 | AC104: rokwzgl=24 i lp=940 | AD104: rokwzgl=25 i lp=940 | AE104: rokwzgl=26 i lp=940 | AF104: rokwzgl=27 i lp=940 | AG104: rokwzgl=28 i lp=940 | AH104: rokwzgl=29 i lp=940

Sheet DaneZrodlowe (hidden)
A1: Wyciąg danych z tabeli "Wieloletnia prognoza finansowa" wprowadzonych do systemu BESTI@ z wybranej uchwały | M1: Rok bazowy: | N1: =MIN(M:M) -> 2014 | P1: Rok max | Q1: =MAX(M:M) -> 2017
A3: budzet | B3: numer | C3: nazwajst | D3: kodgus | E3: gt | F3: mswia | G3: lp | H3: symbol | I3: formula | J3: wyszczegolnienie | K3: wsk243 | L3: rokwzgl | M3: rokprognozy | N3: prognoza | O3: DataPodjecia | P3: DataWejscia
A4: 2014 | B4: 1 | C4: KRZYŻANÓW | D4: 1002052 | E4: 2 | G4: 720 | H4: 12.2.1.1 | J4: - w tym środki określone w art. 5 ust. 1 pkt 2 ustawy wynikające wyłącznie z zawartych umów na realizację programu, projektu lub zadania | K4: FALSE | L4: 2 | M4: 2016 | N4: 0 | O4: 2013-11-08 | P4: 2014-01-01
A5: 2014 | B5: 1 | C5: KRZYŻANÓW | D5: 1002052 | E5: 2 | G5: 120 | H5: 2 | I5: [2.1] + [2.2] | J5: Wydatki ogółem | K5: FALSE | L5: 3 | M5: 2017 | N5: 12170000 | O5: 2013-11-08 | P5: 2014-01-01
A6: 2014 | B6: 1 | C6: KRZYŻANÓW | D6: 1002052 | E6: 2 | G6: 360 | H6: 6.1 | J6: Łączna kwota wyłączeń z ograniczeń długu określonych w art. 170 ust. 3 ufp z 2005 r. oraz w art. 36 ustawy o zmianie niektórych ustaw w związku z realizacją ustawy budżetowej | K6: TRUE | L6: 0 | M6: 2014 | N6: 0 | O6: 2013-11-08 | P6: 2014-01-01
A7: 2014 | B7: 1 | C7: KRZYŻANÓW | D7: 1002052 | E7: 2 | G7: 690 | H7: 12.1.1.1 | J7: - w tym środki określone w art. 5 ust. 1 pkt 2 ustawy wynikające wyłącznie z zawartych umów na realizację programu, projektu lub zadania | K7: TRUE | L7: 0 | M7: 2014 | N7: 0 | O7: 2013-11-08 | P7: 2014-01-01
A8: 2014 | B8: 1 | C8: KRZYŻANÓW | D8: 1002052 | E8: 2 | G8: 390 | H8: 6.3 | I8: ([6] - [6.1]) / [1] | J8: Wskaźnik zadłużenia do dochodów ogółem, o którym mowa w art. 170 ufp z 2005 r., po uwzględnieniu wyłączeń określonych w pkt 6.1. | K8: FALSE | L8: 0 | M8: 2014 | N8: 0 | O8: 2013-11-08 | P8: 2014-01-01
A9: 2014 | B9: 1 | C9: KRZYŻANÓW | D9: 1002052 | E9: 2 | G9: 230 | H9: 4.1.1 | J9: w tym na pokrycie deficytu budżetu | K9: FALSE | L9: 0 | M9: 2014 | N9: 0 | O9: 2013-11-08 | P9: 2014-01-01
A10: 2014 | B10: 1 | C10: KRZYŻANÓW | D10: 1002052 | E10: 2 | G10: 570 | H10: 11 | J10: Informacje uzupełniające o wybranych rodzajach wydatków budżetowych | K10: FALSE | L10: 0 | M10: 2014 | N10: 0 | O10: 2013-11-08 | P10: 2014-01-01
A11: 2014 | B11: 1 | C11: KRZYŻANÓW | D11: 1002052 | E11: 2 | G11: 280 | H11: 4.4 | J11: Inne przychody niezwiązane z zaciągnięciem długu | K11: FALSE | L11: 3 | M11: 2017 | N11: 0 | O11: 2013-11-08 | P11: 2014-01-01
A12: 2014 | B12: 1 | C12: KRZYŻANÓW | D12: 1002052 | E12: 2 | G12: 620 | H12: 11.3.2 | J12: majątkowe | K12: TRUE | L12: 2 | M12: 2016 | N12: 0 | O12: 2013-11-08 | P12: 2014-01-01
A13: 2014 | B13: 1 | C13: KRZYŻANÓW | D13: 1002052 | E13: 2 | G13: 420 | H13: 8.1 | I13: [1.1] - [2.1] | J13: Różnica między dochodami bieżącymi a wydatkami bieżącymi | K13: FALSE | L13: 3 | M13: 2017 | N13: 2570000 | O13: 2013-11-08 | P13: 2014-01-01
A14: 2014 | B14: 1 | C14: KRZYŻANÓW | D14: 1002052 | E14: 2 | G14: 505 | H14: 9.6.1 | I14: ( [1.1] - ( [2.1] - [2.1.2] ) + [1.2.1] ) / [1] | J14: Wskaźnik jednoroczny | K14: FALSE | L14: 1 | M14: 2015 | N14: 0.1557 | O14: 2013-11-08 | P14: 2014-01-01
A15: 2014 | B15: 1 | C15: KRZYŻANÓW | D15: 1002052 | E15: 2 | G15: 800 | H15: 13.1 | J15: Kwota zobowiązań wynikających z przejęcia przez jednostkę samorządu terytorialnego zobowiązań po likwidowanych i przekształcanych samodzielnych zakładach opieki zdrowotnej | K15: TRUE | L15: 1 | M15: 2015 | N15: 0 | O15: 2013-11-08 | P15: 2014-01-01
A16: 2014 | B16: 1 | C16: KRZYŻANÓW | D16: 1002052 | E16: 2 | G16: 500 | H16: 9.6 | I16: ([2.1.1]+[2.1.3.1] + [5.1]+[9.5]-[5.1.1]- [2.1.1.1] )/[1] | J16: Wskaźnik planowanej łącznej kwoty spłaty zobowiązań, o której mowa w art. 243 ust. 1 ustawy do dochodów ogółem, po uwzględnieniu zobowiązań związku współtworzonego przez jednostkę samorządu terytorialnego oraz po uwzględnieniu wyłączeń przypadających na dany rok określonych w pkt 5.1.1. | K16: FALSE | L16: 1 | M16: 2015 | N16: 0 | O16: 2013-11-08 | P16: 2014-01-01
A17: 2014 | B17: 1 | C17: KRZYŻANÓW | D17: 1002052 | E17: 2 | G17: 750 | H17: 12.3.2 | J17: Wydatki bieżące na realizację programu, projektu lub zadania wynikające wyłącznie z zawartych umów z podmiotem dysponującym środkami, o których mowa w art. 5 ust. 1 pkt 2 ustawy | K17: FALSE | L17: 3 | M17: 2017 | N17: 0 | O17: 2013-11-08 | P17: 2014-01-01
A18: 2014 | B18: 1 | C18: KRZYŻANÓW | D18: 1002052 | E18: 2 | G18: 100 | H18: 1.2.1 | J18: ze sprzedaży majątku | K18: TRUE | L18: 1 | M18: 2015 | N18: 0 | O18: 2013-11-08 | P18: 2014-01-01
A19: 2014 | B19: 1 | C19: KRZYŻANÓW | D19: 1002052 | E19: 2 | G19: 580 | H19: 11.1 | J19: Wydatki bieżące na wynagrodzenia i składki od nich naliczane | K19: FALSE | L19: 1 | M19: 2015 | N19: 4271290 | O19: 2013-11-08 | P19: 2014-01-01
A20: 2014 | B20: 1 | C20: KRZYŻANÓW | D20: 1002052 | E20: 2 | G20: 750 | H20: 12.3.2 | J20: Wydatki bieżące na realizację programu, projektu lub zadania wynikające wyłącznie z zawartych umów z podmiotem dysponującym środkami, o których mowa w art. 5 ust. 1 pkt 2 ustawy | K20: FALSE | L20: 0 | M20: 2014 | N20: 0 | O20: 2013-11-08 | P20: 2014-01-01
A21: 2014 | B21: 1 | C21: KRZYŻANÓW | D21: 1002052 | E21: 2 | G21: 890 | H21: 14.2 | J21: Kwota długu, którego planowana spłata dokona się z wydatków budżetu | K21: TRUE | L21: 3 | M21: 2017 | N21: 0 | O21: 2013-11-08 | P21: 2014-01-01
A22: 2014 | B22: 1 | C22: KRZYŻANÓW | D22: 1002052 | E22: 2 | G22: 120 | H22: 2 | I22: [2.1] + [2.2] | J22: Wydatki ogółem | K22: FALSE | L22: 1 | M22: 2015 | N22: 10825000 | O22: 2013-11-08 | P22: 2014-01-01
A23: 2014 | B23: 1 | C23: KRZYŻANÓW | D23: 1002052 | E23: 2 | G23: 320 | H23: 5.1.1 | J23: w tym łączna kwota przypadających na dany rok kwot wyłączeń określonych w: art. 243 ust. 3 pkt 1 ustawy (lub art. 169 ust. 3 pkt 1 ufp z 2005 r.), art. 121a ustawy z dnia 27 sierpnia 2009 r. – Przepisy wprowadzające ustawę o finansach publicznych (Dz. U. Nr 157, poz. 1241, z późn. zm.) oraz art. 36 ustawy z dnia 7 grudnia 2012 r. o zmianie niektórych ustaw związanych z realizacją ustawy budżetowej (Dz.U. poz. 1456) | K23: TRUE | L23: 2 | M23: 2016 | N23: 0 | O23: 2013-11-08 | P23: 2014-01-01
A24: 2014 | B24: 1 | C24: KRZYŻANÓW | D24: 1002052 | E24: 2 | G24: 730 | H24: 12.3 | J24: Wydatki bieżące na programy, projekty lub zadania finansowane z udziałem środków, o których mowa w art. 5 ust. 1 pkt 2 i 3 ustawy | K24: FALSE | L24: 0 | M24: 2014 | N24: 0 | O24: 2013-11-08 | P24: 2014-01-01
A25: 2014 | B25: 1 | C25: KRZYŻANÓW | D25: 1002052 | E25: 2 | G25: 540 | H25: 9.8.1 | I25: [9.6] - [9.7.1] | J25: Informacja o spełnieniu wskaźnika spłaty zobowiązań określonego w art. 243 ustawy, po uwzględnieniu zobowiązań związku współtworzonego przez jednostkę samorządu terytorialnego oraz po uwzględnieniu wyłączeń określonych w pkt 5.1.1., obliczonego w oparciu o wykonanie roku poprzedzającego rok budżetowy | K25: FALSE | L25: 0 | M25: 2014 | N25: 1189 | O25: 2013-11-08 | P25: 2014-01-01
A26: 2014 | B26: 1 | C26: KRZYŻANÓW | D26: 1002052 | E26: 2 | G26: 380 | H26: 6.2 | I26: [6] / [1] | J26: Wskaźnik zadłużenia do dochodów ogółem określony w art. 170 ufp z 2005 r., bez uwzględniania wyłączeń określonych w pkt 6.1. | K26: FALSE | L26: 1 | M26: 2015 | N26: 0 | O26: 2013-11-08 | P26: 2014-01-01
A27: 2014 | B27: 1 | C27: KRZYŻANÓW | D27: 1002052 | E27: 2 | G27: 600 | H27: 11.3 | I27: [11.3.1] + [11.3.2] | J27: Wydatki objęte limitem art. 226 ust. 3 ustawy | K27: TRUE | L27: 2 | M27: 2016 | N27: 0 | O27: 2013-11-08 | P27: 2014-01-01
A28: 2014 | B28: 1 | C28: KRZYŻANÓW | D28: 1002052 | E28: 2 | G28: 30 | H28: 1.1.1 | J28: dochody z tytułu udziału we wpływach z podatku dochodowego od osób fizycznych | K28: TRUE | L28: 0 | M28: 2014 | N28: 1335088 | O28: 2013-11-08 | P28: 2014-01-01
A29: 2014 | B29: 1 | C29: KRZYŻANÓW | D29: 1002052 | E29: 2 | G29: 840 | H29: 13.5 | J29: Wydatki na spłatę przejętych zobowiązań samodzielnego publicznego zakładu opieki zdrowotnej likwidowanego na zasadach określonych w przepisach o działalności leczniczej | K29: TRUE | L29: 1 | M29: 2015 | N29: 0 | O29: 2013-11-08 | P29: 2014-01-01
A30: 2014 | B30: 1 | C30: KRZYŻANÓW | D30: 1002052 | E30: 2 | G30: 820 | H30: 13.3 | J30: Wysokość zobowiązań podlegających umorzeniu, o którym mowa w art. 190 ustawy o działalności leczniczej | K30: TRUE | L30: 2 | M30: 2016 | N30: 0 | O30: 2013-11-08 | P30: 2014-01-01
A31: 2014 | B31: 1 | C31: KRZYŻANÓW | D31: 1002052 | E31: 2 | G31: 410 | H31: 8 | J31: Relacja zrównoważenia wydatków bieżących, o której mowa w art. 242 ustawy | K31: TRUE | L31: 0 | M31: 2014 | N31: 0 | O31: 2013-11-08 | P31: 2014-01-01
A32: 2014 | B32: 1 | C32: KRZYŻANÓW | D32: 1002052 | E32: 2 | G32: 60 | H32: 1.1.3.1 | J32: z podatku od nieruchomości | K32: TRUE | L32: 0 | M32: 2014 | N32: 1657389 | O32: 2013-11-08 | P32: 2014-01-01
A33: 2014 | B33: 1 | C33: KRZYŻANÓW | D33: 1002052 | E33: 2 | G33: 250 | H33: 4.2.1 | J33: w tym na pokrycie deficytu budżetu | K33: FALSE | L33: 3 | M33: 2017 | N33: 0 | O33: 2013-11-08 | P33: 2014-01-01
A34: 2014 | B34: 1 | C34: KRZYŻANÓW | D34: 1002052 | E34: 2 | G34: 320 | H34: 5.1.1 | J34: w tym łączna kwota przypadających na dany rok kwot wyłączeń określonych w: art. 243 ust. 3 pkt 1 ustawy (lub art. 169 ust. 3 pkt 1 ufp z 2005 r.), art. 121a ustawy z dnia 27 sierpnia 2009 r. – Przepisy wprowadzające ustawę o finansach publicznych (Dz. U. Nr 157, poz. 1241, z późn. zm.) oraz art. 36 ustawy z dnia 7 grudnia 2012 r. o zmianie niektórych ustaw związanych z realizacją ustawy budżetowej (Dz.U. poz. 1456) | K34: TRUE | L34: 0 | M34: 2014 | N34: 0 | O34: 2013-11-08 | P34: 2014-01-01
A35: 2014 | B35: 1 | C35: KRZYŻANÓW | D35: 1002052 | E35: 2 | G35: 430 | H35: 8.2 | I35: [1.1] + [4.1] + [4.2] - ( [2.1] - [2.1.2] ) | J35: Różnica między dochodami bieżącymi, powiększonymi o nadwyżkę budżetową określoną w pkt 4.1. i wolne środki określone w pkt 4.2. a wydatkami bieżącymi, pomniejszonym o wydatki określone w pkt 2.1.2. | K35: FALSE | L35: 2 | M35: 2016 | N35: 2682000 | O35: 2013-11-08 | P35: 2014-01-01
A36: 2014 | B36: 1 | C36: KRZYŻANÓW | D36: 1002052 | E36: 2 | G36: 400 | H36: 7 | J36: Kwota zobowiązań wynikających z przejęcia przez jednostkę samorządu terytorialnego zobowiązań po likwidowanych i przekształcanych jednostkach zaliczanych do sektora finansów publicznych | K36: TRUE | L36: 2 | M36: 2016 | N36: 0 | O36: 2013-11-08 | P36: 2014-01-01
A37: 2014 | B37: 1 | C37: KRZYŻANÓW | D37: 1002052 | E37: 2 | G37: 330 | H37: 5.1.1.1 | J37: w tym kwota przypadających na dany rok kwot wyłączeń określonych w art. 243 ust. 3 pkt 1 ustawy lub art. 169 ust. 3 pkt 1 ufp z 2005 r. | K37: TRUE | L37: 3 | M37: 2017 | N37: 0 | O37: 2013-11-08 | P37: 2014-01-01
A38: 2014 | B38: 1 | C38: KRZYŻANÓW | D38: 1002052 | E38: 2 | G38: 680 | H38: 12.1.1 | J38: - w tym środki określone w art. 5 ust. 1 pkt 2 ustawy | K38: TRUE | L38: 1 | M38: 2015 | N38: 0 | O38: 2013-11-08 | P38: 2014-01-01
A39: 2014 | B39: 1 | C39: KRZYŻANÓW | D39: 1002052 | E39: 2 | G39: 270 | H39: 4.3.1 | J39: w tym na pokrycie deficytu budżetu | K39: TRUE | L39: 2 | M39: 2016 | N39: 0 | O39: 2013-11-08 | P39: 2014-01-01
A40: 2014 | B40: 1 | C40: KRZYŻANÓW | D40: 1002052 | E40: 2 | G40: 910 | H40: 14.3.1 | J40: spłata zobowiązań wymagalnych z lat poprzednich, innych niż w pkt 14.3.3 | K40: TRUE | L40: 2 | M40: 2016 | N40: 0 | O40: 2013-11-08 | P40: 2014-01-01
A41: 2014 | B41: 1 | C41: KRZYŻANÓW | D41: 1002052 | E41: 2 | G41: 450 | H41: 9.1 | I41: ([2.1.1] + [2.1.3.1] + [5.1] ) / [1] | J41: Wskaźnik planowanej łącznej kwoty spłaty zobowiązań, o której mowa w art. 169 ust. 1 ufp z 2005 r. do dochodów ogółem, bez uwzględnienia wyłączeń określonych w pkt 5.1.1. | K41: TRUE | L41: 2 | M41: 2016 | N41: 0 | O41: 2013-11-08 | P41: 2014-01-01
A42: 2014 | B42: 1 | C42: KRZYŻANÓW | D42: 1002052 | E42: 2 | G42: 80 | H42: 1.1.5 | J42: z tytułu dotacji i środków przeznaczonych na cele bieżące | K42: TRUE | L42: 3 | M42: 2017 | N42: 1350903 | O42: 2013-11-08 | P42: 2014-01-01
A43: 2014 | B43: 1 | C43: KRZYŻANÓW | D43: 1002052 | E43: 2 | G43: 710 | H43: 12.2.1 | J43: - w tym środki określone w art. 5 ust. 1 pkt 2 ustawy | K43: FALSE | L43: 0 | M43: 2014 | N43: 2114404 | O43: 2013-11-08 | P43: 2014-01-01
A44: 2014 | B44: 1 | C44: KRZYŻANÓW | D44: 1002052 | E44: 2 | G44: 110 | H44: 1.2.2 | J44: z tytułu dotacji oraz środków przeznaczonych na inwestycje | K44: TRUE | L44: 1 | M44: 2015 | N44: 0 | O44: 2013-11-08 | P44: 2014-01-01
A45: 2014 | B45: 1 | C45: KRZYŻANÓW | D45: 1002052 | E45: 2 | G45: 300 | H45: 5 | I45: [5.1] + [5.2] | J45: Rozchody budżetu | K45: FALSE | L45: 2 | M45: 2016 | N45: 0 | O45: 2013-11-08 | P45: 2014-01-01
A46: 2014 | B46: 1 | C46: KRZYŻANÓW | D46: 1002052 | E46: 2 | G46: 610 | H46: 11.3.1 | J46: bieżące | K46: TRUE | L46: 2 | M46: 2016 | N46: 0 | O46: 2013-11-08 | P46: 2014-01-01
A47: 2014 | B47: 1 | C47: KRZYŻANÓW | D47: 1002052 | E47: 2 | G47: 380 | H47: 6.2 | I47: [6] / [1] | J47: Wskaźnik zadłużenia do dochodów ogółem określony w art. 170 ufp z 2005 r., bez uwzględniania wyłączeń określonych w pkt 6.1. | K47: FALSE | L47: 0 | M47: 2014 | N47: 0 | O47: 2013-11-08 | P47: 2014-01-01
A48: 2014 | B48: 1 | C48: KRZYŻANÓW | D48: 1002052 | E48: 2 | G48: 240 | H48: 4.2 | J48: Wolne środki, o których mowa w art. 217 ust.2 pkt 6 ustawy | K48: FALSE | L48: 1 | M48: 2015 | N48: 0 | O48: 2013-11-08 | P48: 2014-01-01
A49: 2014 | B49: 1 | C49: KRZYŻANÓW | D49: 1002052 | E49: 2 | G49: 590 | H49: 11.2 | J49: Wydatki związane z funkcjonowaniem organów jednostki samorządu terytorialnego | K49: TRUE | L49: 3 | M49: 2017 | N49: 1585800 | O49: 2013-11-08 | P49: 2014-01-01
A50: 2014 | B50: 1 | C50: KRZYŻANÓW | D50: 1002052 | E50: 2 | G50: 430 | H50: 8.2 | I50: [1.1] + [4.1] + [4.2] - ( [2.1] - [2.1.2] ) | J50: Różnica między dochodami bieżącymi, powiększonymi o nadwyżkę budżetową określoną w pkt 4.1. i wolne środki określone w pkt 4.2. a wydatkami bieżącymi, pomniejszonym o wydatki określone w pkt 2.1.2. | K50: FALSE | L50: 0 | M50: 2014 | N50: 2304552.19 | O50: 2013-11-08 | P50: 2014-01-01
A51: 2014 | B51: 1 | C51: KRZYŻANÓW | D51: 1002052 | E51: 2 | G51: 720 | H51: 12.2.1.1 | J51: - w tym środki określone w art. 5 ust. 1 pkt 2 ustawy wynikające wyłącznie z zawartych umów na realizację programu, projektu lub zadania | K51: FALSE | L51: 0 | M51: 2014 | N51: 0 | O51: 2013-11-08 | P51: 2014-01-01
A52: 2014 | B52: 1 | C52: KRZYŻANÓW | D52: 1002052 | E52: 2 | G52: 740 | H52: 12.3.1 | J52: - w tym finansowane środkami określonymi w art. 5 ust. 1 pkt 2 ustawy | K52: FALSE | L52: 1 | M52: 2015 | N52: 0 | O52: 2013-11-08 | P52: 2014-01-01
A53: 2014 | B53: 1 | C53: KRZYŻANÓW | D53: 1002052 | E53: 2 | G53: 350 | H53: 6 | J53: Kwota długu | K53: TRUE | L53: 1 | M53: 2015 | N53: 0 | O53: 2013-11-08 | P53: 2014-01-01
A54: 2014 | B54: 1 | C54: KRZYŻANÓW | D54: 1002052 | E54: 2 | G54: 810 | H54: 13.2 | J54: Dochody budżetowe z tytułu dotacji celowej z budżetu państwa, o której mowa w art. 196 ustawy z dnia 15 kwietnia 2011 r. o działalności leczniczej (Dz.U. Nr 112, poz. 654, z późn. zm.) | K54: TRUE | L54: 3 | M54: 2017 | N54: 0 | O54: 2013-11-08 | P54: 2014-01-01
A55: 2014 | B55: 1 | C55: KRZYŻANÓW | D55: 1002052 | E55: 2 | G55: 100 | H55: 1.2.1 | J55: ze sprzedaży majątku | K55: TRUE | L55: 3 | M55: 2017 | N55: 0 | O55: 2013-11-08 | P55: 2014-01-01
A56: 2014 | B56: 1 | C56: KRZYŻANÓW | D56: 1002052 | E56: 2 | G56: 480 | H56: 9.4 | I56: ([2.1.1] + [2.1.3.1] + [5.1] - [5.1.1]- [2.1.1.1] ) / [1] | J56: Wskaźnik planowanej łącznej kwoty spłaty zobowiązań, o której mowa w art. 243 ust. 1 ustawy do dochodów ogółem, bez uwzględnienia zobowiązań związku współtworzonego przez jednostkę samorządu terytorialnego, po uwzględnieniu wyłączeń przypadających na dany rok określonych w pkt 5.1.1. | K56: FALSE | L56: 3 | M56: 2017 | N56: 0 | O56: 2013-11-08 | P56: 2014-01-01
A57: 2014 | B57: 1 | C57: KRZYŻANÓW | D57: 1002052 | E57: 2 | G57: 150 | H57: 2.1.1.1 | J57: w tym: gwarancje i poręczenia podlegające wyłączeniu z limitów spłaty zobowiązań określonych w art. 243 ust. 3 pkt 2 ustawy z dnia 27 sierpnia 2009 r. o finansach publicznych (Dz. U. Nr 157, poz. 1240, z późn. zm.) lub art. 169 ust. 3 pkt 2 ustawy z dnia 30 czerwca 2005 r. o finansach publicznych (Dz. U. Nr 249, poz. 2104, z późn. zm) | K57: TRUE | L57: 3 | M57: 2017 | N57: 0 | O57: 2013-11-08 | P57: 2014-01-01
A58: 2014 | B58: 1 | C58: KRZYŻANÓW | D58: 1002052 | E58: 2 | G58: 630 | H58: 11.4 | J58: Wydatki inwestycyjne kontynuowane | K58: TRUE | L58: 3 | M58: 2017 | N58: 0 | O58: 2013-11-08 | P58: 2014-01-01
A59: 2014 | B59: 1 | C59: KRZYŻANÓW | D59: 1002052 | E59: 2 | G59: 40 | H59: 1.1.2 | J59: dochody z tytułu udziału we wpływach z podatku dochodowego od osób prawnych | K59: TRUE | L59: 2 | M59: 2016 | N59: 1000 | O59: 2013-11-08 | P59: 2014-01-01
A60: 2014 | B60: 1 | C60: KRZYŻANÓW | D60: 1002052 | E60: 2 | G60: 360 | H60: 6.1 | J60: Łączna kwota wyłączeń z ograniczeń długu określonych w art. 170 ust. 3 ufp z 2005 r. oraz w art. 36 ustawy o zmianie niektórych ustaw w związku z realizacją ustawy budżetowej | K60: TRUE | L60: 1 | M60: 2015 | N60: 0 | O60: 2013-11-08 | P60: 2014-01-01
A61: 2014 | B61: 1 | C61: KRZYŻANÓW | D61: 1002052 | E61: 2 | G61: 590 | H61: 11.2 | J61: Wydatki związane z funkcjonowaniem organów jednostki samorządu terytorialnego | K61: TRUE | L61: 1 | M61: 2015 | N61: 1509400 | O61: 2013-11-08 | P61: 2014-01-01
A62: 2014 | B62: 1 | C62: KRZYŻANÓW | D62: 1002052 | E62: 2 | G62: 900 | H62: 14.3 | J62: Wydatki zmniejszające dług, w tym | K62: TRUE | L62: 1 | M62: 2015 | N62: 0 | O62: 2013-11-08 | P62: 2014-01-01
A63: 2014 | B63: 1 | C63: KRZYŻANÓW | D63: 1002052 | E63: 2 | G63: 450 | H63: 9.1 | I63: ([2.1.1] + [2.1.3.1] + [5.1] ) / [1] | J63: Wskaźnik planowanej łącznej kwoty spłaty zobowiązań, o której mowa w art. 169 ust. 1 ufp z 2005 r. do dochodów ogółem, bez uwzględnienia wyłączeń określonych w pkt 5.1.1. | K63: TRUE | L63: 3 | M63: 2017 | N63: 0 | O63: 2013-11-08 | P63: 2014-01-01
A64: 2014 | B64: 1 | C64: KRZYŻANÓW | D64: 1002052 | E64: 2 | G64: 260 | H64: 4.3 | J64: Kredyty, pożyczki, emisja papierów wartościowych | K64: TRUE | L64: 2 | M64: 2016 | N64: 0 | O64: 2013-11-08 | P64: 2014-01-01
A65: 2014 | B65: 1 | C65: KRZYŻANÓW | D65: 1002052 | E65: 2 | G65: 130 | H65: 2.1 | J65: Wydatki bieżące, w tym: | K65: TRUE | L65: 2 | M65: 2016 | N65: 9368000 | O65: 2013-11-08 | P65: 2014-01-01
